Workbook

Sheet Table Contents
C1: Go to Charts by Pressing Shift and Enter on Menu Item
C3: Sheet Tab | D3: Description | E3: Author
B4: 1 | C4: Table Contents
B5: 2 | C5: SPV Assumptions
B6: 3 | C6: General Assumptions
B7: 4 | C7: Risk Analysis
B8: 5 | C8: Template
B9: 6 | C9: Consolidated
B10: 7 | C10: Consolidated Debt
B11: 8 | C11: Consolidated Equity Cash Flow
B12: 9 | C12: Equity Cash flow EURO
B13: 10 | C13: Diagram
B14: 11 | C14: Sensitivity chart
B15: 12 | C15: SPV Cash Waterfall
B16: 13 | C16: SPV debt fund chart
B17: 14 | C17: Equity cash flow chart SPV
B18: 15 | C18: TEPCO Backup
B19: 16 | C19: OandM Costs
B20: 17 | C20: Currency Scenarios
B21: 18 | C21: Monthly production
B22: 19 | C22: SPV Sheet
B23: 20 | C23: TEPCO
B24: 21 | C24: pepsico
B25: 22 | C25: PandG
B26: 23 | C26: Nestle
B27: 24 | C27: TEI
B28: 25 | C28: TAI
B29: 26 | C29: EGYSphere | G29: 001-630-886-2754
B30: 27 | C30: Edita
G31: edward.bodmer

Sheet SPV Assumptions
A1: Portfolio Assumptions
E2: 3
E3: SPV Name | F3: Include | G3: Agreement Date | H3: Pre-Construction Period | I3: Start Of Construction | J3: Construction | K3: Operation Date | L3: Life | M3: End Of Life | N3: Rooftop Size | O3: kW/m | P3: Capacity | Q3: Annual Yield | R3: degredation | S3: Interconnection Costs | T3: Operating Costs | U3: Total Equity Contribution | V3: Rent Model | W3: Equity contribution Model | X3: Rent as % of revenue | Y3: Equity contribution % | Z3: RE-financing after COD | AA3: Re-financing Date | AB3: Pre-tax IRR | AC3: Pre-tax IRR | AD3: After Tax IRR | AE3: after tax Irr | AF3: Equity IRR | AG3: Equity IRR | AH3: DSCR
H4: months | J4: months | L4: Year | N4: Sqm | P4: kWp | Q4: kWh/Kwp | R4: % | S4: EGP | T4: EURO/kW/y | Z4: Month | AB4: EGP | AC4: EURO | AD4: EGP | AE4: EURO | AF4: EGP | AG4: EURO
E5: Template | F5: =INDEX(F7:F27,$E$2) -> TRUE | G5: =INDEX(G7:G27,$E$2) -> 2017-04-01 | H5: =INDEX(H7:H27,$E$2) -> 6 | I5: =INDEX(I7:I27,$E$2) -> 2017-10-01 | J5: =INDEX(J7:J27,$E$2) -> 3 | K5: =INDEX(K7:K27,$E$2) -> 2018-01-01 | L5: =INDEX(L7:L27,$E$2) -> 25 | M5: =INDEX(M7:M27,$E$2) -> 2043-01-01 | N5: =INDEX(N7:N27,$E$2) -> 3500 | O5: =INDEX(O7:O27,$E$2) -> 0.1629802095 | P5: =INDEX(P7:P27,$E$2) -> 570.4307334 | Q5: =INDEX(Q7:Q27,$E$2) -> 1700 | R5: =INDEX(R7:R27,$E$2) -> 0.005 | S5: =INDEX(S7:S27,$E$2) -> 20000 | T5: =INDEX(T7:T27,$E$2) -> 13 | U5: =INDEX(U7:U27,$E$2) -> 0.1 | V5: =INDEX(V7:V27,$E$2) -> FALSE | W5: =INDEX(W7:W27,$E$2) -> TRUE | X5: =INDEX(X7:X27,$E$2) -> 0.025 | Y5: =INDEX(Y7:Y27,$E$2) -> 0.05 | Z5: =INDEX(Z7:Z27,$E$2) -> 10 | AA5: =INDEX(AA7:AA27,$E$2) -> 2018-11-01 | AB5: =INDEX(AB7:AB27,$E$2) -> 0.1700222194
AB6: h124 | AC6: h127 | AF6: g348 | AG6: g351 | AH6: g358
E7: TEPCO | F7: =TRUE -> TRUE | G7: 2017-01-01 | H7: 3 | I7: =EDATE(G7,H7) -> 2017-04-01 | J7: 6 | K7: =EDATE(I7,J7) -> 2017-10-01 | L7: 25 | M7: =EDATE(K7,L7*12) -> 2042-10-01 | N7: 3500 | O7: 0.1629802095 | P7: =O7*N7 -> 570.4307334 | Q7: ='TEPCO Backup'!$O$5 -> 1709.677419 | R7: 0.005 | S7: 20000 | T7: 12 | U7: 0.1 | V7: FALSE | W7: =NOT(V7) -> TRUE | X7: 0.025 | Y7: 0.05 | Z7: 13 | AA7: =EDATE(K7,Z7) -> 2018-11-01 | AB7: =INDIRECT("'"&$E7&"'!"&AB$6) -> 0.1683970988 | AC7: =INDIRECT("'"&$E7&"'!"&AC$6) -> 0.1085392773 | AF7: 0.4079979241 | AG7: 0.3401689231 | AH7: 11.62855544
E8: pepsico | F8: =TRUE -> TRUE | G8: 2017-02-01 | H8: 5 | I8: 2017-07-01 | J8: 5 | K8: 2017-12-01 | L8: 25 | M8: 2042-12-01 | N8: 3250 | O8: 0.1629802095 | P8: 529.685681 | Q8: 1800 | R8: 0.005 | S8: 20000 | T8: 10 | U8: 0.1 | V8: FALSE | W8: TRUE | X8: 0.025 | Y8: 0.05 | Z8: 13 | AA8: 2019-01-01 | AB8: =INDIRECT("'"&$E8&"'!"&AB$6) -> 0.184462887 | AC8: 0.1216906846 | AF8: 0.4380778372 | AG8: 0.3574131787 | AH8: 13.28814609
E9: PandG | F9: =TRUE -> TRUE | G9: 2017-04-01 | H9: 6 | I9: 2017-10-01 | J9: 3 | K9: 2018-01-01 | L9: 25 | M9: 2043-01-01 | N9: 3500 | O9: 0.1629802095 | P9: 570.4307334 | Q9: 1700 | R9: 0.005 | S9: 20000 | T9: 13 | U9: 0.1 | V9: FALSE | W9: TRUE | X9: 0.025 | Y9: 0.05 | Z9: 10 | AA9: 2018-11-01 | AB9: 0.1700222194 | AC9: 0.1066533148 | AF9: 0.404245168 | AG9: 0.3312672675 | AH9: 11.3686159
E10: Nestle | F10: =TRUE -> TRUE | G10: 2017-05-01 | H10: 2 | I10: 2017-07-01 | J10: 8 | K10: 2018-03-01 | L10: 25 | M10: 2043-03-01 | N10: 3000 | O10: 0.1629802095 | P10: 488.9406286 | Q10: ='TEPCO Backup'!$O$5 -> 1709.677419 | R10: 0.005 | S10: 20000 | T10: 10 | U10: 0.1 | V10: TRUE | W10: FALSE | X10: 0.025 | Y10: 0.05 | Z10: 8 | AA10: 2018-11-01 | AB10: 0.1591704309 | AC10: 0.09907351136 | AF10: 0.3460804403 | AG10: 0.2789121926 | AH10: 11.0344253
E11: TEI | F11: =TRUE -> TRUE | G11: 2017-05-01 | H11: 2 | I11: 2017-07-01 | J11: 4 | K11: 2017-11-01 | L11: 25 | M11: 2042-11-01 | N11: 1500 | O11: 0.1629802095 | P11: 244.4703143 | Q11: ='TEPCO Backup'!$O$5 -> 1709.677419 | R11: 0.005 | S11: 20000 | T11: 12 | U11: 0.1 | V11: TRUE | W11: FALSE | X11: 0.025 | Y11: 0.05 | Z11: 8 | AA11: 2018-07-01 | AB11: 0.136414963 | AC11: 0.0769654721 | AF11: 0.2366547406 | AG11: 0.1720520675 | AH11: 10.32646903
E12: TAI | F12: =TRUE -> TRUE | G12: 2017-09-01 | H12: 2 | I12: 2017-11-01 | J12: 4 | K12: 2018-03-01 | L12: 25 | M12: 2043-03-01 | N12: 1700 | O12: 0.1629802095 | P12: 277.0663562 | Q12: ='TEPCO Backup'!$O$5 -> 1709.677419 | R12: 0.005 | S12: 20000 | T12: 15 | U12: 0.1 | V12: TRUE | W12: FALSE | X12: 0.025 | Y12: 0.05 | Z12: 8 | AA12: 2018-11-01 | AB12: 0.1340052545 | AC12: 0.07593182623 | AF12: 0.2502947628 | AG12: 0.1871278584 | AH12: 64.58454045
E13: EGYSphere | F13: =TRUE -> TRUE | G13: 2017-11-01 | H13: 2 | I13: 2018-01-01 | J13: 4 | K13: 2018-05-01 | L13: 25 | M13: 2043-05-01 | N13: 2200 | O13: 0.1629802095 | P13: 358.556461 | Q13: ='TEPCO Backup'!$O$5 -> 1709.677419 | R13: 0.005 | S13: 20000 | T13: 15 | U13: 0.1 | V13: TRUE | W13: FALSE | X13: 0.025 | Y13: 0.05 | Z13: 6 | AA13: 2018-11-01 | AB13: 0.1339330375 | AC13: 0.07853576839 | AF13: 0.2618039787 | AG13: 0.2005971491 | AH13: 75.07307045
E14: Edita | F14: =TRUE -> TRUE | G14: 2018-01-01 | H14: 2 | I14: 2018-03-01 | J14: 4 | K14: 2018-07-01 | L14: 25 | M14: 2043-07-01 | N14: 2000 | O14: 0.1629802095 | P14: 325.9604191 | Q14: ='TEPCO Backup'!$O$5 -> 1709.677419 | R14: 0.005 | S14: 20000 | T14: 15 | U14: 0.1 | V14: TRUE | W14: FALSE | X14: 0.025 | Y14: 0.05 | Z14: 6 | AA14: 2019-01-01 | AB14: 0.1324312627 | AC14: 0.07594943941 | AF14: 0.2215551436 | AG14: 0.1594954312 | AH14: 9.673976834
A29: Macro Parametres
D30: SPVs | E30: =COUNTA(E7:E28) -> 8
D31: Starting Row | E31: =ROW(E7)-1 -> 6
D32: SPV Column | E32: =COLUMN(E3) -> 5

Sheet General Assumptions
A2: General Assumptions
B3: Model start date | E3: 2017-01-01
B5: Year | F5: 2017 | G5: 2018 | H5: 2019 | I5: 2020 | J5: 2021 | K5: 2022 | L5: 2023 | M5: 2024 | N5: 2025 | O5: 2026 | P5: 2027 | Q5: 2028 | R5: 2029 | S5: 2030 | T5: 2031 | U5: 2032 | V5: 2033 | W5: 2034 | X5: 2035 | Y5: 2036 | Z5: 2037 | AA5: 2038 | AB5: 2039 | AC5: 2040
B6: Earlier exchange rate | F6: 9.7
B7: Recently announced exchange rate | F7: 14.5
B9: Inflation in EURO | F9: 0.01 | G9: 0.01 | H9: 0.01 | I9: 0.01 | J9: 0.01 | K9: 0.01 | L9: 0.01 | M9: 0.01 | N9: 0.01 | O9: 0.01 | P9: 0.01 | Q9: 0.01 | R9: 0.01 | S9: 0.01 | T9: 0.01 | U9: 0.01 | V9: 0.01 | W9: 0.01 | X9: 0.01 | Y9: 0.01 | Z9: 0.01 | AA9: 0.01 | AB9: 0.01 | AC9: 0.01
B10: Inflation in EGP | F10: ='Risk Analysis'!P5 -> 0.065 | G10: =F10 -> 0.065 | H10: 0.065 | I10: 0.065 | J10: 0.065 | K10: 0.065 | L10: 0.065 | M10: 0.065 | N10: 0.065 | O10: 0.065 | P10: 0.065 | Q10: 0.065 | R10: 0.065 | S10: 0.065 | T10: 0.065 | U10: 0.065 | V10: 0.065 | W10: 0.065 | X10: 0.065 | Y10: 0.065 | Z10: 0.065 | AA10: 0.065 | AB10: 0.065 | AC10: 0.065
B12: PPP exchange rate (EGP/EURO) | F12: =F7*(1+F10)/(1+F9) -> 15.28960396 | G12: =F12*(1+G10)/(1+G9) -> 16.12220616 | H12: 17.00014808 | I12: 17.92589871 | J12: 18.90206151 | K12: 19.9313817 | L12: 21.01675397 | M12: 22.16123067 | N12: 23.36803036 | O12: 24.64054686 | P12: 25.98235882 | Q12: 27.39723975 | R12: 28.88916864 | S12: 30.46234119 | T12: 32.12118156 | U12: 33.87035481 | V12: 35.71478007 | W12: 37.65964433 | X12: 39.71041704 | Y12: 41.87286549 | Z12: 44.15307104 | AA12: 46.5574462 | AB12: 49.09275267 | AC12: 51.76612039
B13: Adjustments | E13: ='Risk Analysis'!P4 -> Base case | F13: 0.95 | G13: ='Risk Analysis'!P6 -> 0.95 | H13: =G13 -> 0.95 | I13: 0.95 | J13: 0.95 | K13: 0.95 | L13: 0.95 | M13: 0.95 | N13: 0.95 | O13: 0.95 | P13: 0.95 | Q13: 0.95 | R13: 0.95 | S13: 0.95 | T13: 0.95 | U13: 0.95 | V13: 0.95 | W13: 0.95 | X13: 0.95 | Y13: 0.95 | Z13: 0.95 | AA13: 0.95 | AB13: 0.95 | AC13: 0.95
B14: Exchange rate used | F14: =F12*F13 -> 14.52512376 | G14: 15.31609585 | H14: 16.15014067 | I14: 17.02960378 | J14: 17.95695844 | K14: 18.93481261 | L14: 19.96591627 | M14: 21.05316913 | N14: 22.19962884 | O14: 23.40851952 | P14: 24.68324088 | Q14: 26.02737776 | R14: 27.44471021 | S14: 28.93922413 | T14: 30.51512248 | U14: 32.17683707 | V14: 33.92904107 | W14: 35.77666211 | X14: 37.72489619 | Y14: 39.77922222 | Z14: 41.94541749 | AA14: 44.22957389 | AB14: 46.63811504 | AC14: 49.17781437
A16: Tariff Assumptions
B17: Feed-in Tariff | E17: EGP/kWh | F17: 1.08
B18: Feed-in Tariff subject to escalation | E18: % | F18: =H18/100 -> 0 | H18: 0
B20: Energy charge in retail tariff (no inflation) | E20: EGP/kWh | F20: 0.5 | G20: =F20*1.1 -> 0.55 | H20: =G20*1.1 -> 0.605 | I20: =H20 -> 0.605 | J20: 0.605 | K20: 0.605 | L20: 0.605 | M20: 0.605 | N20: 0.605 | O20: 0.605 | P20: 0.605 | Q20: 0.605 | R20: 0.605 | S20: 0.605 | T20: 0.605 | U20: 0.605 | V20: 0.605 | W20: 0.605 | X20: 0.605 | Y20: 0.605 | Z20: 0.605 | AA20: 0.605 | AB20: 0.605 | AC20: 0.605
B21: Energy charge escalation | E21: Switch | F21: TRUE
B23: Allow switch to retail tariff | E23: Switch | F23: TRUE
B24: Pct before switch | E24: % | F24: 0.1
B26: Days A/R | E26: Months | F26: ='Risk Analysis'!P7 -> 1
B27: Days A/P | E27: Months | F27: 1
F29: 1 | G29: 2 | H29: 3 | I29: 4 | J29: 5 | K29: 6 | L29: 7 | M29: 8 | N29: 9 | O29: 10 | P29: 11 | Q29: 12
B30: Monthly/Annual Average production | F30: =TRANSPOSE('Monthly production'!J3:J14) -> 0.05672126198 | G30: 0.06287266964 | H30: 0.08562910408 | I30: 0.09585629104 | J30: 0.1054796588 | K30: 0.1066495585 | L30: 0.1072156389 | M30: 0.1005736282 | N30: 0.08902558684 | O30: 0.07702468111 | P30: 0.05970261907 | Q30: 0.05324930183
B32: Capital Costs | E32: Size | F32: KW | G32: 0 | H32: 100 | I32: 200 | J32: 300 | K32: 400 | L32: 500
E33: EURO | F33: Cost/kW | G33: 1000 | H33: 960 | I33: 930 | J33: 890 | K33: 840 | L33: 800
A36: Tamqeen Costs (without inflation)
B37: Accounting | E37: EGP
B38: No. of SPVs
B39: Accounting cost/SPV | E39: EGP | F39: 12000 | G39: 12000 | H39: 12000 | I39: 12000 | J39: 12000 | K39: 12000 | L39: 12000 | M39: 12000 | N39: 12000 | O39: 12000 | P39: 12000 | Q39: 12000 | R39: 12000 | S39: 12000 | T39: 12000 | U39: 12000 | V39: 12000 | W39: 12000 | X39: 12000 | Y39: 12000 | Z39: 12000 | AA39: 12000 | AB39: 12000 | AC39: 12000
B40: Marketing | E40: EGP
B41: Project development | E41: EGP
C42: Total | F42: =SUM(F37:F41) -> 12000 | G42: 12000 | H42: 12000 | I42: 12000 | J42: 12000 | K42: 12000 | L42: 12000 | M42: 12000 | N42: 12000 | O42: 12000 | P42: 12000 | Q42: 12000 | R42: 12000 | S42: 12000 | T42: 12000 | U42: 12000 | V42: 12000 | W42: 12000 | X42: 12000 | Y42: 12000 | Z42: 12000 | AA42: 12000 | AB42: 12000 | AC42: 12000
B44: Initial development costs | E44: EGP
A46: Tax Assumptions
B47: Tax life | E47: Year | F47: 8
B48: Tax rate | E48: % | F48: 0.225
B49: Taxable switch | E49: Switch | F49: FALSE
A51: Local Banks Financing Assumptions
B52: Assets funded | F52: % | G52: 0.8
B53: Interest Rate EGP | F53: % p.a. | G53: 0.05
B54: Debt Tenor | F54: Years | G54: 10
B55: Signing fee | F55: % | G55: 0.02
B56: Repayment type
C57: Level | G57: TRUE
C58: Sculpted | G58: =NOT(G57) -> FALSE
B60: Grace Period | F60: Months | G60: 12
B61: Required Cash - Months of debt service | F61: Months | G61: 6
B63: Interest income Rate | F63: % | G63: 0.07
A65: Debt funds Assumptions
B66: EURIBOR rate | E66: % | F66: % p.a. | G66: 0.01
B67: Credit spread | E67: % | F67: % p.a. | G67: 0.045
B68: Cash sweep | E68: % | F68: % | G68: 1
B69: Grace period | E69: Month | F69: Months | G69: 6

Sheet Risk Analysis
B2: Scenario Number | D2: 1 | V2: =TRANSPOSE(E4:G4) -> Base case
V3: Worst Case
E4: Base case | F4: Worst Case | G4: Optimistic Case | H4: Currency Devaluation - inflation | I4: Added Currency Devaluation | J4: Gov. Payment | K4: Yield Sensitivity | L4: O&M Costs | M4: Cost Overruns | N4: Tarrif Adj | P4: =INDEX(E4:N4,$D$2) -> Base case | V4: Optimistic Case
B5: Currency EGP Inflation | E5: 0.065 | F5: 0.085 | G5: 0.04 | H5: =F5 -> 0.085 | I5: 0.065 | J5: 0.065 | K5: 0.065 | L5: 0.065 | M5: 0.065 | N5: 0.065 | P5: =INDEX(E5:N5,$D$2) -> 0.065 | T5: =TRANSPOSE(E4:N4) -> Base case
B6: Added currency devaluation | E6: 0.95 | F6: 1 | G6: 0.9 | H6: 0.95 | I6: =F6 -> 1 | J6: 0.95 | K6: 0.95 | L6: 0.95 | M6: 0.95 | N6: 0.95 | P6: 0.95 | T6: Worst Case
B7: Gov. Payments | E7: 1 | F7: 3 | G7: 1 | H7: 1 | I7: 1 | J7: =F7 -> 3 | K7: 1 | L7: 1 | M7: 1 | N7: 1 | P7: 1 | T7: Optimistic Case
B8: Yield sensitivity | E8: 1 | F8: 0.95 | G8: 1.02 | H8: 1 | I8: 1 | J8: 1 | K8: =F8 -> 0.95 | L8: 1 | M8: 1 | N8: 1 | P8: 1 | T8: Currency Devaluation - inflation
B9: O&M Costs | E9: 1 | F9: 1.07 | G9: 0.9 | H9: 1 | I9: 1 | J9: 1 | K9: 1 | L9: =F9 -> 1.07 | M9: 1 | N9: 1 | P9: 1 | T9: Added Currency Devaluation
B10: Cost overruns | E10: 1 | F10: 1.15 | G10: 0.9 | H10: 1 | I10: 1 | J10: 1 | K10: 1 | L10: 1 | M10: =F10 -> 1.15 | N10: =E10 -> 1 | P10: 1 | T10: Gov. Payment
B11: Tariff adjustment for Devaluation | E11: 1.2 | F11: 1 | G11: 1.4 | H11: 1.2 | I11: 1.2 | J11: 1.2 | K11: 1.2 | L11: 1.2 | M11: 1.2 | N11: =F11 -> 1 | P11: =INDEX(E11:N11,$D$2) -> 1.2 | T11: Yield Sensitivity
T12: O&M Costs
B13: SPV | E13: 1 | F13: 2 | G13: 3 | H13: 4 | I13: 5 | J13: 6 | K13: 7 | L13: 8 | M13: 9 | N13: 10 | T13: Cost Overruns
B14: Project IRR EGP | D14: ='SPV Template'!H406 -> 0.1700222194 | E14: 0.1700222194 | F14: 0.1262006938 | G14: 0.2421505868 | H14: 0.1780418336 | I14: 0.1686595023 | J14: 0.164702493 | K14: 0.1594286859 | L14: 0.1682087719 | M14: 0.1462467253 | N14: 0.1446534097 | T14: Tarrif Adj
B15: Project IRR EURO | D15: ='SPV Template'!J406 -> 0.1066533148 | E15: 0.1066533148 | F15: 0.0414357394 | G15: 0.2181869805 | H15: 0.09310717881 | I15: 0.09696108699 | J15: 0.1021910846 | K15: 0.09680680633 | L15: 0.1049643457 | M15: 0.08455459177 | N15: 0.08328978717
B16: Equity IRR EGP | D16: ='SPV Template'!M406 -> 0.365862447 | E16: 0.365862447 | F16: 0.1621229589 | G16: 0.9697309852 | H16: 0.3331431687 | I16: 0.3034297287 | J16: 0.3278676808 | K16: 0.3149372756 | L16: 0.3578143179 | M16: 0.2585549414 | N16: 0.2378269613
B17: Equity IRR EURO | D17: ='SPV Template'!O406 -> 0.2947709262 | E17: 0.2947709262 | F17: 0.07947522104 | G17: 0.9520100951 | H17: 0.2400408447 | I17: 0.2285830081 | J17: 0.2587400377 | K17: 0.2463857234 | L17: 0.2871358097 | M17: 0.1928116262 | N17: 0.1730444729
B18: Average DSCR | D18: ='SPV Template'!G357 -> 11.36282109 | E18: 11.36282109 | F18: 2.51009531 | G18: 16.32237242 | H18: 11.32865825 | I18: 11.24101029 | J18: 11.59682903 | K18: 10.7183697 | L18: 11.22975766 | M18: 9.950497118 | N18: 9.415947875
B19: PLCR | D19: ='SPV Template'!I366 -> 4.083533376 | E19: 4.083533376 | F19: 2.723526584 | G19: 5.875026339 | H19: 4.48539908 | I19: 3.753678223 | J19: 3.908790257 | K19: 3.77959339 | L19: 4.02883261 | M19: 3.421646531 | N19: 3.443856369
H21: =H4 -> Currency Devaluation - inflation | I21: =I4 -> Added Currency Devaluation | J21: =J4 -> Gov. Payment | K21: Yield Sensitivity | L21: O&M Costs | M21: Cost Overruns | N21: Tarrif Adj
B22: Base Vs. Bear - Project IRR | H22: =H14-$E$14 -> 0.00801961422 | I22: =I14-$E$14 -> -0.001362717152 | J22: =J14-$E$14 -> -0.005319726467 | K22: -0.01059353352 | L22: -0.001813447475 | M22: -0.0237754941 | N22: -0.0253688097
B23: Base Vs. Bear - EURO IRR | H23: =H15-$E$15 -> -0.01354613602 | I23: =I15-$E$15 -> -0.00969222784 | J23: -0.004462230206 | K23: -0.009846508503 | L23: -0.001688969135 | M23: -0.02209872305 | N23: -0.02336352766
F29: 1
F31: ='General Assumptions'!F5 -> 2017 | G31: ='General Assumptions'!G5 -> 2018 | H31: ='General Assumptions'!H5 -> 2019 | I31: ='General Assumptions'!I5 -> 2020 | J31: ='General Assumptions'!J5 -> 2021 | K31: ='General Assumptions'!K5 -> 2022 | L31: ='General Assumptions'!L5 -> 2023 | M31: ='General Assumptions'!M5 -> 2024 | N31: ='General Assumptions'!N5 -> 2025 | O31: ='General Assumptions'!O5 -> 2026 | P31: ='General Assumptions'!P5 -> 2027 | Q31: ='General Assumptions'!Q5 -> 2028 | R31: ='General Assumptions'!R5 -> 2029 | S31: ='General Assumptions'!S5 -> 2030 | T31: ='General Assumptions'!T5 -> 2031 | U31: ='General Assumptions'!U5 -> 2032 | V31: ='General Assumptions'!V5 -> 2033 | W31: ='General Assumptions'!W5 -> 2034 | X31: ='General Assumptions'!X5 -> 2035 | Y31: ='General Assumptions'!Y5 -> 2036 | Z31: ='General Assumptions'!Z5 -> 2037 | AA31: ='General Assumptions'!AA5 -> 2038 | AB31: ='General Assumptions'!AB5 -> 2039 | AC31: ='General Assumptions'!AC5 -> 2040
F32: ='General Assumptions'!F14 -> 14.52512376 | G32: ='General Assumptions'!G14 -> 15.31609585 | H32: ='General Assumptions'!H14 -> 16.15014067 | I32: ='General Assumptions'!I14 -> 17.02960378 | J32: ='General Assumptions'!J14 -> 17.95695844 | K32: ='General Assumptions'!K14 -> 18.93481261 | L32: ='General Assumptions'!L14 -> 19.96591627 | M32: ='General Assumptions'!M14 -> 21.05316913 | N32: ='General Assumptions'!N14 -> 22.19962884 | O32: ='General Assumptions'!O14 -> 23.40851952 | P32: ='General Assumptions'!P14 -> 24.68324088 | Q32: ='General Assumptions'!Q14 -> 26.02737776 | R32: ='General Assumptions'!R14 -> 27.44471021 | S32: ='General Assumptions'!S14 -> 28.93922413 | T32: ='General Assumptions'!T14 -> 30.51512248 | U32: ='General Assumptions'!U14 -> 32.17683707 | V32: ='General Assumptions'!V14 -> 33.92904107 | W32: ='General Assumptions'!W14 -> 35.77666211 | X32: ='General Assumptions'!X14 -> 37.72489619 | Y32: ='General Assumptions'!Y14 -> 39.77922222 | Z32: ='General Assumptions'!Z14 -> 41.94541749 | AA32: ='General Assumptions'!AA14 -> 44.22957389 | AB32: ='General Assumptions'!AB14 -> 46.63811504 | AC32: ='General Assumptions'!AC14 -> 49.17781437
D33: Base Case | E33: 1 | F33: 14.52512376 | G33: 15.31609585 | H33: 16.15014067 | I33: 17.02960378 | J33: 17.95695844 | K33: 18.93481261 | L33: 19.96591627 | M33: 21.05316913 | N33: 22.19962884 | O33: 23.40851952 | P33: 24.68324088 | Q33: 26.02737776 | R33: 27.44471021 | S33: 28.93922413 | T33: 30.51512248 | U33: 32.17683707 | V33: 33.92904107 | W33: 35.77666211 | X33: 37.72489619 | Y33: 39.77922222 | Z33: 41.94541749 | AA33: 44.22957389 | AB33: 46.63811504 | AC33: 49.17781437
D34: High Devaluation Case | E34: 2 | F34: 14.79789604 | G34: 16.73342074 | H34: 17.97600149 | I34: 19.31085309 | J34: 20.74482733 | K34: 22.2852848 | L34: 23.94013268 | M34: 25.71786531 | N34: 27.62760778 | O34: 29.67916281 | P34: 31.88306104 | Q34: 34.25061508 | R34: 36.79397759 | S34: 39.52620364 | T34: 42.46131778 | U34: 45.61438593 | V34: 49.0015928 | W34: 52.64032494 | X34: 56.54925996 | Y34: 60.74846244 | Z34: 65.25948687 | AA34: 70.10548838 | AB34: 75.31134147 | AC34: 80.90376782
D35: Low Devaluation Case | E35: 3 | F35: 14.18415842 | G35: 13.8367611 | H35: 14.24775401 | I35: 14.67095462 | J35: 15.10672555 | K35: 15.55544017 | L35: 16.01748295 | M35: 16.49324977 | N35: 16.98314827 | O35: 17.48759822 | P35: 18.00703183 | Q35: 18.54189417 | R35: 19.0926435 | S35: 19.65975172 | T35: 20.24370474 | U35: 20.8450029 | V35: 21.4641614 | W35: 22.10171075 | X35: 22.75819721 | Y35: 23.43418327 | Z35: 24.13024812 | AA35: 24.84698816 | AB35: 25.58501751 | AC35: 26.34496853

Sheet SPV Template
A1: Time Period | K1: 1 | L1: 2 | M1: 3 | N1: 4 | O1: 5 | P1: 6 | Q1: 7 | R1: 8 | S1: 9 | T1: 10 | U1: 11 | V1: 12 | W1: 13 | X1: 14 | Y1: 15 | Z1: 16 | AA1: 17 | AB1: 18 | AC1: 19 | AD1: 20 | AE1: 21 | AF1: 22 | AG1: 23 | AH1: 24 | AI1: 25 | AJ1: 26 | AK1: 27 | AL1: 28 | AM1: 29 | AN1: 30 | AO1: 31 | AP1: 32 | AQ1: 33 | AR1: 34 | AS1: 35 | AT1: 36 | AU1: 37 | AV1: 38 | AW1: 39 | AX1: 40 | AY1: 41 | AZ1: 42 | BA1: 43 | BB1: 44 | BC1: 45 | BD1: 46 | BE1: 47 | BF1: 48 | BG1: 49 | BH1: 50 | BI1: 51 | BJ1: 52 | BK1: 53 | BL1: 54 | BM1: 55 | BN1: 56 | BO1: 57 | BP1: 58 | BQ1: 59 | BR1: 60 | BS1: 61 | BT1: 62 | BU1: 63 | BV1: 64 | BW1: 65 | BX1: 66 | BY1: 67 | BZ1: 68 | CA1: 69 | CB1: 70 | CC1: 71 | CD1: 72 | CE1: 73 | CF1: 74 | CG1: 75 | CH1: 76 | CI1: 77 | CJ1: 78 | CK1: 79 | CL1: 80 | CM1: 81 | CN1: 82 | CO1: 83 | CP1: 84 | CQ1: 85 | CR1: 86 | CS1: 87 | CT1: 88 | CU1: 89 | CV1: 90 | CW1: 91 | CX1: 92 | CY1: 93 | CZ1: 94 | DA1: 95 | DB1: 96 | DC1: 97 | DD1: 98 | DE1: 99 | DF1: 100 | DG1: 101 | DH1: 102 | DI1: 103 | DJ1: 104 | DK1: 105 | DL1: 106 | DM1: 107 | DN1: 108 | DO1: 109 | DP1: 110 | DQ1: 111 | DR1: 112 | DS1: 113 | DT1: 114 | DU1: 115 | DV1: 116 | DW1: 117 | DX1: 118 | DY1: 119 | DZ1: 120 | EA1: 121 | EB1: 122 | EC1: 123 | ED1: 124 | EE1: 125 | EF1: 126 | EG1: 127 | EH1: 128 | EI1: 129 | EJ1: 130 | EK1: 131 | EL1: 132 | EM1: 133 | EN1: 134 | EO1: 135 | EP1: 136 | EQ1: 137 | ER1: 138 | ES1: 139 | ET1: 140 | EU1: 141 | EV1: 142 | EW1: 143 | EX1: 144 | EY1: 145 | EZ1: 146 | FA1: 147 | FB1: 148 | FC1: 149 | FD1: 150 | FE1: 151 | FF1: 152 | FG1: 153 | FH1: 154 | FI1: 155 | FJ1: 156 | FK1: 157 | FL1: 158 | FM1: 159 | FN1: 160 | FO1: 161 | FP1: 162 | FQ1: 163 | FR1: 164 | FS1: 165 | FT1: 166 | FU1: 167 | FV1: 168 | FW1: 169 | FX1: 170 | FY1: 171 | FZ1: 172 | GA1: 173 | GB1: 174 | GC1: 175 | GD1: 176 | GE1: 177 | GF1: 178 | GG1: 179 | GH1: 180 | GI1: 181 | GJ1: 182 | GK1: 183 | GL1: 184 | GM1: 185 | GN1: 186 | GO1: 187 | GP1: 188 | GQ1: 189 | GR1: 190 | GS1: 191 | GT1: 192 | GU1: 193 | GV1: 194 | GW1: 195 | GX1: 196 | GY1: 197 | GZ1: 198 | HA1: 199 | HB1: 200 | HC1: 201 | HD1: 202 | HE1: 203 | HF1: 204 | HG1: 205 | HH1: 206 | HI1: 207 | HJ1: 208 | HK1: 209 | HL1: 210 | HM1: 211 | HN1: 212 | HO1: 213 | HP1: 214 | HQ1: 215 | HR1: 216 | HS1: 217 | HT1: 218 | HU1: 219 | HV1: 220 | HW1: 221 | HX1: 222 | HY1: 223 | HZ1: 224 | IA1: 225 | IB1: 226 | IC1: 227 | ID1: 228 | IE1: 229 | IF1: 230 | IG1: 231 | IH1: 232 | II1: 233 | IJ1: 234 | IK1: 235 | IL1: 236 | IM1: 237 | IN1: 238 | IO1: 239 | IP1: 240 | IQ1: 241 | IR1: 242 | IS1: 243 | IT1: 244 | IU1: 245 | IV1: 246 | IW1: 247 | IX1: 248 | IY1: 249 | IZ1: 250 | JA1: 251 | JB1: 252 | JC1: 253 | JD1: 254 | JE1: 255 | JF1: 256 | JG1: 257 | JH1: 258 | JI1: 259 | JJ1: 260 | JK1: 261 | JL1: 262 | JM1: 263 | JN1: 264 | JO1: 265 | JP1: 266 | JQ1: 267 | JR1: 268 | JS1: 269 | JT1: 270 | JU1: 271 | JV1: 272 | JW1: 273 | JX1: 274 | JY1: 275 | JZ1: 276 | KA1: 277 | KB1: 278 | KC1: 279 | KD1: 280 | KE1: 281 | KF1: 282 | KG1: 283 | KH1: 284 | KI1: 285 | KJ1: 286 | KK1: 287 | KL1: 288 | KM1: 289 | KN1: 290 | KO1: 291 | KP1: 292 | KQ1: 293 | KR1: 294 | KS1: 295 | KT1: 296 | KU1: 297 | KV1: 298 | KW1: 299 | KX1: 300 | KY1: 301 | KZ1: 302 | LA1: 303 | LB1: 304 | LC1: 305 | LD1: 306 | LE1: 307 | LF1: 308 | LG1: 309 | LH1: 310 | LI1: 311 | LJ1: 312 | LK1: 313 | LL1: 314 | LM1: 315 | LN1: 316 | LO1: 317 | LP1: 318 | LQ1: 319 | LR1: 320 | LS1: 321 | LT1: 322 | LU1: 323 | LV1: 324 | LW1: 325 | LX1: 326 | LY1: 327 | LZ1: 328 | MA1: 329 | MB1: 330 | MC1: 331 | MD1: 332 | ME1: 333 | MF1: 334 | MG1: 335 | MH1: 336 | MI1: 337 | MJ1: 338 | MK1: 339 | ML1: 340 | MM1: 341 | MN1: 342 | MO1: 343 | MP1: 344 | MQ1: 345 | MR1: 346 | MS1: 347 | MT1: 348 | MU1: 349 | MV1: 350 | MW1: 351 | MX1: 352 | MY1: 353 | MZ1: 354 | NA1: 355 | NB1: 356 | NC1: 357 | ND1: 358 | NE1: 359 | NF1: 360 | NG1: 361 | NH1: 362 | NI1: 363 | NJ1: 364 | NK1: 365 | NL1: 366 | NM1: 367 | NN1: 368 | NO1: 369 | NP1: 370 | NQ1: 371 | NR1: 372 | NS1: 373 | NT1: 374 | NU1: 375 | NV1: 376 | NW1: 377 | NX1: 378 | NY1: 379 | NZ1: 380 | OA1: 381 | OB1: 382 | OC1: 383 | OD1: 384 | OE1: 385 | OF1: 386 | OG1: 387 | OH1: 388 | OI1: 389 | OJ1: 390 | OK1: 391 | OL1: 392 | OM1: 393 | ON1: 394 | OO1: 395 | OP1: 396 | OQ1: 397 | OR1: 398 | OS1: 399 | OT1: 400
B2: Month | K2: ='General Assumptions'!E3 -> 2017-01-01 | L2: =EDATE(K2,1) -> 2017-02-01 | M2: =EDATE(L2,1) -> 2017-03-01 | N2: 2017-04-01 | O2: 2017-05-01 | P2: 2017-06-01 | Q2: 2017-07-01 | R2: 2017-08-01 | S2: 2017-09-01 | T2: 2017-10-01 | U2: 2017-11-01 | V2: 2017-12-01 | W2: 2018-01-01 | X2: 2018-02-01 | Y2: 2018-03-01 | Z2: 2018-04-01 | AA2: 2018-05-01 | AB2: 2018-06-01 | AC2: 2018-07-01 | AD2: 2018-08-01 | AE2: 2018-09-01 | AF2: 2018-10-01 | AG2: 2018-11-01 | AH2: 2018-12-01 | AI2: 2019-01-01 | AJ2: 2019-02-01 | AK2: 2019-03-01 | AL2: 2019-04-01 | AM2: 2019-05-01 | AN2: 2019-06-01 | AO2: 2019-07-01 | AP2: 2019-08-01 | AQ2: 2019-09-01 | AR2: 2019-10-01 | AS2: 2019-11-01 | AT2: 2019-12-01 | AU2: 2020-01-01 | AV2: 2020-02-01 | AW2: 2020-03-01 | AX2: 2020-04-01 | AY2: 2020-05-01 | AZ2: 2020-06-01 | BA2: 2020-07-01 | BB2: 2020-08-01 | BC2: 2020-09-01 | BD2: 2020-10-01 | BE2: 2020-11-01 | BF2: 2020-12-01 | BG2: 2021-01-01 | BH2: 2021-02-01 | BI2: 2021-03-01 | BJ2: 2021-04-01 | BK2: 2021-05-01 | BL2: 2021-06-01 | BM2: 2021-07-01 | BN2: 2021-08-01 | BO2: 2021-09-01 | BP2: 2021-10-01 | BQ2: 2021-11-01 | BR2: 2021-12-01 | BS2: 2022-01-01 | BT2: 2022-02-01 | BU2: 2022-03-01 | BV2: 2022-04-01 | BW2: 2022-05-01 | BX2: 2022-06-01 | BY2: =EDATE(BX2,1) -> 2022-07-01 | BZ2: 2022-08-01 | CA2: 2022-09-01 | CB2: 2022-10-01 | CC2: 2022-11-01 | CD2: 2022-12-01 | CE2: 2023-01-01 | CF2: 2023-02-01 | CG2: 2023-03-01 | CH2: 2023-04-01 | CI2: 2023-05-01 | CJ2: 2023-06-01 | CK2: 2023-07-01 | CL2: 2023-08-01 | CM2: 2023-09-01 | CN2: 2023-10-01 | CO2: 2023-11-01 | CP2: 2023-12-01 | CQ2: 2024-01-01 | CR2: 2024-02-01 | CS2: 2024-03-01 | CT2: 2024-04-01 | CU2: 2024-05-01 | CV2: 2024-06-01 | CW2: 2024-07-01 | CX2: 2024-08-01 | CY2: 2024-09-01 | CZ2: 2024-10-01 | DA2: 2024-11-01 | DB2: 2024-12-01 | DC2: 2025-01-01 | DD2: 2025-02-01 | DE2: 2025-03-01 | DF2: 2025-04-01 | DG2: 2025-05-01 | DH2: 2025-06-01 | DI2: 2025-07-01 | DJ2: 2025-08-01 | DK2: 2025-09-01 | DL2: 2025-10-01 | DM2: 2025-11-01 | DN2: 2025-12-01 | DO2: 2026-01-01 | DP2: 2026-02-01 | DQ2: 2026-03-01 | DR2: 2026-04-01 | DS2: 2026-05-01 | DT2: 2026-06-01 | DU2: 2026-07-01 | DV2: 2026-08-01 | DW2: 2026-09-01 | DX2: 2026-10-01 | DY2: 2026-11-01 | DZ2: 2026-12-01 | EA2: 2027-01-01 | EB2: 2027-02-01 | EC2: 2027-03-01 | ED2: 2027-04-01 | EE2: 2027-05-01 | EF2: 2027-06-01 | EG2: 2027-07-01 | EH2: 2027-08-01 | EI2: 2027-09-01 | EJ2: 2027-10-01 | EK2: =EDATE(EJ2,1) -> 2027-11-01 | EL2: 2027-12-01 | EM2: 2028-01-01 | EN2: 2028-02-01 | EO2: 2028-03-01 | EP2: 2028-04-01 | EQ2: 2028-05-01 | ER2: 2028-06-01 | ES2: 2028-07-01 | ET2: 2028-08-01 | EU2: 2028-09-01 | EV2: 2028-10-01 | EW2: 2028-11-01 | EX2: 2028-12-01 | EY2: 2029-01-01 | EZ2: 2029-02-01 | FA2: 2029-03-01 | FB2: 2029-04-01 | FC2: 2029-05-01 | FD2: 2029-06-01 | FE2: 2029-07-01 | FF2: 2029-08-01 | FG2: 2029-09-01 | FH2: 2029-10-01 | FI2: 2029-11-01 | FJ2: 2029-12-01 | FK2: 2030-01-01 | FL2: 2030-02-01 | FM2: 2030-03-01 | FN2: 2030-04-01 | FO2: 2030-05-01 | FP2: 2030-06-01 | FQ2: 2030-07-01 | FR2: 2030-08-01 | FS2: 2030-09-01 | FT2: 2030-10-01 | FU2: 2030-11-01 | FV2: 2030-12-01 | FW2: 2031-01-01 | FX2: 2031-02-01 | FY2: 2031-03-01 | FZ2: 2031-04-01 | GA2: 2031-05-01 | GB2: 2031-06-01 | GC2: 2031-07-01 | GD2: 2031-08-01 | GE2: 2031-09-01 | GF2: 2031-10-01 | GG2: 2031-11-01 | GH2: 2031-12-01 | GI2: 2032-01-01 | GJ2: 2032-02-01 | GK2: 2032-03-01 | GL2: 2032-04-01 | GM2: 2032-05-01 | GN2: 2032-06-01 | GO2: 2032-07-01 | GP2: 2032-08-01 | GQ2: 2032-09-01 | GR2: 2032-10-01 | GS2: 2032-11-01 | GT2: 2032-12-01 | GU2: 2033-01-01 | GV2: 2033-02-01 | GW2: =EDATE(GV2,1) -> 2033-03-01 | GX2: 2033-04-01 | GY2: 2033-05-01 | GZ2: 2033-06-01 | HA2: 2033-07-01 | HB2: 2033-08-01 | HC2: 2033-09-01 | HD2: 2033-10-01 | HE2: 2033-11-01 | HF2: 2033-12-01 | HG2: 2034-01-01 | HH2: 2034-02-01 | HI2: 2034-03-01 | HJ2: 2034-04-01 | HK2: 2034-05-01 | HL2: 2034-06-01 | HM2: 2034-07-01 | HN2: 2034-08-01 | HO2: 2034-09-01 | HP2: 2034-10-01 | HQ2: 2034-11-01 | HR2: 2034-12-01 | HS2: 2035-01-01 | HT2: 2035-02-01 | HU2: 2035-03-01 | HV2: 2035-04-01 | HW2: 2035-05-01 | HX2: 2035-06-01 | HY2: 2035-07-01 | HZ2: 2035-08-01 | IA2: 2035-09-01 | IB2: 2035-10-01 | IC2: 2035-11-01 | ID2: 2035-12-01 | IE2: 2036-01-01 | IF2: 2036-02-01 | IG2: 2036-03-01 | IH2: 2036-04-01 | II2: 2036-05-01 | IJ2: 2036-06-01 | IK2: 2036-07-01 | IL2: 2036-08-01 | IM2: 2036-09-01 | IN2: 2036-10-01 | IO2: 2036-11-01 | IP2: 2036-12-01 | IQ2: 2037-01-01 | IR2: 2037-02-01 | IS2: 2037-03-01 | IT2: 2037-04-01 | IU2: 2037-05-01 | IV2: 2037-06-01 | IW2: 2037-07-01 | IX2: 2037-08-01 | IY2: 2037-09-01 | IZ2: 2037-10-01 | JA2: 2037-11-01 | JB2: 2037-12-01 | JC2: 2038-01-01 | JD2: 2038-02-01 | JE2: 2038-03-01 | JF2: 2038-04-01 | JG2: 2038-05-01 | JH2: 2038-06-01 | JI2: =EDATE(JH2,1) -> 2038-07-01 | JJ2: 2038-08-01 | JK2: 2038-09-01 | JL2: 2038-10-01 | JM2: 2038-11-01 | JN2: 2038-12-01 | JO2: 2039-01-01 | JP2: 2039-02-01 | JQ2: 2039-03-01 | JR2: 2039-04-01 | JS2: 2039-05-01 | JT2: 2039-06-01 | JU2: 2039-07-01 | JV2: 2039-08-01 | JW2: 2039-09-01 | JX2: 2039-10-01 | JY2: 2039-11-01 | JZ2: 2039-12-01 | KA2: 2040-01-01 | KB2: 2040-02-01 | KC2: 2040-03-01 | KD2: 2040-04-01 | KE2: 2040-05-01 | KF2: 2040-06-01 | KG2: 2040-07-01 | KH2: 2040-08-01 | KI2: 2040-09-01 | KJ2: 2040-10-01 | KK2: 2040-11-01 | KL2: 2040-12-01 | KM2: 2041-01-01 | KN2: 2041-02-01 | KO2: 2041-03-01 | KP2: 2041-04-01 | KQ2: 2041-05-01 | KR2: 2041-06-01 | KS2: 2041-07-01 | KT2: 2041-08-01 | KU2: 2041-09-01 | KV2: 2041-10-01 | KW2: 2041-11-01 | KX2: 2041-12-01 | KY2: 2042-01-01 | KZ2: 2042-02-01 | LA2: 2042-03-01 | LB2: 2042-04-01 | LC2: 2042-05-01 | LD2: 2042-06-01 | LE2: 2042-07-01 | LF2: 2042-08-01 | LG2: 2042-09-01 | LH2: 2042-10-01 | LI2: 2042-11-01 | LJ2: 2042-12-01 | LK2: 2043-01-01 | LL2: 2043-02-01 | LM2: 2043-03-01 | LN2: 2043-04-01 | LO2: 2043-05-01 | LP2: 2043-06-01 | LQ2: 2043-07-01 | LR2: 2043-08-01 | LS2: 2043-09-01 | LT2: 2043-10-01 | LU2: =EDATE(LT2,1) -> 2043-11-01 | LV2: 2043-12-01 | LW2: 2044-01-01 | LX2: 2044-02-01 | LY2: 2044-03-01 | LZ2: 2044-04-01 | MA2: 2044-05-01 | MB2: 2044-06-01 | MC2: 2044-07-01 | MD2: 2044-08-01 | ME2: 2044-09-01 | MF2: 2044-10-01 | MG2: 2044-11-01 | MH2: 2044-12-01 | MI2: 2045-01-01 | MJ2: 2045-02-01 | MK2: 2045-03-01 | ML2: 2045-04-01 | MM2: 2045-05-01 | MN2: 2045-06-01 | MO2: 2045-07-01 | MP2: 2045-08-01 | MQ2: 2045-09-01 | MR2: 2045-10-01 | MS2: 2045-11-01 | MT2: 2045-12-01 | MU2: 2046-01-01 | MV2: 2046-02-01 | MW2: 2046-03-01 | MX2: 2046-04-01 | MY2: 2046-05-01 | MZ2: 2046-06-01 | NA2: 2046-07-01 | NB2: 2046-08-01 | NC2: 2046-09-01 | ND2: 2046-10-01 | NE2: 2046-11-01 | NF2: 2046-12-01 | NG2: 2047-01-01 | NH2: 2047-02-01 | NI2: 2047-03-01 | NJ2: 2047-04-01 | NK2: 2047-05-01 | NL2: 2047-06-01 | NM2: 2047-07-01 | NN2: 2047-08-01 | NO2: 2047-09-01 | NP2: 2047-10-01 | NQ2: 2047-11-01 | NR2: 2047-12-01 | NS2: 2048-01-01 | NT2: 2048-02-01 | NU2: 2048-03-01 | NV2: 2048-04-01 | NW2: 2048-05-01 | NX2: 2048-06-01 | NY2: 2048-07-01 | NZ2: 2048-08-01 | OA2: 2048-09-01 | OB2: 2048-10-01 | OC2: 2048-11-01 | OD2: 2048-12-01 | OE2: 2049-01-01 | OF2: 2049-02-01 | OG2: =EDATE(OF2,1) -> 2049-03-01 | OH2: 2049-04-01 | OI2: 2049-05-01 | OJ2: 2049-06-01 | OK2: 2049-07-01 | OL2: 2049-08-01 | OM2: 2049-09-01 | ON2: 2049-10-01 | OO2: 2049-11-01 | OP2: 2049-12-01 | OQ2: 2050-01-01 | OR2: 2050-02-01 | OS2: 2050-03-01 | OT2: 2050-04-01
B3: Year | H3: Balance sheet | J3: =I327 -> TRUE | K3: =YEAR(K2) -> 2017 | L3: =YEAR(L2) -> 2017 | M3: 2017 | N3: 2017 | O3: 2017 | P3: 2017 | Q3: 2017 | R3: 2017 | S3: 2017 | T3: 2017 | U3: 2017 | V3: 2017 | W3: 2018 | X3: 2018 | Y3: 2018 | Z3: 2018 | AA3: 2018 | AB3: 2018 | AC3: 2018 | AD3: 2018 | AE3: 2018 | AF3: 2018 | AG3: 2018 | AH3: 2018 | AI3: 2019 | AJ3: 2019 | AK3: 2019 | AL3: 2019 | AM3: 2019 | AN3: 2019 | AO3: 2019 | AP3: 2019 | AQ3: 2019 | AR3: 2019 | AS3: 2019 | AT3: 2019 | AU3: 2020 | AV3: 2020 | AW3: 2020 | AX3: 2020 | AY3: 2020 | AZ3: 2020 | BA3: 2020 | BB3: 2020 | BC3: 2020 | BD3: 2020 | BE3: 2020 | BF3: 2020 | BG3: 2021 | BH3: 2021 | BI3: 2021 | BJ3: 2021 | BK3: 2021 | BL3: 2021 | BM3: 2021 | BN3: 2021 | BO3: 2021 | BP3: 2021 | BQ3: 2021 | BR3: 2021 | BS3: 2022 | BT3: 2022 | BU3: 2022 | BV3: 2022 | BW3: 2022 | BX3: =YEAR(BX2) -> 2022 | BY3: 2022 | BZ3: 2022 | CA3: 2022 | CB3: 2022 | CC3: 2022 | CD3: 2022 | CE3: 2023 | CF3: 2023 | CG3: 2023 | CH3: 2023 | CI3: 2023 | CJ3: 2023 | CK3: 2023 | CL3: 2023 | CM3: 2023 | CN3: 2023 | CO3: 2023 | CP3: 2023 | CQ3: 2024 | CR3: 2024 | CS3: 2024 | CT3: 2024 | CU3: 2024 | CV3: 2024 | CW3: 2024 | CX3: 2024 | CY3: 2024 | CZ3: 2024 | DA3: 2024 | DB3: 2024 | DC3: 2025 | DD3: 2025 | DE3: 2025 | DF3: 2025 | DG3: 2025 | DH3: 2025 | DI3: 2025 | DJ3: 2025 | DK3: 2025 | DL3: 2025 | DM3: 2025 | DN3: 2025 | DO3: 2026 | DP3: 2026 | DQ3: 2026 | DR3: 2026 | DS3: 2026 | DT3: 2026 | DU3: 2026 | DV3: 2026 | DW3: 2026 | DX3: 2026 | DY3: 2026 | DZ3: 2026 | EA3: 2027 | EB3: 2027 | EC3: 2027 | ED3: 2027 | EE3: 2027 | EF3: 2027 | EG3: 2027 | EH3: 2027 | EI3: 2027 | EJ3: =YEAR(EJ2) -> 2027 | EK3: 2027 | EL3: 2027 | EM3: 2028 | EN3: 2028 | EO3: 2028 | EP3: 2028 | EQ3: 2028 | ER3: 2028 | ES3: 2028 | ET3: 2028 | EU3: 2028 | EV3: 2028 | EW3: 2028 | EX3: 2028 | EY3: 2029 | EZ3: 2029 | FA3: 2029 | FB3: 2029 | FC3: 2029 | FD3: 2029 | FE3: 2029 | FF3: 2029 | FG3: 2029 | FH3: 2029 | FI3: 2029 | FJ3: 2029 | FK3: 2030 | FL3: 2030 | FM3: 2030 | FN3: 2030 | FO3: 2030 | FP3: 2030 | FQ3: 2030 | FR3: 2030 | FS3: 2030 | FT3: 2030 | FU3: 2030 | FV3: 2030 | FW3: 2031 | FX3: 2031 | FY3: 2031 | FZ3: 2031 | GA3: 2031 | GB3: 2031 | GC3: 2031 | GD3: 2031 | GE3: 2031 | GF3: 2031 | GG3: 2031 | GH3: 2031 | GI3: 2032 | GJ3: 2032 | GK3: 2032 | GL3: 2032 | GM3: 2032 | GN3: 2032 | GO3: 2032 | GP3: 2032 | GQ3: 2032 | GR3: 2032 | GS3: 2032 | GT3: 2032 | GU3: 2033 | GV3: =YEAR(GV2) -> 2033 | GW3: 2033 | GX3: 2033 | GY3: 2033 | GZ3: 2033 | HA3: 2033 | HB3: 2033 | HC3: 2033 | HD3: 2033 | HE3: 2033 | HF3: 2033 | HG3: 2034 | HH3: 2034 | HI3: 2034 | HJ3: 2034 | HK3: 2034 | HL3: 2034 | HM3: 2034 | HN3: 2034 | HO3: 2034 | HP3: 2034 | HQ3: 2034 | HR3: 2034 | HS3: 2035 | HT3: 2035 | HU3: 2035 | HV3: 2035 | HW3: 2035 | HX3: 2035 | HY3: 2035 | HZ3: 2035 | IA3: 2035 | IB3: 2035 | IC3: 2035 | ID3: 2035 | IE3: 2036 | IF3: 2036 | IG3: 2036 | IH3: 2036 | II3: 2036 | IJ3: 2036 | IK3: 2036 | IL3: 2036 | IM3: 2036 | IN3: 2036 | IO3: 2036 | IP3: 2036 | IQ3: 2037 | IR3: 2037 | IS3: 2037 | IT3: 2037 | IU3: 2037 | IV3: 2037 | IW3: 2037 | IX3: 2037 | IY3: 2037 | IZ3: 2037 | JA3: 2037 | JB3: 2037 | JC3: 2038 | JD3: 2038 | JE3: 2038 | JF3: 2038 | JG3: 2038 | JH3: =YEAR(JH2) -> 2038 | JI3: 2038 | JJ3: 2038 | JK3: 2038 | JL3: 2038 | JM3: 2038 | JN3: 2038 | JO3: 2039 | JP3: 2039 | JQ3: 2039 | JR3: 2039 | JS3: 2039 | JT3: 2039 | JU3: 2039 | JV3: 2039 | JW3: 2039 | JX3: 2039 | JY3: 2039 | JZ3: 2039 | KA3: 2040 | KB3: 2040 | KC3: 2040 | KD3: 2040 | KE3: 2040 | KF3: 2040 | KG3: 2040 | KH3: 2040 | KI3: 2040 | KJ3: 2040 | KK3: 2040 | KL3: 2040 | KM3: 2041 | KN3: 2041 | KO3: 2041 | KP3: 2041 | KQ3: 2041 | KR3: 2041 | KS3: 2041 | KT3: 2041 | KU3: 2041 | KV3: 2041 | KW3: 2041 | KX3: 2041 | KY3: 2042 | KZ3: 2042 | LA3: 2042 | LB3: 2042 | LC3: 2042 | LD3: 2042 | LE3: 2042 | LF3: 2042 | LG3: 2042 | LH3: 2042 | LI3: 2042 | LJ3: 2042 | LK3: 2043 | LL3: 2043 | LM3: 2043 | LN3: 2043 | LO3: 2043 | LP3: 2043 | LQ3: 2043 | LR3: 2043 | LS3: 2043 | LT3: =YEAR(LT2) -> 2043 | LU3: 2043 | LV3: 2043 | LW3: 2044 | LX3: 2044 | LY3: 2044 | LZ3: 2044 | MA3: 2044 | MB3: 2044 | MC3: 2044 | MD3: 2044 | ME3: 2044 | MF3: 2044 | MG3: 2044 | MH3: 2044 | MI3: 2045 | MJ3: 2045 | MK3: 2045 | ML3: 2045 | MM3: 2045 | MN3: 2045 | MO3: 2045 | MP3: 2045 | MQ3: 2045 | MR3: 2045 | MS3: 2045 | MT3: 2045 | MU3: 2046 | MV3: 2046 | MW3: 2046 | MX3: 2046 | MY3: 2046 | MZ3: 2046 | NA3: 2046 | NB3: 2046 | NC3: 2046 | ND3: 2046 | NE3: 2046 | NF3: 2046 | NG3: 2047 | NH3: 2047 | NI3: 2047 | NJ3: 2047 | NK3: 2047 | NL3: 2047 | NM3: 2047 | NN3: 2047 | NO3: 2047 | NP3: 2047 | NQ3: 2047 | NR3: 2047 | NS3: 2048 | NT3: 2048 | NU3: 2048 | NV3: 2048 | NW3: 2048 | NX3: 2048 | NY3: 2048 | NZ3: 2048 | OA3: 2048 | OB3: 2048 | OC3: 2048 | OD3: 2048 | OE3: 2049 | OF3: =YEAR(OF2) -> 2049 | OG3: 2049 | OH3: 2049 | OI3: 2049 | OJ3: 2049 | OK3: 2049 | OL3: 2049 | OM3: 2049 | ON3: 2049 | OO3: 2049 | OP3: 2049 | OQ3: 2050 | OR3: 2050 | OS3: 2050 | OT3: 2050
B4: Development | G4: ='Risk Analysis'!$P$4 -> Base case | H4: =F14 -> 2017-04-01 | I4: =F15 -> 2017-10-01 | K4: =AND(K$2>=$H4,K$2<$I4) -> FALSE | L4: =AND(L$2>=$H4,L$2<$I4) -> FALSE | M4: FALSE | N4: TRUE | O4: TRUE | P4: TRUE | Q4: TRUE | R4: TRUE | S4: TRUE | T4: FALSE | U4: FALSE | V4: FALSE | W4: FALSE | X4: FALSE | Y4: FALSE | Z4: FALSE | AA4: FALSE | AB4: FALSE | AC4: FALSE | AD4: FALSE | AE4: FALSE | AF4: FALSE | AG4: FALSE | AH4: FALSE | AI4: FALSE | AJ4: FALSE | AK4: FALSE | AL4: FALSE | AM4: FALSE | AN4: FALSE | AO4: FALSE | AP4: FALSE | AQ4: FALSE | AR4: FALSE | AS4: FALSE | AT4: FALSE | AU4: FALSE | AV4: FALSE | AW4: FALSE | AX4: FALSE | AY4: FALSE | AZ4: FALSE | BA4: FALSE | BB4: FALSE | BC4: FALSE | BD4: FALSE | BE4: FALSE | BF4: FALSE | BG4: FALSE | BH4: FALSE | BI4: FALSE | BJ4: FALSE | BK4: FALSE | BL4: FALSE | BM4: FALSE | BN4: FALSE | BO4: FALSE | BP4: FALSE | BQ4: FALSE | BR4: FALSE | BS4: FALSE | BT4: FALSE | BU4: FALSE | BV4: FALSE | BW4: FALSE | BX4: =AND(BX$2>=$H4,BX$2<$I4) -> FALSE | BY4: FALSE | BZ4: FALSE | CA4: FALSE | CB4: FALSE | CC4: FALSE | CD4: FALSE | CE4: FALSE | CF4: FALSE | CG4: FALSE | CH4: FALSE | CI4: FALSE | CJ4: FALSE | CK4: FALSE | CL4: FALSE | CM4: FALSE | CN4: FALSE | CO4: FALSE | CP4: FALSE | CQ4: FALSE | CR4: FALSE | CS4: FALSE | CT4: FALSE | CU4: FALSE | CV4: FALSE | CW4: FALSE | CX4: FALSE | CY4: FALSE | CZ4: FALSE | DA4: FALSE | DB4: FALSE | DC4: FALSE | DD4: FALSE | DE4: FALSE | DF4: FALSE | DG4: FALSE | DH4: FALSE | DI4: FALSE | DJ4: FALSE | DK4: FALSE | DL4: FALSE | DM4: FALSE | DN4: FALSE | DO4: FALSE | DP4: FALSE | DQ4: FALSE | DR4: FALSE | DS4: FALSE | DT4: FALSE | DU4: FALSE | DV4: FALSE | DW4: FALSE | DX4: FALSE | DY4: FALSE | DZ4: FALSE | EA4: FALSE | EB4: FALSE | EC4: FALSE | ED4: FALSE | EE4: FALSE | EF4: FALSE | EG4: FALSE | EH4: FALSE | EI4: FALSE | EJ4: =AND(EJ$2>=$H4,EJ$2<$I4) -> FALSE | EK4: FALSE | EL4: FALSE | EM4: FALSE | EN4: FALSE | EO4: FALSE | EP4: FALSE | EQ4: FALSE | ER4: FALSE | ES4: FALSE | ET4: FALSE | EU4: FALSE | EV4: FALSE | EW4: FALSE | EX4: FALSE | EY4: FALSE | EZ4: FALSE | FA4: FALSE | FB4: FALSE | FC4: FALSE | FD4: FALSE | FE4: FALSE | FF4: FALSE | FG4: FALSE | FH4: FALSE | FI4: FALSE | FJ4: FALSE | FK4: FALSE | FL4: FALSE | FM4: FALSE | FN4: FALSE | FO4: FALSE | FP4: FALSE | FQ4: FALSE | FR4: FALSE | FS4: FALSE | FT4: FALSE | FU4: FALSE | FV4: FALSE | FW4: FALSE | FX4: FALSE | FY4: FALSE | FZ4: FALSE | GA4: FALSE | GB4: FALSE | GC4: FALSE | GD4: FALSE | GE4: FALSE | GF4: FALSE | GG4: FALSE | GH4: FALSE | GI4: FALSE | GJ4: FALSE | GK4: FALSE | GL4: FALSE | GM4: FALSE | GN4: FALSE | GO4: FALSE | GP4: FALSE | GQ4: FALSE | GR4: FALSE | GS4: FALSE | GT4: FALSE | GU4: FALSE | GV4: =AND(GV$2>=$H4,GV$2<$I4) -> FALSE | GW4: FALSE | GX4: FALSE | GY4: FALSE | GZ4: FALSE | HA4: FALSE | HB4: FALSE | HC4: FALSE | HD4: FALSE | HE4: FALSE | HF4: FALSE | HG4: FALSE | HH4: FALSE | HI4: FALSE | HJ4: FALSE | HK4: FALSE | HL4: FALSE | HM4: FALSE | HN4: FALSE | HO4: FALSE | HP4: FALSE | HQ4: FALSE | HR4: FALSE | HS4: FALSE | HT4: FALSE | HU4: FALSE | HV4: FALSE | HW4: FALSE | HX4: FALSE | HY4: FALSE | HZ4: FALSE | IA4: FALSE | IB4: FALSE | IC4: FALSE | ID4: FALSE | IE4: FALSE | IF4: FALSE | IG4: FALSE | IH4: FALSE | II4: FALSE | IJ4: FALSE | IK4: FALSE | IL4: FALSE | IM4: FALSE | IN4: FALSE | IO4: FALSE | IP4: FALSE | IQ4: FALSE | IR4: FALSE | IS4: FALSE | IT4: FALSE | IU4: FALSE | IV4: FALSE | IW4: FALSE | IX4: FALSE | IY4: FALSE | IZ4: FALSE | JA4: FALSE | JB4: FALSE | JC4: FALSE | JD4: FALSE | JE4: FALSE | JF4: FALSE | JG4: FALSE | JH4: =AND(JH$2>=$H4,JH$2<$I4) -> FALSE | JI4: FALSE | JJ4: FALSE | JK4: FALSE | JL4: FALSE | JM4: FALSE | JN4: FALSE | JO4: FALSE | JP4: FALSE | JQ4: FALSE | JR4: FALSE | JS4: FALSE | JT4: FALSE | JU4: FALSE | JV4: FALSE | JW4: FALSE | JX4: FALSE | JY4: FALSE | JZ4: FALSE | KA4: FALSE | KB4: FALSE | KC4: FALSE | KD4: FALSE | KE4: FALSE | KF4: FALSE | KG4: FALSE | KH4: FALSE | KI4: FALSE | KJ4: FALSE | KK4: FALSE | KL4: FALSE | KM4: FALSE | KN4: FALSE | KO4: FALSE | KP4: FALSE | KQ4: FALSE | KR4: FALSE | KS4: FALSE | KT4: FALSE | KU4: FALSE | KV4: FALSE | KW4: FALSE | KX4: FALSE | KY4: FALSE | KZ4: FALSE | LA4: FALSE | LB4: FALSE | LC4: FALSE | LD4: FALSE | LE4: FALSE | LF4: FALSE | LG4: FALSE | LH4: FALSE | LI4: FALSE | LJ4: FALSE | LK4: FALSE | LL4: FALSE | LM4: FALSE | LN4: FALSE | LO4: FALSE | LP4: FALSE | LQ4: FALSE | LR4: FALSE | LS4: FALSE | LT4: =AND(LT$2>=$H4,LT$2<$I4) -> FALSE | LU4: FALSE | LV4: FALSE | LW4: FALSE | LX4: FALSE | LY4: FALSE | LZ4: FALSE | MA4: FALSE | MB4: FALSE | MC4: FALSE | MD4: FALSE | ME4: FALSE | MF4: FALSE | MG4: FALSE | MH4: FALSE | MI4: FALSE | MJ4: FALSE | MK4: FALSE | ML4: FALSE | MM4: FALSE | MN4: FALSE | MO4: FALSE | MP4: FALSE | MQ4: FALSE | MR4: FALSE | MS4: FALSE | MT4: FALSE | MU4: FALSE | MV4: FALSE | MW4: FALSE | MX4: FALSE | MY4: FALSE | MZ4: FALSE | NA4: FALSE | NB4: FALSE | NC4: FALSE | ND4: FALSE | NE4: FALSE | NF4: FALSE | NG4: FALSE | NH4: FALSE | NI4: FALSE | NJ4: FALSE | NK4: FALSE | NL4: FALSE | NM4: FALSE | NN4: FALSE | NO4: FALSE | NP4: FALSE | NQ4: FALSE | NR4: FALSE | NS4: FALSE | NT4: FALSE | NU4: FALSE | NV4: FALSE | NW4: FALSE | NX4: FALSE | NY4: FALSE | NZ4: FALSE | OA4: FALSE | OB4: FALSE | OC4: FALSE | OD4: FALSE | OE4: FALSE | OF4: =AND(OF$2>=$H4,OF$2<$I4) -> FALSE | OG4: FALSE | OH4: FALSE | OI4: FALSE | OJ4: FALSE | OK4: FALSE | OL4: FALSE | OM4: FALSE | ON4: FALSE | OO4: FALSE | OP4: FALSE | OQ4: FALSE | OR4: FALSE | OS4: FALSE | OT4: FALSE
B5: Construction | H5: =F15 -> 2017-10-01 | I5: =F17 -> 2018-01-01 | K5: =AND(K$2>=$H5,K$2<$I5) -> FALSE | L5: FALSE | M5: FALSE | N5: FALSE | O5: FALSE | P5: FALSE | Q5: FALSE | R5: FALSE | S5: FALSE | T5: TRUE | U5: TRUE | V5: TRUE | W5: FALSE | X5: FALSE | Y5: FALSE | Z5: FALSE | AA5: FALSE | AB5: FALSE | AC5: FALSE | AD5: FALSE | AE5: FALSE | AF5: FALSE | AG5: FALSE | AH5: FALSE | AI5: FALSE | AJ5: FALSE | AK5: FALSE | AL5: FALSE | AM5: FALSE | AN5: FALSE | AO5: FALSE | AP5: FALSE | AQ5: FALSE | AR5: FALSE | AS5: FALSE | AT5: FALSE | AU5: FALSE | AV5: FALSE | AW5: FALSE | AX5: FALSE | AY5: FALSE | AZ5: FALSE | BA5: FALSE | BB5: FALSE | BC5: FALSE | BD5: FALSE | BE5: FALSE | BF5: FALSE | BG5: FALSE | BH5: FALSE | BI5: FALSE | BJ5: FALSE | BK5: FALSE | BL5: FALSE | BM5: FALSE | BN5: FALSE | BO5: FALSE | BP5: FALSE | BQ5: FALSE | BR5: FALSE | BS5: FALSE | BT5: FALSE | BU5: FALSE | BV5: FALSE | BW5: FALSE | BX5: FALSE | BY5: FALSE | BZ5: FALSE | CA5: FALSE | CB5: FALSE | CC5: FALSE | CD5: FALSE | CE5: FALSE | CF5: FALSE | CG5: FALSE | CH5: FALSE | CI5: FALSE | CJ5: FALSE | CK5: FALSE | CL5: FALSE | CM5: FALSE | CN5: FALSE | CO5: FALSE | CP5: FALSE | CQ5: FALSE | CR5: FALSE | CS5: FALSE | CT5: FALSE | CU5: FALSE | CV5: FALSE | CW5: FALSE | CX5: FALSE | CY5: FALSE | CZ5: FALSE | DA5: FALSE | DB5: FALSE | DC5: FALSE | DD5: FALSE | DE5: FALSE | DF5: FALSE | DG5: FALSE | DH5: FALSE | DI5: FALSE | DJ5: FALSE | DK5: FALSE | DL5: FALSE | DM5: FALSE | DN5: FALSE | DO5: FALSE | DP5: FALSE | DQ5: FALSE | DR5: FALSE | DS5: FALSE | DT5: FALSE | DU5: FALSE | DV5: FALSE | DW5: FALSE | DX5: FALSE | DY5: FALSE | DZ5: FALSE | EA5: FALSE | EB5: FALSE | EC5: FALSE | ED5: FALSE | EE5: FALSE | EF5: FALSE | EG5: FALSE | EH5: FALSE | EI5: FALSE | EJ5: FALSE | EK5: FALSE | EL5: FALSE | EM5: FALSE | EN5: FALSE | EO5: FALSE | EP5: FALSE | EQ5: FALSE | ER5: FALSE | ES5: FALSE | ET5: FALSE | EU5: FALSE | EV5: FALSE | EW5: FALSE | EX5: FALSE | EY5: FALSE | EZ5: FALSE | FA5: FALSE | FB5: FALSE | FC5: FALSE | FD5: FALSE | FE5: FALSE | FF5: FALSE | FG5: FALSE | FH5: FALSE | FI5: FALSE | FJ5: FALSE | FK5: FALSE | FL5: FALSE | FM5: FALSE | FN5: FALSE | FO5: FALSE | FP5: FALSE | FQ5: FALSE | FR5: FALSE | FS5: FALSE | FT5: FALSE | FU5: FALSE | FV5: FALSE | FW5: FALSE | FX5: FALSE | FY5: FALSE | FZ5: FALSE | GA5: FALSE | GB5: FALSE | GC5: FALSE | GD5: FALSE | GE5: FALSE | GF5: FALSE | GG5: FALSE | GH5: FALSE | GI5: FALSE | GJ5: FALSE | GK5: FALSE | GL5: FALSE | GM5: FALSE | GN5: FALSE | GO5: FALSE | GP5: FALSE | GQ5: FALSE | GR5: FALSE | GS5: FALSE | GT5: FALSE | GU5: FALSE | GV5: FALSE | GW5: FALSE | GX5: FALSE | GY5: FALSE | GZ5: FALSE | HA5: FALSE | HB5: FALSE | HC5: FALSE | HD5: FALSE | HE5: FALSE | HF5: FALSE | HG5: FALSE | HH5: FALSE | HI5: FALSE | HJ5: FALSE | HK5: FALSE | HL5: FALSE | HM5: FALSE | HN5: FALSE | HO5: FALSE | HP5: FALSE | HQ5: FALSE | HR5: FALSE | HS5: FALSE | HT5: FALSE | HU5: FALSE | HV5: FALSE | HW5: FALSE | HX5: FALSE | HY5: FALSE | HZ5: FALSE | IA5: FALSE | IB5: FALSE | IC5: FALSE | ID5: FALSE | IE5: FALSE | IF5: FALSE | IG5: FALSE | IH5: FALSE | II5: FALSE | IJ5: FALSE | IK5: FALSE | IL5: FALSE | IM5: FALSE | IN5: FALSE | IO5: FALSE | IP5: FALSE | IQ5: FALSE | IR5: FALSE | IS5: FALSE | IT5: FALSE | IU5: FALSE | IV5: FALSE | IW5: FALSE | IX5: FALSE | IY5: FALSE | IZ5: FALSE | JA5: FALSE | JB5: FALSE | JC5: FALSE | JD5: FALSE | JE5: FALSE | JF5: FALSE | JG5: FALSE | JH5: FALSE | JI5: FALSE | JJ5: FALSE | JK5: FALSE | JL5: FALSE | JM5: FALSE | JN5: FALSE | JO5: FALSE | JP5: FALSE | JQ5: FALSE | JR5: FALSE | JS5: FALSE | JT5: FALSE | JU5: FALSE | JV5: FALSE | JW5: FALSE | JX5: FALSE | JY5: FALSE | JZ5: FALSE | KA5: FALSE | KB5: FALSE | KC5: FALSE | KD5: FALSE | KE5: FALSE | KF5: FALSE | KG5: FALSE | KH5: FALSE | KI5: FALSE | KJ5: FALSE | KK5: FALSE | KL5: FALSE | KM5: FALSE | KN5: FALSE | KO5: FALSE | KP5: FALSE | KQ5: FALSE | KR5: FALSE | KS5: FALSE | KT5: FALSE | KU5: FALSE | KV5: FALSE | KW5: FALSE | KX5: FALSE | KY5: FALSE | KZ5: FALSE | LA5: FALSE | LB5: FALSE | LC5: FALSE | LD5: FALSE | LE5: FALSE | LF5: FALSE | LG5: FALSE | LH5: FALSE | LI5: FALSE | LJ5: FALSE | LK5: FALSE | LL5: FALSE | LM5: FALSE | LN5: FALSE | LO5: FALSE | LP5: FALSE | LQ5: FALSE | LR5: FALSE | LS5: FALSE | LT5: FALSE | LU5: FALSE | LV5: FALSE | LW5: FALSE | LX5: FALSE | LY5: FALSE | LZ5: FALSE | MA5: FALSE | MB5: FALSE | MC5: FALSE | MD5: FALSE | ME5: FALSE | MF5: FALSE | MG5: FALSE | MH5: FALSE | MI5: FALSE | MJ5: FALSE | MK5: FALSE | ML5: FALSE | MM5: FALSE | MN5: FALSE | MO5: FALSE | MP5: FALSE | MQ5: FALSE | MR5: FALSE | MS5: FALSE | MT5: FALSE | MU5: FALSE | MV5: FALSE | MW5: FALSE | MX5: FALSE | MY5: FALSE | MZ5: FALSE | NA5: FALSE | NB5: FALSE | NC5: FALSE | ND5: FALSE | NE5: FALSE | NF5: FALSE | NG5: FALSE | NH5: FALSE | NI5: FALSE | NJ5: FALSE | NK5: FALSE | NL5: FALSE | NM5: FALSE | NN5: FALSE | NO5: FALSE | NP5: FALSE | NQ5: FALSE | NR5: FALSE | NS5: FALSE | NT5: FALSE | NU5: FALSE | NV5: FALSE | NW5: FALSE | NX5: FALSE | NY5: FALSE | NZ5: FALSE | OA5: FALSE | OB5: FALSE | OC5: FALSE | OD5: FALSE | OE5: FALSE | OF5: FALSE | OG5: FALSE | OH5: FALSE | OI5: FALSE | OJ5: FALSE | OK5: FALSE | OL5: FALSE | OM5: FALSE | ON5: FALSE | OO5: FALSE | OP5: FALSE | OQ5: FALSE | OR5: FALSE | OS5: FALSE | OT5: FALSE
B6: Operation | H6: =F17 -> 2018-01-01 | I6: =F18 -> 2043-01-01 | K6: FALSE | L6: FALSE | M6: FALSE | N6: FALSE | O6: FALSE | P6: FALSE | Q6: FALSE | R6: FALSE | S6: FALSE | T6: FALSE | U6: FALSE | V6: FALSE | W6: TRUE | X6: TRUE | Y6: TRUE | Z6: TRUE | AA6: TRUE | AB6: TRUE | AC6: TRUE | AD6: TRUE | AE6: TRUE | AF6: TRUE | AG6: TRUE | AH6: TRUE | AI6: TRUE | AJ6: TRUE | AK6: TRUE | AL6: TRUE | AM6: TRUE | AN6: TRUE | AO6: TRUE | AP6: TRUE | AQ6: TRUE | AR6: TRUE | AS6: TRUE | AT6: TRUE | AU6: TRUE | AV6: TRUE | AW6: TRUE | AX6: TRUE | AY6: TRUE | AZ6: TRUE | BA6: TRUE | BB6: TRUE | BC6: TRUE | BD6: TRUE | BE6: TRUE | BF6: TRUE | BG6: TRUE | BH6: TRUE | BI6: TRUE | BJ6: TRUE | BK6: TRUE | BL6: TRUE | BM6: TRUE | BN6: TRUE | BO6: TRUE | BP6: TRUE | BQ6: TRUE | BR6: TRUE | BS6: TRUE | BT6: TRUE | BU6: TRUE | BV6: TRUE | BW6: TRUE | BX6: TRUE | BY6: TRUE | BZ6: TRUE | CA6: TRUE | CB6: TRUE | CC6: TRUE | CD6: TRUE | CE6: TRUE | CF6: TRUE | CG6: TRUE | CH6: TRUE | CI6: TRUE | CJ6: TRUE | CK6: TRUE | CL6: TRUE | CM6: TRUE | CN6: TRUE | CO6: TRUE | CP6: TRUE | CQ6: TRUE | CR6: TRUE | CS6: TRUE | CT6: TRUE | CU6: TRUE | CV6: TRUE | CW6: TRUE | CX6: TRUE | CY6: TRUE | CZ6: TRUE | DA6: TRUE | DB6: TRUE | DC6: TRUE | DD6: TRUE | DE6: TRUE | DF6: TRUE | DG6: TRUE | DH6: TRUE | DI6: TRUE | DJ6: TRUE | DK6: TRUE | DL6: TRUE | DM6: TRUE | DN6: TRUE | DO6: TRUE | DP6: TRUE | DQ6: TRUE | DR6: TRUE | DS6: TRUE | DT6: TRUE | DU6: TRUE | DV6: TRUE | DW6: TRUE | DX6: TRUE | DY6: TRUE | DZ6: TRUE | EA6: TRUE | EB6: TRUE | EC6: TRUE | ED6: TRUE | EE6: TRUE | EF6: TRUE | EG6: TRUE | EH6: TRUE | EI6: TRUE | EJ6: TRUE | EK6: TRUE | EL6: TRUE | EM6: TRUE | EN6: TRUE | EO6: TRUE | EP6: TRUE | EQ6: TRUE | ER6: TRUE | ES6: TRUE | ET6: TRUE | EU6: TRUE | EV6: TRUE | EW6: TRUE | EX6: TRUE | EY6: TRUE | EZ6: TRUE | FA6: TRUE | FB6: TRUE | FC6: TRUE | FD6: TRUE | FE6: TRUE | FF6: TRUE | FG6: TRUE | FH6: TRUE | FI6: TRUE | FJ6: TRUE | FK6: TRUE | FL6: TRUE | FM6: TRUE | FN6: TRUE | FO6: TRUE | FP6: TRUE | FQ6: TRUE | FR6: TRUE | FS6: TRUE | FT6: TRUE | FU6: TRUE | FV6: TRUE | FW6: TRUE | FX6: TRUE | FY6: TRUE | FZ6: TRUE | GA6: TRUE | GB6: TRUE | GC6: TRUE | GD6: TRUE | GE6: TRUE | GF6: TRUE | GG6: TRUE | GH6: TRUE | GI6: TRUE | GJ6: TRUE | GK6: TRUE | GL6: TRUE | GM6: TRUE | GN6: TRUE | GO6: TRUE | GP6: TRUE | GQ6: TRUE | GR6: TRUE | GS6: TRUE | GT6: TRUE | GU6: TRUE | GV6: TRUE | GW6: TRUE | GX6: TRUE | GY6: TRUE | GZ6: TRUE | HA6: TRUE | HB6: TRUE | HC6: TRUE | HD6: TRUE | HE6: TRUE | HF6: TRUE | HG6: TRUE | HH6: TRUE | HI6: TRUE | HJ6: TRUE | HK6: TRUE | HL6: TRUE | HM6: TRUE | HN6: TRUE | HO6: TRUE | HP6: TRUE | HQ6: TRUE | HR6: TRUE | HS6: TRUE | HT6: TRUE | HU6: TRUE | HV6: TRUE | HW6: TRUE | HX6: TRUE | HY6: TRUE | HZ6: TRUE | IA6: TRUE | IB6: TRUE | IC6: TRUE | ID6: TRUE | IE6: TRUE | IF6: TRUE | IG6: TRUE | IH6: TRUE | II6: TRUE | IJ6: TRUE | IK6: TRUE | IL6: TRUE | IM6: TRUE | IN6: TRUE | IO6: TRUE | IP6: TRUE | IQ6: TRUE | IR6: TRUE | IS6: TRUE | IT6: TRUE | IU6: TRUE | IV6: TRUE | IW6: TRUE | IX6: TRUE | IY6: TRUE | IZ6: TRUE | JA6: TRUE | JB6: TRUE | JC6: TRUE | JD6: TRUE | JE6: TRUE | JF6: TRUE | JG6: TRUE | JH6: TRUE | JI6: TRUE | JJ6: TRUE | JK6: TRUE | JL6: TRUE | JM6: TRUE | JN6: TRUE | JO6: TRUE | JP6: TRUE | JQ6: TRUE | JR6: TRUE | JS6: TRUE | JT6: TRUE | JU6: TRUE | JV6: TRUE | JW6: TRUE | JX6: TRUE | JY6: TRUE | JZ6: TRUE | KA6: TRUE | KB6: TRUE | KC6: TRUE | KD6: TRUE | KE6: TRUE | KF6: TRUE | KG6: TRUE | KH6: TRUE | KI6: TRUE | KJ6: TRUE | KK6: TRUE | KL6: TRUE | KM6: TRUE | KN6: TRUE | KO6: TRUE | KP6: TRUE | KQ6: TRUE | KR6: TRUE | KS6: TRUE | KT6: TRUE | KU6: TRUE | KV6: TRUE | KW6: TRUE | KX6: TRUE | KY6: TRUE | KZ6: TRUE | LA6: TRUE | LB6: TRUE | LC6: TRUE | LD6: TRUE | LE6: TRUE | LF6: TRUE | LG6: TRUE | LH6: TRUE | LI6: TRUE | LJ6: TRUE | LK6: FALSE | LL6: FALSE | LM6: FALSE | LN6: FALSE | LO6: FALSE | LP6: FALSE | LQ6: FALSE | LR6: FALSE | LS6: FALSE | LT6: FALSE | LU6: FALSE | LV6: FALSE | LW6: FALSE | LX6: FALSE | LY6: FALSE | LZ6: FALSE | MA6: FALSE | MB6: FALSE | MC6: FALSE | MD6: FALSE | ME6: FALSE | MF6: FALSE | MG6: FALSE | MH6: FALSE | MI6: FALSE | MJ6: FALSE | MK6: FALSE | ML6: FALSE | MM6: FALSE | MN6: FALSE | MO6: FALSE | MP6: FALSE | MQ6: FALSE | MR6: FALSE | MS6: FALSE | MT6: FALSE | MU6: FALSE | MV6: FALSE | MW6: FALSE | MX6: FALSE | MY6: FALSE | MZ6: FALSE | NA6: FALSE | NB6: FALSE | NC6: FALSE | ND6: FALSE | NE6: FALSE | NF6: FALSE | NG6: FALSE | NH6: FALSE | NI6: FALSE | NJ6: FALSE | NK6: FALSE | NL6: FALSE | NM6: FALSE | NN6: FALSE | NO6: FALSE | NP6: FALSE | NQ6: FALSE | NR6: FALSE | NS6: FALSE | NT6: FALSE | NU6: FALSE | NV6: FALSE | NW6: FALSE | NX6: FALSE | NY6: FALSE | NZ6: FALSE | OA6: FALSE | OB6: FALSE | OC6: FALSE | OD6: FALSE | OE6: FALSE | OF6: FALSE | OG6: FALSE | OH6: FALSE | OI6: FALSE | OJ6: FALSE | OK6: FALSE | OL6: FALSE | OM6: FALSE | ON6: FALSE | OO6: FALSE | OP6: FALSE | OQ6: FALSE | OR6: FALSE | OS6: FALSE | OT6: FALSE
A8: Assumptions
B9: SPV Name | F9: Template
B10: Row No. (Assimp) | F10: =MATCH(F9,'SPV Assumptions'!E:E,0) -> 5
B13: Operating Assumptions
C14: Contracy signing Date | F14: =INDEX('SPV Assumptions'!G:G,'SPV Template'!F10) -> 2017-04-01
C15: Construction Start Date | F15: =INDEX('SPV Assumptions'!I:I,'SPV Template'!F10) -> 2017-10-01
C16: Construction Months | F16: =INDEX('SPV Assumptions'!J:J,'SPV Template'!F10) -> 3
C17: Operation Date | F17: =INDEX('SPV Assumptions'!K:K,'SPV Template'!F10) -> 2018-01-01
C18: End Date | F18: =INDEX('SPV Assumptions'!M:M,'SPV Template'!F10) -> 2043-01-01
C19: Re-financing date | F19: =INDEX('SPV Assumptions'!AA:AA,'SPV Template'!F10) -> 2018-11-01
C21: Input Capacity | F21: =INDEX('SPV Assumptions'!P:P,'SPV Template'!F10) -> 570.4307334
C22: Input Yeild | F22: =INDEX('SPV Assumptions'!Q:Q,'SPV Template'!F10) -> 1700
C23: Degradation rate | F23: =INDEX('SPV Assumptions'!R:R,'SPV Template'!F10) -> 0.005
C25: Input Interconnection costs | F25: =INDEX('SPV Assumptions'!S:S,'SPV Template'!F10) -> 20000
C26: Capex/kW (EURO) | F26: =LOOKUP($F$21,'General Assumptions'!32:32,'General Assumptions'!33:33) -> 800
C28: O&M/kW/yr (EURO) | F28: =INDEX('SPV Assumptions'!T:T,'SPV Template'!F10) -> 13
B31: Financing Assumptions
C32: Equity requirements | F32: =INDEX('SPV Assumptions'!U:U,'SPV Template'!F10) -> 0.1
C33: Rent Model | F33: =INDEX('SPV Assumptions'!V:V,'SPV Template'!F10) -> FALSE
C34: Rental payments as % of rev | F34: =IF(F33,INDEX('SPV Assumptions'!X:X,'SPV Template'!F10))*1 -> 0
C35: Equity contribution by rooftop owner | F35: =IF(F33,0,INDEX('SPV Assumptions'!Y:Y,'SPV Template'!F10)) -> 0.05
C36: Ownership % Rooftop | F36: =F35/F32 -> 0.5
C37: Ownership% Development Co. | F37: =1-F36 -> 0.5
A39: Capacity & Production
B40: Capacity | F40: kW | I40: =F21 -> 570.4307334 | K40: =$I$40*K6 -> 0 | L40: 0 | M40: 0 | N40: 0 | O40: 0 | P40: 0 | Q40: 0 | R40: 0 | S40: 0 | T40: 0 | U40: 0 | V40: 0 | W40: 570.4307334 | X40: 570.4307334 | Y40: 570.4307334 | Z40: 570.4307334 | AA40: 570.4307334 | AB40: 570.4307334 | AC40: 570.4307334 | AD40: 570.4307334 | AE40: 570.4307334 | AF40: 570.4307334 | AG40: 570.4307334 | AH40: 570.4307334 | AI40: 570.4307334 | AJ40: 570.4307334 | AK40: 570.4307334 | AL40: 570.4307334 | AM40: 570.4307334 | AN40: 570.4307334 | AO40: 570.4307334 | AP40: 570.4307334 | AQ40: 570.4307334 | AR40: 570.4307334 | AS40: 570.4307334 | AT40: 570.4307334 | AU40: 570.4307334 | AV40: 570.4307334 | AW40: 570.4307334 | AX40: 570.4307334 | AY40: 570.4307334 | AZ40: 570.4307334 | BA40: 570.4307334 | BB40: 570.4307334 | BC40: 570.4307334 | BD40: 570.4307334 | BE40: 570.4307334 | BF40: 570.4307334 | BG40: 570.4307334 | BH40: 570.4307334 | BI40: 570.4307334 | BJ40: 570.4307334 | BK40: 570.4307334 | BL40: 570.4307334 | BM40: 570.4307334 | BN40: 570.4307334 | BO40: 570.4307334 | BP40: 570.4307334 | BQ40: 570.4307334 | BR40: 570.4307334 | BS40: 570.4307334 | BT40: 570.4307334 | BU40: 570.4307334 | BV40: 570.4307334 | BW40: =$I$40*BW6 -> 570.4307334 | BX40: 570.4307334 | BY40: 570.4307334 | BZ40: 570.4307334 | CA40: 570.4307334 | CB40: 570.4307334 | CC40: 570.4307334 | CD40: 570.4307334 | CE40: 570.4307334 | CF40: 570.4307334 | CG40: 570.4307334 | CH40: 570.4307334 | CI40: 570.4307334 | CJ40: 570.4307334 | CK40: 570.4307334 | CL40: 570.4307334 | CM40: 570.4307334 | CN40: 570.4307334 | CO40: 570.4307334 | CP40: 570.4307334 | CQ40: 570.4307334 | CR40: 570.4307334 | CS40: 570.4307334 | CT40: 570.4307334 | CU40: 570.4307334 | CV40: 570.4307334 | CW40: 570.4307334 | CX40: 570.4307334 | CY40: 570.4307334 | CZ40: 570.4307334 | DA40: 570.4307334 | DB40: 570.4307334 | DC40: 570.4307334 | DD40: 570.4307334 | DE40: 570.4307334 | DF40: 570.4307334 | DG40: 570.4307334 | DH40: 570.4307334 | DI40: 570.4307334 | DJ40: 570.4307334 | DK40: 570.4307334 | DL40: 570.4307334 | DM40: 570.4307334 | DN40: 570.4307334 | DO40: 570.4307334 | DP40: 570.4307334 | DQ40: 570.4307334 | DR40: 570.4307334 | DS40: 570.4307334 | DT40: 570.4307334 | DU40: 570.4307334 | DV40: 570.4307334 | DW40: 570.4307334 | DX40: 570.4307334 | DY40: 570.4307334 | DZ40: 570.4307334 | EA40: 570.4307334 | EB40: 570.4307334 | EC40: 570.4307334 | ED40: 570.4307334 | EE40: 570.4307334 | EF40: 570.4307334 | EG40: 570.4307334 | EH40: 570.4307334 | EI40: =$I$40*EI6 -> 570.4307334 | EJ40: 570.4307334 | EK40: 570.4307334 | EL40: 570.4307334 | EM40: 570.4307334 | EN40: 570.4307334 | EO40: 570.4307334 | EP40: 570.4307334 | EQ40: 570.4307334 | ER40: 570.4307334 | ES40: 570.4307334 | ET40: 570.4307334 | EU40: 570.4307334 | EV40: 570.4307334 | EW40: 570.4307334 | EX40: 570.4307334 | EY40: 570.4307334 | EZ40: 570.4307334 | FA40: 570.4307334 | FB40: 570.4307334 | FC40: 570.4307334 | FD40: 570.4307334 | FE40: 570.4307334 | FF40: 570.4307334 | FG40: 570.4307334 | FH40: 570.4307334 | FI40: 570.4307334 | FJ40: 570.4307334 | FK40: 570.4307334 | FL40: 570.4307334 | FM40: 570.4307334 | FN40: 570.4307334 | FO40: 570.4307334 | FP40: 570.4307334 | FQ40: 570.4307334 | FR40: 570.4307334 | FS40: 570.4307334 | FT40: 570.4307334 | FU40: 570.4307334 | FV40: 570.4307334 | FW40: 570.4307334 | FX40: 570.4307334 | FY40: 570.4307334 | FZ40: 570.4307334 | GA40: 570.4307334 | GB40: 570.4307334 | GC40: 570.4307334 | GD40: 570.4307334 | GE40: 570.4307334 | GF40: 570.4307334 | GG40: 570.4307334 | GH40: 570.4307334 | GI40: 570.4307334 | GJ40: 570.4307334 | GK40: 570.4307334 | GL40: 570.4307334 | GM40: 570.4307334 | GN40: 570.4307334 | GO40: 570.4307334 | GP40: 570.4307334 | GQ40: 570.4307334 | GR40: 570.4307334 | GS40: 570.4307334 | GT40: 570.4307334 | GU40: =$I$40*GU6 -> 570.4307334 | GV40: 570.4307334 | GW40: 570.4307334 | GX40: 570.4307334 | GY40: 570.4307334 | GZ40: 570.4307334 | HA40: 570.4307334 | HB40: 570.4307334 | HC40: 570.4307334 | HD40: 570.4307334 | HE40: 570.4307334 | HF40: 570.4307334 | HG40: 570.4307334 | HH40: 570.4307334 | HI40: 570.4307334 | HJ40: 570.4307334 | HK40: 570.4307334 | HL40: 570.4307334 | HM40: 570.4307334 | HN40: 570.4307334 | HO40: 570.4307334 | HP40: 570.4307334 | HQ40: 570.4307334 | HR40: 570.4307334 | HS40: 570.4307334 | HT40: 570.4307334 | HU40: 570.4307334 | HV40: 570.4307334 | HW40: 570.4307334 | HX40: 570.4307334 | HY40: 570.4307334 | HZ40: 570.4307334 | IA40: 570.4307334 | IB40: 570.4307334 | IC40: 570.4307334 | ID40: 570.4307334 | IE40: 570.4307334 | IF40: 570.4307334 | IG40: 570.4307334 | IH40: 570.4307334 | II40: 570.4307334 | IJ40: 570.4307334 | IK40: 570.4307334 | IL40: 570.4307334 | IM40: 570.4307334 | IN40: 570.4307334 | IO40: 570.4307334 | IP40: 570.4307334 | IQ40: 570.4307334 | IR40: 570.4307334 | IS40: 570.4307334 | IT40: 570.4307334 | IU40: 570.4307334 | IV40: 570.4307334 | IW40: 570.4307334 | IX40: 570.4307334 | IY40: 570.4307334 | IZ40: 570.4307334 | JA40: 570.4307334 | JB40: 570.4307334 | JC40: 570.4307334 | JD40: 570.4307334 | JE40: 570.4307334 | JF40: 570.4307334 | JG40: =$I$40*JG6 -> 570.4307334 | JH40: 570.4307334 | JI40: 570.4307334 | JJ40: 570.4307334 | JK40: 570.4307334 | JL40: 570.4307334 | JM40: 570.4307334 | JN40: 570.4307334 | JO40: 570.4307334 | JP40: 570.4307334 | JQ40: 570.4307334 | JR40: 570.4307334 | JS40: 570.4307334 | JT40: 570.4307334 | JU40: 570.4307334 | JV40: 570.4307334 | JW40: 570.4307334 | JX40: 570.4307334 | JY40: 570.4307334 | JZ40: 570.4307334 | KA40: 570.4307334 | KB40: 570.4307334 | KC40: 570.4307334 | KD40: 570.4307334 | KE40: 570.4307334 | KF40: 570.4307334 | KG40: 570.4307334 | KH40: 570.4307334 | KI40: 570.4307334 | KJ40: 570.4307334 | KK40: 570.4307334 | KL40: 570.4307334 | KM40: 570.4307334 | KN40: 570.4307334 | KO40: 570.4307334 | KP40: 570.4307334 | KQ40: 570.4307334 | KR40: 570.4307334 | KS40: 570.4307334 | KT40: 570.4307334 | KU40: 570.4307334 | KV40: 570.4307334 | KW40: 570.4307334 | KX40: 570.4307334 | KY40: 570.4307334 | KZ40: 570.4307334 | LA40: 570.4307334 | LB40: 570.4307334 | LC40: 570.4307334 | LD40: 570.4307334 | LE40: 570.4307334 | LF40: 570.4307334 | LG40: 570.4307334 | LH40: 570.4307334 | LI40: 570.4307334 | LJ40: 570.4307334 | LK40: 0 | LL40: 0 | LM40: 0 | LN40: 0 | LO40: 0 | LP40: 0 | LQ40: 0 | LR40: 0 | LS40: =$I$40*LS6 -> 0 | LT40: 0 | LU40: 0 | LV40: 0 | LW40: 0 | LX40: 0 | LY40: 0 | LZ40: 0 | MA40: 0 | MB40: 0 | MC40: 0 | MD40: 0 | ME40: 0 | MF40: 0 | MG40: 0 | MH40: 0 | MI40: 0 | MJ40: 0 | MK40: 0 | ML40: 0 | MM40: 0 | MN40: 0 | MO40: 0 | MP40: 0 | MQ40: 0 | MR40: 0 | MS40: 0 | MT40: 0 | MU40: 0 | MV40: 0 | MW40: 0 | MX40: 0 | MY40: 0 | MZ40: 0 | NA40: 0 | NB40: 0 | NC40: 0 | ND40: 0 | NE40: 0 | NF40: 0 | NG40: 0 | NH40: 0 | NI40: 0 | NJ40: 0 | NK40: 0 | NL40: 0 | NM40: 0 | NN40: 0 | NO40: 0 | NP40: 0 | NQ40: 0 | NR40: 0 | NS40: 0 | NT40: 0 | NU40: 0 | NV40: 0 | NW40: 0 | NX40: 0 | NY40: 0 | NZ40: 0 | OA40: 0 | OB40: 0 | OC40: 0 | OD40: 0 | OE40: =$I$40*OE6 -> 0 | OF40: 0 | OG40: 0 | OH40: 0 | OI40: 0 | OJ40: 0 | OK40: 0 | OL40: 0 | OM40: 0 | ON40: 0 | OO40: 0 | OP40: 0 | OQ40: 0 | OR40: 0 | OS40: 0 | OT40: 0
B41: Yield | F41: kWh/kW | H41: ='Risk Analysis'!P8 -> 1 | I41: =F22 -> 1700 | K41: =$I$41*K6*$H$41 -> 0 | L41: =$I$41*L6*$H$41 -> 0 | M41: 0 | N41: 0 | O41: 0 | P41: 0 | Q41: 0 | R41: 0 | S41: 0 | T41: 0 | U41: 0 | V41: 0 | W41: 1700 | X41: 1700 | Y41: 1700 | Z41: 1700 | AA41: 1700 | AB41: 1700 | AC41: 1700 | AD41: 1700 | AE41: 1700 | AF41: 1700 | AG41: 1700 | AH41: 1700 | AI41: 1700 | AJ41: 1700 | AK41: 1700 | AL41: 1700 | AM41: 1700 | AN41: 1700 | AO41: 1700 | AP41: 1700 | AQ41: 1700 | AR41: 1700 | AS41: 1700 | AT41: 1700 | AU41: 1700 | AV41: 1700 | AW41: 1700 | AX41: 1700 | AY41: 1700 | AZ41: 1700 | BA41: 1700 | BB41: 1700 | BC41: 1700 | BD41: 1700 | BE41: 1700 | BF41: 1700 | BG41: 1700 | BH41: 1700 | BI41: 1700 | BJ41: 1700 | BK41: 1700 | BL41: 1700 | BM41: 1700 | BN41: 1700 | BO41: 1700 | BP41: 1700 | BQ41: 1700 | BR41: 1700 | BS41: 1700 | BT41: 1700 | BU41: 1700 | BV41: 1700 | BW41: 1700 | BX41: =$I$41*BX6*$H$41 -> 1700 | BY41: 1700 | BZ41: 1700 | CA41: 1700 | CB41: 1700 | CC41: 1700 | CD41: 1700 | CE41: 1700 | CF41: 1700 | CG41: 1700 | CH41: 1700 | CI41: 1700 | CJ41: 1700 | CK41: 1700 | CL41: 1700 | CM41: 1700 | CN41: 1700 | CO41: 1700 | CP41: 1700 | CQ41: 1700 | CR41: 1700 | CS41: 1700 | CT41: 1700 | CU41: 1700 | CV41: 1700 | CW41: 1700 | CX41: 1700 | CY41: 1700 | CZ41: 1700 | DA41: 1700 | DB41: 1700 | DC41: 1700 | DD41: 1700 | DE41: 1700 | DF41: 1700 | DG41: 1700 | DH41: 1700 | DI41: 1700 | DJ41: 1700 | DK41: 1700 | DL41: 1700 | DM41: 1700 | DN41: 1700 | DO41: 1700 | DP41: 1700 | DQ41: 1700 | DR41: 1700 | DS41: 1700 | DT41: 1700 | DU41: 1700 | DV41: 1700 | DW41: 1700 | DX41: 1700 | DY41: 1700 | DZ41: 1700 | EA41: 1700 | EB41: 1700 | EC41: 1700 | ED41: 1700 | EE41: 1700 | EF41: 1700 | EG41: 1700 | EH41: 1700 | EI41: 1700 | EJ41: =$I$41*EJ6*$H$41 -> 1700 | EK41: 1700 | EL41: 1700 | EM41: 1700 | EN41: 1700 | EO41: 1700 | EP41: 1700 | EQ41: 1700 | ER41: 1700 | ES41: 1700 | ET41: 1700 | EU41: 1700 | EV41: 1700 | EW41: 1700 | EX41: 1700 | EY41: 1700 | EZ41: 1700 | FA41: 1700 | FB41: 1700 | FC41: 1700 | FD41: 1700 | FE41: 1700 | FF41: 1700 | FG41: 1700 | FH41: 1700 | FI41: 1700 | FJ41: 1700 | FK41: 1700 | FL41: 1700 | FM41: 1700 | FN41: 1700 | FO41: 1700 | FP41: 1700 | FQ41: 1700 | FR41: 1700 | FS41: 1700 | FT41: 1700 | FU41: 1700 | FV41: 1700 | FW41: 1700 | FX41: 1700 | FY41: 1700 | FZ41: 1700 | GA41: 1700 | GB41: 1700 | GC41: 1700 | GD41: 1700 | GE41: 1700 | GF41: 1700 | GG41: 1700 | GH41: 1700 | GI41: 1700 | GJ41: 1700 | GK41: 1700 | GL41: 1700 | GM41: 1700 | GN41: 1700 | GO41: 1700 | GP41: 1700 | GQ41: 1700 | GR41: 1700 | GS41: 1700 | GT41: 1700 | GU41: 1700 | GV41: =$I$41*GV6*$H$41 -> 1700 | GW41: 1700 | GX41: 1700 | GY41: 1700 | GZ41: 1700 | HA41: 1700 | HB41: 1700 | HC41: 1700 | HD41: 1700 | HE41: 1700 | HF41: 1700 | HG41: 1700 | HH41: 1700 | HI41: 1700 | HJ41: 1700 | HK41: 1700 | HL41: 1700 | HM41: 1700 | HN41: 1700 | HO41: 1700 | HP41: 1700 | HQ41: 1700 | HR41: 1700 | HS41: 1700 | HT41: 1700 | HU41: 1700 | HV41: 1700 | HW41: 1700 | HX41: 1700 | HY41: 1700 | HZ41: 1700 | IA41: 1700 | IB41: 1700 | IC41: 1700 | ID41: 1700 | IE41: 1700 | IF41: 1700 | IG41: 1700 | IH41: 1700 | II41: 1700 | IJ41: 1700 | IK41: 1700 | IL41: 1700 | IM41: 1700 | IN41: 1700 | IO41: 1700 | IP41: 1700 | IQ41: 1700 | IR41: 1700 | IS41: 1700 | IT41: 1700 | IU41: 1700 | IV41: 1700 | IW41: 1700 | IX41: 1700 | IY41: 1700 | IZ41: 1700 | JA41: 1700 | JB41: 1700 | JC41: 1700 | JD41: 1700 | JE41: 1700 | JF41: 1700 | JG41: 1700 | JH41: =$I$41*JH6*$H$41 -> 1700 | JI41: 1700 | JJ41: 1700 | JK41: 1700 | JL41: 1700 | JM41: 1700 | JN41: 1700 | JO41: 1700 | JP41: 1700 | JQ41: 1700 | JR41: 1700 | JS41: 1700 | JT41: 1700 | JU41: 1700 | JV41: 1700 | JW41: 1700 | JX41: 1700 | JY41: 1700 | JZ41: 1700 | KA41: 1700 | KB41: 1700 | KC41: 1700 | KD41: 1700 | KE41: 1700 | KF41: 1700 | KG41: 1700 | KH41: 1700 | KI41: 1700 | KJ41: 1700 | KK41: 1700 | KL41: 1700 | KM41: 1700 | KN41: 1700 | KO41: 1700 | KP41: 1700 | KQ41: 1700 | KR41: 1700 | KS41: 1700 | KT41: 1700 | KU41: 1700 | KV41: 1700 | KW41: 1700 | KX41: 1700 | KY41: 1700 | KZ41: 1700 | LA41: 1700 | LB41: 1700 | LC41: 1700 | LD41: 1700 | LE41: 1700 | LF41: 1700 | LG41: 1700 | LH41: 1700 | LI41: 1700 | LJ41: 1700 | LK41: 0 | LL41: 0 | LM41: 0 | LN41: 0 | LO41: 0 | LP41: 0 | LQ41: 0 | LR41: 0 | LS41: 0 | LT41: =$I$41*LT6*$H$41 -> 0 | LU41: 0 | LV41: 0 | LW41: 0 | LX41: 0 | LY41: 0 | LZ41: 0 | MA41: 0 | MB41: 0 | MC41: 0 | MD41: 0 | ME41: 0 | MF41: 0 | MG41: 0 | MH41: 0 | MI41: 0 | MJ41: 0 | MK41: 0 | ML41: 0 | MM41: 0 | MN41: 0 | MO41: 0 | MP41: 0 | MQ41: 0 | MR41: 0 | MS41: 0 | MT41: 0 | MU41: 0 | MV41: 0 | MW41: 0 | MX41: 0 | MY41: 0 | MZ41: 0 | NA41: 0 | NB41: 0 | NC41: 0 | ND41: 0 | NE41: 0 | NF41: 0 | NG41: 0 | NH41: 0 | NI41: 0 | NJ41: 0 | NK41: 0 | NL41: 0 | NM41: 0 | NN41: 0 | NO41: 0 | NP41: 0 | NQ41: 0 | NR41: 0 | NS41: 0 | NT41: 0 | NU41: 0 | NV41: 0 | NW41: 0 | NX41: 0 | NY41: 0 | NZ41: 0 | OA41: 0 | OB41: 0 | OC41: 0 | OD41: 0 | OE41: 0 | OF41: =$I$41*OF6*$H$41 -> 0 | OG41: 0 | OH41: 0 | OI41: 0 | OJ41: 0 | OK41: 0 | OL41: 0 | OM41: 0 | ON41: 0 | OO41: 0 | OP41: 0 | OQ41: 0 | OR41: 0 | OS41: 0 | OT41: 0
B42: Monthly Factor | K42: =LOOKUP(MONTH(K2),'General Assumptions'!29:29,'General Assumptions'!30:30) -> 0.05672126198 | L42: =LOOKUP(MONTH(L2),'General Assumptions'!29:29,'General Assumptions'!30:30) -> 0.06287266964 | M42: =LOOKUP(MONTH(M2),'General Assumptions'!29:29,'General Assumptions'!30:30) -> 0.08562910408 | N42: =LOOKUP(MONTH(N2),'General Assumptions'!29:29,'General Assumptions'!30:30) -> 0.09585629104 | O42: =LOOKUP(MONTH(O2),'General Assumptions'!29:29,'General Assumptions'!30:30) -> 0.1054796588 | P42: =LOOKUP(MONTH(P2),'General Assumptions'!29:29,'General Assumptions'!30:30) -> 0.1066495585 | Q42: =LOOKUP(MONTH(Q2),'General Assumptions'!29:29,'General Assumptions'!30:30) -> 0.1072156389 | R42: =LOOKUP(MONTH(R2),'General Assumptions'!29:29,'General Assumptions'!30:30) -> 0.1005736282 | S42: =LOOKUP(MONTH(S2),'General Assumptions'!29:29,'General Assumptions'!30:30) -> 0.08902558684 | T42: =LOOKUP(MONTH(T2),'General Assumptions'!29:29,'General Assumptions'!30:30) -> 0.07702468111 | U42: =LOOKUP(MONTH(U2),'General Assumptions'!29:29,'General Assumptions'!30:30) -> 0.05970261907 | V42: =LOOKUP(MONTH(V2),'General Assumptions'!29:29,'General Assumptions'!30:30) -> 0.05324930183 | W42: =LOOKUP(MONTH(W2),'General Assumptions'!29:29,'General Assumptions'!30:30) -> 0.05672126198 | X42: =LOOKUP(MONTH(X2),'General Assumptions'!29:29,'General Assumptions'!30:30) -> 0.06287266964 | Y42: =LOOKUP(MONTH(Y2),'General Assumptions'!29:29,'General Assumptions'!30:30) -> 0.08562910408 | Z42: =LOOKUP(MONTH(Z2),'General Assumptions'!29:29,'General Assumptions'!30:30) -> 0.09585629104 | AA42: =LOOKUP(MONTH(AA2),'General Assumptions'!29:29,'General Assumptions'!30:30) -> 0.1054796588 | AB42: =LOOKUP(MONTH(AB2),'General Assumptions'!29:29,'General Assumptions'!30:30) -> 0.1066495585 | AC42: =LOOKUP(MONTH(AC2),'General Assumptions'!29:29,'General Assumptions'!30:30) -> 0.1072156389 | AD42: =LOOKUP(MONTH(AD2),'General Assumptions'!29:29,'General Assumptions'!30:30) -> 0.1005736282 | AE42: =LOOKUP(MONTH(AE2),'General Assumptions'!29:29,'General Assumptions'!30:30) -> 0.08902558684 | AF42: =LOOKUP(MONTH(AF2),'General Assumptions'!29:29,'General Assumptions'!30:30) -> 0.07702468111 | AG42: =LOOKUP(MONTH(AG2),'General Assumptions'!29:29,'General Assumptions'!30:30) -> 0.05970261907 | AH42: =LOOKUP(MONTH(AH2),'General Assumptions'!29:29,'General Assumptions'!30:30) -> 0.05324930183 | AI42: =LOOKUP(MONTH(AI2),'General Assumptions'!29:29,'General Assumptions'!30:30) -> 0.05672126198 | AJ42: =LOOKUP(MONTH(AJ2),'General Assumptions'!29:29,'General Assumptions'!30:30) -> 0.06287266964 | AK42: =LOOKUP(MONTH(AK2),'General Assumptions'!29:29,'General Assumptions'!30:30) -> 0.08562910408 | AL42: =LOOKUP(MONTH(AL2),'General Assumptions'!29:29,'General Assumptions'!30:30) -> 0.09585629104 | AM42: =LOOKUP(MONTH(AM2),'General Assumptions'!29:29,'General Assumptions'!30:30) -> 0.1054796588 | AN42: =LOOKUP(MONTH(AN2),'General Assumptions'!29:29,'General Assumptions'!30:30) -> 0.1066495585 | AO42: =LOOKUP(MONTH(AO2),'General Assumptions'!29:29,'General Assumptions'!30:30) -> 0.1072156389 | AP42: =LOOKUP(MONTH(AP2),'General Assumptions'!29:29,'General Assumptions'!30:30) -> 0.1005736282 | AQ42: =LOOKUP(MONTH(AQ2),'General Assumptions'!29:29,'General Assumptions'!30:30) -> 0.08902558684 | AR42: =LOOKUP(MONTH(AR2),'General Assumptions'!29:29,'General Assumptions'!30:30) -> 0.07702468111 | AS42: =LOOKUP(MONTH(AS2),'General Assumptions'!29:29,'General Assumptions'!30:30) -> 0.05970261907 | AT42: =LOOKUP(MONTH(AT2),'General Assumptions'!29:29,'General Assumptions'!30:30) -> 0.05324930183 | AU42: =LOOKUP(MONTH(AU2),'General Assumptions'!29:29,'General Assumptions'!30:30) -> 0.05672126198 | AV42: =LOOKUP(MONTH(AV2),'General Assumptions'!29:29,'General Assumptions'!30:30) -> 0.06287266964 | AW42: =LOOKUP(MONTH(AW2),'General Assumptions'!29:29,'General Assumptions'!30:30) -> 0.08562910408 | AX42: =LOOKUP(MONTH(AX2),'General Assumptions'!29:29,'General Assumptions'!30:30) -> 0.09585629104 | AY42: =LOOKUP(MONTH(AY2),'General Assumptions'!29:29,'General Assumptions'!30:30) -> 0.1054796588 | AZ42: =LOOKUP(MONTH(AZ2),'General Assumptions'!29:29,'General Assumptions'!30:30) -> 0.1066495585 | BA42: =LOOKUP(MONTH(BA2),'General Assumptions'!29:29,'General Assumptions'!30:30) -> 0.1072156389 | BB42: =LOOKUP(MONTH(BB2),'General Assumptions'!29:29,'General Assumptions'!30:30) -> 0.1005736282 | BC42: =LOOKUP(MONTH(BC2),'General Assumptions'!29:29,'General Assumptions'!30:30) -> 0.08902558684 | BD42: =LOOKUP(MONTH(BD2),'General Assumptions'!29:29,'General Assumptions'!30:30) -> 0.07702468111 | BE42: =LOOKUP(MONTH(BE2),'General Assumptions'!29:29,'General Assumptions'!30:30) -> 0.05970261907 | BF42: =LOOKUP(MONTH(BF2),'General Assumptions'!29:29,'General Assumptions'!30:30) -> 0.05324930183 | BG42: =LOOKUP(MONTH(BG2),'General Assumptions'!29:29,'General Assumptions'!30:30) -> 0.05672126198 | BH42: =LOOKUP(MONTH(BH2),'General Assumptions'!29:29,'General Assumptions'!30:30) -> 0.06287266964 | BI42: =LOOKUP(MONTH(BI2),'General Assumptions'!29:29,'General Assumptions'!30:30) -> 0.08562910408 | BJ42: =LOOKUP(MONTH(BJ2),'General Assumptions'!29:29,'General Assumptions'!30:30) -> 0.09585629104 | BK42: =LOOKUP(MONTH(BK2),'General Assumptions'!29:29,'General Assumptions'!30:30) -> 0.1054796588 | BL42: =LOOKUP(MONTH(BL2),'General Assumptions'!29:29,'General Assumptions'!30:30) -> 0.1066495585 | BM42: =LOOKUP(MONTH(BM2),'General Assumptions'!29:29,'General Assumptions'!30:30) -> 0.1072156389 | BN42: =LOOKUP(MONTH(BN2),'General Assumptions'!29:29,'General Assumptions'!30:30) -> 0.1005736282 | BO42: =LOOKUP(MONTH(BO2),'General Assumptions'!29:29,'General Assumptions'!30:30) -> 0.08902558684 | BP42: =LOOKUP(MONTH(BP2),'General Assumptions'!29:29,'General Assumptions'!30:30) -> 0.07702468111 | BQ42: =LOOKUP(MONTH(BQ2),'General Assumptions'!29:29,'General Assumptions'!30:30) -> 0.05970261907 | BR42: =LOOKUP(MONTH(BR2),'General Assumptions'!29:29,'General Assumptions'!30:30) -> 0.05324930183 | BS42: =LOOKUP(MONTH(BS2),'General Assumptions'!29:29,'General Assumptions'!30:30) -> 0.05672126198 | BT42: =LOOKUP(MONTH(BT2),'General Assumptions'!29:29,'General Assumptions'!30:30) -> 0.06287266964 | BU42: =LOOKUP(MONTH(BU2),'General Assumptions'!29:29,'General Assumptions'!30:30) -> 0.08562910408 | BV42: =LOOKUP(MONTH(BV2),'General Assumptions'!29:29,'General Assumptions'!30:30) -> 0.09585629104 | BW42: =LOOKUP(MONTH(BW2),'General Assumptions'!29:29,'General Assumptions'!30:30) -> 0.1054796588 | BX42: =LOOKUP(MONTH(BX2),'General Assumptions'!29:29,'General Assumptions'!30:30) -> 0.1066495585 | BY42: =LOOKUP(MONTH(BY2),'General Assumptions'!29:29,'General Assumptions'!30:30) -> 0.1072156389 | BZ42: =LOOKUP(MONTH(BZ2),'General Assumptions'!29:29,'General Assumptions'!30:30) -> 0.1005736282 | CA42: =LOOKUP(MONTH(CA2),'General Assumptions'!29:29,'General Assumptions'!30:30) -> 0.08902558684 | CB42: =LOOKUP(MONTH(CB2),'General Assumptions'!29:29,'General Assumptions'!30:30) -> 0.07702468111 | CC42: =LOOKUP(MONTH(CC2),'General Assumptions'!29:29,'General Assumptions'!30:30) -> 0.05970261907 | CD42: =LOOKUP(MONTH(CD2),'General Assumptions'!29:29,'General Assumptions'!30:30) -> 0.05324930183 | CE42: =LOOKUP(MONTH(CE2),'General Assumptions'!29:29,'General Assumptions'!30:30) -> 0.05672126198 | CF42: =LOOKUP(MONTH(CF2),'General Assumptions'!29:29,'General Assumptions'!30:30) -> 0.06287266964 | CG42: =LOOKUP(MONTH(CG2),'General Assumptions'!29:29,'General Assumptions'!30:30) -> 0.08562910408 | CH42: =LOOKUP(MONTH(CH2),'General Assumptions'!29:29,'General Assumptions'!30:30) -> 0.09585629104 | CI42: =LOOKUP(MONTH(CI2),'General Assumptions'!29:29,'General Assumptions'!30:30) -> 0.1054796588 | CJ42: =LOOKUP(MONTH(CJ2),'General Assumptions'!29:29,'General Assumptions'!30:30) -> 0.1066495585 | CK42: =LOOKUP(MONTH(CK2),'General Assumptions'!29:29,'General Assumptions'!30:30) -> 0.1072156389 | CL42: =LOOKUP(MONTH(CL2),'General Assumptions'!29:29,'General Assumptions'!30:30) -> 0.1005736282 | CM42: =LOOKUP(MONTH(CM2),'General Assumptions'!29:29,'General Assumptions'!30:30) -> 0.08902558684 | CN42: =LOOKUP(MONTH(CN2),'General Assumptions'!29:29,'General Assumptions'!30:30) -> 0.07702468111 | CO42: =LOOKUP(MONTH(CO2),'General Assumptions'!29:29,'General Assumptions'!30:30) -> 0.05970261907 | CP42: =LOOKUP(MONTH(CP2),'General Assumptions'!29:29,'General Assumptions'!30:30) -> 0.05324930183 | CQ42: =LOOKUP(MONTH(CQ2),'General Assumptions'!29:29,'General Assumptions'!30:30) -> 0.05672126198 | CR42: =LOOKUP(MONTH(CR2),'General Assumptions'!29:29,'General Assumptions'!30:30) -> 0.06287266964 | CS42: =LOOKUP(MONTH(CS2),'General Assumptions'!29:29,'General Assumptions'!30:30) -> 0.08562910408 | CT42: =LOOKUP(MONTH(CT2),'General Assumptions'!29:29,'General Assumptions'!30:30) -> 0.09585629104 | CU42: =LOOKUP(MONTH(CU2),'General Assumptions'!29:29,'General Assumptions'!30:30) -> 0.1054796588 | CV42: =LOOKUP(MONTH(CV2),'General Assumptions'!29:29,'General Assumptions'!30:30) -> 0.1066495585 | CW42: =LOOKUP(MONTH(CW2),'General Assumptions'!29:29,'General Assumptions'!30:30) -> 0.1072156389 | CX42: =LOOKUP(MONTH(CX2),'General Assumptions'!29:29,'General Assumptions'!30:30) -> 0.1005736282 | CY42: =LOOKUP(MONTH(CY2),'General Assumptions'!29:29,'General Assumptions'!30:30) -> 0.08902558684 | CZ42: =LOOKUP(MONTH(CZ2),'General Assumptions'!29:29,'General Assumptions'!30:30) -> 0.07702468111 | DA42: =LOOKUP(MONTH(DA2),'General Assumptions'!29:29,'General Assumptions'!30:30) -> 0.05970261907 | DB42: =LOOKUP(MONTH(DB2),'General Assumptions'!29:29,'General Assumptions'!30:30) -> 0.05324930183 | DC42: =LOOKUP(MONTH(DC2),'General Assumptions'!29:29,'General Assumptions'!30:30) -> 0.05672126198 | DD42: =LOOKUP(MONTH(DD2),'General Assumptions'!29:29,'General Assumptions'!30:30) -> 0.06287266964 | DE42: =LOOKUP(MONTH(DE2),'General Assumptions'!29:29,'General Assumptions'!30:30) -> 0.08562910408 | DF42: =LOOKUP(MONTH(DF2),'General Assumptions'!29:29,'General Assumptions'!30:30) -> 0.09585629104 | DG42: =LOOKUP(MONTH(DG2),'General Assumptions'!29:29,'General Assumptions'!30:30) -> 0.1054796588 | DH42: =LOOKUP(MONTH(DH2),'General Assumptions'!29:29,'General Assumptions'!30:30) -> 0.1066495585 | DI42: =LOOKUP(MONTH(DI2),'General Assumptions'!29:29,'General Assumptions'!30:30) -> 0.1072156389 | DJ42: =LOOKUP(MONTH(DJ2),'General Assumptions'!29:29,'General Assumptions'!30:30) -> 0.1005736282 | DK42: =LOOKUP(MONTH(DK2),'General Assumptions'!29:29,'General Assumptions'!30:30) -> 0.08902558684 | DL42: =LOOKUP(MONTH(DL2),'General Assumptions'!29:29,'General Assumptions'!30:30) -> 0.07702468111 | DM42: =LOOKUP(MONTH(DM2),'General Assumptions'!29:29,'General Assumptions'!30:30) -> 0.05970261907 | DN42: =LOOKUP(MONTH(DN2),'General Assumptions'!29:29,'General Assumptions'!30:30) -> 0.05324930183 | DO42: =LOOKUP(MONTH(DO2),'General Assumptions'!29:29,'General Assumptions'!30:30) -> 0.05672126198 | DP42: =LOOKUP(MONTH(DP2),'General Assumptions'!29:29,'General Assumptions'!30:30) -> 0.06287266964 | DQ42: =LOOKUP(MONTH(DQ2),'General Assumptions'!29:29,'General Assumptions'!30:30) -> 0.08562910408 | DR42: =LOOKUP(MONTH(DR2),'General Assumptions'!29:29,'General Assumptions'!30:30) -> 0.09585629104 | DS42: =LOOKUP(MONTH(DS2),'General Assumptions'!29:29,'General Assumptions'!30:30) -> 0.1054796588 | DT42: =LOOKUP(MONTH(DT2),'General Assumptions'!29:29,'General Assumptions'!30:30) -> 0.1066495585 | DU42: =LOOKUP(MONTH(DU2),'General Assumptions'!29:29,'General Assumptions'!30:30) -> 0.1072156389 | DV42: =LOOKUP(MONTH(DV2),'General Assumptions'!29:29,'General Assumptions'!30:30) -> 0.1005736282 | DW42: =LOOKUP(MONTH(DW2),'General Assumptions'!29:29,'General Assumptions'!30:30) -> 0.08902558684 | DX42: =LOOKUP(MONTH(DX2),'General Assumptions'!29:29,'General Assumptions'!30:30) -> 0.07702468111 | DY42: =LOOKUP(MONTH(DY2),'General Assumptions'!29:29,'General Assumptions'!30:30) -> 0.05970261907 | DZ42: =LOOKUP(MONTH(DZ2),'General Assumptions'!29:29,'General Assumptions'!30:30) -> 0.05324930183 | EA42: =LOOKUP(MONTH(EA2),'General Assumptions'!29:29,'General Assumptions'!30:30) -> 0.05672126198 | EB42: =LOOKUP(MONTH(EB2),'General Assumptions'!29:29,'General Assumptions'!30:30) -> 0.06287266964 | EC42: =LOOKUP(MONTH(EC2),'General Assumptions'!29:29,'General Assumptions'!30:30) -> 0.08562910408 | ED42: =LOOKUP(MONTH(ED2),'General Assumptions'!29:29,'General Assumptions'!30:30) -> 0.09585629104 | EE42: =LOOKUP(MONTH(EE2),'General Assumptions'!29:29,'General Assumptions'!30:30) -> 0.1054796588 | EF42: =LOOKUP(MONTH(EF2),'General Assumptions'!29:29,'General Assumptions'!30:30) -> 0.1066495585 | EG42: =LOOKUP(MONTH(EG2),'General Assumptions'!29:29,'General Assumptions'!30:30) -> 0.1072156389 | EH42: =LOOKUP(MONTH(EH2),'General Assumptions'!29:29,'General Assumptions'!30:30) -> 0.1005736282 | EI42: =LOOKUP(MONTH(EI2),'General Assumptions'!29:29,'General Assumptions'!30:30) -> 0.08902558684 | EJ42: =LOOKUP(MONTH(EJ2),'General Assumptions'!29:29,'General Assumptions'!30:30) -> 0.07702468111 | EK42: =LOOKUP(MONTH(EK2),'General Assumptions'!29:29,'General Assumptions'!30:30) -> 0.05970261907 | EL42: =LOOKUP(MONTH(EL2),'General Assumptions'!29:29,'General Assumptions'!30:30) -> 0.05324930183 | EM42: =LOOKUP(MONTH(EM2),'General Assumptions'!29:29,'General Assumptions'!30:30) -> 0.05672126198 | EN42: =LOOKUP(MONTH(EN2),'General Assumptions'!29:29,'General Assumptions'!30:30) -> 0.06287266964 | EO42: =LOOKUP(MONTH(EO2),'General Assumptions'!29:29,'General Assumptions'!30:30) -> 0.08562910408 | EP42: =LOOKUP(MONTH(EP2),'General Assumptions'!29:29,'General Assumptions'!30:30) -> 0.09585629104 | EQ42: =LOOKUP(MONTH(EQ2),'General Assumptions'!29:29,'General Assumptions'!30:30) -> 0.1054796588 | ER42: =LOOKUP(MONTH(ER2),'General Assumptions'!29:29,'General Assumptions'!30:30) -> 0.1066495585 | ES42: =LOOKUP(MONTH(ES2),'General Assumptions'!29:29,'General Assumptions'!30:30) -> 0.1072156389 | ET42: =LOOKUP(MONTH(ET2),'General Assumptions'!29:29,'General Assumptions'!30:30) -> 0.1005736282 | EU42: =LOOKUP(MONTH(EU2),'General Assumptions'!29:29,'General Assumptions'!30:30) -> 0.08902558684 | EV42: =LOOKUP(MONTH(EV2),'General Assumptions'!29:29,'General Assumptions'!30:30) -> 0.07702468111 | EW42: =LOOKUP(MONTH(EW2),'General Assumptions'!29:29,'General Assumptions'!30:30) -> 0.05970261907 | EX42: =LOOKUP(MONTH(EX2),'General Assumptions'!29:29,'General Assumptions'!30:30) -> 0.05324930183 | EY42: =LOOKUP(MONTH(EY2),'General Assumptions'!29:29,'General Assumptions'!30:30) -> 0.05672126198 | EZ42: =LOOKUP(MONTH(EZ2),'General Assumptions'!29:29,'General Assumptions'!30:30) -> 0.06287266964 | FA42: =LOOKUP(MONTH(FA2),'General Assumptions'!29:29,'General Assumptions'!30:30) -> 0.08562910408 | FB42: =LOOKUP(MONTH(FB2),'General Assumptions'!29:29,'General Assumptions'!30:30) -> 0.09585629104 | FC42: =LOOKUP(MONTH(FC2),'General Assumptions'!29:29,'General Assumptions'!30:30) -> 0.1054796588 | FD42: =LOOKUP(MONTH(FD2),'General Assumptions'!29:29,'General Assumptions'!30:30) -> 0.1066495585 | FE42: =LOOKUP(MONTH(FE2),'General Assumptions'!29:29,'General Assumptions'!30:30) -> 0.1072156389 | FF42: =LOOKUP(MONTH(FF2),'General Assumptions'!29:29,'General Assumptions'!30:30) -> 0.1005736282 | FG42: =LOOKUP(MONTH(FG2),'General Assumptions'!29:29,'General Assumptions'!30:30) -> 0.08902558684 | FH42: =LOOKUP(MONTH(FH2),'General Assumptions'!29:29,'General Assumptions'!30:30) -> 0.07702468111 | FI42: =LOOKUP(MONTH(FI2),'General Assumptions'!29:29,'General Assumptions'!30:30) -> 0.05970261907 | FJ42: =LOOKUP(MONTH(FJ2),'General Assumptions'!29:29,'General Assumptions'!30:30) -> 0.05324930183 | FK42: =LOOKUP(MONTH(FK2),'General Assumptions'!29:29,'General Assumptions'!30:30) -> 0.05672126198 | FL42: =LOOKUP(MONTH(FL2),'General Assumptions'!29:29,'General Assumptions'!30:30) -> 0.06287266964 | FM42: =LOOKUP(MONTH(FM2),'General Assumptions'!29:29,'General Assumptions'!30:30) -> 0.08562910408 | FN42: =LOOKUP(MONTH(FN2),'General Assumptions'!29:29,'General Assumptions'!30:30) -> 0.09585629104 | FO42: =LOOKUP(MONTH(FO2),'General Assumptions'!29:29,'General Assumptions'!30:30) -> 0.1054796588 | FP42: =LOOKUP(MONTH(FP2),'General Assumptions'!29:29,'General Assumptions'!30:30) -> 0.1066495585 | FQ42: =LOOKUP(MONTH(FQ2),'General Assumptions'!29:29,'General Assumptions'!30:30) -> 0.1072156389 | FR42: =LOOKUP(MONTH(FR2),'General Assumptions'!29:29,'General Assumptions'!30:30) -> 0.1005736282 | FS42: =LOOKUP(MONTH(FS2),'General Assumptions'!29:29,'General Assumptions'!30:30) -> 0.08902558684 | FT42: =LOOKUP(MONTH(FT2),'General Assumptions'!29:29,'General Assumptions'!30:30) -> 0.07702468111 | FU42: =LOOKUP(MONTH(FU2),'General Assumptions'!29:29,'General Assumptions'!30:30) -> 0.05970261907 | FV42: =LOOKUP(MONTH(FV2),'General Assumptions'!29:29,'General Assumptions'!30:30) -> 0.05324930183 | FW42: =LOOKUP(MONTH(FW2),'General Assumptions'!29:29,'General Assumptions'!30:30) -> 0.05672126198 | FX42: =LOOKUP(MONTH(FX2),'General Assumptions'!29:29,'General Assumptions'!30:30) -> 0.06287266964 | FY42: =LOOKUP(MONTH(FY2),'General Assumptions'!29:29,'General Assumptions'!30:30) -> 0.08562910408 | FZ42: =LOOKUP(MONTH(FZ2),'General Assumptions'!29:29,'General Assumptions'!30:30) -> 0.09585629104 | GA42: =LOOKUP(MONTH(GA2),'General Assumptions'!29:29,'General Assumptions'!30:30) -> 0.1054796588 | GB42: =LOOKUP(MONTH(GB2),'General Assumptions'!29:29,'General Assumptions'!30:30) -> 0.1066495585 | GC42: =LOOKUP(MONTH(GC2),'General Assumptions'!29:29,'General Assumptions'!30:30) -> 0.1072156389 | GD42: =LOOKUP(MONTH(GD2),'General Assumptions'!29:29,'General Assumptions'!30:30) -> 0.1005736282 | GE42: =LOOKUP(MONTH(GE2),'General Assumptions'!29:29,'General Assumptions'!30:30) -> 0.08902558684 | GF42: =LOOKUP(MONTH(GF2),'General Assumptions'!29:29,'General Assumptions'!30:30) -> 0.07702468111 | GG42: =LOOKUP(MONTH(GG2),'General Assumptions'!29:29,'General Assumptions'!30:30) -> 0.05970261907 | GH42: =LOOKUP(MONTH(GH2),'General Assumptions'!29:29,'General Assumptions'!30:30) -> 0.05324930183 | GI42: =LOOKUP(MONTH(GI2),'General Assumptions'!29:29,'General Assumptions'!30:30) -> 0.05672126198 | GJ42: =LOOKUP(MONTH(GJ2),'General Assumptions'!29:29,'General Assumptions'!30:30) -> 0.06287266964 | GK42: =LOOKUP(MONTH(GK2),'General Assumptions'!29:29,'General Assumptions'!30:30) -> 0.08562910408 | GL42: =LOOKUP(MONTH(GL2),'General Assumptions'!29:29,'General Assumptions'!30:30) -> 0.09585629104 | GM42: =LOOKUP(MONTH(GM2),'General Assumptions'!29:29,'General Assumptions'!30:30) -> 0.1054796588 | GN42: =LOOKUP(MONTH(GN2),'General Assumptions'!29:29,'General Assumptions'!30:30) -> 0.1066495585 | GO42: =LOOKUP(MONTH(GO2),'General Assumptions'!29:29,'General Assumptions'!30:30) -> 0.1072156389 | GP42: =LOOKUP(MONTH(GP2),'General Assumptions'!29:29,'General Assumptions'!30:30) -> 0.1005736282 | GQ42: =LOOKUP(MONTH(GQ2),'General Assumptions'!29:29,'General Assumptions'!30:30) -> 0.08902558684 | GR42: =LOOKUP(MONTH(GR2),'General Assumptions'!29:29,'General Assumptions'!30:30) -> 0.07702468111 | GS42: =LOOKUP(MONTH(GS2),'General Assumptions'!29:29,'General Assumptions'!30:30) -> 0.05970261907 | GT42: =LOOKUP(MONTH(GT2),'General Assumptions'!29:29,'General Assumptions'!30:30) -> 0.05324930183 | GU42: =LOOKUP(MONTH(GU2),'General Assumptions'!29:29,'General Assumptions'!30:30) -> 0.05672126198 | GV42: =LOOKUP(MONTH(GV2),'General Assumptions'!29:29,'General Assumptions'!30:30) -> 0.06287266964 | GW42: =LOOKUP(MONTH(GW2),'General Assumptions'!29:29,'General Assumptions'!30:30) -> 0.08562910408 | GX42: =LOOKUP(MONTH(GX2),'General Assumptions'!29:29,'General Assumptions'!30:30) -> 0.09585629104 | GY42: =LOOKUP(MONTH(GY2),'General Assumptions'!29:29,'General Assumptions'!30:30) -> 0.1054796588 | GZ42: =LOOKUP(MONTH(GZ2),'General Assumptions'!29:29,'General Assumptions'!30:30) -> 0.1066495585 | HA42: =LOOKUP(MONTH(HA2),'General Assumptions'!29:29,'General Assumptions'!30:30) -> 0.1072156389 | HB42: =LOOKUP(MONTH(HB2),'General Assumptions'!29:29,'General Assumptions'!30:30) -> 0.1005736282 | HC42: =LOOKUP(MONTH(HC2),'General Assumptions'!29:29,'General Assumptions'!30:30) -> 0.08902558684 | HD42: =LOOKUP(MONTH(HD2),'General Assumptions'!29:29,'General Assumptions'!30:30) -> 0.07702468111 | HE42: =LOOKUP(MONTH(HE2),'General Assumptions'!29:29,'General Assumptions'!30:30) -> 0.05970261907 | HF42: =LOOKUP(MONTH(HF2),'General Assumptions'!29:29,'General Assumptions'!30:30) -> 0.05324930183 | HG42: =LOOKUP(MONTH(HG2),'General Assumptions'!29:29,'General Assumptions'!30:30) -> 0.05672126198 | HH42: =LOOKUP(MONTH(HH2),'General Assumptions'!29:29,'General Assumptions'!30:30) -> 0.06287266964 | HI42: =LOOKUP(MONTH(HI2),'General Assumptions'!29:29,'General Assumptions'!30:30) -> 0.08562910408 | HJ42: =LOOKUP(MONTH(HJ2),'General Assumptions'!29:29,'General Assumptions'!30:30) -> 0.09585629104 | HK42: =LOOKUP(MONTH(HK2),'General Assumptions'!29:29,'General Assumptions'!30:30) -> 0.1054796588 | HL42: =LOOKUP(MONTH(HL2),'General Assumptions'!29:29,'General Assumptions'!30:30) -> 0.1066495585 | HM42: =LOOKUP(MONTH(HM2),'General Assumptions'!29:29,'General Assumptions'!30:30) -> 0.1072156389 | HN42: =LOOKUP(MONTH(HN2),'General Assumptions'!29:29,'General Assumptions'!30:30) -> 0.1005736282 | HO42: =LOOKUP(MONTH(HO2),'General Assumptions'!29:29,'General Assumptions'!30:30) -> 0.08902558684 | HP42: =LOOKUP(MONTH(HP2),'General Assumptions'!29:29,'General Assumptions'!30:30) -> 0.07702468111 | HQ42: =LOOKUP(MONTH(HQ2),'General Assumptions'!29:29,'General Assumptions'!30:30) -> 0.05970261907 | HR42: =LOOKUP(MONTH(HR2),'General Assumptions'!29:29,'General Assumptions'!30:30) -> 0.05324930183 | HS42: =LOOKUP(MONTH(HS2),'General Assumptions'!29:29,'General Assumptions'!30:30) -> 0.05672126198 | HT42: =LOOKUP(MONTH(HT2),'General Assumptions'!29:29,'General Assumptions'!30:30) -> 0.06287266964 | HU42: =LOOKUP(MONTH(HU2),'General Assumptions'!29:29,'General Assumptions'!30:30) -> 0.08562910408 | HV42: =LOOKUP(MONTH(HV2),'General Assumptions'!29:29,'General Assumptions'!30:30) -> 0.09585629104 | HW42: =LOOKUP(MONTH(HW2),'General Assumptions'!29:29,'General Assumptions'!30:30) -> 0.1054796588 | HX42: =LOOKUP(MONTH(HX2),'General Assumptions'!29:29,'General Assumptions'!30:30) -> 0.1066495585 | HY42: =LOOKUP(MONTH(HY2),'General Assumptions'!29:29,'General Assumptions'!30:30) -> 0.1072156389 | HZ42: =LOOKUP(MONTH(HZ2),'General Assumptions'!29:29,'General Assumptions'!30:30) -> 0.1005736282 | IA42: =LOOKUP(MONTH(IA2),'General Assumptions'!29:29,'General Assumptions'!30:30) -> 0.08902558684 | IB42: =LOOKUP(MONTH(IB2),'General Assumptions'!29:29,'General Assumptions'!30:30) -> 0.07702468111 | IC42: =LOOKUP(MONTH(IC2),'General Assumptions'!29:29,'General Assumptions'!30:30) -> 0.05970261907 | ID42: =LOOKUP(MONTH(ID2),'General Assumptions'!29:29,'General Assumptions'!30:30) -> 0.05324930183 | IE42: =LOOKUP(MONTH(IE2),'General Assumptions'!29:29,'General Assumptions'!30:30) -> 0.05672126198 | IF42: =LOOKUP(MONTH(IF2),'General Assumptions'!29:29,'General Assumptions'!30:30) -> 0.06287266964 | IG42: =LOOKUP(MONTH(IG2),'General Assumptions'!29:29,'General Assumptions'!30:30) -> 0.08562910408 | IH42: =LOOKUP(MONTH(IH2),'General Assumptions'!29:29,'General Assumptions'!30:30) -> 0.09585629104 | II42: =LOOKUP(MONTH(II2),'General Assumptions'!29:29,'General Assumptions'!30:30) -> 0.1054796588 | IJ42: =LOOKUP(MONTH(IJ2),'General Assumptions'!29:29,'General Assumptions'!30:30) -> 0.1066495585 | IK42: =LOOKUP(MONTH(IK2),'General Assumptions'!29:29,'General Assumptions'!30:30) -> 0.1072156389 | IL42: =LOOKUP(MONTH(IL2),'General Assumptions'!29:29,'General Assumptions'!30:30) -> 0.1005736282 | IM42: =LOOKUP(MONTH(IM2),'General Assumptions'!29:29,'General Assumptions'!30:30) -> 0.08902558684 | IN42: =LOOKUP(MONTH(IN2),'General Assumptions'!29:29,'General Assumptions'!30:30) -> 0.07702468111 | IO42: =LOOKUP(MONTH(IO2),'General Assumptions'!29:29,'General Assumptions'!30:30) -> 0.05970261907 | IP42: =LOOKUP(MONTH(IP2),'General Assumptions'!29:29,'General Assumptions'!30:30) -> 0.05324930183 | IQ42: =LOOKUP(MONTH(IQ2),'General Assumptions'!29:29,'General Assumptions'!30:30) -> 0.05672126198 | IR42: =LOOKUP(MONTH(IR2),'General Assumptions'!29:29,'General Assumptions'!30:30) -> 0.06287266964 | IS42: =LOOKUP(MONTH(IS2),'General Assumptions'!29:29,'General Assumptions'!30:30) -> 0.08562910408 | IT42: =LOOKUP(MONTH(IT2),'General Assumptions'!29:29,'General Assumptions'!30:30) -> 0.09585629104 | IU42: =LOOKUP(MONTH(IU2),'General Assumptions'!29:29,'General Assumptions'!30:30) -> 0.1054796588 | IV42: =LOOKUP(MONTH(IV2),'General Assumptions'!29:29,'General Assumptions'!30:30) -> 0.1066495585 | IW42: =LOOKUP(MONTH(IW2),'General Assumptions'!29:29,'General Assumptions'!30:30) -> 0.1072156389 | IX42: =LOOKUP(MONTH(IX2),'General Assumptions'!29:29,'General Assumptions'!30:30) -> 0.1005736282 | IY42: =LOOKUP(MONTH(IY2),'General Assumptions'!29:29,'General Assumptions'!30:30) -> 0.08902558684 | IZ42: =LOOKUP(MONTH(IZ2),'General Assumptions'!29:29,'General Assumptions'!30:30) -> 0.07702468111 | JA42: =LOOKUP(MONTH(JA2),'General Assumptions'!29:29,'General Assumptions'!30:30) -> 0.05970261907 | JB42: =LOOKUP(MONTH(JB2),'General Assumptions'!29:29,'General Assumptions'!30:30) -> 0.05324930183 | JC42: =LOOKUP(MONTH(JC2),'General Assumptions'!29:29,'General Assumptions'!30:30) -> 0.05672126198 | JD42: =LOOKUP(MONTH(JD2),'General Assumptions'!29:29,'General Assumptions'!30:30) -> 0.06287266964 | JE42: =LOOKUP(MONTH(JE2),'General Assumptions'!29:29,'General Assumptions'!30:30) -> 0.08562910408 | JF42: =LOOKUP(MONTH(JF2),'General Assumptions'!29:29,'General Assumptions'!30:30) -> 0.09585629104 | JG42: =LOOKUP(MONTH(JG2),'General Assumptions'!29:29,'General Assumptions'!30:30) -> 0.1054796588 | JH42: =LOOKUP(MONTH(JH2),'General Assumptions'!29:29,'General Assumptions'!30:30) -> 0.1066495585 | JI42: =LOOKUP(MONTH(JI2),'General Assumptions'!29:29,'General Assumptions'!30:30) -> 0.1072156389 | JJ42: =LOOKUP(MONTH(JJ2),'General Assumptions'!29:29,'General Assumptions'!30:30) -> 0.1005736282 | JK42: =LOOKUP(MONTH(JK2),'General Assumptions'!29:29,'General Assumptions'!30:30) -> 0.08902558684 | JL42: =LOOKUP(MONTH(JL2),'General Assumptions'!29:29,'General Assumptions'!30:30) -> 0.07702468111 | JM42: =LOOKUP(MONTH(JM2),'General Assumptions'!29:29,'General Assumptions'!30:30) -> 0.05970261907 | JN42: =LOOKUP(MONTH(JN2),'General Assumptions'!29:29,'General Assumptions'!30:30) -> 0.05324930183 | JO42: =LOOKUP(MONTH(JO2),'General Assumptions'!29:29,'General Assumptions'!30:30) -> 0.05672126198 | JP42: =LOOKUP(MONTH(JP2),'General Assumptions'!29:29,'General Assumptions'!30:30) -> 0.06287266964 | JQ42: =LOOKUP(MONTH(JQ2),'General Assumptions'!29:29,'General Assumptions'!30:30) -> 0.08562910408 | JR42: =LOOKUP(MONTH(JR2),'General Assumptions'!29:29,'General Assumptions'!30:30) -> 0.09585629104 | JS42: =LOOKUP(MONTH(JS2),'General Assumptions'!29:29,'General Assumptions'!30:30) -> 0.1054796588 | JT42: =LOOKUP(MONTH(JT2),'General Assumptions'!29:29,'General Assumptions'!30:30) -> 0.1066495585 | JU42: =LOOKUP(MONTH(JU2),'General Assumptions'!29:29,'General Assumptions'!30:30) -> 0.1072156389 | JV42: =LOOKUP(MONTH(JV2),'General Assumptions'!29:29,'General Assumptions'!30:30) -> 0.1005736282 | JW42: =LOOKUP(MONTH(JW2),'General Assumptions'!29:29,'General Assumptions'!30:30) -> 0.08902558684 | JX42: =LOOKUP(MONTH(JX2),'General Assumptions'!29:29,'General Assumptions'!30:30) -> 0.07702468111 | JY42: =LOOKUP(MONTH(JY2),'General Assumptions'!29:29,'General Assumptions'!30:30) -> 0.05970261907 | JZ42: =LOOKUP(MONTH(JZ2),'General Assumptions'!29:29,'General Assumptions'!30:30) -> 0.05324930183 | KA42: =LOOKUP(MONTH(KA2),'General Assumptions'!29:29,'General Assumptions'!30:30) -> 0.05672126198 | KB42: =LOOKUP(MONTH(KB2),'General Assumptions'!29:29,'General Assumptions'!30:30) -> 0.06287266964 | KC42: =LOOKUP(MONTH(KC2),'General Assumptions'!29:29,'General Assumptions'!30:30) -> 0.08562910408 | KD42: =LOOKUP(MONTH(KD2),'General Assumptions'!29:29,'General Assumptions'!30:30) -> 0.09585629104 | KE42: =LOOKUP(MONTH(KE2),'General Assumptions'!29:29,'General Assumptions'!30:30) -> 0.1054796588 | KF42: =LOOKUP(MONTH(KF2),'General Assumptions'!29:29,'General Assumptions'!30:30) -> 0.1066495585 | KG42: =LOOKUP(MONTH(KG2),'General Assumptions'!29:29,'General Assumptions'!30:30) -> 0.1072156389 | KH42: =LOOKUP(MONTH(KH2),'General Assumptions'!29:29,'General Assumptions'!30:30) -> 0.1005736282 | KI42: =LOOKUP(MONTH(KI2),'General Assumptions'!29:29,'General Assumptions'!30:30) -> 0.08902558684 | KJ42: =LOOKUP(MONTH(KJ2),'General Assumptions'!29:29,'General Assumptions'!30:30) -> 0.07702468111 | KK42: =LOOKUP(MONTH(KK2),'General Assumptions'!29:29,'General Assumptions'!30:30) -> 0.05970261907 | KL42: =LOOKUP(MONTH(KL2),'General Assumptions'!29:29,'General Assumptions'!30:30) -> 0.05324930183 | KM42: =LOOKUP(MONTH(KM2),'General Assumptions'!29:29,'General Assumptions'!30:30) -> 0.05672126198 | KN42: =LOOKUP(MONTH(KN2),'General Assumptions'!29:29,'General Assumptions'!30:30) -> 0.06287266964 | KO42: =LOOKUP(MONTH(KO2),'General Assumptions'!29:29,'General Assumptions'!30:30) -> 0.08562910408 | KP42: =LOOKUP(MONTH(KP2),'General Assumptions'!29:29,'General Assumptions'!30:30) -> 0.09585629104 | KQ42: =LOOKUP(MONTH(KQ2),'General Assumptions'!29:29,'General Assumptions'!30:30) -> 0.1054796588 | KR42: =LOOKUP(MONTH(KR2),'General Assumptions'!29:29,'General Assumptions'!30:30) -> 0.1066495585 | KS42: =LOOKUP(MONTH(KS2),'General Assumptions'!29:29,'General Assumptions'!30:30) -> 0.1072156389 | KT42: =LOOKUP(MONTH(KT2),'General Assumptions'!29:29,'General Assumptions'!30:30) -> 0.1005736282 | KU42: =LOOKUP(MONTH(KU2),'General Assumptions'!29:29,'General Assumptions'!30:30) -> 0.08902558684 | KV42: =LOOKUP(MONTH(KV2),'General Assumptions'!29:29,'General Assumptions'!30:30) -> 0.07702468111 | KW42: =LOOKUP(MONTH(KW2),'General Assumptions'!29:29,'General Assumptions'!30:30) -> 0.05970261907 | KX42: =LOOKUP(MONTH(KX2),'General Assumptions'!29:29,'General Assumptions'!30:30) -> 0.05324930183 | KY42: =LOOKUP(MONTH(KY2),'General Assumptions'!29:29,'General Assumptions'!30:30) -> 0.05672126198 | KZ42: =LOOKUP(MONTH(KZ2),'General Assumptions'!29:29,'General Assumptions'!30:30) -> 0.06287266964 | LA42: =LOOKUP(MONTH(LA2),'General Assumptions'!29:29,'General Assumptions'!30:30) -> 0.08562910408 | LB42: =LOOKUP(MONTH(LB2),'General Assumptions'!29:29,'General Assumptions'!30:30) -> 0.09585629104 | LC42: =LOOKUP(MONTH(LC2),'General Assumptions'!29:29,'General Assumptions'!30:30) -> 0.1054796588 | LD42: =LOOKUP(MONTH(LD2),'General Assumptions'!29:29,'General Assumptions'!30:30) -> 0.1066495585 | LE42: =LOOKUP(MONTH(LE2),'General Assumptions'!29:29,'General Assumptions'!30:30) -> 0.1072156389 | LF42: =LOOKUP(MONTH(LF2),'General Assumptions'!29:29,'General Assumptions'!30:30) -> 0.1005736282 | LG42: =LOOKUP(MONTH(LG2),'General Assumptions'!29:29,'General Assumptions'!30:30) -> 0.08902558684 | LH42: =LOOKUP(MONTH(LH2),'General Assumptions'!29:29,'General Assumptions'!30:30) -> 0.07702468111 | LI42: =LOOKUP(MONTH(LI2),'General Assumptions'!29:29,'General Assumptions'!30:30) -> 0.05970261907 | LJ42: =LOOKUP(MONTH(LJ2),'General Assumptions'!29:29,'General Assumptions'!30:30) -> 0.05324930183 | LK42: =LOOKUP(MONTH(LK2),'General Assumptions'!29:29,'General Assumptions'!30:30) -> 0.05672126198 | LL42: =LOOKUP(MONTH(LL2),'General Assumptions'!29:29,'General Assumptions'!30:30) -> 0.06287266964 | LM42: =LOOKUP(MONTH(LM2),'General Assumptions'!29:29,'General Assumptions'!30:30) -> 0.08562910408 | LN42: =LOOKUP(MONTH(LN2),'General Assumptions'!29:29,'General Assumptions'!30:30) -> 0.09585629104 | LO42: =LOOKUP(MONTH(LO2),'General Assumptions'!29:29,'General Assumptions'!30:30) -> 0.1054796588 | LP42: =LOOKUP(MONTH(LP2),'General Assumptions'!29:29,'General Assumptions'!30:30) -> 0.1066495585 | LQ42: =LOOKUP(MONTH(LQ2),'General Assumptions'!29:29,'General Assumptions'!30:30) -> 0.1072156389 | LR42: =LOOKUP(MONTH(LR2),'General Assumptions'!29:29,'General Assumptions'!30:30) -> 0.1005736282 | LS42: =LOOKUP(MONTH(LS2),'General Assumptions'!29:29,'General Assumptions'!30:30) -> 0.08902558684 | LT42: =LOOKUP(MONTH(LT2),'General Assumptions'!29:29,'General Assumptions'!30:30) -> 0.07702468111 | LU42: =LOOKUP(MONTH(LU2),'General Assumptions'!29:29,'General Assumptions'!30:30) -> 0.05970261907 | LV42: =LOOKUP(MONTH(LV2),'General Assumptions'!29:29,'General Assumptions'!30:30) -> 0.05324930183 | LW42: =LOOKUP(MONTH(LW2),'General Assumptions'!29:29,'General Assumptions'!30:30) -> 0.05672126198 | LX42: =LOOKUP(MONTH(LX2),'General Assumptions'!29:29,'General Assumptions'!30:30) -> 0.06287266964 | LY42: =LOOKUP(MONTH(LY2),'General Assumptions'!29:29,'General Assumptions'!30:30) -> 0.08562910408 | LZ42: =LOOKUP(MONTH(LZ2),'General Assumptions'!29:29,'General Assumptions'!30:30) -> 0.09585629104 | MA42: =LOOKUP(MONTH(MA2),'General Assumptions'!29:29,'General Assumptions'!30:30) -> 0.1054796588 | MB42: =LOOKUP(MONTH(MB2),'General Assumptions'!29:29,'General Assumptions'!30:30) -> 0.1066495585 | MC42: =LOOKUP(MONTH(MC2),'General Assumptions'!29:29,'General Assumptions'!30:30) -> 0.1072156389 | MD42: =LOOKUP(MONTH(MD2),'General Assumptions'!29:29,'General Assumptions'!30:30) -> 0.1005736282 | ME42: =LOOKUP(MONTH(ME2),'General Assumptions'!29:29,'General Assumptions'!30:30) -> 0.08902558684 | MF42: =LOOKUP(MONTH(MF2),'General Assumptions'!29:29,'General Assumptions'!30:30) -> 0.07702468111 | MG42: =LOOKUP(MONTH(MG2),'General Assumptions'!29:29,'General Assumptions'!30:30) -> 0.05970261907 | MH42: =LOOKUP(MONTH(MH2),'General Assumptions'!29:29,'General Assumptions'!30:30) -> 0.05324930183 | MI42: =LOOKUP(MONTH(MI2),'General Assumptions'!29:29,'General Assumptions'!30:30) -> 0.05672126198 | MJ42: =LOOKUP(MONTH(MJ2),'General Assumptions'!29:29,'General Assumptions'!30:30) -> 0.06287266964 | MK42: =LOOKUP(MONTH(MK2),'General Assumptions'!29:29,'General Assumptions'!30:30) -> 0.08562910408 | ML42: =LOOKUP(MONTH(ML2),'General Assumptions'!29:29,'General Assumptions'!30:30) -> 0.09585629104 | MM42: =LOOKUP(MONTH(MM2),'General Assumptions'!29:29,'General Assumptions'!30:30) -> 0.1054796588 | MN42: =LOOKUP(MONTH(MN2),'General Assumptions'!29:29,'General Assumptions'!30:30) -> 0.1066495585 | MO42: =LOOKUP(MONTH(MO2),'General Assumptions'!29:29,'General Assumptions'!30:30) -> 0.1072156389 | MP42: =LOOKUP(MONTH(MP2),'General Assumptions'!29:29,'General Assumptions'!30:30) -> 0.1005736282 | MQ42: =LOOKUP(MONTH(MQ2),'General Assumptions'!29:29,'General Assumptions'!30:30) -> 0.08902558684 | MR42: =LOOKUP(MONTH(MR2),'General Assumptions'!29:29,'General Assumptions'!30:30) -> 0.07702468111 | MS42: =LOOKUP(MONTH(MS2),'General Assumptions'!29:29,'General Assumptions'!30:30) -> 0.05970261907 | MT42: =LOOKUP(MONTH(MT2),'General Assumptions'!29:29,'General Assumptions'!30:30) -> 0.05324930183 | MU42: =LOOKUP(MONTH(MU2),'General Assumptions'!29:29,'General Assumptions'!30:30) -> 0.05672126198 | MV42: =LOOKUP(MONTH(MV2),'General Assumptions'!29:29,'General Assumptions'!30:30) -> 0.06287266964 | MW42: =LOOKUP(MONTH(MW2),'General Assumptions'!29:29,'General Assumptions'!30:30) -> 0.08562910408 | MX42: =LOOKUP(MONTH(MX2),'General Assumptions'!29:29,'General Assumptions'!30:30) -> 0.09585629104 | MY42: =LOOKUP(MONTH(MY2),'General Assumptions'!29:29,'General Assumptions'!30:30) -> 0.1054796588 | MZ42: =LOOKUP(MONTH(MZ2),'General Assumptions'!29:29,'General Assumptions'!30:30) -> 0.1066495585 | NA42: =LOOKUP(MONTH(NA2),'General Assumptions'!29:29,'General Assumptions'!30:30) -> 0.1072156389 | NB42: =LOOKUP(MONTH(NB2),'General Assumptions'!29:29,'General Assumptions'!30:30) -> 0.1005736282 | NC42: =LOOKUP(MONTH(NC2),'General Assumptions'!29:29,'General Assumptions'!30:30) -> 0.08902558684 | ND42: =LOOKUP(MONTH(ND2),'General Assumptions'!29:29,'General Assumptions'!30:30) -> 0.07702468111 | NE42: =LOOKUP(MONTH(NE2),'General Assumptions'!29:29,'General Assumptions'!30:30) -> 0.05970261907 | NF42: =LOOKUP(MONTH(NF2),'General Assumptions'!29:29,'General Assumptions'!30:30) -> 0.05324930183 | NG42: =LOOKUP(MONTH(NG2),'General Assumptions'!29:29,'General Assumptions'!30:30) -> 0.05672126198 | NH42: =LOOKUP(MONTH(NH2),'General Assumptions'!29:29,'General Assumptions'!30:30) -> 0.06287266964 | NI42: =LOOKUP(MONTH(NI2),'General Assumptions'!29:29,'General Assumptions'!30:30) -> 0.08562910408 | NJ42: =LOOKUP(MONTH(NJ2),'General Assumptions'!29:29,'General Assumptions'!30:30) -> 0.09585629104 | NK42: =LOOKUP(MONTH(NK2),'General Assumptions'!29:29,'General Assumptions'!30:30) -> 0.1054796588 | NL42: =LOOKUP(MONTH(NL2),'General Assumptions'!29:29,'General Assumptions'!30:30) -> 0.1066495585 | NM42: =LOOKUP(MONTH(NM2),'General Assumptions'!29:29,'General Assumptions'!30:30) -> 0.1072156389 | NN42: =LOOKUP(MONTH(NN2),'General Assumptions'!29:29,'General Assumptions'!30:30) -> 0.1005736282 | NO42: =LOOKUP(MONTH(NO2),'General Assumptions'!29:29,'General Assumptions'!30:30) -> 0.08902558684 | NP42: =LOOKUP(MONTH(NP2),'General Assumptions'!29:29,'General Assumptions'!30:30) -> 0.07702468111 | NQ42: =LOOKUP(MONTH(NQ2),'General Assumptions'!29:29,'General Assumptions'!30:30) -> 0.05970261907 | NR42: =LOOKUP(MONTH(NR2),'General Assumptions'!29:29,'General Assumptions'!30:30) -> 0.05324930183 | NS42: =LOOKUP(MONTH(NS2),'General Assumptions'!29:29,'General Assumptions'!30:30) -> 0.05672126198 | NT42: =LOOKUP(MONTH(NT2),'General Assumptions'!29:29,'General Assumptions'!30:30) -> 0.06287266964 | NU42: =LOOKUP(MONTH(NU2),'General Assumptions'!29:29,'General Assumptions'!30:30) -> 0.08562910408 | NV42: =LOOKUP(MONTH(NV2),'General Assumptions'!29:29,'General Assumptions'!30:30) -> 0.09585629104 | NW42: =LOOKUP(MONTH(NW2),'General Assumptions'!29:29,'General Assumptions'!30:30) -> 0.1054796588 | NX42: =LOOKUP(MONTH(NX2),'General Assumptions'!29:29,'General Assumptions'!30:30) -> 0.1066495585 | NY42: =LOOKUP(MONTH(NY2),'General Assumptions'!29:29,'General Assumptions'!30:30) -> 0.1072156389 | NZ42: =LOOKUP(MONTH(NZ2),'General Assumptions'!29:29,'General Assumptions'!30:30) -> 0.1005736282 | OA42: =LOOKUP(MONTH(OA2),'General Assumptions'!29:29,'General Assumptions'!30:30) -> 0.08902558684 | OB42: =LOOKUP(MONTH(OB2),'General Assumptions'!29:29,'General Assumptions'!30:30) -> 0.07702468111 | OC42: =LOOKUP(MONTH(OC2),'General Assumptions'!29:29,'General Assumptions'!30:30) -> 0.05970261907 | OD42: =LOOKUP(MONTH(OD2),'General Assumptions'!29:29,'General Assumptions'!30:30) -> 0.05324930183 | OE42: =LOOKUP(MONTH(OE2),'General Assumptions'!29:29,'General Assumptions'!30:30) -> 0.05672126198 | OF42: =LOOKUP(MONTH(OF2),'General Assumptions'!29:29,'General Assumptions'!30:30) -> 0.06287266964 | OG42: =LOOKUP(MONTH(OG2),'General Assumptions'!29:29,'General Assumptions'!30:30) -> 0.08562910408 | OH42: =LOOKUP(MONTH(OH2),'General Assumptions'!29:29,'General Assumptions'!30:30) -> 0.09585629104 | OI42: =LOOKUP(MONTH(OI2),'General Assumptions'!29:29,'General Assumptions'!30:30) -> 0.1054796588 | OJ42: =LOOKUP(MONTH(OJ2),'General Assumptions'!29:29,'General Assumptions'!30:30) -> 0.1066495585 | OK42: =LOOKUP(MONTH(OK2),'General Assumptions'!29:29,'General Assumptions'!30:30) -> 0.1072156389 | OL42: =LOOKUP(MONTH(OL2),'General Assumptions'!29:29,'General Assumptions'!30:30) -> 0.1005736282 | OM42: =LOOKUP(MONTH(OM2),'General Assumptions'!29:29,'General Assumptions'!30:30) -> 0.08902558684 | ON42: =LOOKUP(MONTH(ON2),'General Assumptions'!29:29,'General Assumptions'!30:30) -> 0.07702468111 | OO42: =LOOKUP(MONTH(OO2),'General Assumptions'!29:29,'General Assumptions'!30:30) -> 0.05970261907 | OP42: =LOOKUP(MONTH(OP2),'General Assumptions'!29:29,'General Assumptions'!30:30) -> 0.05324930183 | OQ42: =LOOKUP(MONTH(OQ2),'General Assumptions'!29:29,'General Assumptions'!30:30) -> 0.05672126198 | OR42: =LOOKUP(MONTH(OR2),'General Assumptions'!29:29,'General Assumptions'!30:30) -> 0.06287266964 | OS42: =LOOKUP(MONTH(OS2),'General Assumptions'!29:29,'General Assumptions'!30:30) -> 0.08562910408 | OT42: =LOOKUP(MONTH(OT2),'General Assumptions'!29:29,'General Assumptions'!30:30) -> 0.09585629104
B43: Production before degredation | F43: kWh | K43: =(K40*K41*K42) -> 0 | L43: =(L40*L41*L42) -> 0 | M43: 0 | N43: 0 | O43: 0 | P43: 0 | Q43: 0 | R43: 0 | S43: 0 | T43: 0 | U43: 0 | V43: 0 | W43: 55004.43682 | X43: 60969.65519 | Y43: 83037.30349 | Z43: 92954.93648 | AA43: 102287.0266 | AB43: 103421.5159 | AC43: 103970.4624 | AD43: 97529.49044 | AE43: 86330.98235 | AF43: 74693.31707 | AG43: 57895.55493 | AH43: 51637.56511 | AI43: 55004.43682 | AJ43: 60969.65519 | AK43: 83037.30349 | AL43: 92954.93648 | AM43: 102287.0266 | AN43: 103421.5159 | AO43: 103970.4624 | AP43: 97529.49044 | AQ43: 86330.98235 | AR43: 74693.31707 | AS43: 57895.55493 | AT43: 51637.56511 | AU43: 55004.43682 | AV43: 60969.65519 | AW43: 83037.30349 | AX43: 92954.93648 | AY43: 102287.0266 | AZ43: 103421.5159 | BA43: 103970.4624 | BB43: 97529.49044 | BC43: 86330.98235 | BD43: 74693.31707 | BE43: 57895.55493 | BF43: 51637.56511 | BG43: 55004.43682 | BH43: 60969.65519 | BI43: 83037.30349 | BJ43: 92954.93648 | BK43: 102287.0266 | BL43: 103421.5159 | BM43: 103970.4624 | BN43: 97529.49044 | BO43: 86330.98235 | BP43: 74693.31707 | BQ43: 57895.55493 | BR43: 51637.56511 | BS43: 55004.43682 | BT43: 60969.65519 | BU43: 83037.30349 | BV43: 92954.93648 | BW43: 102287.0266 | BX43: =(BX40*BX41*BX42) -> 103421.5159 | BY43: 103970.4624 | BZ43: 97529.49044 | CA43: 86330.98235 | CB43: 74693.31707 | CC43: 57895.55493 | CD43: 51637.56511 | CE43: 55004.43682 | CF43: 60969.65519 | CG43: 83037.30349 | CH43: 92954.93648 | CI43: 102287.0266 | CJ43: 103421.5159 | CK43: 103970.4624 | CL43: 97529.49044 | CM43: 86330.98235 | CN43: 74693.31707 | CO43: 57895.55493 | CP43: 51637.56511 | CQ43: 55004.43682 | CR43: 60969.65519 | CS43: 83037.30349 | CT43: 92954.93648 | CU43: 102287.0266 | CV43: 103421.5159 | CW43: 103970.4624 | CX43: 97529.49044 | CY43: 86330.98235 | CZ43: 74693.31707 | DA43: 57895.55493 | DB43: 51637.56511 | DC43: 55004.43682 | DD43: 60969.65519 | DE43: 83037.30349 | DF43: 92954.93648 | DG43: 102287.0266 | DH43: 103421.5159 | DI43: 103970.4624 | DJ43: 97529.49044 | DK43: 86330.98235 | DL43: 74693.31707 | DM43: 57895.55493 | DN43: 51637.56511 | DO43: 55004.43682 | DP43: 60969.65519 | DQ43: 83037.30349 | DR43: 92954.93648 | DS43: 102287.0266 | DT43: 103421.5159 | DU43: 103970.4624 | DV43: 97529.49044 | DW43: 86330.98235 | DX43: 74693.31707 | DY43: 57895.55493 | DZ43: 51637.56511 | EA43: 55004.43682 | EB43: 60969.65519 | EC43: 83037.30349 | ED43: 92954.93648 | EE43: 102287.0266 | EF43: 103421.5159 | EG43: 103970.4624 | EH43: 97529.49044 | EI43: 86330.98235 | EJ43: =(EJ40*EJ41*EJ42) -> 74693.31707 | EK43: 57895.55493 | EL43: 51637.56511 | EM43: 55004.43682 | EN43: 60969.65519 | EO43: 83037.30349 | EP43: 92954.93648 | EQ43: 102287.0266 | ER43: 103421.5159 | ES43: 103970.4624 | ET43: 97529.49044 | EU43: 86330.98235 | EV43: 74693.31707 | EW43: 57895.55493 | EX43: 51637.56511 | EY43: 55004.43682 | EZ43: 60969.65519 | FA43: 83037.30349 | FB43: 92954.93648 | FC43: 102287.0266 | FD43: 103421.5159 | FE43: 103970.4624 | FF43: 97529.49044 | FG43: 86330.98235 | FH43: 74693.31707 | FI43: 57895.55493 | FJ43: 51637.56511 | FK43: 55004.43682 | FL43: 60969.65519 | FM43: 83037.30349 | FN43: 92954.93648 | FO43: 102287.0266 | FP43: 103421.5159 | FQ43: 103970.4624 | FR43: 97529.49044 | FS43: 86330.98235 | FT43: 74693.31707 | FU43: 57895.55493 | FV43: 51637.56511 | FW43: 55004.43682 | FX43: 60969.65519 | FY43: 83037.30349 | FZ43: 92954.93648 | GA43: 102287.0266 | GB43: 103421.5159 | GC43: 103970.4624 | GD43: 97529.49044 | GE43: 86330.98235 | GF43: 74693.31707 | GG43: 57895.55493 | GH43: 51637.56511 | GI43: 55004.43682 | GJ43: 60969.65519 | GK43: 83037.30349 | GL43: 92954.93648 | GM43: 102287.0266 | GN43: 103421.5159 | GO43: 103970.4624 | GP43: 97529.49044 | GQ43: 86330.98235 | GR43: 74693.31707 | GS43: 57895.55493 | GT43: 51637.56511 | GU43: 55004.43682 | GV43: =(GV40*GV41*GV42) -> 60969.65519 | GW43: 83037.30349 | GX43: 92954.93648 | GY43: 102287.0266 | GZ43: 103421.5159 | HA43: 103970.4624 | HB43: 97529.49044 | HC43: 86330.98235 | HD43: 74693.31707 | HE43: 57895.55493 | HF43: 51637.56511 | HG43: 55004.43682 | HH43: 60969.65519 | HI43: 83037.30349 | HJ43: 92954.93648 | HK43: 102287.0266 | HL43: 103421.5159 | HM43: 103970.4624 | HN43: 97529.49044 | HO43: 86330.98235 | HP43: 74693.31707 | HQ43: 57895.55493 | HR43: 51637.56511 | HS43: 55004.43682 | HT43: 60969.65519 | HU43: 83037.30349 | HV43: 92954.93648 | HW43: 102287.0266 | HX43: 103421.5159 | HY43: 103970.4624 | HZ43: 97529.49044 | IA43: 86330.98235 | IB43: 74693.31707 | IC43: 57895.55493 | ID43: 51637.56511 | IE43: 55004.43682 | IF43: 60969.65519 | IG43: 83037.30349 | IH43: 92954.93648 | II43: 102287.0266 | IJ43: 103421.5159 | IK43: 103970.4624 | IL43: 97529.49044 | IM43: 86330.98235 | IN43: 74693.31707 | IO43: 57895.55493 | IP43: 51637.56511 | IQ43: 55004.43682 | IR43: 60969.65519 | IS43: 83037.30349 | IT43: 92954.93648 | IU43: 102287.0266 | IV43: 103421.5159 | IW43: 103970.4624 | IX43: 97529.49044 | IY43: 86330.98235 | IZ43: 74693.31707 | JA43: 57895.55493 | JB43: 51637.56511 | JC43: 55004.43682 | JD43: 60969.65519 | JE43: 83037.30349 | JF43: 92954.93648 | JG43: 102287.0266 | JH43: =(JH40*JH41*JH42) -> 103421.5159 | JI43: 103970.4624 | JJ43: 97529.49044 | JK43: 86330.98235 | JL43: 74693.31707 | JM43: 57895.55493 | JN43: 51637.56511 | JO43: 55004.43682 | JP43: 60969.65519 | JQ43: 83037.30349 | JR43: 92954.93648 | JS43: 102287.0266 | JT43: 103421.5159 | JU43: 103970.4624 | JV43: 97529.49044 | JW43: 86330.98235 | JX43: 74693.31707 | JY43: 57895.55493 | JZ43: 51637.56511 | KA43: 55004.43682 | KB43: 60969.65519 | KC43: 83037.30349 | KD43: 92954.93648 | KE43: 102287.0266 | KF43: 103421.5159 | KG43: 103970.4624 | KH43: 97529.49044 | KI43: 86330.98235 | KJ43: 74693.31707 | KK43: 57895.55493 | KL43: 51637.56511 | KM43: 55004.43682 | KN43: 60969.65519 | KO43: 83037.30349 | KP43: 92954.93648 | KQ43: 102287.0266 | KR43: 103421.5159 | KS43: 103970.4624 | KT43: 97529.49044 | KU43: 86330.98235 | KV43: 74693.31707 | KW43: 57895.55493 | KX43: 51637.56511 | KY43: 55004.43682 | KZ43: 60969.65519 | LA43: 83037.30349 | LB43: 92954.93648 | LC43: 102287.0266 | LD43: 103421.5159 | LE43: 103970.4624 | LF43: 97529.49044 | LG43: 86330.98235 | LH43: 74693.31707 | LI43: 57895.55493 | LJ43: 51637.56511 | LK43: 0 | LL43: 0 | LM43: 0 | LN43: 0 | LO43: 0 | LP43: 0 | LQ43: 0 | LR43: 0 | LS43: 0 | LT43: =(LT40*LT41*LT42) -> 0 | LU43: 0 | LV43: 0 | LW43: 0 | LX43: 0 | LY43: 0 | LZ43: 0 | MA43: 0 | MB43: 0 | MC43: 0 | MD43: 0 | ME43: 0 | MF43: 0 | MG43: 0 | MH43: 0 | MI43: 0 | MJ43: 0 | MK43: 0 | ML43: 0 | MM43: 0 | MN43: 0 | MO43: 0 | MP43: 0 | MQ43: 0 | MR43: 0 | MS43: 0 | MT43: 0 | MU43: 0 | MV43: 0 | MW43: 0 | MX43: 0 | MY43: 0 | MZ43: 0 | NA43: 0 | NB43: 0 | NC43: 0 | ND43: 0 | NE43: 0 | NF43: 0 | NG43: 0 | NH43: 0 | NI43: 0 | NJ43: 0 | NK43: 0 | NL43: 0 | NM43: 0 | NN43: 0 | NO43: 0 | NP43: 0 | NQ43: 0 | NR43: 0 | NS43: 0 | NT43: 0 | NU43: 0 | NV43: 0 | NW43: 0 | NX43: 0 | NY43: 0 | NZ43: 0 | OA43: 0 | OB43: 0 | OC43: 0 | OD43: 0 | OE43: 0 | OF43: =(OF40*OF41*OF42) -> 0 | OG43: 0 | OH43: 0 | OI43: 0 | OJ43: 0 | OK43: 0 | OL43: 0 | OM43: 0 | ON43: 0 | OO43: 0 | OP43: 0 | OQ43: 0 | OR43: 0 | OS43: 0 | OT43: 0
B45: Degredation | F45: % | G45: =(1+F23)^(1/12)-1 -> 0.0004157148447 | J45: 1 | K45: =J45*(1-$G$45*K6) -> 1 | L45: 1 | M45: 1 | N45: 1 | O45: 1 | P45: 1 | Q45: 1 | R45: 1 | S45: 1 | T45: 1 | U45: 1 | V45: 1 | W45: 0.9995842852 | X45: 0.9991687431 | Y45: 0.9987533739 | Z45: 0.9983381772 | AA45: 0.9979231532 | AB45: 0.9975083018 | AC45: 0.9970936228 | AD45: 0.9966791161 | AE45: 0.9962647818 | AF45: 0.9958506198 | AG45: 0.9954366299 | AH45: 0.9950228121 | AI45: 0.9946091664 | AJ45: 0.9941956926 | AK45: 0.9937823907 | AL45: 0.9933692606 | AM45: 0.9929563022 | AN45: 0.9925435155 | AO45: 0.9921309005 | AP45: 0.9917184569 | AQ45: 0.9913061848 | AR45: 0.9908940841 | AS45: 0.9904821548 | AT45: 0.9900703966 | AU45: 0.9896588097 | AV45: 0.9892473938 | AW45: 0.988836149 | AX45: 0.9884250751 | AY45: 0.9880141721 | AZ45: 0.98760344 | BA45: 0.9871928786 | BB45: 0.9867824878 | BC45: 0.9863722677 | BD45: 0.9859622181 | BE45: 0.985552339 | BF45: 0.9851426302 | BG45: 0.9847330918 | BH45: 0.9843237237 | BI45: 0.9839145257 | BJ45: 0.9835054978 | BK45: 0.98309664 | BL45: 0.9826879521 | BM45: 0.9822794341 | BN45: 0.981871086 | BO45: 0.9814629076 | BP45: 0.9810548989 | BQ45: 0.9806470598 | BR45: 0.9802393903 | BS45: 0.9798318902 | BT45: 0.9794245596 | BU45: 0.9790173982 | BV45: 0.9786104062 | BW45: =BV45*(1-$G$45*BW6) -> 0.9782035833 | BX45: 0.9777969295 | BY45: 0.9773904448 | BZ45: 0.9769841291 | CA45: 0.9765779823 | CB45: 0.9761720044 | CC45: 0.9757661952 | CD45: 0.9753605547 | CE45: 0.9749550828 | CF45: 0.9745497795 | CG45: 0.9741446447 | CH45: 0.9737396783 | CI45: 0.9733348803 | CJ45: 0.9729302505 | CK45: 0.972525789 | CL45: 0.9721214956 | CM45: 0.9717173702 | CN45: 0.9713134129 | CO45: 0.9709096235 | CP45: 0.9705060019 | CQ45: 0.9701025482 | CR45: 0.9696992621 | CS45: 0.9692961438 | CT45: 0.968893193 | CU45: 0.9684904097 | CV45: 0.9680877939 | CW45: 0.9676853454 | CX45: 0.9672830642 | CY45: 0.9668809503 | CZ45: 0.9664790035 | DA45: 0.9660772239 | DB45: 0.9656756112 | DC45: 0.9652741655 | DD45: 0.9648728867 | DE45: 0.9644717747 | DF45: 0.9640708295 | DG45: 0.963670051 | DH45: 0.963269439 | DI45: 0.9628689936 | DJ45: 0.9624687147 | DK45: 0.9620686021 | DL45: 0.9616686559 | DM45: 0.961268876 | DN45: 0.9608692623 | DO45: 0.9604698146 | DP45: 0.9600705331 | DQ45: 0.9596714175 | DR45: 0.9592724679 | DS45: 0.9588736841 | DT45: 0.958475066 | DU45: 0.9580766137 | DV45: 0.957678327 | DW45: 0.9572802059 | DX45: 0.9568822504 | DY45: 0.9564844602 | DZ45: 0.9560868354 | EA45: 0.9556893759 | EB45: 0.9552920817 | EC45: 0.9548949526 | ED45: 0.9544979886 | EE45: 0.9541011896 | EF45: 0.9537045555 | EG45: 0.9533080864 | EH45: 0.9529117821 | EI45: =EH45*(1-$G$45*EI6) -> 0.9525156425 | EJ45: 0.9521196676 | EK45: 0.9517238573 | EL45: 0.9513282116 | EM45: 0.9509327303 | EN45: 0.9505374135 | EO45: 0.950142261 | EP45: 0.9497472727 | EQ45: 0.9493524487 | ER45: 0.9489577888 | ES45: 0.9485632929 | ET45: 0.9481689611 | EU45: 0.9477747932 | EV45: 0.9473807891 | EW45: 0.9469869489 | EX45: 0.9465932723 | EY45: 0.9461997595 | EZ45: 0.9458064102 | FA45: 0.9454132244 | FB45: 0.9450202021 | FC45: 0.9446273432 | FD45: 0.9442346476 | FE45: 0.9438421152 | FF45: 0.943449746 | FG45: 0.94305754 | FH45: 0.942665497 | FI45: 0.9422736169 | FJ45: 0.9418818998 | FK45: 0.9414903455 | FL45: 0.941098954 | FM45: 0.9407077252 | FN45: 0.940316659 | FO45: 0.9399257554 | FP45: 0.9395350143 | FQ45: 0.9391444357 | FR45: 0.9387540194 | FS45: 0.9383637654 | FT45: 0.9379736737 | FU45: 0.9375837441 | FV45: 0.9371939766 | FW45: 0.9368043712 | FX45: 0.9364149277 | FY45: 0.9360256461 | FZ45: 0.9356365263 | GA45: 0.9352475683 | GB45: 0.934858772 | GC45: 0.9344701374 | GD45: 0.9340816643 | GE45: 0.9336933526 | GF45: 0.9333052025 | GG45: 0.9329172136 | GH45: 0.9325293861 | GI45: 0.9321417198 | GJ45: 0.9317542146 | GK45: 0.9313668706 | GL45: 0.9309796875 | GM45: 0.9305926655 | GN45: 0.9302058043 | GO45: 0.9298191039 | GP45: 0.9294325643 | GQ45: 0.9290461854 | GR45: 0.9286599671 | GS45: 0.9282739094 | GT45: 0.9278880121 | GU45: =GT45*(1-$G$45*GU6) -> 0.9275022753 | GV45: 0.9271166988 | GW45: 0.9267312827 | GX45: 0.9263460267 | GY45: 0.9259609309 | GZ45: 0.9255759952 | HA45: 0.9251912195 | HB45: 0.9248066038 | HC45: 0.924422148 | HD45: 0.924037852 | HE45: 0.9236537157 | HF45: 0.9232697392 | HG45: 0.9228859222 | HH45: 0.9225022648 | HI45: 0.922118767 | HJ45: 0.9217354285 | HK45: 0.9213522494 | HL45: 0.9209692296 | HM45: 0.920586369 | HN45: 0.9202036676 | HO45: 0.9198211253 | HP45: 0.919438742 | HQ45: 0.9190565176 | HR45: 0.9186744522 | HS45: 0.9182925456 | HT45: 0.9179107978 | HU45: 0.9175292086 | HV45: 0.9171477781 | HW45: 0.9167665061 | HX45: 0.9163853927 | HY45: 0.9160044377 | HZ45: 0.915623641 | IA45: 0.9152430027 | IB45: 0.9148625226 | IC45: 0.9144822007 | ID45: 0.9141020368 | IE45: 0.9137220311 | IF45: 0.9133421832 | IG45: 0.9129624933 | IH45: 0.9125829613 | II45: 0.912203587 | IJ45: 0.9118243704 | IK45: 0.9114453115 | IL45: 0.9110664102 | IM45: 0.9106876663 | IN45: 0.9103090799 | IO45: 0.9099306509 | IP45: 0.9095523793 | IQ45: 0.9091742648 | IR45: 0.9087963076 | IS45: 0.9084185075 | IT45: 0.9080408644 | IU45: 0.9076633784 | IV45: 0.9072860492 | IW45: 0.9069088769 | IX45: 0.9065318615 | IY45: 0.9061550027 | IZ45: 0.9057783006 | JA45: 0.9054017551 | JB45: 0.9050253662 | JC45: 0.9046491337 | JD45: 0.9042730576 | JE45: 0.9038971379 | JF45: 0.9035213744 | JG45: =JF45*(1-$G$45*JG6) -> 0.9031457672 | JH45: 0.9027703161 | JI45: 0.9023950211 | JJ45: 0.9020198821 | JK45: 0.901644899 | JL45: 0.9012700718 | JM45: 0.9008954005 | JN45: 0.9005208849 | JO45: 0.900146525 | JP45: 0.8997723207 | JQ45: 0.899398272 | JR45: 0.8990243788 | JS45: 0.898650641 | JT45: 0.8982770586 | JU45: 0.8979036315 | JV45: 0.8975303596 | JW45: 0.8971572429 | JX45: 0.8967842814 | JY45: 0.8964114748 | JZ45: 0.8960388233 | KA45: 0.8956663266 | KB45: 0.8952939848 | KC45: 0.8949217978 | KD45: 0.8945497656 | KE45: 0.8941778879 | KF45: 0.8938061649 | KG45: 0.8934345964 | KH45: 0.8930631824 | KI45: 0.8926919228 | KJ45: 0.8923208175 | KK45: 0.8919498665 | KL45: 0.8915790697 | KM45: 0.891208427 | KN45: 0.8908379385 | KO45: 0.8904676039 | KP45: 0.8900974233 | KQ45: 0.8897273966 | KR45: 0.8893575237 | KS45: 0.8889878046 | KT45: 0.8886182391 | KU45: 0.8882488274 | KV45: 0.8878795691 | KW45: 0.8875104644 | KX45: 0.8871415131 | KY45: 0.8867727152 | KZ45: 0.8864040707 | LA45: 0.8860355793 | LB45: 0.8856672412 | LC45: 0.8852990562 | LD45: 0.8849310242 | LE45: 0.8845631452 | LF45: 0.8841954192 | LG45: 0.8838278461 | LH45: 0.8834604257 | LI45: 0.8830931581 | LJ45: 0.8827260431 | LK45: 0.8827260431 | LL45: 0.8827260431 | LM45: 0.8827260431 | LN45: 0.8827260431 | LO45: 0.8827260431 | LP45: 0.8827260431 | LQ45: 0.8827260431 | LR45: 0.8827260431 | LS45: =LR45*(1-$G$45*LS6) -> 0.8827260431 | LT45: 0.8827260431 | LU45: 0.8827260431 | LV45: 0.8827260431 | LW45: 0.8827260431 | LX45: 0.8827260431 | LY45: 0.8827260431 | LZ45: 0.8827260431 | MA45: 0.8827260431 | MB45: 0.8827260431 | MC45: 0.8827260431 | MD45: 0.8827260431 | ME45: 0.8827260431 | MF45: 0.8827260431 | MG45: 0.8827260431 | MH45: 0.8827260431 | MI45: 0.8827260431 | MJ45: 0.8827260431 | MK45: 0.8827260431 | ML45: 0.8827260431 | MM45: 0.8827260431 | MN45: 0.8827260431 | MO45: 0.8827260431 | MP45: 0.8827260431 | MQ45: 0.8827260431 | MR45: 0.8827260431 | MS45: 0.8827260431 | MT45: 0.8827260431 | MU45: 0.8827260431 | MV45: 0.8827260431 | MW45: 0.8827260431 | MX45: 0.8827260431 | MY45: 0.8827260431 | MZ45: 0.8827260431 | NA45: 0.8827260431 | NB45: 0.8827260431 | NC45: 0.8827260431 | ND45: 0.8827260431 | NE45: 0.8827260431 | NF45: 0.8827260431 | NG45: 0.8827260431 | NH45: 0.8827260431 | NI45: 0.8827260431 | NJ45: 0.8827260431 | NK45: 0.8827260431 | NL45: 0.8827260431 | NM45: 0.8827260431 | NN45: 0.8827260431 | NO45: 0.8827260431 | NP45: 0.8827260431 | NQ45: 0.8827260431 | NR45: 0.8827260431 | NS45: 0.8827260431 | NT45: 0.8827260431 | NU45: 0.8827260431 | NV45: 0.8827260431 | NW45: 0.8827260431 | NX45: 0.8827260431 | NY45: 0.8827260431 | NZ45: 0.8827260431 | OA45: 0.8827260431 | OB45: 0.8827260431 | OC45: 0.8827260431 | OD45: 0.8827260431 | OE45: =OD45*(1-$G$45*OE6) -> 0.8827260431 | OF45: 0.8827260431 | OG45: 0.8827260431 | OH45: 0.8827260431 | OI45: 0.8827260431 | OJ45: 0.8827260431 | OK45: 0.8827260431 | OL45: 0.8827260431 | OM45: 0.8827260431 | ON45: 0.8827260431 | OO45: 0.8827260431 | OP45: 0.8827260431 | OQ45: 0.8827260431 | OR45: 0.8827260431 | OS45: 0.8827260431 | OT45: 0.8827260431
B46: Production after degredation | K46: =K43*K45 -> 0 | L46: =L43*L45 -> 0 | M46: 0 | N46: 0 | O46: 0 | P46: 0 | Q46: 0 | R46: 0 | S46: 0 | T46: 0 | U46: 0 | V46: 0 | W46: 54981.57066 | X46: 60918.97374 | Y46: 82933.78702 | Z46: 92800.46185 | AA46: 102074.5921 | AB46: 103163.8207 | AC46: 103668.285 | AD46: 97205.60633 | AE46: 86008.51729 | AF46: 74383.3861 | AG46: 57631.35608 | AH46: 51380.55524 | AI46: 54707.91705 | AJ46: 60615.76856 | AK46: 82521.00998 | AL46: 92338.57652 | AM46: 101566.5477 | AN46: 102650.355 | AO46: 103152.3085 | AP46: 96721.79577 | AQ46: 85580.43674 | AR46: 74013.16601 | AS46: 57344.51399 | AT46: 51124.82457 | AU46: 54435.62547 | AV46: 60314.0725 | AW46: 82110.28741 | AX46: 91878.99007 | AY46: 101061.0319 | AZ46: 102139.4449 | BA46: 102638.9001 | BB46: 96240.39322 | BC46: 85154.48683 | BD46: 73644.78858 | BE46: 57059.09957 | BF46: 50870.36671 | BG46: 54164.68914 | BH46: 60013.87803 | BI46: 81701.60908 | BJ46: 91421.69108 | BK46: 100558.0321 | BL46: 101631.0777 | BM46: 102128.047 | BN46: 95761.3867 | BO46: 84730.65695 | BP46: 73278.24463 | BQ46: 56775.10572 | BR46: 50617.17534 | BS46: 53895.1013 | BT46: 59715.17768 | BU46: 81294.96482 | BV46: 90966.66814 | BW46: 100057.5359 | BX46: =BX43*BX45 -> 101125.2407 | BY46: 101619.7365 | BZ46: 95284.76428 | CA46: 84308.93655 | CB46: 72913.52504 | CC46: 56492.52535 | CD46: 50365.24415 | CE46: 53626.85526 | CF46: 59417.96402 | CG46: 80890.34451 | CH46: 90513.90995 | CI46: 99559.53075 | CJ46: 100621.9214 | CK46: 101113.956 | CL46: 94810.51411 | CM46: 83889.31513 | CN46: 72550.62072 | CO46: 56211.35143 | CP46: 50114.56686 | CQ46: 53359.94432 | CR46: 59122.22965 | CS46: 80487.73807 | CT46: 90063.40521 | CU46: 99064.00426 | CV46: 100121.1072 | CW46: 100610.6928 | CX46: 94338.62437 | CY46: 83471.78225 | CZ46: 72189.52265 | DA46: 55931.57698 | DB46: 49865.13725 | DC46: 53094.36185 | DD46: 58827.9672 | DE46: 80087.13547 | DF46: 89615.14272 | DG46: 98570.9441 | DH46: 99622.78564 | DI46: 100109.9345 | DJ46: 93869.08331 | DK46: 83056.32751 | DL46: 71830.22183 | DM46: 55653.19501 | DN46: 49616.94909 | DO46: 52830.10124 | DP46: 58535.16936 | DQ46: 79688.52675 | DR46: 89169.11132 | DS46: 98080.33799 | DT46: 99126.94432 | DU46: 99611.66856 | DV46: 93401.87924 | DW46: 82642.94056 | DX46: 71472.70932 | DY46: 55376.1986 | DZ46: 49369.99621 | EA46: 52567.1559 | EB46: 58243.82882 | EC46: 79291.90198 | ED46: 88725.2999 | EE46: 97592.17372 | EF46: 98633.5709 | EG46: 99115.88257 | EH46: 92937.00054 | EI46: 82231.61112 | EJ46: =EJ43*EJ45 -> 71116.97622 | EK46: 55100.58086 | EL46: 49124.27247 | EM46: 52305.51929 | EN46: 57953.93834 | EO46: 78897.25129 | EP46: 88283.69741 | EQ46: 97106.43913 | ER46: 98142.65308 | ES46: 98622.5642 | ET46: 92474.43563 | EU46: 81822.32894 | EV46: 70763.01367 | EW46: 54826.33491 | EX46: 48879.77173 | EY46: 52045.18489 | EZ46: 57665.4907 | FA46: 78504.56484 | FB46: 87844.29286 | FC46: 96623.12214 | FD46: 97654.17866 | FE46: 98131.70117 | FF46: 92014.17299 | FG46: 81415.08383 | FH46: 70410.81285 | FI46: 54553.45394 | FJ46: 48636.48792 | FK46: 51786.14623 | FL46: 57378.47872 | FM46: 78113.83287 | FN46: 87407.07531 | FO46: 96142.21071 | FP46: 97168.13546 | FQ46: 97643.28125 | FR46: 91556.20116 | FS46: 81009.86567 | FT46: 70060.36501 | FU46: 54281.93115 | FV46: 48394.41499 | FW46: 51528.39685 | FX46: 57092.89525 | FY46: 77725.04565 | FZ46: 86972.03387 | GA46: 95663.69286 | GB46: 96684.5114 | GC46: 97157.2923 | GD46: 91100.50875 | GE46: 80606.66434 | GF46: 69711.66141 | GG46: 54011.75978 | GH46: 48153.54689 | GI46: 51271.93034 | GJ46: 56808.73319 | GK46: 77338.1935 | GL46: 86539.15772 | GM46: 95187.55669 | GN46: 96203.29442 | GO46: 96673.7222 | GP46: 90647.0844 | GQ46: 80205.46983 | GR46: 69364.69337 | GS46: 53742.93311 | GT46: 47913.87764 | GU46: 51016.74031 | GV46: =GV43*GV45 -> 56525.98545 | GW46: 76953.26678 | GX46: 86108.43607 | GY46: 94713.79034 | GZ46: 95724.47255 | HA46: 96192.55892 | HB46: 90195.91683 | HC46: 79806.27214 | HD46: 69019.45226 | HE46: 53475.44443 | HF46: 47675.40127 | HG46: 50762.8204 | HH46: 56244.645 | HI46: 76570.25591 | HJ46: 85679.85821 | HK46: 94242.38201 | HL46: 95248.03386 | HM46: 95713.79048 | HN46: 89746.9948 | HO46: 79409.06133 | HP46: 68675.92948 | HQ46: 53209.2871 | HR46: 47438.11184 | HS46: 50510.16431 | HT46: 55964.70483 | HU46: 76189.15136 | HV46: 85253.41346 | HW46: 93773.31996 | HX46: 94773.9665 | HY46: 95237.40496 | HZ46: 89300.30715 | IA46: 79013.82751 | IB46: 68334.11648 | IC46: 52944.45448 | ID46: 47202.00344 | IE46: 50258.76573 | IF46: 55686.15798 | IG46: 75809.94364 | IH46: 84829.0912 | II46: 93306.59253 | IJ46: 94302.25866 | IK46: 94763.39051 | IL46: 88855.84274 | IM46: 78620.56084 | IN46: 67994.00474 | IO46: 52680.93998 | IP46: 46967.0702 | IQ46: 50008.61841 | IR46: 55408.99751 | IS46: 75432.62331 | IT46: 84406.88087 | IU46: 92842.18809 | IV46: 93832.8986 | IW46: 94291.73531 | IX46: 88413.59052 | IY46: 78229.25154 | IZ46: 67655.5858 | JA46: 52418.73704 | JB46: 46733.30627 | JC46: 49759.71612 | JD46: 55133.21652 | JE46: 75057.18097 | JF46: 83986.77197 | JG46: 92380.09508 | JH46: =JH43*JH45 -> 93365.87464 | JI46: 93822.42762 | JJ46: 87973.53947 | JK46: 77839.88986 | JL46: 67318.85124 | JM46: 52157.83914 | JN46: 46500.70582 | JO46: 49512.05267 | JP46: 54858.80814 | JQ46: 74683.60728 | JR46: 83568.75403 | JS46: 91920.30199 | JT46: 92901.17514 | JU46: 93355.45577 | JV46: 87535.67863 | JW46: 77452.4661 | JX46: 66983.79267 | JY46: 51898.23978 | JZ46: 46269.26308 | KA46: 49265.62188 | KB46: 54585.76555 | KC46: 74311.89293 | KD46: 83152.81664 | KE46: 91462.79737 | KF46: 92438.78853 | KG46: 92890.80813 | KH46: 87099.99711 | KI46: 77066.97063 | KJ46: 66650.40175 | KK46: 51639.93249 | KL46: 46038.97226 | KM46: 49020.41762 | KN46: 54314.08194 | KO46: 73942.02868 | KP46: 82738.94944 | KQ46: 91007.56985 | KR46: 91978.70332 | KS46: 92428.47313 | KT46: 86666.48406 | KU46: 76683.39383 | KV46: 66318.67018 | KW46: 51382.91084 | KX46: 45809.82764 | KY46: 48776.43379 | KZ46: 54043.75055 | LA46: 73574.00531 | LB46: 82327.14215 | LC46: 90554.60807 | LD46: 91520.90803 | LE46: 91968.43925 | LF46: 86235.12869 | LG46: 76301.72617 | LH46: 65988.5897 | LI46: 51127.16844 | LJ46: 45581.82353 | LK46: 0 | LL46: 0 | LM46: 0 | LN46: 0 | LO46: 0 | LP46: 0 | LQ46: 0 | LR46: 0 | LS46: 0 | LT46: =LT43*LT45 -> 0 | LU46: 0 | LV46: 0 | LW46: 0 | LX46: 0 | LY46: 0 | LZ46: 0 | MA46: 0 | MB46: 0 | MC46: 0 | MD46: 0 | ME46: 0 | MF46: 0 | MG46: 0 | MH46: 0 | MI46: 0 | MJ46: 0 | MK46: 0 | ML46: 0 | MM46: 0 | MN46: 0 | MO46: 0 | MP46: 0 | MQ46: 0 | MR46: 0 | MS46: 0 | MT46: 0 | MU46: 0 | MV46: 0 | MW46: 0 | MX46: 0 | MY46: 0 | MZ46: 0 | NA46: 0 | NB46: 0 | NC46: 0 | ND46: 0 | NE46: 0 | NF46: 0 | NG46: 0 | NH46: 0 | NI46: 0 | NJ46: 0 | NK46: 0 | NL46: 0 | NM46: 0 | NN46: 0 | NO46: 0 | NP46: 0 | NQ46: 0 | NR46: 0 | NS46: 0 | NT46: 0 | NU46: 0 | NV46: 0 | NW46: 0 | NX46: 0 | NY46: 0 | NZ46: 0 | OA46: 0 | OB46: 0 | OC46: 0 | OD46: 0 | OE46: 0 | OF46: =OF43*OF45 -> 0 | OG46: 0 | OH46: 0 | OI46: 0 | OJ46: 0 | OK46: 0 | OL46: 0 | OM46: 0 | ON46: 0 | OO46: 0 | OP46: 0 | OQ46: 0 | OR46: 0 | OS46: 0 | OT46: 0
A48: Macro Economic
B49: EURO Annual Inflation rate | K49: =LOOKUP(YEAR(K2),'General Assumptions'!5:5,'General Assumptions'!9:9) -> 0.01 | L49: =LOOKUP(YEAR(L2),'General Assumptions'!5:5,'General Assumptions'!9:9) -> 0.01 | M49: =LOOKUP(YEAR(M2),'General Assumptions'!5:5,'General Assumptions'!9:9) -> 0.01 | N49: =LOOKUP(YEAR(N2),'General Assumptions'!5:5,'General Assumptions'!9:9) -> 0.01 | O49: =LOOKUP(YEAR(O2),'General Assumptions'!5:5,'General Assumptions'!9:9) -> 0.01 | P49: =LOOKUP(YEAR(P2),'General Assumptions'!5:5,'General Assumptions'!9:9) -> 0.01 | Q49: =LOOKUP(YEAR(Q2),'General Assumptions'!5:5,'General Assumptions'!9:9) -> 0.01 | R49: =LOOKUP(YEAR(R2),'General Assumptions'!5:5,'General Assumptions'!9:9) -> 0.01 | S49: =LOOKUP(YEAR(S2),'General Assumptions'!5:5,'General Assumptions'!9:9) -> 0.01 | T49: =LOOKUP(YEAR(T2),'General Assumptions'!5:5,'General Assumptions'!9:9) -> 0.01 | U49: =LOOKUP(YEAR(U2),'General Assumptions'!5:5,'General Assumptions'!9:9) -> 0.01 | V49: =LOOKUP(YEAR(V2),'General Assumptions'!5:5,'General Assumptions'!9:9) -> 0.01 | W49: =LOOKUP(YEAR(W2),'General Assumptions'!5:5,'General Assumptions'!9:9) -> 0.01 | X49: =LOOKUP(YEAR(X2),'General Assumptions'!5:5,'General Assumptions'!9:9) -> 0.01 | Y49: =LOOKUP(YEAR(Y2),'General Assumptions'!5:5,'General Assumptions'!9:9) -> 0.01 | Z49: =LOOKUP(YEAR(Z2),'General Assumptions'!5:5,'General Assumptions'!9:9) -> 0.01 | AA49: =LOOKUP(YEAR(AA2),'General Assumptions'!5:5,'General Assumptions'!9:9) -> 0.01 | AB49: =LOOKUP(YEAR(AB2),'General Assumptions'!5:5,'General Assumptions'!9:9) -> 0.01 | AC49: =LOOKUP(YEAR(AC2),'General Assumptions'!5:5,'General Assumptions'!9:9) -> 0.01 | AD49: =LOOKUP(YEAR(AD2),'General Assumptions'!5:5,'General Assumptions'!9:9) -> 0.01 | AE49: =LOOKUP(YEAR(AE2),'General Assumptions'!5:5,'General Assumptions'!9:9) -> 0.01 | AF49: =LOOKUP(YEAR(AF2),'General Assumptions'!5:5,'General Assumptions'!9:9) -> 0.01 | AG49: =LOOKUP(YEAR(AG2),'General Assumptions'!5:5,'General Assumptions'!9:9) -> 0.01 | AH49: =LOOKUP(YEAR(AH2),'General Assumptions'!5:5,'General Assumptions'!9:9) -> 0.01 | AI49: =LOOKUP(YEAR(AI2),'General Assumptions'!5:5,'General Assumptions'!9:9) -> 0.01 | AJ49: =LOOKUP(YEAR(AJ2),'General Assumptions'!5:5,'General Assumptions'!9:9) -> 0.01 | AK49: =LOOKUP(YEAR(AK2),'General Assumptions'!5:5,'General Assumptions'!9:9) -> 0.01 | AL49: =LOOKUP(YEAR(AL2),'General Assumptions'!5:5,'General Assumptions'!9:9) -> 0.01 | AM49: =LOOKUP(YEAR(AM2),'General Assumptions'!5:5,'General Assumptions'!9:9) -> 0.01 | AN49: =LOOKUP(YEAR(AN2),'General Assumptions'!5:5,'General Assumptions'!9:9) -> 0.01 | AO49: =LOOKUP(YEAR(AO2),'General Assumptions'!5:5,'General Assumptions'!9:9) -> 0.01 | AP49: =LOOKUP(YEAR(AP2),'General Assumptions'!5:5,'General Assumptions'!9:9) -> 0.01 | AQ49: =LOOKUP(YEAR(AQ2),'General Assumptions'!5:5,'General Assumptions'!9:9) -> 0.01 | AR49: =LOOKUP(YEAR(AR2),'General Assumptions'!5:5,'General Assumptions'!9:9) -> 0.01 | AS49: =LOOKUP(YEAR(AS2),'General Assumptions'!5:5,'General Assumptions'!9:9) -> 0.01 | AT49: =LOOKUP(YEAR(AT2),'General Assumptions'!5:5,'General Assumptions'!9:9) -> 0.01 | AU49: =LOOKUP(YEAR(AU2),'General Assumptions'!5:5,'General Assumptions'!9:9) -> 0.01 | AV49: =LOOKUP(YEAR(AV2),'General Assumptions'!5:5,'General Assumptions'!9:9) -> 0.01 | AW49: =LOOKUP(YEAR(AW2),'General Assumptions'!5:5,'General Assumptions'!9:9) -> 0.01 | AX49: =LOOKUP(YEAR(AX2),'General Assumptions'!5:5,'General Assumptions'!9:9) -> 0.01 | AY49: =LOOKUP(YEAR(AY2),'General Assumptions'!5:5,'General Assumptions'!9:9) -> 0.01 | AZ49: =LOOKUP(YEAR(AZ2),'General Assumptions'!5:5,'General Assumptions'!9:9) -> 0.01 | BA49: =LOOKUP(YEAR(BA2),'General Assumptions'!5:5,'General Assumptions'!9:9) -> 0.01 | BB49: =LOOKUP(YEAR(BB2),'General Assumptions'!5:5,'General Assumptions'!9:9) -> 0.01 | BC49: =LOOKUP(YEAR(BC2),'General Assumptions'!5:5,'General Assumptions'!9:9) -> 0.01 | BD49: =LOOKUP(YEAR(BD2),'General Assumptions'!5:5,'General Assumptions'!9:9) -> 0.01 | BE49: =LOOKUP(YEAR(BE2),'General Assumptions'!5:5,'General Assumptions'!9:9) -> 0.01 | BF49: =LOOKUP(YEAR(BF2),'General Assumptions'!5:5,'General Assumptions'!9:9) -> 0.01 | BG49: =LOOKUP(YEAR(BG2),'General Assumptions'!5:5,'General Assumptions'!9:9) -> 0.01 | BH49: =LOOKUP(YEAR(BH2),'General Assumptions'!5:5,'General Assumptions'!9:9) -> 0.01 | BI49: =LOOKUP(YEAR(BI2),'General Assumptions'!5:5,'General Assumptions'!9:9) -> 0.01 | BJ49: =LOOKUP(YEAR(BJ2),'General Assumptions'!5:5,'General Assumptions'!9:9) -> 0.01 | BK49: =LOOKUP(YEAR(BK2),'General Assumptions'!5:5,'General Assumptions'!9:9) -> 0.01 | BL49: =LOOKUP(YEAR(BL2),'General Assumptions'!5:5,'General Assumptions'!9:9) -> 0.01 | BM49: =LOOKUP(YEAR(BM2),'General Assumptions'!5:5,'General Assumptions'!9:9) -> 0.01 | BN49: =LOOKUP(YEAR(BN2),'General Assumptions'!5:5,'General Assumptions'!9:9) -> 0.01 | BO49: =LOOKUP(YEAR(BO2),'General Assumptions'!5:5,'General Assumptions'!9:9) -> 0.01 | BP49: =LOOKUP(YEAR(BP2),'General Assumptions'!5:5,'General Assumptions'!9:9) -> 0.01 | BQ49: =LOOKUP(YEAR(BQ2),'General Assumptions'!5:5,'General Assumptions'!9:9) -> 0.01 | BR49: =LOOKUP(YEAR(BR2),'General Assumptions'!5:5,'General Assumptions'!9:9) -> 0.01 | BS49: =LOOKUP(YEAR(BS2),'General Assumptions'!5:5,'General Assumptions'!9:9) -> 0.01 | BT49: =LOOKUP(YEAR(BT2),'General Assumptions'!5:5,'General Assumptions'!9:9) -> 0.01 | BU49: =LOOKUP(YEAR(BU2),'General Assumptions'!5:5,'General Assumptions'!9:9) -> 0.01 | BV49: =LOOKUP(YEAR(BV2),'General Assumptions'!5:5,'General Assumptions'!9:9) -> 0.01 | BW49: =LOOKUP(YEAR(BW2),'General Assumptions'!5:5,'General Assumptions'!9:9) -> 0.01 | BX49: =LOOKUP(YEAR(BX2),'General Assumptions'!5:5,'General Assumptions'!9:9) -> 0.01 | BY49: =LOOKUP(YEAR(BY2),'General Assumptions'!5:5,'General Assumptions'!9:9) -> 0.01 | BZ49: =LOOKUP(YEAR(BZ2),'General Assumptions'!5:5,'General Assumptions'!9:9) -> 0.01 | CA49: =LOOKUP(YEAR(CA2),'General Assumptions'!5:5,'General Assumptions'!9:9) -> 0.01 | CB49: =LOOKUP(YEAR(CB2),'General Assumptions'!5:5,'General Assumptions'!9:9) -> 0.01 | CC49: =LOOKUP(YEAR(CC2),'General Assumptions'!5:5,'General Assumptions'!9:9) -> 0.01 | CD49: =LOOKUP(YEAR(CD2),'General Assumptions'!5:5,'General Assumptions'!9:9) -> 0.01 | CE49: =LOOKUP(YEAR(CE2),'General Assumptions'!5:5,'General Assumptions'!9:9) -> 0.01 | CF49: =LOOKUP(YEAR(CF2),'General Assumptions'!5:5,'General Assumptions'!9:9) -> 0.01 | CG49: =LOOKUP(YEAR(CG2),'General Assumptions'!5:5,'General Assumptions'!9:9) -> 0.01 | CH49: =LOOKUP(YEAR(CH2),'General Assumptions'!5:5,'General Assumptions'!9:9) -> 0.01 | CI49: =LOOKUP(YEAR(CI2),'General Assumptions'!5:5,'General Assumptions'!9:9) -> 0.01 | CJ49: =LOOKUP(YEAR(CJ2),'General Assumptions'!5:5,'General Assumptions'!9:9) -> 0.01 | CK49: =LOOKUP(YEAR(CK2),'General Assumptions'!5:5,'General Assumptions'!9:9) -> 0.01 | CL49: =LOOKUP(YEAR(CL2),'General Assumptions'!5:5,'General Assumptions'!9:9) -> 0.01 | CM49: =LOOKUP(YEAR(CM2),'General Assumptions'!5:5,'General Assumptions'!9:9) -> 0.01 | CN49: =LOOKUP(YEAR(CN2),'General Assumptions'!5:5,'General Assumptions'!9:9) -> 0.01 | CO49: =LOOKUP(YEAR(CO2),'General Assumptions'!5:5,'General Assumptions'!9:9) -> 0.01 | CP49: =LOOKUP(YEAR(CP2),'General Assumptions'!5:5,'General Assumptions'!9:9) -> 0.01 | CQ49: =LOOKUP(YEAR(CQ2),'General Assumptions'!5:5,'General Assumptions'!9:9) -> 0.01 | CR49: =LOOKUP(YEAR(CR2),'General Assumptions'!5:5,'General Assumptions'!9:9) -> 0.01 | CS49: =LOOKUP(YEAR(CS2),'General Assumptions'!5:5,'General Assumptions'!9:9) -> 0.01 | CT49: =LOOKUP(YEAR(CT2),'General Assumptions'!5:5,'General Assumptions'!9:9) -> 0.01 | CU49: =LOOKUP(YEAR(CU2),'General Assumptions'!5:5,'General Assumptions'!9:9) -> 0.01 | CV49: =LOOKUP(YEAR(CV2),'General Assumptions'!5:5,'General Assumptions'!9:9) -> 0.01 | CW49: =LOOKUP(YEAR(CW2),'General Assumptions'!5:5,'General Assumptions'!9:9) -> 0.01 | CX49: =LOOKUP(YEAR(CX2),'General Assumptions'!5:5,'General Assumptions'!9:9) -> 0.01 | CY49: =LOOKUP(YEAR(CY2),'General Assumptions'!5:5,'General Assumptions'!9:9) -> 0.01 | CZ49: =LOOKUP(YEAR(CZ2),'General Assumptions'!5:5,'General Assumptions'!9:9) -> 0.01 | DA49: =LOOKUP(YEAR(DA2),'General Assumptions'!5:5,'General Assumptions'!9:9) -> 0.01 | DB49: =LOOKUP(YEAR(DB2),'General Assumptions'!5:5,'General Assumptions'!9:9) -> 0.01 | DC49: =LOOKUP(YEAR(DC2),'General Assumptions'!5:5,'General Assumptions'!9:9) -> 0.01 | DD49: =LOOKUP(YEAR(DD2),'General Assumptions'!5:5,'General Assumptions'!9:9) -> 0.01 | DE49: =LOOKUP(YEAR(DE2),'General Assumptions'!5:5,'General Assumptions'!9:9) -> 0.01 | DF49: =LOOKUP(YEAR(DF2),'General Assumptions'!5:5,'General Assumptions'!9:9) -> 0.01 | DG49: =LOOKUP(YEAR(DG2),'General Assumptions'!5:5,'General Assumptions'!9:9) -> 0.01 | DH49: =LOOKUP(YEAR(DH2),'General Assumptions'!5:5,'General Assumptions'!9:9) -> 0.01 | DI49: =LOOKUP(YEAR(DI2),'General Assumptions'!5:5,'General Assumptions'!9:9) -> 0.01 | DJ49: =LOOKUP(YEAR(DJ2),'General Assumptions'!5:5,'General Assumptions'!9:9) -> 0.01 | DK49: =LOOKUP(YEAR(DK2),'General Assumptions'!5:5,'General Assumptions'!9:9) -> 0.01 | DL49: =LOOKUP(YEAR(DL2),'General Assumptions'!5:5,'General Assumptions'!9:9) -> 0.01 | DM49: =LOOKUP(YEAR(DM2),'General Assumptions'!5:5,'General Assumptions'!9:9) -> 0.01 | DN49: =LOOKUP(YEAR(DN2),'General Assumptions'!5:5,'General Assumptions'!9:9) -> 0.01 | DO49: =LOOKUP(YEAR(DO2),'General Assumptions'!5:5,'General Assumptions'!9:9) -> 0.01 | DP49: =LOOKUP(YEAR(DP2),'General Assumptions'!5:5,'General Assumptions'!9:9) -> 0.01 | DQ49: =LOOKUP(YEAR(DQ2),'General Assumptions'!5:5,'General Assumptions'!9:9) -> 0.01 | DR49: =LOOKUP(YEAR(DR2),'General Assumptions'!5:5,'General Assumptions'!9:9) -> 0.01 | DS49: =LOOKUP(YEAR(DS2),'General Assumptions'!5:5,'General Assumptions'!9:9) -> 0.01 | DT49: =LOOKUP(YEAR(DT2),'General Assumptions'!5:5,'General Assumptions'!9:9) -> 0.01 | DU49: =LOOKUP(YEAR(DU2),'General Assumptions'!5:5,'General Assumptions'!9:9) -> 0.01 | DV49: =LOOKUP(YEAR(DV2),'General Assumptions'!5:5,'General Assumptions'!9:9) -> 0.01 | DW49: =LOOKUP(YEAR(DW2),'General Assumptions'!5:5,'General Assumptions'!9:9) -> 0.01 | DX49: =LOOKUP(YEAR(DX2),'General Assumptions'!5:5,'General Assumptions'!9:9) -> 0.01 | DY49: =LOOKUP(YEAR(DY2),'General Assumptions'!5:5,'General Assumptions'!9:9) -> 0.01 | DZ49: =LOOKUP(YEAR(DZ2),'General Assumptions'!5:5,'General Assumptions'!9:9) -> 0.01 | EA49: =LOOKUP(YEAR(EA2),'General Assumptions'!5:5,'General Assumptions'!9:9) -> 0.01 | EB49: =LOOKUP(YEAR(EB2),'General Assumptions'!5:5,'General Assumptions'!9:9) -> 0.01 | EC49: =LOOKUP(YEAR(EC2),'General Assumptions'!5:5,'General Assumptions'!9:9) -> 0.01 | ED49: =LOOKUP(YEAR(ED2),'General Assumptions'!5:5,'General Assumptions'!9:9) -> 0.01 | EE49: =LOOKUP(YEAR(EE2),'General Assumptions'!5:5,'General Assumptions'!9:9) -> 0.01 | EF49: =LOOKUP(YEAR(EF2),'General Assumptions'!5:5,'General Assumptions'!9:9) -> 0.01 | EG49: =LOOKUP(YEAR(EG2),'General Assumptions'!5:5,'General Assumptions'!9:9) -> 0.01 | EH49: =LOOKUP(YEAR(EH2),'General Assumptions'!5:5,'General Assumptions'!9:9) -> 0.01 | EI49: =LOOKUP(YEAR(EI2),'General Assumptions'!5:5,'General Assumptions'!9:9) -> 0.01 | EJ49: =LOOKUP(YEAR(EJ2),'General Assumptions'!5:5,'General Assumptions'!9:9) -> 0.01 | EK49: =LOOKUP(YEAR(EK2),'General Assumptions'!5:5,'General Assumptions'!9:9) -> 0.01 | EL49: =LOOKUP(YEAR(EL2),'General Assumptions'!5:5,'General Assumptions'!9:9) -> 0.01 | EM49: =LOOKUP(YEAR(EM2),'General Assumptions'!5:5,'General Assumptions'!9:9) -> 0.01 | EN49: =LOOKUP(YEAR(EN2),'General Assumptions'!5:5,'General Assumptions'!9:9) -> 0.01 | EO49: =LOOKUP(YEAR(EO2),'General Assumptions'!5:5,'General Assumptions'!9:9) -> 0.01 | EP49: =LOOKUP(YEAR(EP2),'General Assumptions'!5:5,'General Assumptions'!9:9) -> 0.01 | EQ49: =LOOKUP(YEAR(EQ2),'General Assumptions'!5:5,'General Assumptions'!9:9) -> 0.01 | ER49: =LOOKUP(YEAR(ER2),'General Assumptions'!5:5,'General Assumptions'!9:9) -> 0.01 | ES49: =LOOKUP(YEAR(ES2),'General Assumptions'!5:5,'General Assumptions'!9:9) -> 0.01 | ET49: =LOOKUP(YEAR(ET2),'General Assumptions'!5:5,'General Assumptions'!9:9) -> 0.01 | EU49: =LOOKUP(YEAR(EU2),'General Assumptions'!5:5,'General Assumptions'!9:9) -> 0.01 | EV49: =LOOKUP(YEAR(EV2),'General Assumptions'!5:5,'General Assumptions'!9:9) -> 0.01 | EW49: =LOOKUP(YEAR(EW2),'General Assumptions'!5:5,'General Assumptions'!9:9) -> 0.01 | EX49: =LOOKUP(YEAR(EX2),'General Assumptions'!5:5,'General Assumptions'!9:9) -> 0.01 | EY49: =LOOKUP(YEAR(EY2),'General Assumptions'!5:5,'General Assumptions'!9:9) -> 0.01 | EZ49: =LOOKUP(YEAR(EZ2),'General Assumptions'!5:5,'General Assumptions'!9:9) -> 0.01 | FA49: =LOOKUP(YEAR(FA2),'General Assumptions'!5:5,'General Assumptions'!9:9) -> 0.01 | FB49: =LOOKUP(YEAR(FB2),'General Assumptions'!5:5,'General Assumptions'!9:9) -> 0.01 | FC49: =LOOKUP(YEAR(FC2),'General Assumptions'!5:5,'General Assumptions'!9:9) -> 0.01 | FD49: =LOOKUP(YEAR(FD2),'General Assumptions'!5:5,'General Assumptions'!9:9) -> 0.01 | FE49: =LOOKUP(YEAR(FE2),'General Assumptions'!5:5,'General Assumptions'!9:9) -> 0.01 | FF49: =LOOKUP(YEAR(FF2),'General Assumptions'!5:5,'General Assumptions'!9:9) -> 0.01 | FG49: =LOOKUP(YEAR(FG2),'General Assumptions'!5:5,'General Assumptions'!9:9) -> 0.01 | FH49: =LOOKUP(YEAR(FH2),'General Assumptions'!5:5,'General Assumptions'!9:9) -> 0.01 | FI49: =LOOKUP(YEAR(FI2),'General Assumptions'!5:5,'General Assumptions'!9:9) -> 0.01 | FJ49: =LOOKUP(YEAR(FJ2),'General Assumptions'!5:5,'General Assumptions'!9:9) -> 0.01 | FK49: =LOOKUP(YEAR(FK2),'General Assumptions'!5:5,'General Assumptions'!9:9) -> 0.01 | FL49: =LOOKUP(YEAR(FL2),'General Assumptions'!5:5,'General Assumptions'!9:9) -> 0.01 | FM49: =LOOKUP(YEAR(FM2),'General Assumptions'!5:5,'General Assumptions'!9:9) -> 0.01 | FN49: =LOOKUP(YEAR(FN2),'General Assumptions'!5:5,'General Assumptions'!9:9) -> 0.01 | FO49: =LOOKUP(YEAR(FO2),'General Assumptions'!5:5,'General Assumptions'!9:9) -> 0.01 | FP49: =LOOKUP(YEAR(FP2),'General Assumptions'!5:5,'General Assumptions'!9:9) -> 0.01 | FQ49: =LOOKUP(YEAR(FQ2),'General Assumptions'!5:5,'General Assumptions'!9:9) -> 0.01 | FR49: =LOOKUP(YEAR(FR2),'General Assumptions'!5:5,'General Assumptions'!9:9) -> 0.01 | FS49: =LOOKUP(YEAR(FS2),'General Assumptions'!5:5,'General Assumptions'!9:9) -> 0.01 | FT49: =LOOKUP(YEAR(FT2),'General Assumptions'!5:5,'General Assumptions'!9:9) -> 0.01 | FU49: =LOOKUP(YEAR(FU2),'General Assumptions'!5:5,'General Assumptions'!9:9) -> 0.01 | FV49: =LOOKUP(YEAR(FV2),'General Assumptions'!5:5,'General Assumptions'!9:9) -> 0.01 | FW49: =LOOKUP(YEAR(FW2),'General Assumptions'!5:5,'General Assumptions'!9:9) -> 0.01 | FX49: =LOOKUP(YEAR(FX2),'General Assumptions'!5:5,'General Assumptions'!9:9) -> 0.01 | FY49: =LOOKUP(YEAR(FY2),'General Assumptions'!5:5,'General Assumptions'!9:9) -> 0.01 | FZ49: =LOOKUP(YEAR(FZ2),'General Assumptions'!5:5,'General Assumptions'!9:9) -> 0.01 | GA49: =LOOKUP(YEAR(GA2),'General Assumptions'!5:5,'General Assumptions'!9:9) -> 0.01 | GB49: =LOOKUP(YEAR(GB2),'General Assumptions'!5:5,'General Assumptions'!9:9) -> 0.01 | GC49: =LOOKUP(YEAR(GC2),'General Assumptions'!5:5,'General Assumptions'!9:9) -> 0.01 | GD49: =LOOKUP(YEAR(GD2),'General Assumptions'!5:5,'General Assumptions'!9:9) -> 0.01 | GE49: =LOOKUP(YEAR(GE2),'General Assumptions'!5:5,'General Assumptions'!9:9) -> 0.01 | GF49: =LOOKUP(YEAR(GF2),'General Assumptions'!5:5,'General Assumptions'!9:9) -> 0.01 | GG49: =LOOKUP(YEAR(GG2),'General Assumptions'!5:5,'General Assumptions'!9:9) -> 0.01 | GH49: =LOOKUP(YEAR(GH2),'General Assumptions'!5:5,'General Assumptions'!9:9) -> 0.01 | GI49: =LOOKUP(YEAR(GI2),'General Assumptions'!5:5,'General Assumptions'!9:9) -> 0.01 | GJ49: =LOOKUP(YEAR(GJ2),'General Assumptions'!5:5,'General Assumptions'!9:9) -> 0.01 | GK49: =LOOKUP(YEAR(GK2),'General Assumptions'!5:5,'General Assumptions'!9:9) -> 0.01 | GL49: =LOOKUP(YEAR(GL2),'General Assumptions'!5:5,'General Assumptions'!9:9) -> 0.01 | GM49: =LOOKUP(YEAR(GM2),'General Assumptions'!5:5,'General Assumptions'!9:9) -> 0.01 | GN49: =LOOKUP(YEAR(GN2),'General Assumptions'!5:5,'General Assumptions'!9:9) -> 0.01 | GO49: =LOOKUP(YEAR(GO2),'General Assumptions'!5:5,'General Assumptions'!9:9) -> 0.01 | GP49: =LOOKUP(YEAR(GP2),'General Assumptions'!5:5,'General Assumptions'!9:9) -> 0.01 | GQ49: =LOOKUP(YEAR(GQ2),'General Assumptions'!5:5,'General Assumptions'!9:9) -> 0.01 | GR49: =LOOKUP(YEAR(GR2),'General Assumptions'!5:5,'General Assumptions'!9:9) -> 0.01 | GS49: =LOOKUP(YEAR(GS2),'General Assumptions'!5:5,'General Assumptions'!9:9) -> 0.01 | GT49: =LOOKUP(YEAR(GT2),'General Assumptions'!5:5,'General Assumptions'!9:9) -> 0.01 | GU49: =LOOKUP(YEAR(GU2),'General Assumptions'!5:5,'General Assumptions'!9:9) -> 0.01 | GV49: =LOOKUP(YEAR(GV2),'General Assumptions'!5:5,'General Assumptions'!9:9) -> 0.01 | GW49: =LOOKUP(YEAR(GW2),'General Assumptions'!5:5,'General Assumptions'!9:9) -> 0.01 | GX49: =LOOKUP(YEAR(GX2),'General Assumptions'!5:5,'General Assumptions'!9:9) -> 0.01 | GY49: =LOOKUP(YEAR(GY2),'General Assumptions'!5:5,'General Assumptions'!9:9) -> 0.01 | GZ49: =LOOKUP(YEAR(GZ2),'General Assumptions'!5:5,'General Assumptions'!9:9) -> 0.01 | HA49: =LOOKUP(YEAR(HA2),'General Assumptions'!5:5,'General Assumptions'!9:9) -> 0.01 | HB49: =LOOKUP(YEAR(HB2),'General Assumptions'!5:5,'General Assumptions'!9:9) -> 0.01 | HC49: =LOOKUP(YEAR(HC2),'General Assumptions'!5:5,'General Assumptions'!9:9) -> 0.01 | HD49: =LOOKUP(YEAR(HD2),'General Assumptions'!5:5,'General Assumptions'!9:9) -> 0.01 | HE49: =LOOKUP(YEAR(HE2),'General Assumptions'!5:5,'General Assumptions'!9:9) -> 0.01 | HF49: =LOOKUP(YEAR(HF2),'General Assumptions'!5:5,'General Assumptions'!9:9) -> 0.01 | HG49: =LOOKUP(YEAR(HG2),'General Assumptions'!5:5,'General Assumptions'!9:9) -> 0.01 | HH49: =LOOKUP(YEAR(HH2),'General Assumptions'!5:5,'General Assumptions'!9:9) -> 0.01 | HI49: =LOOKUP(YEAR(HI2),'General Assumptions'!5:5,'General Assumptions'!9:9) -> 0.01 | HJ49: =LOOKUP(YEAR(HJ2),'General Assumptions'!5:5,'General Assumptions'!9:9) -> 0.01 | HK49: =LOOKUP(YEAR(HK2),'General Assumptions'!5:5,'General Assumptions'!9:9) -> 0.01 | HL49: =LOOKUP(YEAR(HL2),'General Assumptions'!5:5,'General Assumptions'!9:9) -> 0.01 | HM49: =LOOKUP(YEAR(HM2),'General Assumptions'!5:5,'General Assumptions'!9:9) -> 0.01 | HN49: =LOOKUP(YEAR(HN2),'General Assumptions'!5:5,'General Assumptions'!9:9) -> 0.01 | HO49: =LOOKUP(YEAR(HO2),'General Assumptions'!5:5,'General Assumptions'!9:9) -> 0.01 | HP49: =LOOKUP(YEAR(HP2),'General Assumptions'!5:5,'General Assumptions'!9:9) -> 0.01 | HQ49: =LOOKUP(YEAR(HQ2),'General Assumptions'!5:5,'General Assumptions'!9:9) -> 0.01 | HR49: =LOOKUP(YEAR(HR2),'General Assumptions'!5:5,'General Assumptions'!9:9) -> 0.01 | HS49: =LOOKUP(YEAR(HS2),'General Assumptions'!5:5,'General Assumptions'!9:9) -> 0.01 | HT49: =LOOKUP(YEAR(HT2),'General Assumptions'!5:5,'General Assumptions'!9:9) -> 0.01 | HU49: =LOOKUP(YEAR(HU2),'General Assumptions'!5:5,'General Assumptions'!9:9) -> 0.01 | HV49: =LOOKUP(YEAR(HV2),'General Assumptions'!5:5,'General Assumptions'!9:9) -> 0.01 | HW49: =LOOKUP(YEAR(HW2),'General Assumptions'!5:5,'General Assumptions'!9:9) -> 0.01 | HX49: =LOOKUP(YEAR(HX2),'General Assumptions'!5:5,'General Assumptions'!9:9) -> 0.01 | HY49: =LOOKUP(YEAR(HY2),'General Assumptions'!5:5,'General Assumptions'!9:9) -> 0.01 | HZ49: =LOOKUP(YEAR(HZ2),'General Assumptions'!5:5,'General Assumptions'!9:9) -> 0.01 | IA49: =LOOKUP(YEAR(IA2),'General Assumptions'!5:5,'General Assumptions'!9:9) -> 0.01 | IB49: =LOOKUP(YEAR(IB2),'General Assumptions'!5:5,'General Assumptions'!9:9) -> 0.01 | IC49: =LOOKUP(YEAR(IC2),'General Assumptions'!5:5,'General Assumptions'!9:9) -> 0.01 | ID49: =LOOKUP(YEAR(ID2),'General Assumptions'!5:5,'General Assumptions'!9:9) -> 0.01 | IE49: =LOOKUP(YEAR(IE2),'General Assumptions'!5:5,'General Assumptions'!9:9) -> 0.01 | IF49: =LOOKUP(YEAR(IF2),'General Assumptions'!5:5,'General Assumptions'!9:9) -> 0.01 | IG49: =LOOKUP(YEAR(IG2),'General Assumptions'!5:5,'General Assumptions'!9:9) -> 0.01 | IH49: =LOOKUP(YEAR(IH2),'General Assumptions'!5:5,'General Assumptions'!9:9) -> 0.01 | II49: =LOOKUP(YEAR(II2),'General Assumptions'!5:5,'General Assumptions'!9:9) -> 0.01 | IJ49: =LOOKUP(YEAR(IJ2),'General Assumptions'!5:5,'General Assumptions'!9:9) -> 0.01 | IK49: =LOOKUP(YEAR(IK2),'General Assumptions'!5:5,'General Assumptions'!9:9) -> 0.01 | IL49: =LOOKUP(YEAR(IL2),'General Assumptions'!5:5,'General Assumptions'!9:9) -> 0.01 | IM49: =LOOKUP(YEAR(IM2),'General Assumptions'!5:5,'General Assumptions'!9:9) -> 0.01 | IN49: =LOOKUP(YEAR(IN2),'General Assumptions'!5:5,'General Assumptions'!9:9) -> 0.01 | IO49: =LOOKUP(YEAR(IO2),'General Assumptions'!5:5,'General Assumptions'!9:9) -> 0.01 | IP49: =LOOKUP(YEAR(IP2),'General Assumptions'!5:5,'General Assumptions'!9:9) -> 0.01 | IQ49: =LOOKUP(YEAR(IQ2),'General Assumptions'!5:5,'General Assumptions'!9:9) -> 0.01 | IR49: =LOOKUP(YEAR(IR2),'General Assumptions'!5:5,'General Assumptions'!9:9) -> 0.01 | IS49: =LOOKUP(YEAR(IS2),'General Assumptions'!5:5,'General Assumptions'!9:9) -> 0.01 | IT49: =LOOKUP(YEAR(IT2),'General Assumptions'!5:5,'General Assumptions'!9:9) -> 0.01 | IU49: =LOOKUP(YEAR(IU2),'General Assumptions'!5:5,'General Assumptions'!9:9) -> 0.01 | IV49: =LOOKUP(YEAR(IV2),'General Assumptions'!5:5,'General Assumptions'!9:9) -> 0.01 | IW49: =LOOKUP(YEAR(IW2),'General Assumptions'!5:5,'General Assumptions'!9:9) -> 0.01 | IX49: =LOOKUP(YEAR(IX2),'General Assumptions'!5:5,'General Assumptions'!9:9) -> 0.01 | IY49: =LOOKUP(YEAR(IY2),'General Assumptions'!5:5,'General Assumptions'!9:9) -> 0.01 | IZ49: =LOOKUP(YEAR(IZ2),'General Assumptions'!5:5,'General Assumptions'!9:9) -> 0.01 | JA49: =LOOKUP(YEAR(JA2),'General Assumptions'!5:5,'General Assumptions'!9:9) -> 0.01 | JB49: =LOOKUP(YEAR(JB2),'General Assumptions'!5:5,'General Assumptions'!9:9) -> 0.01 | JC49: =LOOKUP(YEAR(JC2),'General Assumptions'!5:5,'General Assumptions'!9:9) -> 0.01 | JD49: =LOOKUP(YEAR(JD2),'General Assumptions'!5:5,'General Assumptions'!9:9) -> 0.01 | JE49: =LOOKUP(YEAR(JE2),'General Assumptions'!5:5,'General Assumptions'!9:9) -> 0.01 | JF49: =LOOKUP(YEAR(JF2),'General Assumptions'!5:5,'General Assumptions'!9:9) -> 0.01 | JG49: =LOOKUP(YEAR(JG2),'General Assumptions'!5:5,'General Assumptions'!9:9) -> 0.01 | JH49: =LOOKUP(YEAR(JH2),'General Assumptions'!5:5,'General Assumptions'!9:9) -> 0.01 | JI49: =LOOKUP(YEAR(JI2),'General Assumptions'!5:5,'General Assumptions'!9:9) -> 0.01 | JJ49: =LOOKUP(YEAR(JJ2),'General Assumptions'!5:5,'General Assumptions'!9:9) -> 0.01 | JK49: =LOOKUP(YEAR(JK2),'General Assumptions'!5:5,'General Assumptions'!9:9) -> 0.01 | JL49: =LOOKUP(YEAR(JL2),'General Assumptions'!5:5,'General Assumptions'!9:9) -> 0.01 | JM49: =LOOKUP(YEAR(JM2),'General Assumptions'!5:5,'General Assumptions'!9:9) -> 0.01 | JN49: =LOOKUP(YEAR(JN2),'General Assumptions'!5:5,'General Assumptions'!9:9) -> 0.01 | JO49: =LOOKUP(YEAR(JO2),'General Assumptions'!5:5,'General Assumptions'!9:9) -> 0.01 | JP49: =LOOKUP(YEAR(JP2),'General Assumptions'!5:5,'General Assumptions'!9:9) -> 0.01 | JQ49: =LOOKUP(YEAR(JQ2),'General Assumptions'!5:5,'General Assumptions'!9:9) -> 0.01 | JR49: =LOOKUP(YEAR(JR2),'General Assumptions'!5:5,'General Assumptions'!9:9) -> 0.01 | JS49: =LOOKUP(YEAR(JS2),'General Assumptions'!5:5,'General Assumptions'!9:9) -> 0.01 | JT49: =LOOKUP(YEAR(JT2),'General Assumptions'!5:5,'General Assumptions'!9:9) -> 0.01 | JU49: =LOOKUP(YEAR(JU2),'General Assumptions'!5:5,'General Assumptions'!9:9) -> 0.01 | JV49: =LOOKUP(YEAR(JV2),'General Assumptions'!5:5,'General Assumptions'!9:9) -> 0.01 | JW49: =LOOKUP(YEAR(JW2),'General Assumptions'!5:5,'General Assumptions'!9:9) -> 0.01 | JX49: =LOOKUP(YEAR(JX2),'General Assumptions'!5:5,'General Assumptions'!9:9) -> 0.01 | JY49: =LOOKUP(YEAR(JY2),'General Assumptions'!5:5,'General Assumptions'!9:9) -> 0.01 | JZ49: =LOOKUP(YEAR(JZ2),'General Assumptions'!5:5,'General Assumptions'!9:9) -> 0.01 | KA49: =LOOKUP(YEAR(KA2),'General Assumptions'!5:5,'General Assumptions'!9:9) -> 0.01 | KB49: =LOOKUP(YEAR(KB2),'General Assumptions'!5:5,'General Assumptions'!9:9) -> 0.01 | KC49: =LOOKUP(YEAR(KC2),'General Assumptions'!5:5,'General Assumptions'!9:9) -> 0.01 | KD49: =LOOKUP(YEAR(KD2),'General Assumptions'!5:5,'General Assumptions'!9:9) -> 0.01 | KE49: =LOOKUP(YEAR(KE2),'General Assumptions'!5:5,'General Assumptions'!9:9) -> 0.01 | KF49: =LOOKUP(YEAR(KF2),'General Assumptions'!5:5,'General Assumptions'!9:9) -> 0.01 | KG49: =LOOKUP(YEAR(KG2),'General Assumptions'!5:5,'General Assumptions'!9:9) -> 0.01 | KH49: =LOOKUP(YEAR(KH2),'General Assumptions'!5:5,'General Assumptions'!9:9) -> 0.01 | KI49: =LOOKUP(YEAR(KI2),'General Assumptions'!5:5,'General Assumptions'!9:9) -> 0.01 | KJ49: =LOOKUP(YEAR(KJ2),'General Assumptions'!5:5,'General Assumptions'!9:9) -> 0.01 | KK49: =LOOKUP(YEAR(KK2),'General Assumptions'!5:5,'General Assumptions'!9:9) -> 0.01 | KL49: =LOOKUP(YEAR(KL2),'General Assumptions'!5:5,'General Assumptions'!9:9) -> 0.01 | KM49: =LOOKUP(YEAR(KM2),'General Assumptions'!5:5,'General Assumptions'!9:9) -> 0.01 | KN49: =LOOKUP(YEAR(KN2),'General Assumptions'!5:5,'General Assumptions'!9:9) -> 0.01 | KO49: =LOOKUP(YEAR(KO2),'General Assumptions'!5:5,'General Assumptions'!9:9) -> 0.01 | KP49: =LOOKUP(YEAR(KP2),'General Assumptions'!5:5,'General Assumptions'!9:9) -> 0.01 | KQ49: =LOOKUP(YEAR(KQ2),'General Assumptions'!5:5,'General Assumptions'!9:9) -> 0.01 | KR49: =LOOKUP(YEAR(KR2),'General Assumptions'!5:5,'General Assumptions'!9:9) -> 0.01 | KS49: =LOOKUP(YEAR(KS2),'General Assumptions'!5:5,'General Assumptions'!9:9) -> 0.01 | KT49: =LOOKUP(YEAR(KT2),'General Assumptions'!5:5,'General Assumptions'!9:9) -> 0.01 | KU49: =LOOKUP(YEAR(KU2),'General Assumptions'!5:5,'General Assumptions'!9:9) -> 0.01 | KV49: =LOOKUP(YEAR(KV2),'General Assumptions'!5:5,'General Assumptions'!9:9) -> 0.01 | KW49: =LOOKUP(YEAR(KW2),'General Assumptions'!5:5,'General Assumptions'!9:9) -> 0.01 | KX49: =LOOKUP(YEAR(KX2),'General Assumptions'!5:5,'General Assumptions'!9:9) -> 0.01 | KY49: =LOOKUP(YEAR(KY2),'General Assumptions'!5:5,'General Assumptions'!9:9) -> 0.01 | KZ49: =LOOKUP(YEAR(KZ2),'General Assumptions'!5:5,'General Assumptions'!9:9) -> 0.01 | LA49: =LOOKUP(YEAR(LA2),'General Assumptions'!5:5,'General Assumptions'!9:9) -> 0.01 | LB49: =LOOKUP(YEAR(LB2),'General Assumptions'!5:5,'General Assumptions'!9:9) -> 0.01 | LC49: =LOOKUP(YEAR(LC2),'General Assumptions'!5:5,'General Assumptions'!9:9) -> 0.01 | LD49: =LOOKUP(YEAR(LD2),'General Assumptions'!5:5,'General Assumptions'!9:9) -> 0.01 | LE49: =LOOKUP(YEAR(LE2),'General Assumptions'!5:5,'General Assumptions'!9:9) -> 0.01 | LF49: =LOOKUP(YEAR(LF2),'General Assumptions'!5:5,'General Assumptions'!9:9) -> 0.01 | LG49: =LOOKUP(YEAR(LG2),'General Assumptions'!5:5,'General Assumptions'!9:9) -> 0.01 | LH49: =LOOKUP(YEAR(LH2),'General Assumptions'!5:5,'General Assumptions'!9:9) -> 0.01 | LI49: =LOOKUP(YEAR(LI2),'General Assumptions'!5:5,'General Assumptions'!9:9) -> 0.01 | LJ49: =LOOKUP(YEAR(LJ2),'General Assumptions'!5:5,'General Assumptions'!9:9) -> 0.01 | LK49: =LOOKUP(YEAR(LK2),'General Assumptions'!5:5,'General Assumptions'!9:9) -> 0.01 | LL49: =LOOKUP(YEAR(LL2),'General Assumptions'!5:5,'General Assumptions'!9:9) -> 0.01 | LM49: =LOOKUP(YEAR(LM2),'General Assumptions'!5:5,'General Assumptions'!9:9) -> 0.01 | LN49: =LOOKUP(YEAR(LN2),'General Assumptions'!5:5,'General Assumptions'!9:9) -> 0.01 | LO49: =LOOKUP(YEAR(LO2),'General Assumptions'!5:5,'General Assumptions'!9:9) -> 0.01 | LP49: =LOOKUP(YEAR(LP2),'General Assumptions'!5:5,'General Assumptions'!9:9) -> 0.01 | LQ49: =LOOKUP(YEAR(LQ2),'General Assumptions'!5:5,'General Assumptions'!9:9) -> 0.01 | LR49: =LOOKUP(YEAR(LR2),'General Assumptions'!5:5,'General Assumptions'!9:9) -> 0.01 | LS49: =LOOKUP(YEAR(LS2),'General Assumptions'!5:5,'General Assumptions'!9:9) -> 0.01 | LT49: =LOOKUP(YEAR(LT2),'General Assumptions'!5:5,'General Assumptions'!9:9) -> 0.01 | LU49: =LOOKUP(YEAR(LU2),'General Assumptions'!5:5,'General Assumptions'!9:9) -> 0.01 | LV49: =LOOKUP(YEAR(LV2),'General Assumptions'!5:5,'General Assumptions'!9:9) -> 0.01 | LW49: =LOOKUP(YEAR(LW2),'General Assumptions'!5:5,'General Assumptions'!9:9) -> 0.01 | LX49: =LOOKUP(YEAR(LX2),'General Assumptions'!5:5,'General Assumptions'!9:9) -> 0.01 | LY49: =LOOKUP(YEAR(LY2),'General Assumptions'!5:5,'General Assumptions'!9:9) -> 0.01 | LZ49: =LOOKUP(YEAR(LZ2),'General Assumptions'!5:5,'General Assumptions'!9:9) -> 0.01 | MA49: =LOOKUP(YEAR(MA2),'General Assumptions'!5:5,'General Assumptions'!9:9) -> 0.01 | MB49: =LOOKUP(YEAR(MB2),'General Assumptions'!5:5,'General Assumptions'!9:9) -> 0.01 | MC49: =LOOKUP(YEAR(MC2),'General Assumptions'!5:5,'General Assumptions'!9:9) -> 0.01 | MD49: =LOOKUP(YEAR(MD2),'General Assumptions'!5:5,'General Assumptions'!9:9) -> 0.01 | ME49: =LOOKUP(YEAR(ME2),'General Assumptions'!5:5,'General Assumptions'!9:9) -> 0.01 | MF49: =LOOKUP(YEAR(MF2),'General Assumptions'!5:5,'General Assumptions'!9:9) -> 0.01 | MG49: =LOOKUP(YEAR(MG2),'General Assumptions'!5:5,'General Assumptions'!9:9) -> 0.01 | MH49: =LOOKUP(YEAR(MH2),'General Assumptions'!5:5,'General Assumptions'!9:9) -> 0.01 | MI49: =LOOKUP(YEAR(MI2),'General Assumptions'!5:5,'General Assumptions'!9:9) -> 0.01 | MJ49: =LOOKUP(YEAR(MJ2),'General Assumptions'!5:5,'General Assumptions'!9:9) -> 0.01 | MK49: =LOOKUP(YEAR(MK2),'General Assumptions'!5:5,'General Assumptions'!9:9) -> 0.01 | ML49: =LOOKUP(YEAR(ML2),'General Assumptions'!5:5,'General Assumptions'!9:9) -> 0.01 | MM49: =LOOKUP(YEAR(MM2),'General Assumptions'!5:5,'General Assumptions'!9:9) -> 0.01 | MN49: =LOOKUP(YEAR(MN2),'General Assumptions'!5:5,'General Assumptions'!9:9) -> 0.01 | MO49: =LOOKUP(YEAR(MO2),'General Assumptions'!5:5,'General Assumptions'!9:9) -> 0.01 | MP49: =LOOKUP(YEAR(MP2),'General Assumptions'!5:5,'General Assumptions'!9:9) -> 0.01 | MQ49: =LOOKUP(YEAR(MQ2),'General Assumptions'!5:5,'General Assumptions'!9:9) -> 0.01 | MR49: =LOOKUP(YEAR(MR2),'General Assumptions'!5:5,'General Assumptions'!9:9) -> 0.01 | MS49: =LOOKUP(YEAR(MS2),'General Assumptions'!5:5,'General Assumptions'!9:9) -> 0.01 | MT49: =LOOKUP(YEAR(MT2),'General Assumptions'!5:5,'General Assumptions'!9:9) -> 0.01 | MU49: =LOOKUP(YEAR(MU2),'General Assumptions'!5:5,'General Assumptions'!9:9) -> 0.01 | MV49: =LOOKUP(YEAR(MV2),'General Assumptions'!5:5,'General Assumptions'!9:9) -> 0.01 | MW49: =LOOKUP(YEAR(MW2),'General Assumptions'!5:5,'General Assumptions'!9:9) -> 0.01 | MX49: =LOOKUP(YEAR(MX2),'General Assumptions'!5:5,'General Assumptions'!9:9) -> 0.01 | MY49: =LOOKUP(YEAR(MY2),'General Assumptions'!5:5,'General Assumptions'!9:9) -> 0.01 | MZ49: =LOOKUP(YEAR(MZ2),'General Assumptions'!5:5,'General Assumptions'!9:9) -> 0.01 | NA49: =LOOKUP(YEAR(NA2),'General Assumptions'!5:5,'General Assumptions'!9:9) -> 0.01 | NB49: =LOOKUP(YEAR(NB2),'General Assumptions'!5:5,'General Assumptions'!9:9) -> 0.01 | NC49: =LOOKUP(YEAR(NC2),'General Assumptions'!5:5,'General Assumptions'!9:9) -> 0.01 | ND49: =LOOKUP(YEAR(ND2),'General Assumptions'!5:5,'General Assumptions'!9:9) -> 0.01 | NE49: =LOOKUP(YEAR(NE2),'General Assumptions'!5:5,'General Assumptions'!9:9) -> 0.01 | NF49: =LOOKUP(YEAR(NF2),'General Assumptions'!5:5,'General Assumptions'!9:9) -> 0.01 | NG49: =LOOKUP(YEAR(NG2),'General Assumptions'!5:5,'General Assumptions'!9:9) -> 0.01 | NH49: =LOOKUP(YEAR(NH2),'General Assumptions'!5:5,'General Assumptions'!9:9) -> 0.01 | NI49: =LOOKUP(YEAR(NI2),'General Assumptions'!5:5,'General Assumptions'!9:9) -> 0.01 | NJ49: =LOOKUP(YEAR(NJ2),'General Assumptions'!5:5,'General Assumptions'!9:9) -> 0.01 | NK49: =LOOKUP(YEAR(NK2),'General Assumptions'!5:5,'General Assumptions'!9:9) -> 0.01 | NL49: =LOOKUP(YEAR(NL2),'General Assumptions'!5:5,'General Assumptions'!9:9) -> 0.01 | NM49: =LOOKUP(YEAR(NM2),'General Assumptions'!5:5,'General Assumptions'!9:9) -> 0.01 | NN49: =LOOKUP(YEAR(NN2),'General Assumptions'!5:5,'General Assumptions'!9:9) -> 0.01 | NO49: =LOOKUP(YEAR(NO2),'General Assumptions'!5:5,'General Assumptions'!9:9) -> 0.01 | NP49: =LOOKUP(YEAR(NP2),'General Assumptions'!5:5,'General Assumptions'!9:9) -> 0.01 | NQ49: =LOOKUP(YEAR(NQ2),'General Assumptions'!5:5,'General Assumptions'!9:9) -> 0.01 | NR49: =LOOKUP(YEAR(NR2),'General Assumptions'!5:5,'General Assumptions'!9:9) -> 0.01 | NS49: =LOOKUP(YEAR(NS2),'General Assumptions'!5:5,'General Assumptions'!9:9) -> 0.01 | NT49: =LOOKUP(YEAR(NT2),'General Assumptions'!5:5,'General Assumptions'!9:9) -> 0.01 | NU49: =LOOKUP(YEAR(NU2),'General Assumptions'!5:5,'General Assumptions'!9:9) -> 0.01 | NV49: =LOOKUP(YEAR(NV2),'General Assumptions'!5:5,'General Assumptions'!9:9) -> 0.01 | NW49: =LOOKUP(YEAR(NW2),'General Assumptions'!5:5,'General Assumptions'!9:9) -> 0.01 | NX49: =LOOKUP(YEAR(NX2),'General Assumptions'!5:5,'General Assumptions'!9:9) -> 0.01 | NY49: =LOOKUP(YEAR(NY2),'General Assumptions'!5:5,'General Assumptions'!9:9) -> 0.01 | NZ49: =LOOKUP(YEAR(NZ2),'General Assumptions'!5:5,'General Assumptions'!9:9) -> 0.01 | OA49: =LOOKUP(YEAR(OA2),'General Assumptions'!5:5,'General Assumptions'!9:9) -> 0.01 | OB49: =LOOKUP(YEAR(OB2),'General Assumptions'!5:5,'General Assumptions'!9:9) -> 0.01 | OC49: =LOOKUP(YEAR(OC2),'General Assumptions'!5:5,'General Assumptions'!9:9) -> 0.01 | OD49: =LOOKUP(YEAR(OD2),'General Assumptions'!5:5,'General Assumptions'!9:9) -> 0.01 | OE49: =LOOKUP(YEAR(OE2),'General Assumptions'!5:5,'General Assumptions'!9:9) -> 0.01 | OF49: =LOOKUP(YEAR(OF2),'General Assumptions'!5:5,'General Assumptions'!9:9) -> 0.01 | OG49: =LOOKUP(YEAR(OG2),'General Assumptions'!5:5,'General Assumptions'!9:9) -> 0.01 | OH49: =LOOKUP(YEAR(OH2),'General Assumptions'!5:5,'General Assumptions'!9:9) -> 0.01 | OI49: =LOOKUP(YEAR(OI2),'General Assumptions'!5:5,'General Assumptions'!9:9) -> 0.01 | OJ49: =LOOKUP(YEAR(OJ2),'General Assumptions'!5:5,'General Assumptions'!9:9) -> 0.01 | OK49: =LOOKUP(YEAR(OK2),'General Assumptions'!5:5,'General Assumptions'!9:9) -> 0.01 | OL49: =LOOKUP(YEAR(OL2),'General Assumptions'!5:5,'General Assumptions'!9:9) -> 0.01 | OM49: =LOOKUP(YEAR(OM2),'General Assumptions'!5:5,'General Assumptions'!9:9) -> 0.01 | ON49: =LOOKUP(YEAR(ON2),'General Assumptions'!5:5,'General Assumptions'!9:9) -> 0.01 | OO49: =LOOKUP(YEAR(OO2),'General Assumptions'!5:5,'General Assumptions'!9:9) -> 0.01 | OP49: =LOOKUP(YEAR(OP2),'General Assumptions'!5:5,'General Assumptions'!9:9) -> 0.01 | OQ49: =LOOKUP(YEAR(OQ2),'General Assumptions'!5:5,'General Assumptions'!9:9) -> 0.01 | OR49: =LOOKUP(YEAR(OR2),'General Assumptions'!5:5,'General Assumptions'!9:9) -> 0.01 | OS49: =LOOKUP(YEAR(OS2),'General Assumptions'!5:5,'General Assumptions'!9:9) -> 0.01 | OT49: =LOOKUP(YEAR(OT2),'General Assumptions'!5:5,'General Assumptions'!9:9) -> 0.01
B50: EURO Monthly Inflation Rate | K50: =(1+K49)^(1/12)-1 -> 0.0008295381143 | L50: =(1+L49)^(1/12)-1 -> 0.0008295381143 | M50: 0.0008295381143 | N50: 0.0008295381143 | O50: 0.0008295381143 | P50: 0.0008295381143 | Q50: 0.0008295381143 | R50: 0.0008295381143 | S50: 0.0008295381143 | T50: 0.0008295381143 | U50: 0.0008295381143 | V50: 0.0008295381143 | W50: 0.0008295381143 | X50: 0.0008295381143 | Y50: 0.0008295381143 | Z50: 0.0008295381143 | AA50: 0.0008295381143 | AB50: 0.0008295381143 | AC50: 0.0008295381143 | AD50: 0.0008295381143 | AE50: 0.0008295381143 | AF50: 0.0008295381143 | AG50: 0.0008295381143 | AH50: 0.0008295381143 | AI50: 0.0008295381143 | AJ50: 0.0008295381143 | AK50: 0.0008295381143 | AL50: 0.0008295381143 | AM50: 0.0008295381143 | AN50: 0.0008295381143 | AO50: 0.0008295381143 | AP50: 0.0008295381143 | AQ50: 0.0008295381143 | AR50: 0.0008295381143 | AS50: 0.0008295381143 | AT50: 0.0008295381143 | AU50: 0.0008295381143 | AV50: 0.0008295381143 | AW50: 0.0008295381143 | AX50: 0.0008295381143 | AY50: 0.0008295381143 | AZ50: 0.0008295381143 | BA50: 0.0008295381143 | BB50: 0.0008295381143 | BC50: 0.0008295381143 | BD50: 0.0008295381143 | BE50: 0.0008295381143 | BF50: 0.0008295381143 | BG50: 0.0008295381143 | BH50: 0.0008295381143 | BI50: 0.0008295381143 | BJ50: 0.0008295381143 | BK50: 0.0008295381143 | BL50: 0.0008295381143 | BM50: 0.0008295381143 | BN50: 0.0008295381143 | BO50: 0.0008295381143 | BP50: 0.0008295381143 | BQ50: 0.0008295381143 | BR50: 0.0008295381143 | BS50: 0.0008295381143 | BT50: 0.0008295381143 | BU50: 0.0008295381143 | BV50: 0.0008295381143 | BW50: 0.0008295381143 | BX50: =(1+BX49)^(1/12)-1 -> 0.0008295381143 | BY50: 0.0008295381143 | BZ50: 0.0008295381143 | CA50: 0.0008295381143 | CB50: 0.0008295381143 | CC50: 0.0008295381143 | CD50: 0.0008295381143 | CE50: 0.0008295381143 | CF50: 0.0008295381143 | CG50: 0.0008295381143 | CH50: 0.0008295381143 | CI50: 0.0008295381143 | CJ50: 0.0008295381143 | CK50: 0.0008295381143 | CL50: 0.0008295381143 | CM50: 0.0008295381143 | CN50: 0.0008295381143 | CO50: 0.0008295381143 | CP50: 0.0008295381143 | CQ50: 0.0008295381143 | CR50: 0.0008295381143 | CS50: 0.0008295381143 | CT50: 0.0008295381143 | CU50: 0.0008295381143 | CV50: 0.0008295381143 | CW50: 0.0008295381143 | CX50: 0.0008295381143 | CY50: 0.0008295381143 | CZ50: 0.0008295381143 | DA50: 0.0008295381143 | DB50: 0.0008295381143 | DC50: 0.0008295381143 | DD50: 0.0008295381143 | DE50: 0.0008295381143 | DF50: 0.0008295381143 | DG50: 0.0008295381143 | DH50: 0.0008295381143 | DI50: 0.0008295381143 | DJ50: 0.0008295381143 | DK50: 0.0008295381143 | DL50: 0.0008295381143 | DM50: 0.0008295381143 | DN50: 0.0008295381143 | DO50: 0.0008295381143 | DP50: 0.0008295381143 | DQ50: 0.0008295381143 | DR50: 0.0008295381143 | DS50: 0.0008295381143 | DT50: 0.0008295381143 | DU50: 0.0008295381143 | DV50: 0.0008295381143 | DW50: 0.0008295381143 | DX50: 0.0008295381143 | DY50: 0.0008295381143 | DZ50: 0.0008295381143 | EA50: 0.0008295381143 | EB50: 0.0008295381143 | EC50: 0.0008295381143 | ED50: 0.0008295381143 | EE50: 0.0008295381143 | EF50: 0.0008295381143 | EG50: 0.0008295381143 | EH50: 0.0008295381143 | EI50: 0.0008295381143 | EJ50: =(1+EJ49)^(1/12)-1 -> 0.0008295381143 | EK50: 0.0008295381143 | EL50: 0.0008295381143 | EM50: 0.0008295381143 | EN50: 0.0008295381143 | EO50: 0.0008295381143 | EP50: 0.0008295381143 | EQ50: 0.0008295381143 | ER50: 0.0008295381143 | ES50: 0.0008295381143 | ET50: 0.0008295381143 | EU50: 0.0008295381143 | EV50: 0.0008295381143 | EW50: 0.0008295381143 | EX50: 0.0008295381143 | EY50: 0.0008295381143 | EZ50: 0.0008295381143 | FA50: 0.0008295381143 | FB50: 0.0008295381143 | FC50: 0.0008295381143 | FD50: 0.0008295381143 | FE50: 0.0008295381143 | FF50: 0.0008295381143 | FG50: 0.0008295381143 | FH50: 0.0008295381143 | FI50: 0.0008295381143 | FJ50: 0.0008295381143 | FK50: 0.0008295381143 | FL50: 0.0008295381143 | FM50: 0.0008295381143 | FN50: 0.0008295381143 | FO50: 0.0008295381143 | FP50: 0.0008295381143 | FQ50: 0.0008295381143 | FR50: 0.0008295381143 | FS50: 0.0008295381143 | FT50: 0.0008295381143 | FU50: 0.0008295381143 | FV50: 0.0008295381143 | FW50: 0.0008295381143 | FX50: 0.0008295381143 | FY50: 0.0008295381143 | FZ50: 0.0008295381143 | GA50: 0.0008295381143 | GB50: 0.0008295381143 | GC50: 0.0008295381143 | GD50: 0.0008295381143 | GE50: 0.0008295381143 | GF50: 0.0008295381143 | GG50: 0.0008295381143 | GH50: 0.0008295381143 | GI50: 0.0008295381143 | GJ50: 0.0008295381143 | GK50: 0.0008295381143 | GL50: 0.0008295381143 | GM50: 0.0008295381143 | GN50: 0.0008295381143 | GO50: 0.0008295381143 | GP50: 0.0008295381143 | GQ50: 0.0008295381143 | GR50: 0.0008295381143 | GS50: 0.0008295381143 | GT50: 0.0008295381143 | GU50: 0.0008295381143 | GV50: =(1+GV49)^(1/12)-1 -> 0.0008295381143 | GW50: 0.0008295381143 | GX50: 0.0008295381143 | GY50: 0.0008295381143 | GZ50: 0.0008295381143 | HA50: 0.0008295381143 | HB50: 0.0008295381143 | HC50: 0.0008295381143 | HD50: 0.0008295381143 | HE50: 0.0008295381143 | HF50: 0.0008295381143 | HG50: 0.0008295381143 | HH50: 0.0008295381143 | HI50: 0.0008295381143 | HJ50: 0.0008295381143 | HK50: 0.0008295381143 | HL50: 0.0008295381143 | HM50: 0.0008295381143 | HN50: 0.0008295381143 | HO50: 0.0008295381143 | HP50: 0.0008295381143 | HQ50: 0.0008295381143 | HR50: 0.0008295381143 | HS50: 0.0008295381143 | HT50: 0.0008295381143 | HU50: 0.0008295381143 | HV50: 0.0008295381143 | HW50: 0.0008295381143 | HX50: 0.0008295381143 | HY50: 0.0008295381143 | HZ50: 0.0008295381143 | IA50: 0.0008295381143 | IB50: 0.0008295381143 | IC50: 0.0008295381143 | ID50: 0.0008295381143 | IE50: 0.0008295381143 | IF50: 0.0008295381143 | IG50: 0.0008295381143 | IH50: 0.0008295381143 | II50: 0.0008295381143 | IJ50: 0.0008295381143 | IK50: 0.0008295381143 | IL50: 0.0008295381143 | IM50: 0.0008295381143 | IN50: 0.0008295381143 | IO50: 0.0008295381143 | IP50: 0.0008295381143 | IQ50: 0.0008295381143 | IR50: 0.0008295381143 | IS50: 0.0008295381143 | IT50: 0.0008295381143 | IU50: 0.0008295381143 | IV50: 0.0008295381143 | IW50: 0.0008295381143 | IX50: 0.0008295381143 | IY50: 0.0008295381143 | IZ50: 0.0008295381143 | JA50: 0.0008295381143 | JB50: 0.0008295381143 | JC50: 0.0008295381143 | JD50: 0.0008295381143 | JE50: 0.0008295381143 | JF50: 0.0008295381143 | JG50: 0.0008295381143 | JH50: =(1+JH49)^(1/12)-1 -> 0.0008295381143 | JI50: 0.0008295381143 | JJ50: 0.0008295381143 | JK50: 0.0008295381143 | JL50: 0.0008295381143 | JM50: 0.0008295381143 | JN50: 0.0008295381143 | JO50: 0.0008295381143 | JP50: 0.0008295381143 | JQ50: 0.0008295381143 | JR50: 0.0008295381143 | JS50: 0.0008295381143 | JT50: 0.0008295381143 | JU50: 0.0008295381143 | JV50: 0.0008295381143 | JW50: 0.0008295381143 | JX50: 0.0008295381143 | JY50: 0.0008295381143 | JZ50: 0.0008295381143 | KA50: 0.0008295381143 | KB50: 0.0008295381143 | KC50: 0.0008295381143 | KD50: 0.0008295381143 | KE50: 0.0008295381143 | KF50: 0.0008295381143 | KG50: 0.0008295381143 | KH50: 0.0008295381143 | KI50: 0.0008295381143 | KJ50: 0.0008295381143 | KK50: 0.0008295381143 | KL50: 0.0008295381143 | KM50: 0.0008295381143 | KN50: 0.0008295381143 | KO50: 0.0008295381143 | KP50: 0.0008295381143 | KQ50: 0.0008295381143 | KR50: 0.0008295381143 | KS50: 0.0008295381143 | KT50: 0.0008295381143 | KU50: 0.0008295381143 | KV50: 0.0008295381143 | KW50: 0.0008295381143 | KX50: 0.0008295381143 | KY50: 0.0008295381143 | KZ50: 0.0008295381143 | LA50: 0.0008295381143 | LB50: 0.0008295381143 | LC50: 0.0008295381143 | LD50: 0.0008295381143 | LE50: 0.0008295381143 | LF50: 0.0008295381143 | LG50: 0.0008295381143 | LH50: 0.0008295381143 | LI50: 0.0008295381143 | LJ50: 0.0008295381143 | LK50: 0.0008295381143 | LL50: 0.0008295381143 | LM50: 0.0008295381143 | LN50: 0.0008295381143 | LO50: 0.0008295381143 | LP50: 0.0008295381143 | LQ50: 0.0008295381143 | LR50: 0.0008295381143 | LS50: 0.0008295381143 | LT50: =(1+LT49)^(1/12)-1 -> 0.0008295381143 | LU50: 0.0008295381143 | LV50: 0.0008295381143 | LW50: 0.0008295381143 | LX50: 0.0008295381143 | LY50: 0.0008295381143 | LZ50: 0.0008295381143 | MA50: 0.0008295381143 | MB50: 0.0008295381143 | MC50: 0.0008295381143 | MD50: 0.0008295381143 | ME50: 0.0008295381143 | MF50: 0.0008295381143 | MG50: 0.0008295381143 | MH50: 0.0008295381143 | MI50: 0.0008295381143 | MJ50: 0.0008295381143 | MK50: 0.0008295381143 | ML50: 0.0008295381143 | MM50: 0.0008295381143 | MN50: 0.0008295381143 | MO50: 0.0008295381143 | MP50: 0.0008295381143 | MQ50: 0.0008295381143 | MR50: 0.0008295381143 | MS50: 0.0008295381143 | MT50: 0.0008295381143 | MU50: 0.0008295381143 | MV50: 0.0008295381143 | MW50: 0.0008295381143 | MX50: 0.0008295381143 | MY50: 0.0008295381143 | MZ50: 0.0008295381143 | NA50: 0.0008295381143 | NB50: 0.0008295381143 | NC50: 0.0008295381143 | ND50: 0.0008295381143 | NE50: 0.0008295381143 | NF50: 0.0008295381143 | NG50: 0.0008295381143 | NH50: 0.0008295381143 | NI50: 0.0008295381143 | NJ50: 0.0008295381143 | NK50: 0.0008295381143 | NL50: 0.0008295381143 | NM50: 0.0008295381143 | NN50: 0.0008295381143 | NO50: 0.0008295381143 | NP50: 0.0008295381143 | NQ50: 0.0008295381143 | NR50: 0.0008295381143 | NS50: 0.0008295381143 | NT50: 0.0008295381143 | NU50: 0.0008295381143 | NV50: 0.0008295381143 | NW50: 0.0008295381143 | NX50: 0.0008295381143 | NY50: 0.0008295381143 | NZ50: 0.0008295381143 | OA50: 0.0008295381143 | OB50: 0.0008295381143 | OC50: 0.0008295381143 | OD50: 0.0008295381143 | OE50: 0.0008295381143 | OF50: =(1+OF49)^(1/12)-1 -> 0.0008295381143 | OG50: 0.0008295381143 | OH50: 0.0008295381143 | OI50: 0.0008295381143 | OJ50: 0.0008295381143 | OK50: 0.0008295381143 | OL50: 0.0008295381143 | OM50: 0.0008295381143 | ON50: 0.0008295381143 | OO50: 0.0008295381143 | OP50: 0.0008295381143 | OQ50: 0.0008295381143 | OR50: 0.0008295381143 | OS50: 0.0008295381143 | OT50: 0.0008295381143
B51: EURO Inflation Index | J51: 1 | K51: =J51*(1+K50) -> 1.000829538 | L51: =K51*(1+L50) -> 1.001659764 | M51: 1.002490679 | N51: 1.003322284 | O51: 1.004154578 | P51: 1.004987562 | Q51: 1.005821238 | R51: 1.006655605 | S51: 1.007490664 | T51: 1.008326416 | U51: 1.009162861 | V51: 1.01 | W51: 1.010837833 | X51: 1.011676362 | Y51: 1.012515586 | Z51: 1.013355506 | AA51: 1.014196123 | AB51: 1.015037438 | AC51: 1.01587945 | AD51: 1.016722161 | AE51: 1.01756557 | AF51: 1.01840968 | AG51: 1.01925449 | AH51: 1.0201 | AI51: 1.020946212 | AJ51: 1.021793126 | AK51: 1.022640742 | AL51: 1.023489061 | AM51: 1.024338085 | AN51: 1.025187812 | AO51: 1.026038244 | AP51: 1.026889382 | AQ51: 1.027741226 | AR51: 1.028593777 | AS51: 1.029447034 | AT51: 1.030301 | AU51: 1.031155674 | AV51: 1.032011057 | AW51: 1.032867149 | AX51: 1.033723952 | AY51: 1.034581465 | AZ51: 1.03543969 | BA51: 1.036298627 | BB51: 1.037158276 | BC51: 1.038018638 | BD51: 1.038879714 | BE51: 1.039741505 | BF51: 1.04060401 | BG51: 1.041467231 | BH51: 1.042331167 | BI51: 1.043195821 | BJ51: 1.044061192 | BK51: 1.04492728 | BL51: 1.045794087 | BM51: 1.046661613 | BN51: 1.047529859 | BO51: 1.048398825 | BP51: 1.049268512 | BQ51: 1.05013892 | BR51: 1.05101005 | BS51: 1.051881903 | BT51: 1.052754479 | BU51: 1.053627779 | BV51: 1.054501803 | BW51: 1.055376553 | BX51: =BW51*(1+BX50) -> 1.056252028 | BY51: 1.057128229 | BZ51: 1.058005157 | CA51: 1.058882813 | CB51: 1.059761197 | CC51: 1.060640309 | CD51: 1.061520151 | CE51: 1.062400722 | CF51: 1.063282024 | CG51: 1.064164057 | CH51: 1.065046822 | CI51: 1.065930318 | CJ51: 1.066814548 | CK51: 1.067699512 | CL51: 1.068585209 | CM51: 1.069471641 | CN51: 1.070358809 | CO51: 1.071246712 | CP51: 1.072135352 | CQ51: 1.073024729 | CR51: 1.073914844 | CS51: 1.074805697 | CT51: 1.07569729 | CU51: 1.076589622 | CV51: 1.077482694 | CW51: 1.078376507 | CX51: 1.079271061 | CY51: 1.080166358 | CZ51: 1.081062397 | DA51: 1.081959179 | DB51: 1.082856706 | DC51: 1.083754977 | DD51: 1.084653993 | DE51: 1.085553754 | DF51: 1.086454263 | DG51: 1.087355518 | DH51: 1.088257521 | DI51: 1.089160272 | DJ51: 1.090063772 | DK51: 1.090968021 | DL51: 1.091873021 | DM51: 1.092778771 | DN51: 1.093685273 | DO51: 1.094592526 | DP51: 1.095500533 | DQ51: 1.096409292 | DR51: 1.097318805 | DS51: 1.098229073 | DT51: 1.099140096 | DU51: 1.100051875 | DV51: 1.100964409 | DW51: 1.101877701 | DX51: 1.102791751 | DY51: 1.103706559 | DZ51: 1.104622125 | EA51: 1.105538452 | EB51: 1.106455538 | EC51: 1.107373385 | ED51: 1.108291993 | EE51: 1.109211364 | EF51: 1.110131497 | EG51: 1.111052393 | EH51: 1.111974054 | EI51: 1.112896478 | EJ51: =EI51*(1+EJ50) -> 1.113819668 | EK51: 1.114743624 | EL51: 1.115668347 | EM51: 1.116593836 | EN51: 1.117520093 | EO51: 1.118447119 | EP51: 1.119374913 | EQ51: 1.120303477 | ER51: 1.121232812 | ES51: 1.122162917 | ET51: 1.123093794 | EU51: 1.124025443 | EV51: 1.124957865 | EW51: 1.125891061 | EX51: 1.12682503 | EY51: 1.127759774 | EZ51: 1.128695294 | FA51: 1.12963159 | FB51: 1.130568662 | FC51: 1.131506512 | FD51: 1.13244514 | FE51: 1.133384546 | FF51: 1.134324732 | FG51: 1.135265698 | FH51: 1.136207444 | FI51: 1.137149971 | FJ51: 1.13809328 | FK51: 1.139037372 | FL51: 1.139982247 | FM51: 1.140927906 | FN51: 1.141874349 | FO51: 1.142821577 | FP51: 1.143769591 | FQ51: 1.144718392 | FR51: 1.145667979 | FS51: 1.146618355 | FT51: 1.147569518 | FU51: 1.148521471 | FV51: 1.149474213 | FW51: 1.150427746 | FX51: 1.15138207 | FY51: 1.152337185 | FZ51: 1.153293092 | GA51: 1.154249793 | GB51: 1.155207287 | GC51: 1.156165576 | GD51: 1.157124659 | GE51: 1.158084538 | GF51: 1.159045213 | GG51: 1.160006686 | GH51: 1.160968955 | GI51: 1.161932023 | GJ51: 1.16289589 | GK51: 1.163860557 | GL51: 1.164826023 | GM51: 1.165792291 | GN51: 1.16675936 | GO51: 1.167727232 | GP51: 1.168695906 | GQ51: 1.169665384 | GR51: 1.170635666 | GS51: 1.171606752 | GT51: 1.172578645 | GU51: 1.173551344 | GV51: =GU51*(1+GV50) -> 1.174524849 | GW51: 1.175499162 | GX51: 1.176474284 | GY51: 1.177450214 | GZ51: 1.178426954 | HA51: 1.179404504 | HB51: 1.180382865 | HC51: 1.181362037 | HD51: 1.182342022 | HE51: 1.18332282 | HF51: 1.184304431 | HG51: 1.185286857 | HH51: 1.186270098 | HI51: 1.187254154 | HJ51: 1.188239026 | HK51: 1.189224716 | HL51: 1.190211223 | HM51: 1.191198549 | HN51: 1.192186693 | HO51: 1.193175658 | HP51: 1.194165442 | HQ51: 1.195156048 | HR51: 1.196147476 | HS51: 1.197139726 | HT51: 1.198132799 | HU51: 1.199126695 | HV51: 1.200121417 | HW51: 1.201116963 | HX51: 1.202113336 | HY51: 1.203110534 | HZ51: 1.20410856 | IA51: 1.205107414 | IB51: 1.206107097 | IC51: 1.207107609 | ID51: 1.20810895 | IE51: 1.209111123 | IF51: 1.210114127 | IG51: 1.211117962 | IH51: 1.212122631 | II51: 1.213128133 | IJ51: 1.214134469 | IK51: 1.21514164 | IL51: 1.216149646 | IM51: 1.217158488 | IN51: 1.218168168 | IO51: 1.219178685 | IP51: 1.22019004 | IQ51: 1.221202234 | IR51: 1.222215268 | IS51: 1.223229142 | IT51: 1.224243857 | IU51: 1.225259414 | IV51: 1.226275814 | IW51: 1.227293056 | IX51: 1.228311142 | IY51: 1.229330073 | IZ51: 1.23034985 | JA51: 1.231370472 | JB51: 1.23239194 | JC51: 1.233414256 | JD51: 1.234437421 | JE51: 1.235461433 | JF51: 1.236486296 | JG51: 1.237512008 | JH51: =JG51*(1+JH50) -> 1.238538572 | JI51: 1.239565987 | JJ51: 1.240594254 | JK51: 1.241623374 | JL51: 1.242653348 | JM51: 1.243684176 | JN51: 1.24471586 | JO51: 1.245748399 | JP51: 1.246781795 | JQ51: 1.247816048 | JR51: 1.248851159 | JS51: 1.249887128 | JT51: 1.250923957 | JU51: 1.251961647 | JV51: 1.253000196 | JW51: 1.254039608 | JX51: 1.255079881 | JY51: 1.256121018 | JZ51: 1.257163018 | KA51: 1.258205883 | KB51: 1.259249613 | KC51: 1.260294208 | KD51: 1.26133967 | KE51: 1.262386 | KF51: 1.263433197 | KG51: 1.264481263 | KH51: 1.265530198 | KI51: 1.266580004 | KJ51: 1.26763068 | KK51: 1.268682228 | KL51: 1.269734649 | KM51: 1.270787942 | KN51: 1.271842109 | KO51: 1.27289715 | KP51: 1.273953067 | KQ51: 1.27500986 | KR51: 1.276067529 | KS51: 1.277126076 | KT51: 1.2781855 | KU51: 1.279245804 | KV51: 1.280306987 | KW51: 1.281369051 | KX51: 1.282431995 | KY51: 1.283495821 | KZ51: 1.28456053 | LA51: 1.285626122 | LB51: 1.286692598 | LC51: 1.287759958 | LD51: 1.288828204 | LE51: 1.289897336 | LF51: 1.290967355 | LG51: 1.292038262 | LH51: 1.293110057 | LI51: 1.294182741 | LJ51: 1.295256315 | LK51: 1.296330779 | LL51: 1.297406135 | LM51: 1.298482383 | LN51: 1.299559524 | LO51: 1.300637558 | LP51: 1.301716486 | LQ51: 1.30279631 | LR51: 1.303877029 | LS51: 1.304958645 | LT51: =LS51*(1+LT50) -> 1.306041158 | LU51: 1.307124568 | LV51: 1.308208878 | LW51: 1.309294087 | LX51: 1.310380197 | LY51: 1.311467207 | LZ51: 1.312555119 | MA51: 1.313643933 | MB51: 1.314733651 | MC51: 1.315824273 | MD51: 1.316915799 | ME51: 1.318008231 | MF51: 1.319101569 | MG51: 1.320195814 | MH51: 1.321290967 | MI51: 1.322387028 | MJ51: 1.323483999 | MK51: 1.324581879 | ML51: 1.32568067 | MM51: 1.326780373 | MN51: 1.327880988 | MO51: 1.328982516 | MP51: 1.330084957 | MQ51: 1.331188313 | MR51: 1.332292585 | MS51: 1.333397772 | MT51: 1.334503877 | MU51: 1.335610898 | MV51: 1.336718839 | MW51: 1.337827698 | MX51: 1.338937477 | MY51: 1.340048177 | MZ51: 1.341159798 | NA51: 1.342272341 | NB51: 1.343385807 | NC51: 1.344500197 | ND51: 1.345615511 | NE51: 1.34673175 | NF51: 1.347848915 | NG51: 1.348967007 | NH51: 1.350086027 | NI51: 1.351205975 | NJ51: 1.352326852 | NK51: 1.353448658 | NL51: 1.354571396 | NM51: 1.355695064 | NN51: 1.356819665 | NO51: 1.357945198 | NP51: 1.359071666 | NQ51: 1.360199068 | NR51: 1.361327404 | NS51: 1.362456677 | NT51: 1.363586887 | NU51: 1.364718034 | NV51: 1.36585012 | NW51: 1.366983145 | NX51: 1.368117109 | NY51: 1.369252015 | NZ51: 1.370387861 | OA51: 1.37152465 | OB51: 1.372662382 | OC51: 1.373801058 | OD51: 1.374940679 | OE51: 1.376081244 | OF51: =OE51*(1+OF50) -> 1.377222756 | OG51: 1.378365215 | OH51: 1.379508621 | OI51: 1.380652976 | OJ51: 1.381798281 | OK51: 1.382944535 | OL51: 1.38409174 | OM51: 1.385239897 | ON51: 1.386389006 | OO51: 1.387539069 | OP51: 1.388690085 | OQ51: 1.389842057 | OR51: 1.390994984 | OS51: 1.392148867 | OT51: 1.393303708
B52: EGP Annual Inflation Rate | K52: =LOOKUP(YEAR(K2),'General Assumptions'!5:5,'General Assumptions'!10:10) -> 0.065 | L52: =LOOKUP(YEAR(L2),'General Assumptions'!5:5,'General Assumptions'!10:10) -> 0.065 | M52: =LOOKUP(YEAR(M2),'General Assumptions'!5:5,'General Assumptions'!10:10) -> 0.065 | N52: =LOOKUP(YEAR(N2),'General Assumptions'!5:5,'General Assumptions'!10:10) -> 0.065 | O52: =LOOKUP(YEAR(O2),'General Assumptions'!5:5,'General Assumptions'!10:10) -> 0.065 | P52: =LOOKUP(YEAR(P2),'General Assumptions'!5:5,'General Assumptions'!10:10) -> 0.065 | Q52: =LOOKUP(YEAR(Q2),'General Assumptions'!5:5,'General Assumptions'!10:10) -> 0.065 | R52: =LOOKUP(YEAR(R2),'General Assumptions'!5:5,'General Assumptions'!10:10) -> 0.065 | S52: =LOOKUP(YEAR(S2),'General Assumptions'!5:5,'General Assumptions'!10:10) -> 0.065 | T52: =LOOKUP(YEAR(T2),'General Assumptions'!5:5,'General Assumptions'!10:10) -> 0.065 | U52: =LOOKUP(YEAR(U2),'General Assumptions'!5:5,'General Assumptions'!10:10) -> 0.065 | V52: =LOOKUP(YEAR(V2),'General Assumptions'!5:5,'General Assumptions'!10:10) -> 0.065 | W52: =LOOKUP(YEAR(W2),'General Assumptions'!5:5,'General Assumptions'!10:10) -> 0.065 | X52: =LOOKUP(YEAR(X2),'General Assumptions'!5:5,'General Assumptions'!10:10) -> 0.065 | Y52: =LOOKUP(YEAR(Y2),'General Assumptions'!5:5,'General Assumptions'!10:10) -> 0.065 | Z52: =LOOKUP(YEAR(Z2),'General Assumptions'!5:5,'General Assumptions'!10:10) -> 0.065 | AA52: =LOOKUP(YEAR(AA2),'General Assumptions'!5:5,'General Assumptions'!10:10) -> 0.065 | AB52: =LOOKUP(YEAR(AB2),'General Assumptions'!5:5,'General Assumptions'!10:10) -> 0.065 | AC52: =LOOKUP(YEAR(AC2),'General Assumptions'!5:5,'General Assumptions'!10:10) -> 0.065 | AD52: =LOOKUP(YEAR(AD2),'General Assumptions'!5:5,'General Assumptions'!10:10) -> 0.065 | AE52: =LOOKUP(YEAR(AE2),'General Assumptions'!5:5,'General Assumptions'!10:10) -> 0.065 | AF52: =LOOKUP(YEAR(AF2),'General Assumptions'!5:5,'General Assumptions'!10:10) -> 0.065 | AG52: =LOOKUP(YEAR(AG2),'General Assumptions'!5:5,'General Assumptions'!10:10) -> 0.065 | AH52: =LOOKUP(YEAR(AH2),'General Assumptions'!5:5,'General Assumptions'!10:10) -> 0.065 | AI52: =LOOKUP(YEAR(AI2),'General Assumptions'!5:5,'General Assumptions'!10:10) -> 0.065 | AJ52: =LOOKUP(YEAR(AJ2),'General Assumptions'!5:5,'General Assumptions'!10:10) -> 0.065 | AK52: =LOOKUP(YEAR(AK2),'General Assumptions'!5:5,'General Assumptions'!10:10) -> 0.065 | AL52: =LOOKUP(YEAR(AL2),'General Assumptions'!5:5,'General Assumptions'!10:10) -> 0.065 | AM52: =LOOKUP(YEAR(AM2),'General Assumptions'!5:5,'General Assumptions'!10:10) -> 0.065 | AN52: =LOOKUP(YEAR(AN2),'General Assumptions'!5:5,'General Assumptions'!10:10) -> 0.065 | AO52: =LOOKUP(YEAR(AO2),'General Assumptions'!5:5,'General Assumptions'!10:10) -> 0.065 | AP52: =LOOKUP(YEAR(AP2),'General Assumptions'!5:5,'General Assumptions'!10:10) -> 0.065 | AQ52: =LOOKUP(YEAR(AQ2),'General Assumptions'!5:5,'General Assumptions'!10:10) -> 0.065 | AR52: =LOOKUP(YEAR(AR2),'General Assumptions'!5:5,'General Assumptions'!10:10) -> 0.065 | AS52: =LOOKUP(YEAR(AS2),'General Assumptions'!5:5,'General Assumptions'!10:10) -> 0.065 | AT52: =LOOKUP(YEAR(AT2),'General Assumptions'!5:5,'General Assumptions'!10:10) -> 0.065 | AU52: =LOOKUP(YEAR(AU2),'General Assumptions'!5:5,'General Assumptions'!10:10) -> 0.065 | AV52: =LOOKUP(YEAR(AV2),'General Assumptions'!5:5,'General Assumptions'!10:10) -> 0.065 | AW52: =LOOKUP(YEAR(AW2),'General Assumptions'!5:5,'General Assumptions'!10:10) -> 0.065 | AX52: =LOOKUP(YEAR(AX2),'General Assumptions'!5:5,'General Assumptions'!10:10) -> 0.065 | AY52: =LOOKUP(YEAR(AY2),'General Assumptions'!5:5,'General Assumptions'!10:10) -> 0.065 | AZ52: =LOOKUP(YEAR(AZ2),'General Assumptions'!5:5,'General Assumptions'!10:10) -> 0.065 | BA52: =LOOKUP(YEAR(BA2),'General Assumptions'!5:5,'General Assumptions'!10:10) -> 0.065 | BB52: =LOOKUP(YEAR(BB2),'General Assumptions'!5:5,'General Assumptions'!10:10) -> 0.065 | BC52: =LOOKUP(YEAR(BC2),'General Assumptions'!5:5,'General Assumptions'!10:10) -> 0.065 | BD52: =LOOKUP(YEAR(BD2),'General Assumptions'!5:5,'General Assumptions'!10:10) -> 0.065 | BE52: =LOOKUP(YEAR(BE2),'General Assumptions'!5:5,'General Assumptions'!10:10) -> 0.065 | BF52: =LOOKUP(YEAR(BF2),'General Assumptions'!5:5,'General Assumptions'!10:10) -> 0.065 | BG52: =LOOKUP(YEAR(BG2),'General Assumptions'!5:5,'General Assumptions'!10:10) -> 0.065 | BH52: =LOOKUP(YEAR(BH2),'General Assumptions'!5:5,'General Assumptions'!10:10) -> 0.065 | BI52: =LOOKUP(YEAR(BI2),'General Assumptions'!5:5,'General Assumptions'!10:10) -> 0.065 | BJ52: =LOOKUP(YEAR(BJ2),'General Assumptions'!5:5,'General Assumptions'!10:10) -> 0.065 | BK52: =LOOKUP(YEAR(BK2),'General Assumptions'!5:5,'General Assumptions'!10:10) -> 0.065 | BL52: =LOOKUP(YEAR(BL2),'General Assumptions'!5:5,'General Assumptions'!10:10) -> 0.065 | BM52: =LOOKUP(YEAR(BM2),'General Assumptions'!5:5,'General Assumptions'!10:10) -> 0.065 | BN52: =LOOKUP(YEAR(BN2),'General Assumptions'!5:5,'General Assumptions'!10:10) -> 0.065 | BO52: =LOOKUP(YEAR(BO2),'General Assumptions'!5:5,'General Assumptions'!10:10) -> 0.065 | BP52: =LOOKUP(YEAR(BP2),'General Assumptions'!5:5,'General Assumptions'!10:10) -> 0.065 | BQ52: =LOOKUP(YEAR(BQ2),'General Assumptions'!5:5,'General Assumptions'!10:10) -> 0.065 | BR52: =LOOKUP(YEAR(BR2),'General Assumptions'!5:5,'General Assumptions'!10:10) -> 0.065 | BS52: =LOOKUP(YEAR(BS2),'General Assumptions'!5:5,'General Assumptions'!10:10) -> 0.065 | BT52: =LOOKUP(YEAR(BT2),'General Assumptions'!5:5,'General Assumptions'!10:10) -> 0.065 | BU52: =LOOKUP(YEAR(BU2),'General Assumptions'!5:5,'General Assumptions'!10:10) -> 0.065 | BV52: =LOOKUP(YEAR(BV2),'General Assumptions'!5:5,'General Assumptions'!10:10) -> 0.065 | BW52: =LOOKUP(YEAR(BW2),'General Assumptions'!5:5,'General Assumptions'!10:10) -> 0.065 | BX52: =LOOKUP(YEAR(BX2),'General Assumptions'!5:5,'General Assumptions'!10:10) -> 0.065 | BY52: =LOOKUP(YEAR(BY2),'General Assumptions'!5:5,'General Assumptions'!10:10) -> 0.065 | BZ52: =LOOKUP(YEAR(BZ2),'General Assumptions'!5:5,'General Assumptions'!10:10) -> 0.065 | CA52: =LOOKUP(YEAR(CA2),'General Assumptions'!5:5,'General Assumptions'!10:10) -> 0.065 | CB52: =LOOKUP(YEAR(CB2),'General Assumptions'!5:5,'General Assumptions'!10:10) -> 0.065 | CC52: =LOOKUP(YEAR(CC2),'General Assumptions'!5:5,'General Assumptions'!10:10) -> 0.065 | CD52: =LOOKUP(YEAR(CD2),'General Assumptions'!5:5,'General Assumptions'!10:10) -> 0.065 | CE52: =LOOKUP(YEAR(CE2),'General Assumptions'!5:5,'General Assumptions'!10:10) -> 0.065 | CF52: =LOOKUP(YEAR(CF2),'General Assumptions'!5:5,'General Assumptions'!10:10) -> 0.065 | CG52: =LOOKUP(YEAR(CG2),'General Assumptions'!5:5,'General Assumptions'!10:10) -> 0.065 | CH52: =LOOKUP(YEAR(CH2),'General Assumptions'!5:5,'General Assumptions'!10:10) -> 0.065 | CI52: =LOOKUP(YEAR(CI2),'General Assumptions'!5:5,'General Assumptions'!10:10) -> 0.065 | CJ52: =LOOKUP(YEAR(CJ2),'General Assumptions'!5:5,'General Assumptions'!10:10) -> 0.065 | CK52: =LOOKUP(YEAR(CK2),'General Assumptions'!5:5,'General Assumptions'!10:10) -> 0.065 | CL52: =LOOKUP(YEAR(CL2),'General Assumptions'!5:5,'General Assumptions'!10:10) -> 0.065 | CM52: =LOOKUP(YEAR(CM2),'General Assumptions'!5:5,'General Assumptions'!10:10) -> 0.065 | CN52: =LOOKUP(YEAR(CN2),'General Assumptions'!5:5,'General Assumptions'!10:10) -> 0.065 | CO52: =LOOKUP(YEAR(CO2),'General Assumptions'!5:5,'General Assumptions'!10:10) -> 0.065 | CP52: =LOOKUP(YEAR(CP2),'General Assumptions'!5:5,'General Assumptions'!10:10) -> 0.065 | CQ52: =LOOKUP(YEAR(CQ2),'General Assumptions'!5:5,'General Assumptions'!10:10) -> 0.065 | CR52: =LOOKUP(YEAR(CR2),'General Assumptions'!5:5,'General Assumptions'!10:10) -> 0.065 | CS52: =LOOKUP(YEAR(CS2),'General Assumptions'!5:5,'General Assumptions'!10:10) -> 0.065 | CT52: =LOOKUP(YEAR(CT2),'General Assumptions'!5:5,'General Assumptions'!10:10) -> 0.065 | CU52: =LOOKUP(YEAR(CU2),'General Assumptions'!5:5,'General Assumptions'!10:10) -> 0.065 | CV52: =LOOKUP(YEAR(CV2),'General Assumptions'!5:5,'General Assumptions'!10:10) -> 0.065 | CW52: =LOOKUP(YEAR(CW2),'General Assumptions'!5:5,'General Assumptions'!10:10) -> 0.065 | CX52: =LOOKUP(YEAR(CX2),'General Assumptions'!5:5,'General Assumptions'!10:10) -> 0.065 | CY52: =LOOKUP(YEAR(CY2),'General Assumptions'!5:5,'General Assumptions'!10:10) -> 0.065 | CZ52: =LOOKUP(YEAR(CZ2),'General Assumptions'!5:5,'General Assumptions'!10:10) -> 0.065 | DA52: =LOOKUP(YEAR(DA2),'General Assumptions'!5:5,'General Assumptions'!10:10) -> 0.065 | DB52: =LOOKUP(YEAR(DB2),'General Assumptions'!5:5,'General Assumptions'!10:10) -> 0.065 | DC52: =LOOKUP(YEAR(DC2),'General Assumptions'!5:5,'General Assumptions'!10:10) -> 0.065 | DD52: =LOOKUP(YEAR(DD2),'General Assumptions'!5:5,'General Assumptions'!10:10) -> 0.065 | DE52: =LOOKUP(YEAR(DE2),'General Assumptions'!5:5,'General Assumptions'!10:10) -> 0.065 | DF52: =LOOKUP(YEAR(DF2),'General Assumptions'!5:5,'General Assumptions'!10:10) -> 0.065 | DG52: =LOOKUP(YEAR(DG2),'General Assumptions'!5:5,'General Assumptions'!10:10) -> 0.065 | DH52: =LOOKUP(YEAR(DH2),'General Assumptions'!5:5,'General Assumptions'!10:10) -> 0.065 | DI52: =LOOKUP(YEAR(DI2),'General Assumptions'!5:5,'General Assumptions'!10:10) -> 0.065 | DJ52: =LOOKUP(YEAR(DJ2),'General Assumptions'!5:5,'General Assumptions'!10:10) -> 0.065 | DK52: =LOOKUP(YEAR(DK2),'General Assumptions'!5:5,'General Assumptions'!10:10) -> 0.065 | DL52: =LOOKUP(YEAR(DL2),'General Assumptions'!5:5,'General Assumptions'!10:10) -> 0.065 | DM52: =LOOKUP(YEAR(DM2),'General Assumptions'!5:5,'General Assumptions'!10:10) -> 0.065 | DN52: =LOOKUP(YEAR(DN2),'General Assumptions'!5:5,'General Assumptions'!10:10) -> 0.065 | DO52: =LOOKUP(YEAR(DO2),'General Assumptions'!5:5,'General Assumptions'!10:10) -> 0.065 | DP52: =LOOKUP(YEAR(DP2),'General Assumptions'!5:5,'General Assumptions'!10:10) -> 0.065 | DQ52: =LOOKUP(YEAR(DQ2),'General Assumptions'!5:5,'General Assumptions'!10:10) -> 0.065 | DR52: =LOOKUP(YEAR(DR2),'General Assumptions'!5:5,'General Assumptions'!10:10) -> 0.065 | DS52: =LOOKUP(YEAR(DS2),'General Assumptions'!5:5,'General Assumptions'!10:10) -> 0.065 | DT52: =LOOKUP(YEAR(DT2),'General Assumptions'!5:5,'General Assumptions'!10:10) -> 0.065 | DU52: =LOOKUP(YEAR(DU2),'General Assumptions'!5:5,'General Assumptions'!10:10) -> 0.065 | DV52: =LOOKUP(YEAR(DV2),'General Assumptions'!5:5,'General Assumptions'!10:10) -> 0.065 | DW52: =LOOKUP(YEAR(DW2),'General Assumptions'!5:5,'General Assumptions'!10:10) -> 0.065 | DX52: =LOOKUP(YEAR(DX2),'General Assumptions'!5:5,'General Assumptions'!10:10) -> 0.065 | DY52: =LOOKUP(YEAR(DY2),'General Assumptions'!5:5,'General Assumptions'!10:10) -> 0.065 | DZ52: =LOOKUP(YEAR(DZ2),'General Assumptions'!5:5,'General Assumptions'!10:10) -> 0.065 | EA52: =LOOKUP(YEAR(EA2),'General Assumptions'!5:5,'General Assumptions'!10:10) -> 0.065 | EB52: =LOOKUP(YEAR(EB2),'General Assumptions'!5:5,'General Assumptions'!10:10) -> 0.065 | EC52: =LOOKUP(YEAR(EC2),'General Assumptions'!5:5,'General Assumptions'!10:10) -> 0.065 | ED52: =LOOKUP(YEAR(ED2),'General Assumptions'!5:5,'General Assumptions'!10:10) -> 0.065 | EE52: =LOOKUP(YEAR(EE2),'General Assumptions'!5:5,'General Assumptions'!10:10) -> 0.065 | EF52: =LOOKUP(YEAR(EF2),'General Assumptions'!5:5,'General Assumptions'!10:10) -> 0.065 | EG52: =LOOKUP(YEAR(EG2),'General Assumptions'!5:5,'General Assumptions'!10:10) -> 0.065 | EH52: =LOOKUP(YEAR(EH2),'General Assumptions'!5:5,'General Assumptions'!10:10) -> 0.065 | EI52: =LOOKUP(YEAR(EI2),'General Assumptions'!5:5,'General Assumptions'!10:10) -> 0.065 | EJ52: =LOOKUP(YEAR(EJ2),'General Assumptions'!5:5,'General Assumptions'!10:10) -> 0.065 | EK52: =LOOKUP(YEAR(EK2),'General Assumptions'!5:5,'General Assumptions'!10:10) -> 0.065 | EL52: =LOOKUP(YEAR(EL2),'General Assumptions'!5:5,'General Assumptions'!10:10) -> 0.065 | EM52: =LOOKUP(YEAR(EM2),'General Assumptions'!5:5,'General Assumptions'!10:10) -> 0.065 | EN52: =LOOKUP(YEAR(EN2),'General Assumptions'!5:5,'General Assumptions'!10:10) -> 0.065 | EO52: =LOOKUP(YEAR(EO2),'General Assumptions'!5:5,'General Assumptions'!10:10) -> 0.065 | EP52: =LOOKUP(YEAR(EP2),'General Assumptions'!5:5,'General Assumptions'!10:10) -> 0.065 | EQ52: =LOOKUP(YEAR(EQ2),'General Assumptions'!5:5,'General Assumptions'!10:10) -> 0.065 | ER52: =LOOKUP(YEAR(ER2),'General Assumptions'!5:5,'General Assumptions'!10:10) -> 0.065 | ES52: =LOOKUP(YEAR(ES2),'General Assumptions'!5:5,'General Assumptions'!10:10) -> 0.065 | ET52: =LOOKUP(YEAR(ET2),'General Assumptions'!5:5,'General Assumptions'!10:10) -> 0.065 | EU52: =LOOKUP(YEAR(EU2),'General Assumptions'!5:5,'General Assumptions'!10:10) -> 0.065 | EV52: =LOOKUP(YEAR(EV2),'General Assumptions'!5:5,'General Assumptions'!10:10) -> 0.065 | EW52: =LOOKUP(YEAR(EW2),'General Assumptions'!5:5,'General Assumptions'!10:10) -> 0.065 | EX52: =LOOKUP(YEAR(EX2),'General Assumptions'!5:5,'General Assumptions'!10:10) -> 0.065 | EY52: =LOOKUP(YEAR(EY2),'General Assumptions'!5:5,'General Assumptions'!10:10) -> 0.065 | EZ52: =LOOKUP(YEAR(EZ2),'General Assumptions'!5:5,'General Assumptions'!10:10) -> 0.065 | FA52: =LOOKUP(YEAR(FA2),'General Assumptions'!5:5,'General Assumptions'!10:10) -> 0.065 | FB52: =LOOKUP(YEAR(FB2),'General Assumptions'!5:5,'General Assumptions'!10:10) -> 0.065 | FC52: =LOOKUP(YEAR(FC2),'General Assumptions'!5:5,'General Assumptions'!10:10) -> 0.065 | FD52: =LOOKUP(YEAR(FD2),'General Assumptions'!5:5,'General Assumptions'!10:10) -> 0.065 | FE52: =LOOKUP(YEAR(FE2),'General Assumptions'!5:5,'General Assumptions'!10:10) -> 0.065 | FF52: =LOOKUP(YEAR(FF2),'General Assumptions'!5:5,'General Assumptions'!10:10) -> 0.065 | FG52: =LOOKUP(YEAR(FG2),'General Assumptions'!5:5,'General Assumptions'!10:10) -> 0.065 | FH52: =LOOKUP(YEAR(FH2),'General Assumptions'!5:5,'General Assumptions'!10:10) -> 0.065 | FI52: =LOOKUP(YEAR(FI2),'General Assumptions'!5:5,'General Assumptions'!10:10) -> 0.065 | FJ52: =LOOKUP(YEAR(FJ2),'General Assumptions'!5:5,'General Assumptions'!10:10) -> 0.065 | FK52: =LOOKUP(YEAR(FK2),'General Assumptions'!5:5,'General Assumptions'!10:10) -> 0.065 | FL52: =LOOKUP(YEAR(FL2),'General Assumptions'!5:5,'General Assumptions'!10:10) -> 0.065 | FM52: =LOOKUP(YEAR(FM2),'General Assumptions'!5:5,'General Assumptions'!10:10) -> 0.065 | FN52: =LOOKUP(YEAR(FN2),'General Assumptions'!5:5,'General Assumptions'!10:10) -> 0.065 | FO52: =LOOKUP(YEAR(FO2),'General Assumptions'!5:5,'General Assumptions'!10:10) -> 0.065 | FP52: =LOOKUP(YEAR(FP2),'General Assumptions'!5:5,'General Assumptions'!10:10) -> 0.065 | FQ52: =LOOKUP(YEAR(FQ2),'General Assumptions'!5:5,'General Assumptions'!10:10) -> 0.065 | FR52: =LOOKUP(YEAR(FR2),'General Assumptions'!5:5,'General Assumptions'!10:10) -> 0.065 | FS52: =LOOKUP(YEAR(FS2),'General Assumptions'!5:5,'General Assumptions'!10:10) -> 0.065 | FT52: =LOOKUP(YEAR(FT2),'General Assumptions'!5:5,'General Assumptions'!10:10) -> 0.065 | FU52: =LOOKUP(YEAR(FU2),'General Assumptions'!5:5,'General Assumptions'!10:10) -> 0.065 | FV52: =LOOKUP(YEAR(FV2),'General Assumptions'!5:5,'General Assumptions'!10:10) -> 0.065 | FW52: =LOOKUP(YEAR(FW2),'General Assumptions'!5:5,'General Assumptions'!10:10) -> 0.065 | FX52: =LOOKUP(YEAR(FX2),'General Assumptions'!5:5,'General Assumptions'!10:10) -> 0.065 | FY52: =LOOKUP(YEAR(FY2),'General Assumptions'!5:5,'General Assumptions'!10:10) -> 0.065 | FZ52: =LOOKUP(YEAR(FZ2),'General Assumptions'!5:5,'General Assumptions'!10:10) -> 0.065 | GA52: =LOOKUP(YEAR(GA2),'General Assumptions'!5:5,'General Assumptions'!10:10) -> 0.065 | GB52: =LOOKUP(YEAR(GB2),'General Assumptions'!5:5,'General Assumptions'!10:10) -> 0.065 | GC52: =LOOKUP(YEAR(GC2),'General Assumptions'!5:5,'General Assumptions'!10:10) -> 0.065 | GD52: =LOOKUP(YEAR(GD2),'General Assumptions'!5:5,'General Assumptions'!10:10) -> 0.065 | GE52: =LOOKUP(YEAR(GE2),'General Assumptions'!5:5,'General Assumptions'!10:10) -> 0.065 | GF52: =LOOKUP(YEAR(GF2),'General Assumptions'!5:5,'General Assumptions'!10:10) -> 0.065 | GG52: =LOOKUP(YEAR(GG2),'General Assumptions'!5:5,'General Assumptions'!10:10) -> 0.065 | GH52: =LOOKUP(YEAR(GH2),'General Assumptions'!5:5,'General Assumptions'!10:10) -> 0.065 | GI52: =LOOKUP(YEAR(GI2),'General Assumptions'!5:5,'General Assumptions'!10:10) -> 0.065 | GJ52: =LOOKUP(YEAR(GJ2),'General Assumptions'!5:5,'General Assumptions'!10:10) -> 0.065 | GK52: =LOOKUP(YEAR(GK2),'General Assumptions'!5:5,'General Assumptions'!10:10) -> 0.065 | GL52: =LOOKUP(YEAR(GL2),'General Assumptions'!5:5,'General Assumptions'!10:10) -> 0.065 | GM52: =LOOKUP(YEAR(GM2),'General Assumptions'!5:5,'General Assumptions'!10:10) -> 0.065 | GN52: =LOOKUP(YEAR(GN2),'General Assumptions'!5:5,'General Assumptions'!10:10) -> 0.065 | GO52: =LOOKUP(YEAR(GO2),'General Assumptions'!5:5,'General Assumptions'!10:10) -> 0.065 | GP52: =LOOKUP(YEAR(GP2),'General Assumptions'!5:5,'General Assumptions'!10:10) -> 0.065 | GQ52: =LOOKUP(YEAR(GQ2),'General Assumptions'!5:5,'General Assumptions'!10:10) -> 0.065 | GR52: =LOOKUP(YEAR(GR2),'General Assumptions'!5:5,'General Assumptions'!10:10) -> 0.065 | GS52: =LOOKUP(YEAR(GS2),'General Assumptions'!5:5,'General Assumptions'!10:10) -> 0.065 | GT52: =LOOKUP(YEAR(GT2),'General Assumptions'!5:5,'General Assumptions'!10:10) -> 0.065 | GU52: =LOOKUP(YEAR(GU2),'General Assumptions'!5:5,'General Assumptions'!10:10) -> 0.065 | GV52: =LOOKUP(YEAR(GV2),'General Assumptions'!5:5,'General Assumptions'!10:10) -> 0.065 | GW52: =LOOKUP(YEAR(GW2),'General Assumptions'!5:5,'General Assumptions'!10:10) -> 0.065 | GX52: =LOOKUP(YEAR(GX2),'General Assumptions'!5:5,'General Assumptions'!10:10) -> 0.065 | GY52: =LOOKUP(YEAR(GY2),'General Assumptions'!5:5,'General Assumptions'!10:10) -> 0.065 | GZ52: =LOOKUP(YEAR(GZ2),'General Assumptions'!5:5,'General Assumptions'!10:10) -> 0.065 | HA52: =LOOKUP(YEAR(HA2),'General Assumptions'!5:5,'General Assumptions'!10:10) -> 0.065 | HB52: =LOOKUP(YEAR(HB2),'General Assumptions'!5:5,'General Assumptions'!10:10) -> 0.065 | HC52: =LOOKUP(YEAR(HC2),'General Assumptions'!5:5,'General Assumptions'!10:10) -> 0.065 | HD52: =LOOKUP(YEAR(HD2),'General Assumptions'!5:5,'General Assumptions'!10:10) -> 0.065 | HE52: =LOOKUP(YEAR(HE2),'General Assumptions'!5:5,'General Assumptions'!10:10) -> 0.065 | HF52: =LOOKUP(YEAR(HF2),'General Assumptions'!5:5,'General Assumptions'!10:10) -> 0.065 | HG52: =LOOKUP(YEAR(HG2),'General Assumptions'!5:5,'General Assumptions'!10:10) -> 0.065 | HH52: =LOOKUP(YEAR(HH2),'General Assumptions'!5:5,'General Assumptions'!10:10) -> 0.065 | HI52: =LOOKUP(YEAR(HI2),'General Assumptions'!5:5,'General Assumptions'!10:10) -> 0.065 | HJ52: =LOOKUP(YEAR(HJ2),'General Assumptions'!5:5,'General Assumptions'!10:10) -> 0.065 | HK52: =LOOKUP(YEAR(HK2),'General Assumptions'!5:5,'General Assumptions'!10:10) -> 0.065 | HL52: =LOOKUP(YEAR(HL2),'General Assumptions'!5:5,'General Assumptions'!10:10) -> 0.065 | HM52: =LOOKUP(YEAR(HM2),'General Assumptions'!5:5,'General Assumptions'!10:10) -> 0.065 | HN52: =LOOKUP(YEAR(HN2),'General Assumptions'!5:5,'General Assumptions'!10:10) -> 0.065 | HO52: =LOOKUP(YEAR(HO2),'General Assumptions'!5:5,'General Assumptions'!10:10) -> 0.065 | HP52: =LOOKUP(YEAR(HP2),'General Assumptions'!5:5,'General Assumptions'!10:10) -> 0.065 | HQ52: =LOOKUP(YEAR(HQ2),'General Assumptions'!5:5,'General Assumptions'!10:10) -> 0.065 | HR52: =LOOKUP(YEAR(HR2),'General Assumptions'!5:5,'General Assumptions'!10:10) -> 0.065 | HS52: =LOOKUP(YEAR(HS2),'General Assumptions'!5:5,'General Assumptions'!10:10) -> 0.065 | HT52: =LOOKUP(YEAR(HT2),'General Assumptions'!5:5,'General Assumptions'!10:10) -> 0.065 | HU52: =LOOKUP(YEAR(HU2),'General Assumptions'!5:5,'General Assumptions'!10:10) -> 0.065 | HV52: =LOOKUP(YEAR(HV2),'General Assumptions'!5:5,'General Assumptions'!10:10) -> 0.065 | HW52: =LOOKUP(YEAR(HW2),'General Assumptions'!5:5,'General Assumptions'!10:10) -> 0.065 | HX52: =LOOKUP(YEAR(HX2),'General Assumptions'!5:5,'General Assumptions'!10:10) -> 0.065 | HY52: =LOOKUP(YEAR(HY2),'General Assumptions'!5:5,'General Assumptions'!10:10) -> 0.065 | HZ52: =LOOKUP(YEAR(HZ2),'General Assumptions'!5:5,'General Assumptions'!10:10) -> 0.065 | IA52: =LOOKUP(YEAR(IA2),'General Assumptions'!5:5,'General Assumptions'!10:10) -> 0.065 | IB52: =LOOKUP(YEAR(IB2),'General Assumptions'!5:5,'General Assumptions'!10:10) -> 0.065 | IC52: =LOOKUP(YEAR(IC2),'General Assumptions'!5:5,'General Assumptions'!10:10) -> 0.065 | ID52: =LOOKUP(YEAR(ID2),'General Assumptions'!5:5,'General Assumptions'!10:10) -> 0.065 | IE52: =LOOKUP(YEAR(IE2),'General Assumptions'!5:5,'General Assumptions'!10:10) -> 0.065 | IF52: =LOOKUP(YEAR(IF2),'General Assumptions'!5:5,'General Assumptions'!10:10) -> 0.065 | IG52: =LOOKUP(YEAR(IG2),'General Assumptions'!5:5,'General Assumptions'!10:10) -> 0.065 | IH52: =LOOKUP(YEAR(IH2),'General Assumptions'!5:5,'General Assumptions'!10:10) -> 0.065 | II52: =LOOKUP(YEAR(II2),'General Assumptions'!5:5,'General Assumptions'!10:10) -> 0.065 | IJ52: =LOOKUP(YEAR(IJ2),'General Assumptions'!5:5,'General Assumptions'!10:10) -> 0.065 | IK52: =LOOKUP(YEAR(IK2),'General Assumptions'!5:5,'General Assumptions'!10:10) -> 0.065 | IL52: =LOOKUP(YEAR(IL2),'General Assumptions'!5:5,'General Assumptions'!10:10) -> 0.065 | IM52: =LOOKUP(YEAR(IM2),'General Assumptions'!5:5,'General Assumptions'!10:10) -> 0.065 | IN52: =LOOKUP(YEAR(IN2),'General Assumptions'!5:5,'General Assumptions'!10:10) -> 0.065 | IO52: =LOOKUP(YEAR(IO2),'General Assumptions'!5:5,'General Assumptions'!10:10) -> 0.065 | IP52: =LOOKUP(YEAR(IP2),'General Assumptions'!5:5,'General Assumptions'!10:10) -> 0.065 | IQ52: =LOOKUP(YEAR(IQ2),'General Assumptions'!5:5,'General Assumptions'!10:10) -> 0.065 | IR52: =LOOKUP(YEAR(IR2),'General Assumptions'!5:5,'General Assumptions'!10:10) -> 0.065 | IS52: =LOOKUP(YEAR(IS2),'General Assumptions'!5:5,'General Assumptions'!10:10) -> 0.065 | IT52: =LOOKUP(YEAR(IT2),'General Assumptions'!5:5,'General Assumptions'!10:10) -> 0.065 | IU52: =LOOKUP(YEAR(IU2),'General Assumptions'!5:5,'General Assumptions'!10:10) -> 0.065 | IV52: =LOOKUP(YEAR(IV2),'General Assumptions'!5:5,'General Assumptions'!10:10) -> 0.065 | IW52: =LOOKUP(YEAR(IW2),'General Assumptions'!5:5,'General Assumptions'!10:10) -> 0.065 | IX52: =LOOKUP(YEAR(IX2),'General Assumptions'!5:5,'General Assumptions'!10:10) -> 0.065 | IY52: =LOOKUP(YEAR(IY2),'General Assumptions'!5:5,'General Assumptions'!10:10) -> 0.065 | IZ52: =LOOKUP(YEAR(IZ2),'General Assumptions'!5:5,'General Assumptions'!10:10) -> 0.065 | JA52: =LOOKUP(YEAR(JA2),'General Assumptions'!5:5,'General Assumptions'!10:10) -> 0.065 | JB52: =LOOKUP(YEAR(JB2),'General Assumptions'!5:5,'General Assumptions'!10:10) -> 0.065 | JC52: =LOOKUP(YEAR(JC2),'General Assumptions'!5:5,'General Assumptions'!10:10) -> 0.065 | JD52: =LOOKUP(YEAR(JD2),'General Assumptions'!5:5,'General Assumptions'!10:10) -> 0.065 | JE52: =LOOKUP(YEAR(JE2),'General Assumptions'!5:5,'General Assumptions'!10:10) -> 0.065 | JF52: =LOOKUP(YEAR(JF2),'General Assumptions'!5:5,'General Assumptions'!10:10) -> 0.065 | JG52: =LOOKUP(YEAR(JG2),'General Assumptions'!5:5,'General Assumptions'!10:10) -> 0.065 | JH52: =LOOKUP(YEAR(JH2),'General Assumptions'!5:5,'General Assumptions'!10:10) -> 0.065 | JI52: =LOOKUP(YEAR(JI2),'General Assumptions'!5:5,'General Assumptions'!10:10) -> 0.065 | JJ52: =LOOKUP(YEAR(JJ2),'General Assumptions'!5:5,'General Assumptions'!10:10) -> 0.065 | JK52: =LOOKUP(YEAR(JK2),'General Assumptions'!5:5,'General Assumptions'!10:10) -> 0.065 | JL52: =LOOKUP(YEAR(JL2),'General Assumptions'!5:5,'General Assumptions'!10:10) -> 0.065 | JM52: =LOOKUP(YEAR(JM2),'General Assumptions'!5:5,'General Assumptions'!10:10) -> 0.065 | JN52: =LOOKUP(YEAR(JN2),'General Assumptions'!5:5,'General Assumptions'!10:10) -> 0.065 | JO52: =LOOKUP(YEAR(JO2),'General Assumptions'!5:5,'General Assumptions'!10:10) -> 0.065 | JP52: =LOOKUP(YEAR(JP2),'General Assumptions'!5:5,'General Assumptions'!10:10) -> 0.065 | JQ52: =LOOKUP(YEAR(JQ2),'General Assumptions'!5:5,'General Assumptions'!10:10) -> 0.065 | JR52: =LOOKUP(YEAR(JR2),'General Assumptions'!5:5,'General Assumptions'!10:10) -> 0.065 | JS52: =LOOKUP(YEAR(JS2),'General Assumptions'!5:5,'General Assumptions'!10:10) -> 0.065 | JT52: =LOOKUP(YEAR(JT2),'General Assumptions'!5:5,'General Assumptions'!10:10) -> 0.065 | JU52: =LOOKUP(YEAR(JU2),'General Assumptions'!5:5,'General Assumptions'!10:10) -> 0.065 | JV52: =LOOKUP(YEAR(JV2),'General Assumptions'!5:5,'General Assumptions'!10:10) -> 0.065 | JW52: =LOOKUP(YEAR(JW2),'General Assumptions'!5:5,'General Assumptions'!10:10) -> 0.065 | JX52: =LOOKUP(YEAR(JX2),'General Assumptions'!5:5,'General Assumptions'!10:10) -> 0.065 | JY52: =LOOKUP(YEAR(JY2),'General Assumptions'!5:5,'General Assumptions'!10:10) -> 0.065 | JZ52: =LOOKUP(YEAR(JZ2),'General Assumptions'!5:5,'General Assumptions'!10:10) -> 0.065 | KA52: =LOOKUP(YEAR(KA2),'General Assumptions'!5:5,'General Assumptions'!10:10) -> 0.065 | KB52: =LOOKUP(YEAR(KB2),'General Assumptions'!5:5,'General Assumptions'!10:10) -> 0.065 | KC52: =LOOKUP(YEAR(KC2),'General Assumptions'!5:5,'General Assumptions'!10:10) -> 0.065 | KD52: =LOOKUP(YEAR(KD2),'General Assumptions'!5:5,'General Assumptions'!10:10) -> 0.065 | KE52: =LOOKUP(YEAR(KE2),'General Assumptions'!5:5,'General Assumptions'!10:10) -> 0.065 | KF52: =LOOKUP(YEAR(KF2),'General Assumptions'!5:5,'General Assumptions'!10:10) -> 0.065 | KG52: =LOOKUP(YEAR(KG2),'General Assumptions'!5:5,'General Assumptions'!10:10) -> 0.065 | KH52: =LOOKUP(YEAR(KH2),'General Assumptions'!5:5,'General Assumptions'!10:10) -> 0.065 | KI52: =LOOKUP(YEAR(KI2),'General Assumptions'!5:5,'General Assumptions'!10:10) -> 0.065 | KJ52: =LOOKUP(YEAR(KJ2),'General Assumptions'!5:5,'General Assumptions'!10:10) -> 0.065 | KK52: =LOOKUP(YEAR(KK2),'General Assumptions'!5:5,'General Assumptions'!10:10) -> 0.065 | KL52: =LOOKUP(YEAR(KL2),'General Assumptions'!5:5,'General Assumptions'!10:10) -> 0.065 | KM52: =LOOKUP(YEAR(KM2),'General Assumptions'!5:5,'General Assumptions'!10:10) -> 0.065 | KN52: =LOOKUP(YEAR(KN2),'General Assumptions'!5:5,'General Assumptions'!10:10) -> 0.065 | KO52: =LOOKUP(YEAR(KO2),'General Assumptions'!5:5,'General Assumptions'!10:10) -> 0.065 | KP52: =LOOKUP(YEAR(KP2),'General Assumptions'!5:5,'General Assumptions'!10:10) -> 0.065 | KQ52: =LOOKUP(YEAR(KQ2),'General Assumptions'!5:5,'General Assumptions'!10:10) -> 0.065 | KR52: =LOOKUP(YEAR(KR2),'General Assumptions'!5:5,'General Assumptions'!10:10) -> 0.065 | KS52: =LOOKUP(YEAR(KS2),'General Assumptions'!5:5,'General Assumptions'!10:10) -> 0.065 | KT52: =LOOKUP(YEAR(KT2),'General Assumptions'!5:5,'General Assumptions'!10:10) -> 0.065 | KU52: =LOOKUP(YEAR(KU2),'General Assumptions'!5:5,'General Assumptions'!10:10) -> 0.065 | KV52: =LOOKUP(YEAR(KV2),'General Assumptions'!5:5,'General Assumptions'!10:10) -> 0.065 | KW52: =LOOKUP(YEAR(KW2),'General Assumptions'!5:5,'General Assumptions'!10:10) -> 0.065 | KX52: =LOOKUP(YEAR(KX2),'General Assumptions'!5:5,'General Assumptions'!10:10) -> 0.065 | KY52: =LOOKUP(YEAR(KY2),'General Assumptions'!5:5,'General Assumptions'!10:10) -> 0.065 | KZ52: =LOOKUP(YEAR(KZ2),'General Assumptions'!5:5,'General Assumptions'!10:10) -> 0.065 | LA52: =LOOKUP(YEAR(LA2),'General Assumptions'!5:5,'General Assumptions'!10:10) -> 0.065 | LB52: =LOOKUP(YEAR(LB2),'General Assumptions'!5:5,'General Assumptions'!10:10) -> 0.065 | LC52: =LOOKUP(YEAR(LC2),'General Assumptions'!5:5,'General Assumptions'!10:10) -> 0.065 | LD52: =LOOKUP(YEAR(LD2),'General Assumptions'!5:5,'General Assumptions'!10:10) -> 0.065 | LE52: =LOOKUP(YEAR(LE2),'General Assumptions'!5:5,'General Assumptions'!10:10) -> 0.065 | LF52: =LOOKUP(YEAR(LF2),'General Assumptions'!5:5,'General Assumptions'!10:10) -> 0.065 | LG52: =LOOKUP(YEAR(LG2),'General Assumptions'!5:5,'General Assumptions'!10:10) -> 0.065 | LH52: =LOOKUP(YEAR(LH2),'General Assumptions'!5:5,'General Assumptions'!10:10) -> 0.065 | LI52: =LOOKUP(YEAR(LI2),'General Assumptions'!5:5,'General Assumptions'!10:10) -> 0.065 | LJ52: =LOOKUP(YEAR(LJ2),'General Assumptions'!5:5,'General Assumptions'!10:10) -> 0.065 | LK52: =LOOKUP(YEAR(LK2),'General Assumptions'!5:5,'General Assumptions'!10:10) -> 0.065 | LL52: =LOOKUP(YEAR(LL2),'General Assumptions'!5:5,'General Assumptions'!10:10) -> 0.065 | LM52: =LOOKUP(YEAR(LM2),'General Assumptions'!5:5,'General Assumptions'!10:10) -> 0.065 | LN52: =LOOKUP(YEAR(LN2),'General Assumptions'!5:5,'General Assumptions'!10:10) -> 0.065 | LO52: =LOOKUP(YEAR(LO2),'General Assumptions'!5:5,'General Assumptions'!10:10) -> 0.065 | LP52: =LOOKUP(YEAR(LP2),'General Assumptions'!5:5,'General Assumptions'!10:10) -> 0.065 | LQ52: =LOOKUP(YEAR(LQ2),'General Assumptions'!5:5,'General Assumptions'!10:10) -> 0.065 | LR52: =LOOKUP(YEAR(LR2),'General Assumptions'!5:5,'General Assumptions'!10:10) -> 0.065 | LS52: =LOOKUP(YEAR(LS2),'General Assumptions'!5:5,'General Assumptions'!10:10) -> 0.065 | LT52: =LOOKUP(YEAR(LT2),'General Assumptions'!5:5,'General Assumptions'!10:10) -> 0.065 | LU52: =LOOKUP(YEAR(LU2),'General Assumptions'!5:5,'General Assumptions'!10:10) -> 0.065 | LV52: =LOOKUP(YEAR(LV2),'General Assumptions'!5:5,'General Assumptions'!10:10) -> 0.065 | LW52: =LOOKUP(YEAR(LW2),'General Assumptions'!5:5,'General Assumptions'!10:10) -> 0.065 | LX52: =LOOKUP(YEAR(LX2),'General Assumptions'!5:5,'General Assumptions'!10:10) -> 0.065 | LY52: =LOOKUP(YEAR(LY2),'General Assumptions'!5:5,'General Assumptions'!10:10) -> 0.065 | LZ52: =LOOKUP(YEAR(LZ2),'General Assumptions'!5:5,'General Assumptions'!10:10) -> 0.065 | MA52: =LOOKUP(YEAR(MA2),'General Assumptions'!5:5,'General Assumptions'!10:10) -> 0.065 | MB52: =LOOKUP(YEAR(MB2),'General Assumptions'!5:5,'General Assumptions'!10:10) -> 0.065 | MC52: =LOOKUP(YEAR(MC2),'General Assumptions'!5:5,'General Assumptions'!10:10) -> 0.065 | MD52: =LOOKUP(YEAR(MD2),'General Assumptions'!5:5,'General Assumptions'!10:10) -> 0.065 | ME52: =LOOKUP(YEAR(ME2),'General Assumptions'!5:5,'General Assumptions'!10:10) -> 0.065 | MF52: =LOOKUP(YEAR(MF2),'General Assumptions'!5:5,'General Assumptions'!10:10) -> 0.065 | MG52: =LOOKUP(YEAR(MG2),'General Assumptions'!5:5,'General Assumptions'!10:10) -> 0.065 | MH52: =LOOKUP(YEAR(MH2),'General Assumptions'!5:5,'General Assumptions'!10:10) -> 0.065 | MI52: =LOOKUP(YEAR(MI2),'General Assumptions'!5:5,'General Assumptions'!10:10) -> 0.065 | MJ52: =LOOKUP(YEAR(MJ2),'General Assumptions'!5:5,'General Assumptions'!10:10) -> 0.065 | MK52: =LOOKUP(YEAR(MK2),'General Assumptions'!5:5,'General Assumptions'!10:10) -> 0.065 | ML52: =LOOKUP(YEAR(ML2),'General Assumptions'!5:5,'General Assumptions'!10:10) -> 0.065 | MM52: =LOOKUP(YEAR(MM2),'General Assumptions'!5:5,'General Assumptions'!10:10) -> 0.065 | MN52: =LOOKUP(YEAR(MN2),'General Assumptions'!5:5,'General Assumptions'!10:10) -> 0.065 | MO52: =LOOKUP(YEAR(MO2),'General Assumptions'!5:5,'General Assumptions'!10:10) -> 0.065 | MP52: =LOOKUP(YEAR(MP2),'General Assumptions'!5:5,'General Assumptions'!10:10) -> 0.065 | MQ52: =LOOKUP(YEAR(MQ2),'General Assumptions'!5:5,'General Assumptions'!10:10) -> 0.065 | MR52: =LOOKUP(YEAR(MR2),'General Assumptions'!5:5,'General Assumptions'!10:10) -> 0.065 | MS52: =LOOKUP(YEAR(MS2),'General Assumptions'!5:5,'General Assumptions'!10:10) -> 0.065 | MT52: =LOOKUP(YEAR(MT2),'General Assumptions'!5:5,'General Assumptions'!10:10) -> 0.065 | MU52: =LOOKUP(YEAR(MU2),'General Assumptions'!5:5,'General Assumptions'!10:10) -> 0.065 | MV52: =LOOKUP(YEAR(MV2),'General Assumptions'!5:5,'General Assumptions'!10:10) -> 0.065 | MW52: =LOOKUP(YEAR(MW2),'General Assumptions'!5:5,'General Assumptions'!10:10) -> 0.065 | MX52: =LOOKUP(YEAR(MX2),'General Assumptions'!5:5,'General Assumptions'!10:10) -> 0.065 | MY52: =LOOKUP(YEAR(MY2),'General Assumptions'!5:5,'General Assumptions'!10:10) -> 0.065 | MZ52: =LOOKUP(YEAR(MZ2),'General Assumptions'!5:5,'General Assumptions'!10:10) -> 0.065 | NA52: =LOOKUP(YEAR(NA2),'General Assumptions'!5:5,'General Assumptions'!10:10) -> 0.065 | NB52: =LOOKUP(YEAR(NB2),'General Assumptions'!5:5,'General Assumptions'!10:10) -> 0.065 | NC52: =LOOKUP(YEAR(NC2),'General Assumptions'!5:5,'General Assumptions'!10:10) -> 0.065 | ND52: =LOOKUP(YEAR(ND2),'General Assumptions'!5:5,'General Assumptions'!10:10) -> 0.065 | NE52: =LOOKUP(YEAR(NE2),'General Assumptions'!5:5,'General Assumptions'!10:10) -> 0.065 | NF52: =LOOKUP(YEAR(NF2),'General Assumptions'!5:5,'General Assumptions'!10:10) -> 0.065 | NG52: =LOOKUP(YEAR(NG2),'General Assumptions'!5:5,'General Assumptions'!10:10) -> 0.065 | NH52: =LOOKUP(YEAR(NH2),'General Assumptions'!5:5,'General Assumptions'!10:10) -> 0.065 | NI52: =LOOKUP(YEAR(NI2),'General Assumptions'!5:5,'General Assumptions'!10:10) -> 0.065 | NJ52: =LOOKUP(YEAR(NJ2),'General Assumptions'!5:5,'General Assumptions'!10:10) -> 0.065 | NK52: =LOOKUP(YEAR(NK2),'General Assumptions'!5:5,'General Assumptions'!10:10) -> 0.065 | NL52: =LOOKUP(YEAR(NL2),'General Assumptions'!5:5,'General Assumptions'!10:10) -> 0.065 | NM52: =LOOKUP(YEAR(NM2),'General Assumptions'!5:5,'General Assumptions'!10:10) -> 0.065 | NN52: =LOOKUP(YEAR(NN2),'General Assumptions'!5:5,'General Assumptions'!10:10) -> 0.065 | NO52: =LOOKUP(YEAR(NO2),'General Assumptions'!5:5,'General Assumptions'!10:10) -> 0.065 | NP52: =LOOKUP(YEAR(NP2),'General Assumptions'!5:5,'General Assumptions'!10:10) -> 0.065 | NQ52: =LOOKUP(YEAR(NQ2),'General Assumptions'!5:5,'General Assumptions'!10:10) -> 0.065 | NR52: =LOOKUP(YEAR(NR2),'General Assumptions'!5:5,'General Assumptions'!10:10) -> 0.065 | NS52: =LOOKUP(YEAR(NS2),'General Assumptions'!5:5,'General Assumptions'!10:10) -> 0.065 | NT52: =LOOKUP(YEAR(NT2),'General Assumptions'!5:5,'General Assumptions'!10:10) -> 0.065 | NU52: =LOOKUP(YEAR(NU2),'General Assumptions'!5:5,'General Assumptions'!10:10) -> 0.065 | NV52: =LOOKUP(YEAR(NV2),'General Assumptions'!5:5,'General Assumptions'!10:10) -> 0.065 | NW52: =LOOKUP(YEAR(NW2),'General Assumptions'!5:5,'General Assumptions'!10:10) -> 0.065 | NX52: =LOOKUP(YEAR(NX2),'General Assumptions'!5:5,'General Assumptions'!10:10) -> 0.065 | NY52: =LOOKUP(YEAR(NY2),'General Assumptions'!5:5,'General Assumptions'!10:10) -> 0.065 | NZ52: =LOOKUP(YEAR(NZ2),'General Assumptions'!5:5,'General Assumptions'!10:10) -> 0.065 | OA52: =LOOKUP(YEAR(OA2),'General Assumptions'!5:5,'General Assumptions'!10:10) -> 0.065 | OB52: =LOOKUP(YEAR(OB2),'General Assumptions'!5:5,'General Assumptions'!10:10) -> 0.065 | OC52: =LOOKUP(YEAR(OC2),'General Assumptions'!5:5,'General Assumptions'!10:10) -> 0.065 | OD52: =LOOKUP(YEAR(OD2),'General Assumptions'!5:5,'General Assumptions'!10:10) -> 0.065 | OE52: =LOOKUP(YEAR(OE2),'General Assumptions'!5:5,'General Assumptions'!10:10) -> 0.065 | OF52: =LOOKUP(YEAR(OF2),'General Assumptions'!5:5,'General Assumptions'!10:10) -> 0.065 | OG52: =LOOKUP(YEAR(OG2),'General Assumptions'!5:5,'General Assumptions'!10:10) -> 0.065 | OH52: =LOOKUP(YEAR(OH2),'General Assumptions'!5:5,'General Assumptions'!10:10) -> 0.065 | OI52: =LOOKUP(YEAR(OI2),'General Assumptions'!5:5,'General Assumptions'!10:10) -> 0.065 | OJ52: =LOOKUP(YEAR(OJ2),'General Assumptions'!5:5,'General Assumptions'!10:10) -> 0.065 | OK52: =LOOKUP(YEAR(OK2),'General Assumptions'!5:5,'General Assumptions'!10:10) -> 0.065 | OL52: =LOOKUP(YEAR(OL2),'General Assumptions'!5:5,'General Assumptions'!10:10) -> 0.065 | OM52: =LOOKUP(YEAR(OM2),'General Assumptions'!5:5,'General Assumptions'!10:10) -> 0.065 | ON52: =LOOKUP(YEAR(ON2),'General Assumptions'!5:5,'General Assumptions'!10:10) -> 0.065 | OO52: =LOOKUP(YEAR(OO2),'General Assumptions'!5:5,'General Assumptions'!10:10) -> 0.065 | OP52: =LOOKUP(YEAR(OP2),'General Assumptions'!5:5,'General Assumptions'!10:10) -> 0.065 | OQ52: =LOOKUP(YEAR(OQ2),'General Assumptions'!5:5,'General Assumptions'!10:10) -> 0.065 | OR52: =LOOKUP(YEAR(OR2),'General Assumptions'!5:5,'General Assumptions'!10:10) -> 0.065 | OS52: =LOOKUP(YEAR(OS2),'General Assumptions'!5:5,'General Assumptions'!10:10) -> 0.065 | OT52: =LOOKUP(YEAR(OT2),'General Assumptions'!5:5,'General Assumptions'!10:10) -> 0.065
B53: EGP Monthly Inflation Rate | K53: =(1+K52)^(1/12)-1 -> 0.005261694277 | L53: =(1+L52)^(1/12)-1 -> 0.005261694277 | M53: 0.005261694277 | N53: 0.005261694277 | O53: 0.005261694277 | P53: 0.005261694277 | Q53: 0.005261694277 | R53: 0.005261694277 | S53: 0.005261694277 | T53: 0.005261694277 | U53: 0.005261694277 | V53: 0.005261694277 | W53: 0.005261694277 | X53: 0.005261694277 | Y53: 0.005261694277 | Z53: 0.005261694277 | AA53: 0.005261694277 | AB53: 0.005261694277 | AC53: 0.005261694277 | AD53: 0.005261694277 | AE53: 0.005261694277 | AF53: 0.005261694277 | AG53: 0.005261694277 | AH53: 0.005261694277 | AI53: 0.005261694277 | AJ53: 0.005261694277 | AK53: 0.005261694277 | AL53: 0.005261694277 | AM53: 0.005261694277 | AN53: 0.005261694277 | AO53: 0.005261694277 | AP53: 0.005261694277 | AQ53: 0.005261694277 | AR53: 0.005261694277 | AS53: 0.005261694277 | AT53: 0.005261694277 | AU53: 0.005261694277 | AV53: 0.005261694277 | AW53: 0.005261694277 | AX53: 0.005261694277 | AY53: 0.005261694277 | AZ53: 0.005261694277 | BA53: 0.005261694277 | BB53: 0.005261694277 | BC53: 0.005261694277 | BD53: 0.005261694277 | BE53: 0.005261694277 | BF53: 0.005261694277 | BG53: 0.005261694277 | BH53: 0.005261694277 | BI53: 0.005261694277 | BJ53: 0.005261694277 | BK53: 0.005261694277 | BL53: 0.005261694277 | BM53: 0.005261694277 | BN53: 0.005261694277 | BO53: 0.005261694277 | BP53: 0.005261694277 | BQ53: 0.005261694277 | BR53: 0.005261694277 | BS53: 0.005261694277 | BT53: 0.005261694277 | BU53: 0.005261694277 | BV53: 0.005261694277 | BW53: 0.005261694277 | BX53: =(1+BX52)^(1/12)-1 -> 0.005261694277 | BY53: 0.005261694277 | BZ53: 0.005261694277 | CA53: 0.005261694277 | CB53: 0.005261694277 | CC53: 0.005261694277 | CD53: 0.005261694277 | CE53: 0.005261694277 | CF53: 0.005261694277 | CG53: 0.005261694277 | CH53: 0.005261694277 | CI53: 0.005261694277 | CJ53: 0.005261694277 | CK53: 0.005261694277 | CL53: 0.005261694277 | CM53: 0.005261694277 | CN53: 0.005261694277 | CO53: 0.005261694277 | CP53: 0.005261694277 | CQ53: 0.005261694277 | CR53: 0.005261694277 | CS53: 0.005261694277 | CT53: 0.005261694277 | CU53: 0.005261694277 | CV53: 0.005261694277 | CW53: 0.005261694277 | CX53: 0.005261694277 | CY53: 0.005261694277 | CZ53: 0.005261694277 | DA53: 0.005261694277 | DB53: 0.005261694277 | DC53: 0.005261694277 | DD53: 0.005261694277 | DE53: 0.005261694277 | DF53: 0.005261694277 | DG53: 0.005261694277 | DH53: 0.005261694277 | DI53: 0.005261694277 | DJ53: 0.005261694277 | DK53: 0.005261694277 | DL53: 0.005261694277 | DM53: 0.005261694277 | DN53: 0.005261694277 | DO53: 0.005261694277 | DP53: 0.005261694277 | DQ53: 0.005261694277 | DR53: 0.005261694277 | DS53: 0.005261694277 | DT53: 0.005261694277 | DU53: 0.005261694277 | DV53: 0.005261694277 | DW53: 0.005261694277 | DX53: 0.005261694277 | DY53: 0.005261694277 | DZ53: 0.005261694277 | EA53: 0.005261694277 | EB53: 0.005261694277 | EC53: 0.005261694277 | ED53: 0.005261694277 | EE53: 0.005261694277 | EF53: 0.005261694277 | EG53: 0.005261694277 | EH53: 0.005261694277 | EI53: 0.005261694277 | EJ53: =(1+EJ52)^(1/12)-1 -> 0.005261694277 | EK53: 0.005261694277 | EL53: 0.005261694277 | EM53: 0.005261694277 | EN53: 0.005261694277 | EO53: 0.005261694277 | EP53: 0.005261694277 | EQ53: 0.005261694277 | ER53: 0.005261694277 | ES53: 0.005261694277 | ET53: 0.005261694277 | EU53: 0.005261694277 | EV53: 0.005261694277 | EW53: 0.005261694277 | EX53: 0.005261694277 | EY53: 0.005261694277 | EZ53: 0.005261694277 | FA53: 0.005261694277 | FB53: 0.005261694277 | FC53: 0.005261694277 | FD53: 0.005261694277 | FE53: 0.005261694277 | FF53: 0.005261694277 | FG53: 0.005261694277 | FH53: 0.005261694277 | FI53: 0.005261694277 | FJ53: 0.005261694277 | FK53: 0.005261694277 | FL53: 0.005261694277 | FM53: 0.005261694277 | FN53: 0.005261694277 | FO53: 0.005261694277 | FP53: 0.005261694277 | FQ53: 0.005261694277 | FR53: 0.005261694277 | FS53: 0.005261694277 | FT53: 0.005261694277 | FU53: 0.005261694277 | FV53: 0.005261694277 | FW53: 0.005261694277 | FX53: 0.005261694277 | FY53: 0.005261694277 | FZ53: 0.005261694277 | GA53: 0.005261694277 | GB53: 0.005261694277 | GC53: 0.005261694277 | GD53: 0.005261694277 | GE53: 0.005261694277 | GF53: 0.005261694277 | GG53: 0.005261694277 | GH53: 0.005261694277 | GI53: 0.005261694277 | GJ53: 0.005261694277 | GK53: 0.005261694277 | GL53: 0.005261694277 | GM53: 0.005261694277 | GN53: 0.005261694277 | GO53: 0.005261694277 | GP53: 0.005261694277 | GQ53: 0.005261694277 | GR53: 0.005261694277 | GS53: 0.005261694277 | GT53: 0.005261694277 | GU53: 0.005261694277 | GV53: =(1+GV52)^(1/12)-1 -> 0.005261694277 | GW53: 0.005261694277 | GX53: 0.005261694277 | GY53: 0.005261694277 | GZ53: 0.005261694277 | HA53: 0.005261694277 | HB53: 0.005261694277 | HC53: 0.005261694277 | HD53: 0.005261694277 | HE53: 0.005261694277 | HF53: 0.005261694277 | HG53: 0.005261694277 | HH53: 0.005261694277 | HI53: 0.005261694277 | HJ53: 0.005261694277 | HK53: 0.005261694277 | HL53: 0.005261694277 | HM53: 0.005261694277 | HN53: 0.005261694277 | HO53: 0.005261694277 | HP53: 0.005261694277 | HQ53: 0.005261694277 | HR53: 0.005261694277 | HS53: 0.005261694277 | HT53: 0.005261694277 | HU53: 0.005261694277 | HV53: 0.005261694277 | HW53: 0.005261694277 | HX53: 0.005261694277 | HY53: 0.005261694277 | HZ53: 0.005261694277 | IA53: 0.005261694277 | IB53: 0.005261694277 | IC53: 0.005261694277 | ID53: 0.005261694277 | IE53: 0.005261694277 | IF53: 0.005261694277 | IG53: 0.005261694277 | IH53: 0.005261694277 | II53: 0.005261694277 | IJ53: 0.005261694277 | IK53: 0.005261694277 | IL53: 0.005261694277 | IM53: 0.005261694277 | IN53: 0.005261694277 | IO53: 0.005261694277 | IP53: 0.005261694277 | IQ53: 0.005261694277 | IR53: 0.005261694277 | IS53: 0.005261694277 | IT53: 0.005261694277 | IU53: 0.005261694277 | IV53: 0.005261694277 | IW53: 0.005261694277 | IX53: 0.005261694277 | IY53: 0.005261694277 | IZ53: 0.005261694277 | JA53: 0.005261694277 | JB53: 0.005261694277 | JC53: 0.005261694277 | JD53: 0.005261694277 | JE53: 0.005261694277 | JF53: 0.005261694277 | JG53: 0.005261694277 | JH53: =(1+JH52)^(1/12)-1 -> 0.005261694277 | JI53: 0.005261694277 | JJ53: 0.005261694277 | JK53: 0.005261694277 | JL53: 0.005261694277 | JM53: 0.005261694277 | JN53: 0.005261694277 | JO53: 0.005261694277 | JP53: 0.005261694277 | JQ53: 0.005261694277 | JR53: 0.005261694277 | JS53: 0.005261694277 | JT53: 0.005261694277 | JU53: 0.005261694277 | JV53: 0.005261694277 | JW53: 0.005261694277 | JX53: 0.005261694277 | JY53: 0.005261694277 | JZ53: 0.005261694277 | KA53: 0.005261694277 | KB53: 0.005261694277 | KC53: 0.005261694277 | KD53: 0.005261694277 | KE53: 0.005261694277 | KF53: 0.005261694277 | KG53: 0.005261694277 | KH53: 0.005261694277 | KI53: 0.005261694277 | KJ53: 0.005261694277 | KK53: 0.005261694277 | KL53: 0.005261694277 | KM53: 0.005261694277 | KN53: 0.005261694277 | KO53: 0.005261694277 | KP53: 0.005261694277 | KQ53: 0.005261694277 | KR53: 0.005261694277 | KS53: 0.005261694277 | KT53: 0.005261694277 | KU53: 0.005261694277 | KV53: 0.005261694277 | KW53: 0.005261694277 | KX53: 0.005261694277 | KY53: 0.005261694277 | KZ53: 0.005261694277 | LA53: 0.005261694277 | LB53: 0.005261694277 | LC53: 0.005261694277 | LD53: 0.005261694277 | LE53: 0.005261694277 | LF53: 0.005261694277 | LG53: 0.005261694277 | LH53: 0.005261694277 | LI53: 0.005261694277 | LJ53: 0.005261694277 | LK53: 0.005261694277 | LL53: 0.005261694277 | LM53: 0.005261694277 | LN53: 0.005261694277 | LO53: 0.005261694277 | LP53: 0.005261694277 | LQ53: 0.005261694277 | LR53: 0.005261694277 | LS53: 0.005261694277 | LT53: =(1+LT52)^(1/12)-1 -> 0.005261694277 | LU53: 0.005261694277 | LV53: 0.005261694277 | LW53: 0.005261694277 | LX53: 0.005261694277 | LY53: 0.005261694277 | LZ53: 0.005261694277 | MA53: 0.005261694277 | MB53: 0.005261694277 | MC53: 0.005261694277 | MD53: 0.005261694277 | ME53: 0.005261694277 | MF53: 0.005261694277 | MG53: 0.005261694277 | MH53: 0.005261694277 | MI53: 0.005261694277 | MJ53: 0.005261694277 | MK53: 0.005261694277 | ML53: 0.005261694277 | MM53: 0.005261694277 | MN53: 0.005261694277 | MO53: 0.005261694277 | MP53: 0.005261694277 | MQ53: 0.005261694277 | MR53: 0.005261694277 | MS53: 0.005261694277 | MT53: 0.005261694277 | MU53: 0.005261694277 | MV53: 0.005261694277 | MW53: 0.005261694277 | MX53: 0.005261694277 | MY53: 0.005261694277 | MZ53: 0.005261694277 | NA53: 0.005261694277 | NB53: 0.005261694277 | NC53: 0.005261694277 | ND53: 0.005261694277 | NE53: 0.005261694277 | NF53: 0.005261694277 | NG53: 0.005261694277 | NH53: 0.005261694277 | NI53: 0.005261694277 | NJ53: 0.005261694277 | NK53: 0.005261694277 | NL53: 0.005261694277 | NM53: 0.005261694277 | NN53: 0.005261694277 | NO53: 0.005261694277 | NP53: 0.005261694277 | NQ53: 0.005261694277 | NR53: 0.005261694277 | NS53: 0.005261694277 | NT53: 0.005261694277 | NU53: 0.005261694277 | NV53: 0.005261694277 | NW53: 0.005261694277 | NX53: 0.005261694277 | NY53: 0.005261694277 | NZ53: 0.005261694277 | OA53: 0.005261694277 | OB53: 0.005261694277 | OC53: 0.005261694277 | OD53: 0.005261694277 | OE53: 0.005261694277 | OF53: =(1+OF52)^(1/12)-1 -> 0.005261694277 | OG53: 0.005261694277 | OH53: 0.005261694277 | OI53: 0.005261694277 | OJ53: 0.005261694277 | OK53: 0.005261694277 | OL53: 0.005261694277 | OM53: 0.005261694277 | ON53: 0.005261694277 | OO53: 0.005261694277 | OP53: 0.005261694277 | OQ53: 0.005261694277 | OR53: 0.005261694277 | OS53: 0.005261694277 | OT53: 0.005261694277
B54: EGP Inflation Index | J54: 1 | K54: =J54*(1+K53) -> 1.005261694 | L54: =K54*(1+L53) -> 1.010551074 | M54: 1.015868285 | N54: 1.021213473 | O54: 1.026586786 | P54: 1.031988372 | Q54: 1.037418379 | R54: 1.042876958 | S54: 1.048364257 | T54: 1.05388043 | U54: 1.059425626 | V54: 1.065 | W54: 1.070603704 | X54: 1.076236894 | Y54: 1.081899723 | Z54: 1.087592349 | AA54: 1.093314927 | AB54: 1.099067616 | AC54: 1.104850574 | AD54: 1.11066396 | AE54: 1.116507934 | AF54: 1.122382658 | AG54: 1.128288292 | AH54: 1.134225 | AI54: 1.140192945 | AJ54: 1.146192292 | AK54: 1.152223205 | AL54: 1.158285852 | AM54: 1.164380398 | AN54: 1.170507011 | AO54: 1.176665861 | AP54: 1.182857117 | AQ54: 1.18908095 | AR54: 1.19533753 | AS54: 1.201627031 | AT54: 1.207949625 | AU54: 1.214305487 | AV54: 1.220694791 | AW54: 1.227117714 | AX54: 1.233574432 | AY54: 1.240065123 | AZ54: 1.246589967 | BA54: 1.253149142 | BB54: 1.25974283 | BC54: 1.266371212 | BD54: 1.27303447 | BE54: 1.279732788 | BF54: 1.286466351 | BG54: 1.293235343 | BH54: 1.300039952 | BI54: 1.306880365 | BJ54: 1.31375677 | BK54: 1.320669356 | BL54: 1.327618315 | BM54: 1.334603837 | BN54: 1.341626114 | BO54: 1.34868534 | BP54: 1.35578171 | BQ54: 1.362915419 | BR54: 1.370086663 | BS54: 1.377295641 | BT54: 1.384542549 | BU54: 1.391827589 | BV54: 1.39915096 | BW54: 1.406512865 | BX54: =BW54*(1+BX53) -> 1.413913505 | BY54: 1.421353086 | BZ54: 1.428831811 | CA54: 1.436349887 | CB54: 1.443907521 | CC54: 1.451504921 | CD54: 1.459142297 | CE54: 1.466819857 | CF54: 1.474537815 | CG54: 1.482296382 | CH54: 1.490095772 | CI54: 1.497936201 | CJ54: 1.505817883 | CK54: 1.513741036 | CL54: 1.521705879 | CM54: 1.52971263 | CN54: 1.53776151 | CO54: 1.545852741 | CP54: 1.553986546 | CQ54: 1.562163148 | CR54: 1.570382773 | CS54: 1.578645647 | CT54: 1.586951998 | CU54: 1.595302054 | CV54: 1.603696046 | CW54: 1.612134204 | CX54: 1.620616761 | CY54: 1.629143951 | CZ54: 1.637716009 | DA54: 1.646333169 | DB54: 1.654995671 | DC54: 1.663703753 | DD54: 1.672457653 | DE54: 1.681257614 | DF54: 1.690103877 | DG54: 1.698996687 | DH54: 1.707936289 | DI54: 1.716922927 | DJ54: 1.725956851 | DK54: 1.735038308 | DL54: 1.744167549 | DM54: 1.753344825 | DN54: 1.76257039 | DO54: 1.771844496 | DP54: 1.781167401 | DQ54: 1.790539359 | DR54: 1.79996063 | DS54: 1.809431472 | DT54: 1.818952147 | DU54: 1.828522917 | DV54: 1.838144046 | DW54: 1.847815798 | DX54: 1.85753844 | DY54: 1.867312239 | DZ54: 1.877137465 | EA54: 1.887014389 | EB54: 1.896943282 | EC54: 1.906924417 | ED54: 1.91695807 | EE54: 1.927044518 | EF54: 1.937184037 | EG54: 1.947376907 | EH54: 1.957623409 | EI54: 1.967923825 | EJ54: =EI54*(1+EJ53) -> 1.978278438 | EK54: 1.988687535 | EL54: 1.999151401 | EM54: 2.009670324 | EN54: 2.020244595 | EO54: 2.030874504 | EP54: 2.041560345 | EQ54: 2.052302411 | ER54: 2.063100999 | ES54: 2.073956406 | ET54: 2.084868931 | EU54: 2.095838873 | EV54: 2.106866537 | EW54: 2.117952224 | EX54: 2.129096242 | EY54: 2.140298895 | EZ54: 2.151560494 | FA54: 2.162881347 | FB54: 2.174261767 | FC54: 2.185702068 | FD54: 2.197202564 | FE54: 2.208763572 | FF54: 2.220385411 | FG54: 2.2320684 | FH54: 2.243812862 | FI54: 2.255619119 | FJ54: 2.267487497 | FK54: 2.279418323 | FL54: 2.291411926 | FM54: 2.303468635 | FN54: 2.315588782 | FO54: 2.327772703 | FP54: 2.340020731 | FQ54: 2.352333205 | FR54: 2.364710463 | FS54: 2.377152846 | FT54: 2.389660698 | FU54: 2.402234362 | FV54: 2.414874185 | FW54: 2.427580514 | FX54: 2.440353701 | FY54: 2.453194096 | FZ54: 2.466102053 | GA54: 2.479077928 | GB54: 2.492122078 | GC54: 2.505234863 | GD54: 2.518416643 | GE54: 2.531667781 | GF54: 2.544988643 | GG54: 2.558379595 | GH54: 2.571841007 | GI54: 2.585373248 | GJ54: 2.598976691 | GK54: 2.612651712 | GL54: 2.626398687 | GM54: 2.640217994 | GN54: 2.654110013 | GO54: 2.668075129 | GP54: 2.682113725 | GQ54: 2.696226187 | GR54: 2.710412905 | GS54: 2.724674269 | GT54: 2.739010672 | GU54: 2.753422509 | GV54: =GU54*(1+GV53) -> 2.767910176 | GW54: 2.782474073 | GX54: 2.797114601 | GY54: 2.811832163 | GZ54: 2.826627164 | HA54: 2.841500012 | HB54: 2.856451117 | HC54: 2.871480889 | HD54: 2.886589744 | HE54: 2.901778096 | HF54: 2.917046366 | HG54: 2.932394972 | HH54: 2.947824338 | HI54: 2.963334888 | HJ54: 2.97892705 | HK54: 2.994601254 | HL54: 3.01035793 | HM54: 3.026197513 | HN54: 3.042120439 | HO54: 3.058127147 | HP54: 3.074218077 | HQ54: 3.090393673 | HR54: 3.106654379 | HS54: 3.123000645 | HT54: 3.13943292 | HU54: 3.155951656 | HV54: 3.172557309 | HW54: 3.189250335 | HX54: 3.206031195 | HY54: 3.222900351 | HZ54: 3.239858268 | IA54: 3.256905412 | IB54: 3.274042252 | IC54: 3.291269261 | ID54: 3.308586914 | IE54: 3.325995687 | IF54: 3.343496059 | IG54: 3.361088513 | IH54: 3.378773534 | II54: 3.396551607 | IJ54: 3.414423223 | IK54: 3.432388874 | IL54: 3.450449055 | IM54: 3.468604263 | IN54: 3.486854998 | IO54: 3.505201763 | IP54: 3.523645064 | IQ54: 3.542185407 | IR54: 3.560823303 | IS54: 3.579559267 | IT54: 3.598393813 | IU54: 3.617327462 | IV54: 3.636360733 | IW54: 3.655494151 | IX54: 3.674728244 | IY54: 3.69406354 | IZ54: 3.713500573 | JA54: 3.733039878 | JB54: 3.752681993 | JC54: 3.772427458 | JD54: 3.792276818 | JE54: 3.812230619 | JF54: 3.832289411 | JG54: 3.852453746 | JH54: =JG54*(1+JH53) -> 3.87272418 | JI54: 3.893101271 | JJ54: 3.91358558 | JK54: 3.934177671 | JL54: 3.954878111 | JM54: 3.97568747 | JN54: 3.996606322 | JO54: 4.017635243 | JP54: 4.038774811 | JQ54: 4.060025609 | JR54: 4.081388223 | JS54: 4.10286324 | JT54: 4.124451252 | JU54: 4.146152854 | JV54: 4.167968642 | JW54: 4.189899219 | JX54: 4.211945188 | JY54: 4.234107156 | JZ54: 4.256385733 | KA54: 4.278781534 | KB54: 4.301295174 | KC54: 4.323927274 | KD54: 4.346678457 | KE54: 4.369549351 | KF54: 4.392540583 | KG54: 4.415652789 | KH54: 4.438886604 | KI54: 4.462242668 | KJ54: 4.485721625 | KK54: 4.509324121 | KL54: 4.533050806 | KM54: 4.556902333 | KN54: 4.58087936 | KO54: 4.604982547 | KP54: 4.629212557 | KQ54: 4.653570058 | KR54: 4.678055721 | KS54: 4.70267022 | KT54: 4.727414233 | KU54: 4.752288442 | KV54: 4.777293531 | KW54: 4.802430189 | KX54: 4.827699108 | KY54: 4.853100985 | KZ54: 4.878636519 | LA54: 4.904306412 | LB54: 4.930111373 | LC54: 4.956052112 | LD54: 4.982129343 | LE54: 5.008343785 | LF54: 5.034696159 | LG54: 5.06118719 | LH54: 5.08781761 | LI54: 5.114588151 | LJ54: 5.14149955 | LK54: 5.168552549 | LL54: 5.195747892 | LM54: 5.223086329 | LN54: 5.250568613 | LO54: 5.2781955 | LP54: 5.305967751 | LQ54: 5.333886131 | LR54: 5.361951409 | LS54: 5.390164358 | LT54: =LS54*(1+LT53) -> 5.418525755 | LU54: 5.447036381 | LV54: 5.475697021 | LW54: 5.504508465 | LX54: 5.533471505 | LY54: 5.562586941 | LZ54: 5.591855573 | MA54: 5.621278207 | MB54: 5.650855654 | MC54: 5.680588729 | MD54: 5.71047825 | ME54: 5.740525041 | MF54: 5.770729929 | MG54: 5.801093746 | MH54: 5.831617327 | MI54: 5.862301515 | MJ54: 5.893147153 | MK54: 5.924155092 | ML54: 5.955326185 | MM54: 5.98666129 | MN54: 6.018161272 | MO54: 6.049826997 | MP54: 6.081659337 | MQ54: 6.113659169 | MR54: 6.145827374 | MS54: 6.178164839 | MT54: 6.210672454 | MU54: 6.243351113 | MV54: 6.276201718 | MW54: 6.309225173 | MX54: 6.342422387 | MY54: 6.375794274 | MZ54: 6.409341755 | NA54: 6.443065751 | NB54: 6.476967194 | NC54: 6.511047015 | ND54: 6.545306154 | NE54: 6.579745554 | NF54: 6.614366163 | NG54: 6.649168936 | NH54: 6.68415483 | NI54: 6.719324809 | NJ54: 6.754679842 | NK54: 6.790220902 | NL54: 6.825948969 | NM54: 6.861865025 | NN54: 6.897970061 | NO54: 6.934265071 | NP54: 6.970751054 | NQ54: 7.007429014 | NR54: 7.044299964 | NS54: 7.081364916 | NT54: 7.118624894 | NU54: 7.156080922 | NV54: 7.193734032 | NW54: 7.231585261 | NX54: 7.269635652 | NY54: 7.307886252 | NZ54: 7.346338115 | OA54: 7.3849923 | OB54: 7.423849872 | OC54: 7.4629119 | OD54: 7.502179461 | OE54: 7.541653636 | OF54: =OE54*(1+OF53) -> 7.581335512 | OG54: 7.621226181 | OH54: 7.661326744 | OI54: 7.701638303 | OJ54: 7.742161969 | OK54: 7.782898858 | OL54: 7.823850093 | OM54: 7.8650168 | ON54: 7.906400114 | OO54: 7.948001174 | OP54: 7.989821126 | OQ54: 8.031861122 | OR54: 8.07412232 | OS54: 8.116605883 | OT54: 8.159312982
B55: Exchange rate | G55: Flat Exchange rate | I55: FALSE | K55: =LOOKUP(YEAR(K2),'General Assumptions'!5:5,'General Assumptions'!14:14) -> 14.52512376 | L55: =IF($I$55,K55,LOOKUP(YEAR(L2),'General Assumptions'!5:5,'General Assumptions'!14:14)) -> 14.52512376 | M55: =IF($I$55,L55,LOOKUP(YEAR(M2),'General Assumptions'!5:5,'General Assumptions'!14:14)) -> 14.52512376 | N55: =IF($I$55,M55,LOOKUP(YEAR(N2),'General Assumptions'!5:5,'General Assumptions'!14:14)) -> 14.52512376 | O55: =IF($I$55,N55,LOOKUP(YEAR(O2),'General Assumptions'!5:5,'General Assumptions'!14:14)) -> 14.52512376 | P55: =IF($I$55,O55,LOOKUP(YEAR(P2),'General Assumptions'!5:5,'General Assumptions'!14:14)) -> 14.52512376 | Q55: =IF($I$55,P55,LOOKUP(YEAR(Q2),'General Assumptions'!5:5,'General Assumptions'!14:14)) -> 14.52512376 | R55: =IF($I$55,Q55,LOOKUP(YEAR(R2),'General Assumptions'!5:5,'General Assumptions'!14:14)) -> 14.52512376 | S55: =IF($I$55,R55,LOOKUP(YEAR(S2),'General Assumptions'!5:5,'General Assumptions'!14:14)) -> 14.52512376 | T55: =IF($I$55,S55,LOOKUP(YEAR(T2),'General Assumptions'!5:5,'General Assumptions'!14:14)) -> 14.52512376 | U55: =IF($I$55,T55,LOOKUP(YEAR(U2),'General Assumptions'!5:5,'General Assumptions'!14:14)) -> 14.52512376 | V55: =IF($I$55,U55,LOOKUP(YEAR(V2),'General Assumptions'!5:5,'General Assumptions'!14:14)) -> 14.52512376 | W55: =IF($I$55,V55,LOOKUP(YEAR(W2),'General Assumptions'!5:5,'General Assumptions'!14:14)) -> 15.31609585 | X55: =IF($I$55,W55,LOOKUP(YEAR(X2),'General Assumptions'!5:5,'General Assumptions'!14:14)) -> 15.31609585 | Y55: =IF($I$55,X55,LOOKUP(YEAR(Y2),'General Assumptions'!5:5,'General Assumptions'!14:14)) -> 15.31609585 | Z55: =IF($I$55,Y55,LOOKUP(YEAR(Z2),'General Assumptions'!5:5,'General Assumptions'!14:14)) -> 15.31609585 | AA55: =IF($I$55,Z55,LOOKUP(YEAR(AA2),'General Assumptions'!5:5,'General Assumptions'!14:14)) -> 15.31609585 | AB55: =IF($I$55,AA55,LOOKUP(YEAR(AB2),'General Assumptions'!5:5,'General Assumptions'!14:14)) -> 15.31609585 | AC55: =IF($I$55,AB55,LOOKUP(YEAR(AC2),'General Assumptions'!5:5,'General Assumptions'!14:14)) -> 15.31609585 | AD55: =IF($I$55,AC55,LOOKUP(YEAR(AD2),'General Assumptions'!5:5,'General Assumptions'!14:14)) -> 15.31609585 | AE55: =IF($I$55,AD55,LOOKUP(YEAR(AE2),'General Assumptions'!5:5,'General Assumptions'!14:14)) -> 15.31609585 | AF55: =IF($I$55,AE55,LOOKUP(YEAR(AF2),'General Assumptions'!5:5,'General Assumptions'!14:14)) -> 15.31609585 | AG55: =IF($I$55,AF55,LOOKUP(YEAR(AG2),'General Assumptions'!5:5,'General Assumptions'!14:14)) -> 15.31609585 | AH55: =IF($I$55,AG55,LOOKUP(YEAR(AH2),'General Assumptions'!5:5,'General Assumptions'!14:14)) -> 15.31609585 | AI55: =IF($I$55,AH55,LOOKUP(YEAR(AI2),'General Assumptions'!5:5,'General Assumptions'!14:14)) -> 16.15014067 | AJ55: =IF($I$55,AI55,LOOKUP(YEAR(AJ2),'General Assumptions'!5:5,'General Assumptions'!14:14)) -> 16.15014067 | AK55: =IF($I$55,AJ55,LOOKUP(YEAR(AK2),'General Assumptions'!5:5,'General Assumptions'!14:14)) -> 16.15014067 | AL55: =IF($I$55,AK55,LOOKUP(YEAR(AL2),'General Assumptions'!5:5,'General Assumptions'!14:14)) -> 16.15014067 | AM55: =IF($I$55,AL55,LOOKUP(YEAR(AM2),'General Assumptions'!5:5,'General Assumptions'!14:14)) -> 16.15014067 | AN55: =IF($I$55,AM55,LOOKUP(YEAR(AN2),'General Assumptions'!5:5,'General Assumptions'!14:14)) -> 16.15014067 | AO55: =IF($I$55,AN55,LOOKUP(YEAR(AO2),'General Assumptions'!5:5,'General Assumptions'!14:14)) -> 16.15014067 | AP55: =IF($I$55,AO55,LOOKUP(YEAR(AP2),'General Assumptions'!5:5,'General Assumptions'!14:14)) -> 16.15014067 | AQ55: =IF($I$55,AP55,LOOKUP(YEAR(AQ2),'General Assumptions'!5:5,'General Assumptions'!14:14)) -> 16.15014067 | AR55: =IF($I$55,AQ55,LOOKUP(YEAR(AR2),'General Assumptions'!5:5,'General Assumptions'!14:14)) -> 16.15014067 | AS55: =IF($I$55,AR55,LOOKUP(YEAR(AS2),'General Assumptions'!5:5,'General Assumptions'!14:14)) -> 16.15014067 | AT55: =IF($I$55,AS55,LOOKUP(YEAR(AT2),'General Assumptions'!5:5,'General Assumptions'!14:14)) -> 16.15014067 | AU55: =IF($I$55,AT55,LOOKUP(YEAR(AU2),'General Assumptions'!5:5,'General Assumptions'!14:14)) -> 17.02960378 | AV55: =IF($I$55,AU55,LOOKUP(YEAR(AV2),'General Assumptions'!5:5,'General Assumptions'!14:14)) -> 17.02960378 | AW55: =IF($I$55,AV55,LOOKUP(YEAR(AW2),'General Assumptions'!5:5,'General Assumptions'!14:14)) -> 17.02960378 | AX55: =IF($I$55,AW55,LOOKUP(YEAR(AX2),'General Assumptions'!5:5,'General Assumptions'!14:14)) -> 17.02960378 | AY55: =IF($I$55,AX55,LOOKUP(YEAR(AY2),'General Assumptions'!5:5,'General Assumptions'!14:14)) -> 17.02960378 | AZ55: =IF($I$55,AY55,LOOKUP(YEAR(AZ2),'General Assumptions'!5:5,'General Assumptions'!14:14)) -> 17.02960378 | BA55: =IF($I$55,AZ55,LOOKUP(YEAR(BA2),'General Assumptions'!5:5,'General Assumptions'!14:14)) -> 17.02960378 | BB55: =IF($I$55,BA55,LOOKUP(YEAR(BB2),'General Assumptions'!5:5,'General Assumptions'!14:14)) -> 17.02960378 | BC55: =IF($I$55,BB55,LOOKUP(YEAR(BC2),'General Assumptions'!5:5,'General Assumptions'!14:14)) -> 17.02960378 | BD55: =IF($I$55,BC55,LOOKUP(YEAR(BD2),'General Assumptions'!5:5,'General Assumptions'!14:14)) -> 17.02960378 | BE55: =IF($I$55,BD55,LOOKUP(YEAR(BE2),'General Assumptions'!5:5,'General Assumptions'!14:14)) -> 17.02960378 | BF55: =IF($I$55,BE55,LOOKUP(YEAR(BF2),'General Assumptions'!5:5,'General Assumptions'!14:14)) -> 17.02960378 | BG55: =IF($I$55,BF55,LOOKUP(YEAR(BG2),'General Assumptions'!5:5,'General Assumptions'!14:14)) -> 17.95695844 | BH55: =IF($I$55,BG55,LOOKUP(YEAR(BH2),'General Assumptions'!5:5,'General Assumptions'!14:14)) -> 17.95695844 | BI55: =IF($I$55,BH55,LOOKUP(YEAR(BI2),'General Assumptions'!5:5,'General Assumptions'!14:14)) -> 17.95695844 | BJ55: =IF($I$55,BI55,LOOKUP(YEAR(BJ2),'General Assumptions'!5:5,'General Assumptions'!14:14)) -> 17.95695844 | BK55: =IF($I$55,BJ55,LOOKUP(YEAR(BK2),'General Assumptions'!5:5,'General Assumptions'!14:14)) -> 17.95695844 | BL55: =IF($I$55,BK55,LOOKUP(YEAR(BL2),'General Assumptions'!5:5,'General Assumptions'!14:14)) -> 17.95695844 | BM55: =IF($I$55,BL55,LOOKUP(YEAR(BM2),'General Assumptions'!5:5,'General Assumptions'!14:14)) -> 17.95695844 | BN55: =IF($I$55,BM55,LOOKUP(YEAR(BN2),'General Assumptions'!5:5,'General Assumptions'!14:14)) -> 17.95695844 | BO55: =IF($I$55,BN55,LOOKUP(YEAR(BO2),'General Assumptions'!5:5,'General Assumptions'!14:14)) -> 17.95695844 | BP55: =IF($I$55,BO55,LOOKUP(YEAR(BP2),'General Assumptions'!5:5,'General Assumptions'!14:14)) -> 17.95695844 | BQ55: =IF($I$55,BP55,LOOKUP(YEAR(BQ2),'General Assumptions'!5:5,'General Assumptions'!14:14)) -> 17.95695844 | BR55: =IF($I$55,BQ55,LOOKUP(YEAR(BR2),'General Assumptions'!5:5,'General Assumptions'!14:14)) -> 17.95695844 | BS55: =IF($I$55,BR55,LOOKUP(YEAR(BS2),'General Assumptions'!5:5,'General Assumptions'!14:14)) -> 18.93481261 | BT55: =IF($I$55,BS55,LOOKUP(YEAR(BT2),'General Assumptions'!5:5,'General Assumptions'!14:14)) -> 18.93481261 | BU55: =IF($I$55,BT55,LOOKUP(YEAR(BU2),'General Assumptions'!5:5,'General Assumptions'!14:14)) -> 18.93481261 | BV55: =IF($I$55,BU55,LOOKUP(YEAR(BV2),'General Assumptions'!5:5,'General Assumptions'!14:14)) -> 18.93481261 | BW55: =IF($I$55,BV55,LOOKUP(YEAR(BW2),'General Assumptions'!5:5,'General Assumptions'!14:14)) -> 18.93481261 | BX55: =IF($I$55,BW55,LOOKUP(YEAR(BX2),'General Assumptions'!5:5,'General Assumptions'!14:14)) -> 18.93481261 | BY55: =IF($I$55,BX55,LOOKUP(YEAR(BY2),'General Assumptions'!5:5,'General Assumptions'!14:14)) -> 18.93481261 | BZ55: =IF($I$55,BY55,LOOKUP(YEAR(BZ2),'General Assumptions'!5:5,'General Assumptions'!14:14)) -> 18.93481261 | CA55: =IF($I$55,BZ55,LOOKUP(YEAR(CA2),'General Assumptions'!5:5,'General Assumptions'!14:14)) -> 18.93481261 | CB55: =IF($I$55,CA55,LOOKUP(YEAR(CB2),'General Assumptions'!5:5,'General Assumptions'!14:14)) -> 18.93481261 | CC55: =IF($I$55,CB55,LOOKUP(YEAR(CC2),'General Assumptions'!5:5,'General Assumptions'!14:14)) -> 18.93481261 | CD55: =IF($I$55,CC55,LOOKUP(YEAR(CD2),'General Assumptions'!5:5,'General Assumptions'!14:14)) -> 18.93481261 | CE55: =IF($I$55,CD55,LOOKUP(YEAR(CE2),'General Assumptions'!5:5,'General Assumptions'!14:14)) -> 19.96591627 | CF55: =IF($I$55,CE55,LOOKUP(YEAR(CF2),'General Assumptions'!5:5,'General Assumptions'!14:14)) -> 19.96591627 | CG55: =IF($I$55,CF55,LOOKUP(YEAR(CG2),'General Assumptions'!5:5,'General Assumptions'!14:14)) -> 19.96591627 | CH55: =IF($I$55,CG55,LOOKUP(YEAR(CH2),'General Assumptions'!5:5,'General Assumptions'!14:14)) -> 19.96591627 | CI55: =IF($I$55,CH55,LOOKUP(YEAR(CI2),'General Assumptions'!5:5,'General Assumptions'!14:14)) -> 19.96591627 | CJ55: =IF($I$55,CI55,LOOKUP(YEAR(CJ2),'General Assumptions'!5:5,'General Assumptions'!14:14)) -> 19.96591627 | CK55: =IF($I$55,CJ55,LOOKUP(YEAR(CK2),'General Assumptions'!5:5,'General Assumptions'!14:14)) -> 19.96591627 | CL55: =IF($I$55,CK55,LOOKUP(YEAR(CL2),'General Assumptions'!5:5,'General Assumptions'!14:14)) -> 19.96591627 | CM55: =IF($I$55,CL55,LOOKUP(YEAR(CM2),'General Assumptions'!5:5,'General Assumptions'!14:14)) -> 19.96591627 | CN55: =IF($I$55,CM55,LOOKUP(YEAR(CN2),'General Assumptions'!5:5,'General Assumptions'!14:14)) -> 19.96591627 | CO55: =IF($I$55,CN55,LOOKUP(YEAR(CO2),'General Assumptions'!5:5,'General Assumptions'!14:14)) -> 19.96591627 | CP55: =IF($I$55,CO55,LOOKUP(YEAR(CP2),'General Assumptions'!5:5,'General Assumptions'!14:14)) -> 19.96591627 | CQ55: =IF($I$55,CP55,LOOKUP(YEAR(CQ2),'General Assumptions'!5:5,'General Assumptions'!14:14)) -> 21.05316913 | CR55: =IF($I$55,CQ55,LOOKUP(YEAR(CR2),'General Assumptions'!5:5,'General Assumptions'!14:14)) -> 21.05316913 | CS55: =IF($I$55,CR55,LOOKUP(YEAR(CS2),'General Assumptions'!5:5,'General Assumptions'!14:14)) -> 21.05316913 | CT55: =IF($I$55,CS55,LOOKUP(YEAR(CT2),'General Assumptions'!5:5,'General Assumptions'!14:14)) -> 21.05316913 | CU55: =IF($I$55,CT55,LOOKUP(YEAR(CU2),'General Assumptions'!5:5,'General Assumptions'!14:14)) -> 21.05316913 | CV55: =IF($I$55,CU55,LOOKUP(YEAR(CV2),'General Assumptions'!5:5,'General Assumptions'!14:14)) -> 21.05316913 | CW55: =IF($I$55,CV55,LOOKUP(YEAR(CW2),'General Assumptions'!5:5,'General Assumptions'!14:14)) -> 21.05316913 | CX55: =IF($I$55,CW55,LOOKUP(YEAR(CX2),'General Assumptions'!5:5,'General Assumptions'!14:14)) -> 21.05316913 | CY55: =IF($I$55,CX55,LOOKUP(YEAR(CY2),'General Assumptions'!5:5,'General Assumptions'!14:14)) -> 21.05316913 | CZ55: =IF($I$55,CY55,LOOKUP(YEAR(CZ2),'General Assumptions'!5:5,'General Assumptions'!14:14)) -> 21.05316913 | DA55: =IF($I$55,CZ55,LOOKUP(YEAR(DA2),'General Assumptions'!5:5,'General Assumptions'!14:14)) -> 21.05316913 | DB55: =IF($I$55,DA55,LOOKUP(YEAR(DB2),'General Assumptions'!5:5,'General Assumptions'!14:14)) -> 21.05316913 | DC55: =IF($I$55,DB55,LOOKUP(YEAR(DC2),'General Assumptions'!5:5,'General Assumptions'!14:14)) -> 22.19962884 | DD55: =IF($I$55,DC55,LOOKUP(YEAR(DD2),'General Assumptions'!5:5,'General Assumptions'!14:14)) -> 22.19962884 | DE55: =IF($I$55,DD55,LOOKUP(YEAR(DE2),'General Assumptions'!5:5,'General Assumptions'!14:14)) -> 22.19962884 | DF55: =IF($I$55,DE55,LOOKUP(YEAR(DF2),'General Assumptions'!5:5,'General Assumptions'!14:14)) -> 22.19962884 | DG55: =IF($I$55,DF55,LOOKUP(YEAR(DG2),'General Assumptions'!5:5,'General Assumptions'!14:14)) -> 22.19962884 | DH55: =IF($I$55,DG55,LOOKUP(YEAR(DH2),'General Assumptions'!5:5,'General Assumptions'!14:14)) -> 22.19962884 | DI55: =IF($I$55,DH55,LOOKUP(YEAR(DI2),'General Assumptions'!5:5,'General Assumptions'!14:14)) -> 22.19962884 | DJ55: =IF($I$55,DI55,LOOKUP(YEAR(DJ2),'General Assumptions'!5:5,'General Assumptions'!14:14)) -> 22.19962884 | DK55: =IF($I$55,DJ55,LOOKUP(YEAR(DK2),'General Assumptions'!5:5,'General Assumptions'!14:14)) -> 22.19962884 | DL55: =IF($I$55,DK55,LOOKUP(YEAR(DL2),'General Assumptions'!5:5,'General Assumptions'!14:14)) -> 22.19962884 | DM55: =IF($I$55,DL55,LOOKUP(YEAR(DM2),'General Assumptions'!5:5,'General Assumptions'!14:14)) -> 22.19962884 | DN55: =IF($I$55,DM55,LOOKUP(YEAR(DN2),'General Assumptions'!5:5,'General Assumptions'!14:14)) -> 22.19962884 | DO55: =IF($I$55,DN55,LOOKUP(YEAR(DO2),'General Assumptions'!5:5,'General Assumptions'!14:14)) -> 23.40851952 | DP55: =IF($I$55,DO55,LOOKUP(YEAR(DP2),'General Assumptions'!5:5,'General Assumptions'!14:14)) -> 23.40851952 | DQ55: =IF($I$55,DP55,LOOKUP(YEAR(DQ2),'General Assumptions'!5:5,'General Assumptions'!14:14)) -> 23.40851952 | DR55: =IF($I$55,DQ55,LOOKUP(YEAR(DR2),'General Assumptions'!5:5,'General Assumptions'!14:14)) -> 23.40851952 | DS55: =IF($I$55,DR55,LOOKUP(YEAR(DS2),'General Assumptions'!5:5,'General Assumptions'!14:14)) -> 23.40851952 | DT55: =IF($I$55,DS55,LOOKUP(YEAR(DT2),'General Assumptions'!5:5,'General Assumptions'!14:14)) -> 23.40851952 | DU55: =IF($I$55,DT55,LOOKUP(YEAR(DU2),'General Assumptions'!5:5,'General Assumptions'!14:14)) -> 23.40851952 | DV55: =IF($I$55,DU55,LOOKUP(YEAR(DV2),'General Assumptions'!5:5,'General Assumptions'!14:14)) -> 23.40851952 | DW55: =IF($I$55,DV55,LOOKUP(YEAR(DW2),'General Assumptions'!5:5,'General Assumptions'!14:14)) -> 23.40851952 | DX55: =IF($I$55,DW55,LOOKUP(YEAR(DX2),'General Assumptions'!5:5,'General Assumptions'!14:14)) -> 23.40851952 | DY55: =IF($I$55,DX55,LOOKUP(YEAR(DY2),'General Assumptions'!5:5,'General Assumptions'!14:14)) -> 23.40851952 | DZ55: =IF($I$55,DY55,LOOKUP(YEAR(DZ2),'General Assumptions'!5:5,'General Assumptions'!14:14)) -> 23.40851952 | EA55: =IF($I$55,DZ55,LOOKUP(YEAR(EA2),'General Assumptions'!5:5,'General Assumptions'!14:14)) -> 24.68324088 | EB55: =IF($I$55,EA55,LOOKUP(YEAR(EB2),'General Assumptions'!5:5,'General Assumptions'!14:14)) -> 24.68324088 | EC55: =IF($I$55,EB55,LOOKUP(YEAR(EC2),'General Assumptions'!5:5,'General Assumptions'!14:14)) -> 24.68324088 | ED55: =IF($I$55,EC55,LOOKUP(YEAR(ED2),'General Assumptions'!5:5,'General Assumptions'!14:14)) -> 24.68324088 | EE55: =IF($I$55,ED55,LOOKUP(YEAR(EE2),'General Assumptions'!5:5,'General Assumptions'!14:14)) -> 24.68324088 | EF55: =IF($I$55,EE55,LOOKUP(YEAR(EF2),'General Assumptions'!5:5,'General Assumptions'!14:14)) -> 24.68324088 | EG55: =IF($I$55,EF55,LOOKUP(YEAR(EG2),'General Assumptions'!5:5,'General Assumptions'!14:14)) -> 24.68324088 | EH55: =IF($I$55,EG55,LOOKUP(YEAR(EH2),'General Assumptions'!5:5,'General Assumptions'!14:14)) -> 24.68324088 | EI55: =IF($I$55,EH55,LOOKUP(YEAR(EI2),'General Assumptions'!5:5,'General Assumptions'!14:14)) -> 24.68324088 | EJ55: =IF($I$55,EI55,LOOKUP(YEAR(EJ2),'General Assumptions'!5:5,'General Assumptions'!14:14)) -> 24.68324088 | EK55: =IF($I$55,EJ55,LOOKUP(YEAR(EK2),'General Assumptions'!5:5,'General Assumptions'!14:14)) -> 24.68324088 | EL55: =IF($I$55,EK55,LOOKUP(YEAR(EL2),'General Assumptions'!5:5,'General Assumptions'!14:14)) -> 24.68324088 | EM55: =IF($I$55,EL55,LOOKUP(YEAR(EM2),'General Assumptions'!5:5,'General Assumptions'!14:14)) -> 26.02737776 | EN55: =IF($I$55,EM55,LOOKUP(YEAR(EN2),'General Assumptions'!5:5,'General Assumptions'!14:14)) -> 26.02737776 | EO55: =IF($I$55,EN55,LOOKUP(YEAR(EO2),'General Assumptions'!5:5,'General Assumptions'!14:14)) -> 26.02737776 | EP55: =IF($I$55,EO55,LOOKUP(YEAR(EP2),'General Assumptions'!5:5,'General Assumptions'!14:14)) -> 26.02737776 | EQ55: =IF($I$55,EP55,LOOKUP(YEAR(EQ2),'General Assumptions'!5:5,'General Assumptions'!14:14)) -> 26.02737776 | ER55: =IF($I$55,EQ55,LOOKUP(YEAR(ER2),'General Assumptions'!5:5,'General Assumptions'!14:14)) -> 26.02737776 | ES55: =IF($I$55,ER55,LOOKUP(YEAR(ES2),'General Assumptions'!5:5,'General Assumptions'!14:14)) -> 26.02737776 | ET55: =IF($I$55,ES55,LOOKUP(YEAR(ET2),'General Assumptions'!5:5,'General Assumptions'!14:14)) -> 26.02737776 | EU55: =IF($I$55,ET55,LOOKUP(YEAR(EU2),'General Assumptions'!5:5,'General Assumptions'!14:14)) -> 26.02737776 | EV55: =IF($I$55,EU55,LOOKUP(YEAR(EV2),'General Assumptions'!5:5,'General Assumptions'!14:14)) -> 26.02737776 | EW55: =IF($I$55,EV55,LOOKUP(YEAR(EW2),'General Assumptions'!5:5,'General Assumptions'!14:14)) -> 26.02737776 | EX55: =IF($I$55,EW55,LOOKUP(YEAR(EX2),'General Assumptions'!5:5,'General Assumptions'!14:14)) -> 26.02737776 | EY55: =IF($I$55,EX55,LOOKUP(YEAR(EY2),'General Assumptions'!5:5,'General Assumptions'!14:14)) -> 27.44471021 | EZ55: =IF($I$55,EY55,LOOKUP(YEAR(EZ2),'General Assumptions'!5:5,'General Assumptions'!14:14)) -> 27.44471021 | FA55: =IF($I$55,EZ55,LOOKUP(YEAR(FA2),'General Assumptions'!5:5,'General Assumptions'!14:14)) -> 27.44471021 | FB55: =IF($I$55,FA55,LOOKUP(YEAR(FB2),'General Assumptions'!5:5,'General Assumptions'!14:14)) -> 27.44471021 | FC55: =IF($I$55,FB55,LOOKUP(YEAR(FC2),'General Assumptions'!5:5,'General Assumptions'!14:14)) -> 27.44471021 | FD55: =IF($I$55,FC55,LOOKUP(YEAR(FD2),'General Assumptions'!5:5,'General Assumptions'!14:14)) -> 27.44471021 | FE55: =IF($I$55,FD55,LOOKUP(YEAR(FE2),'General Assumptions'!5:5,'General Assumptions'!14:14)) -> 27.44471021 | FF55: =IF($I$55,FE55,LOOKUP(YEAR(FF2),'General Assumptions'!5:5,'General Assumptions'!14:14)) -> 27.44471021 | FG55: =IF($I$55,FF55,LOOKUP(YEAR(FG2),'General Assumptions'!5:5,'General Assumptions'!14:14)) -> 27.44471021 | FH55: =IF($I$55,FG55,LOOKUP(YEAR(FH2),'General Assumptions'!5:5,'General Assumptions'!14:14)) -> 27.44471021 | FI55: =IF($I$55,FH55,LOOKUP(YEAR(FI2),'General Assumptions'!5:5,'General Assumptions'!14:14)) -> 27.44471021 | FJ55: =IF($I$55,FI55,LOOKUP(YEAR(FJ2),'General Assumptions'!5:5,'General Assumptions'!14:14)) -> 27.44471021 | FK55: =IF($I$55,FJ55,LOOKUP(YEAR(FK2),'General Assumptions'!5:5,'General Assumptions'!14:14)) -> 28.93922413 | FL55: =IF($I$55,FK55,LOOKUP(YEAR(FL2),'General Assumptions'!5:5,'General Assumptions'!14:14)) -> 28.93922413 | FM55: =IF($I$55,FL55,LOOKUP(YEAR(FM2),'General Assumptions'!5:5,'General Assumptions'!14:14)) -> 28.93922413 | FN55: =IF($I$55,FM55,LOOKUP(YEAR(FN2),'General Assumptions'!5:5,'General Assumptions'!14:14)) -> 28.93922413 | FO55: =IF($I$55,FN55,LOOKUP(YEAR(FO2),'General Assumptions'!5:5,'General Assumptions'!14:14)) -> 28.93922413 | FP55: =IF($I$55,FO55,LOOKUP(YEAR(FP2),'General Assumptions'!5:5,'General Assumptions'!14:14)) -> 28.93922413 | FQ55: =IF($I$55,FP55,LOOKUP(YEAR(FQ2),'General Assumptions'!5:5,'General Assumptions'!14:14)) -> 28.93922413 | FR55: =IF($I$55,FQ55,LOOKUP(YEAR(FR2),'General Assumptions'!5:5,'General Assumptions'!14:14)) -> 28.93922413 | FS55: =IF($I$55,FR55,LOOKUP(YEAR(FS2),'General Assumptions'!5:5,'General Assumptions'!14:14)) -> 28.93922413 | FT55: =IF($I$55,FS55,LOOKUP(YEAR(FT2),'General Assumptions'!5:5,'General Assumptions'!14:14)) -> 28.93922413 | FU55: =IF($I$55,FT55,LOOKUP(YEAR(FU2),'General Assumptions'!5:5,'General Assumptions'!14:14)) -> 28.93922413 | FV55: =IF($I$55,FU55,LOOKUP(YEAR(FV2),'General Assumptions'!5:5,'General Assumptions'!14:14)) -> 28.93922413 | FW55: =IF($I$55,FV55,LOOKUP(YEAR(FW2),'General Assumptions'!5:5,'General Assumptions'!14:14)) -> 30.51512248 | FX55: =IF($I$55,FW55,LOOKUP(YEAR(FX2),'General Assumptions'!5:5,'General Assumptions'!14:14)) -> 30.51512248 | FY55: =IF($I$55,FX55,LOOKUP(YEAR(FY2),'General Assumptions'!5:5,'General Assumptions'!14:14)) -> 30.51512248 | FZ55: =IF($I$55,FY55,LOOKUP(YEAR(FZ2),'General Assumptions'!5:5,'General Assumptions'!14:14)) -> 30.51512248 | GA55: =IF($I$55,FZ55,LOOKUP(YEAR(GA2),'General Assumptions'!5:5,'General Assumptions'!14:14)) -> 30.51512248 | GB55: =IF($I$55,GA55,LOOKUP(YEAR(GB2),'General Assumptions'!5:5,'General Assumptions'!14:14)) -> 30.51512248 | GC55: =IF($I$55,GB55,LOOKUP(YEAR(GC2),'General Assumptions'!5:5,'General Assumptions'!14:14)) -> 30.51512248 | GD55: =IF($I$55,GC55,LOOKUP(YEAR(GD2),'General Assumptions'!5:5,'General Assumptions'!14:14)) -> 30.51512248 | GE55: =IF($I$55,GD55,LOOKUP(YEAR(GE2),'General Assumptions'!5:5,'General Assumptions'!14:14)) -> 30.51512248 | GF55: =IF($I$55,GE55,LOOKUP(YEAR(GF2),'General Assumptions'!5:5,'General Assumptions'!14:14)) -> 30.51512248 | GG55: =IF($I$55,GF55,LOOKUP(YEAR(GG2),'General Assumptions'!5:5,'General Assumptions'!14:14)) -> 30.51512248 | GH55: =IF($I$55,GG55,LOOKUP(YEAR(GH2),'General Assumptions'!5:5,'General Assumptions'!14:14)) -> 30.51512248 | GI55: =IF($I$55,GH55,LOOKUP(YEAR(GI2),'General Assumptions'!5:5,'General Assumptions'!14:14)) -> 32.17683707 | GJ55: =IF($I$55,GI55,LOOKUP(YEAR(GJ2),'General Assumptions'!5:5,'General Assumptions'!14:14)) -> 32.17683707 | GK55: =IF($I$55,GJ55,LOOKUP(YEAR(GK2),'General Assumptions'!5:5,'General Assumptions'!14:14)) -> 32.17683707 | GL55: =IF($I$55,GK55,LOOKUP(YEAR(GL2),'General Assumptions'!5:5,'General Assumptions'!14:14)) -> 32.17683707 | GM55: =IF($I$55,GL55,LOOKUP(YEAR(GM2),'General Assumptions'!5:5,'General Assumptions'!14:14)) -> 32.17683707 | GN55: =IF($I$55,GM55,LOOKUP(YEAR(GN2),'General Assumptions'!5:5,'General Assumptions'!14:14)) -> 32.17683707 | GO55: =IF($I$55,GN55,LOOKUP(YEAR(GO2),'General Assumptions'!5:5,'General Assumptions'!14:14)) -> 32.17683707 | GP55: =IF($I$55,GO55,LOOKUP(YEAR(GP2),'General Assumptions'!5:5,'General Assumptions'!14:14)) -> 32.17683707 | GQ55: =IF($I$55,GP55,LOOKUP(YEAR(GQ2),'General Assumptions'!5:5,'General Assumptions'!14:14)) -> 32.17683707 | GR55: =IF($I$55,GQ55,LOOKUP(YEAR(GR2),'General Assumptions'!5:5,'General Assumptions'!14:14)) -> 32.17683707 | GS55: =IF($I$55,GR55,LOOKUP(YEAR(GS2),'General Assumptions'!5:5,'General Assumptions'!14:14)) -> 32.17683707 | GT55: =IF($I$55,GS55,LOOKUP(YEAR(GT2),'General Assumptions'!5:5,'General Assumptions'!14:14)) -> 32.17683707 | GU55: =IF($I$55,GT55,LOOKUP(YEAR(GU2),'General Assumptions'!5:5,'General Assumptions'!14:14)) -> 33.92904107 | GV55: =IF($I$55,GU55,LOOKUP(YEAR(GV2),'General Assumptions'!5:5,'General Assumptions'!14:14)) -> 33.92904107 | GW55: =IF($I$55,GV55,LOOKUP(YEAR(GW2),'General Assumptions'!5:5,'General Assumptions'!14:14)) -> 33.92904107 | GX55: =IF($I$55,GW55,LOOKUP(YEAR(GX2),'General Assumptions'!5:5,'General Assumptions'!14:14)) -> 33.92904107 | GY55: =IF($I$55,GX55,LOOKUP(YEAR(GY2),'General Assumptions'!5:5,'General Assumptions'!14:14)) -> 33.92904107 | GZ55: =IF($I$55,GY55,LOOKUP(YEAR(GZ2),'General Assumptions'!5:5,'General Assumptions'!14:14)) -> 33.92904107 | HA55: =IF($I$55,GZ55,LOOKUP(YEAR(HA2),'General Assumptions'!5:5,'General Assumptions'!14:14)) -> 33.92904107 | HB55: =IF($I$55,HA55,LOOKUP(YEAR(HB2),'General Assumptions'!5:5,'General Assumptions'!14:14)) -> 33.92904107 | HC55: =IF($I$55,HB55,LOOKUP(YEAR(HC2),'General Assumptions'!5:5,'General Assumptions'!14:14)) -> 33.92904107 | HD55: =IF($I$55,HC55,LOOKUP(YEAR(HD2),'General Assumptions'!5:5,'General Assumptions'!14:14)) -> 33.92904107 | HE55: =IF($I$55,HD55,LOOKUP(YEAR(HE2),'General Assumptions'!5:5,'General Assumptions'!14:14)) -> 33.92904107 | HF55: =IF($I$55,HE55,LOOKUP(YEAR(HF2),'General Assumptions'!5:5,'General Assumptions'!14:14)) -> 33.92904107 | HG55: =IF($I$55,HF55,LOOKUP(YEAR(HG2),'General Assumptions'!5:5,'General Assumptions'!14:14)) -> 35.77666211 | HH55: =IF($I$55,HG55,LOOKUP(YEAR(HH2),'General Assumptions'!5:5,'General Assumptions'!14:14)) -> 35.77666211 | HI55: =IF($I$55,HH55,LOOKUP(YEAR(HI2),'General Assumptions'!5:5,'General Assumptions'!14:14)) -> 35.77666211 | HJ55: =IF($I$55,HI55,LOOKUP(YEAR(HJ2),'General Assumptions'!5:5,'General Assumptions'!14:14)) -> 35.77666211 | HK55: =IF($I$55,HJ55,LOOKUP(YEAR(HK2),'General Assumptions'!5:5,'General Assumptions'!14:14)) -> 35.77666211 | HL55: =IF($I$55,HK55,LOOKUP(YEAR(HL2),'General Assumptions'!5:5,'General Assumptions'!14:14)) -> 35.77666211 | HM55: =IF($I$55,HL55,LOOKUP(YEAR(HM2),'General Assumptions'!5:5,'General Assumptions'!14:14)) -> 35.77666211 | HN55: =IF($I$55,HM55,LOOKUP(YEAR(HN2),'General Assumptions'!5:5,'General Assumptions'!14:14)) -> 35.77666211 | HO55: =IF($I$55,HN55,LOOKUP(YEAR(HO2),'General Assumptions'!5:5,'General Assumptions'!14:14)) -> 35.77666211 | HP55: =IF($I$55,HO55,LOOKUP(YEAR(HP2),'General Assumptions'!5:5,'General Assumptions'!14:14)) -> 35.77666211 | HQ55: =IF($I$55,HP55,LOOKUP(YEAR(HQ2),'General Assumptions'!5:5,'General Assumptions'!14:14)) -> 35.77666211 | HR55: =IF($I$55,HQ55,LOOKUP(YEAR(HR2),'General Assumptions'!5:5,'General Assumptions'!14:14)) -> 35.77666211 | HS55: =IF($I$55,HR55,LOOKUP(YEAR(HS2),'General Assumptions'!5:5,'General Assumptions'!14:14)) -> 37.72489619 | HT55: =IF($I$55,HS55,LOOKUP(YEAR(HT2),'General Assumptions'!5:5,'General Assumptions'!14:14)) -> 37.72489619 | HU55: =IF($I$55,HT55,LOOKUP(YEAR(HU2),'General Assumptions'!5:5,'General Assumptions'!14:14)) -> 37.72489619 | HV55: =IF($I$55,HU55,LOOKUP(YEAR(HV2),'General Assumptions'!5:5,'General Assumptions'!14:14)) -> 37.72489619 | HW55: =IF($I$55,HV55,LOOKUP(YEAR(HW2),'General Assumptions'!5:5,'General Assumptions'!14:14)) -> 37.72489619 | HX55: =IF($I$55,HW55,LOOKUP(YEAR(HX2),'General Assumptions'!5:5,'General Assumptions'!14:14)) -> 37.72489619 | HY55: =IF($I$55,HX55,LOOKUP(YEAR(HY2),'General Assumptions'!5:5,'General Assumptions'!14:14)) -> 37.72489619 | HZ55: =IF($I$55,HY55,LOOKUP(YEAR(HZ2),'General Assumptions'!5:5,'General Assumptions'!14:14)) -> 37.72489619 | IA55: =IF($I$55,HZ55,LOOKUP(YEAR(IA2),'General Assumptions'!5:5,'General Assumptions'!14:14)) -> 37.72489619 | IB55: =IF($I$55,IA55,LOOKUP(YEAR(IB2),'General Assumptions'!5:5,'General Assumptions'!14:14)) -> 37.72489619 | IC55: =IF($I$55,IB55,LOOKUP(YEAR(IC2),'General Assumptions'!5:5,'General Assumptions'!14:14)) -> 37.72489619 | ID55: =IF($I$55,IC55,LOOKUP(YEAR(ID2),'General Assumptions'!5:5,'General Assumptions'!14:14)) -> 37.72489619 | IE55: =IF($I$55,ID55,LOOKUP(YEAR(IE2),'General Assumptions'!5:5,'General Assumptions'!14:14)) -> 39.77922222 | IF55: =IF($I$55,IE55,LOOKUP(YEAR(IF2),'General Assumptions'!5:5,'General Assumptions'!14:14)) -> 39.77922222 | IG55: =IF($I$55,IF55,LOOKUP(YEAR(IG2),'General Assumptions'!5:5,'General Assumptions'!14:14)) -> 39.77922222 | IH55: =IF($I$55,IG55,LOOKUP(YEAR(IH2),'General Assumptions'!5:5,'General Assumptions'!14:14)) -> 39.77922222 | II55: =IF($I$55,IH55,LOOKUP(YEAR(II2),'General Assumptions'!5:5,'General Assumptions'!14:14)) -> 39.77922222 | IJ55: =IF($I$55,II55,LOOKUP(YEAR(IJ2),'General Assumptions'!5:5,'General Assumptions'!14:14)) -> 39.77922222 | IK55: =IF($I$55,IJ55,LOOKUP(YEAR(IK2),'General Assumptions'!5:5,'General Assumptions'!14:14)) -> 39.77922222 | IL55: =IF($I$55,IK55,LOOKUP(YEAR(IL2),'General Assumptions'!5:5,'General Assumptions'!14:14)) -> 39.77922222 | IM55: =IF($I$55,IL55,LOOKUP(YEAR(IM2),'General Assumptions'!5:5,'General Assumptions'!14:14)) -> 39.77922222 | IN55: =IF($I$55,IM55,LOOKUP(YEAR(IN2),'General Assumptions'!5:5,'General Assumptions'!14:14)) -> 39.77922222 | IO55: =IF($I$55,IN55,LOOKUP(YEAR(IO2),'General Assumptions'!5:5,'General Assumptions'!14:14)) -> 39.77922222 | IP55: =IF($I$55,IO55,LOOKUP(YEAR(IP2),'General Assumptions'!5:5,'General Assumptions'!14:14)) -> 39.77922222 | IQ55: =IF($I$55,IP55,LOOKUP(YEAR(IQ2),'General Assumptions'!5:5,'General Assumptions'!14:14)) -> 41.94541749 | IR55: =IF($I$55,IQ55,LOOKUP(YEAR(IR2),'General Assumptions'!5:5,'General Assumptions'!14:14)) -> 41.94541749 | IS55: =IF($I$55,IR55,LOOKUP(YEAR(IS2),'General Assumptions'!5:5,'General Assumptions'!14:14)) -> 41.94541749 | IT55: =IF($I$55,IS55,LOOKUP(YEAR(IT2),'General Assumptions'!5:5,'General Assumptions'!14:14)) -> 41.94541749 | IU55: =IF($I$55,IT55,LOOKUP(YEAR(IU2),'General Assumptions'!5:5,'General Assumptions'!14:14)) -> 41.94541749 | IV55: =IF($I$55,IU55,LOOKUP(YEAR(IV2),'General Assumptions'!5:5,'General Assumptions'!14:14)) -> 41.94541749 | IW55: =IF($I$55,IV55,LOOKUP(YEAR(IW2),'General Assumptions'!5:5,'General Assumptions'!14:14)) -> 41.94541749 | IX55: =IF($I$55,IW55,LOOKUP(YEAR(IX2),'General Assumptions'!5:5,'General Assumptions'!14:14)) -> 41.94541749 | IY55: =IF($I$55,IX55,LOOKUP(YEAR(IY2),'General Assumptions'!5:5,'General Assumptions'!14:14)) -> 41.94541749 | IZ55: =IF($I$55,IY55,LOOKUP(YEAR(IZ2),'General Assumptions'!5:5,'General Assumptions'!14:14)) -> 41.94541749 | JA55: =IF($I$55,IZ55,LOOKUP(YEAR(JA2),'General Assumptions'!5:5,'General Assumptions'!14:14)) -> 41.94541749 | JB55: =IF($I$55,JA55,LOOKUP(YEAR(JB2),'General Assumptions'!5:5,'General Assumptions'!14:14)) -> 41.94541749 | JC55: =IF($I$55,JB55,LOOKUP(YEAR(JC2),'General Assumptions'!5:5,'General Assumptions'!14:14)) -> 44.22957389 | JD55: =IF($I$55,JC55,LOOKUP(YEAR(JD2),'General Assumptions'!5:5,'General Assumptions'!14:14)) -> 44.22957389 | JE55: =IF($I$55,JD55,LOOKUP(YEAR(JE2),'General Assumptions'!5:5,'General Assumptions'!14:14)) -> 44.22957389 | JF55: =IF($I$55,JE55,LOOKUP(YEAR(JF2),'General Assumptions'!5:5,'General Assumptions'!14:14)) -> 44.22957389 | JG55: =IF($I$55,JF55,LOOKUP(YEAR(JG2),'General Assumptions'!5:5,'General Assumptions'!14:14)) -> 44.22957389 | JH55: =IF($I$55,JG55,LOOKUP(YEAR(JH2),'General Assumptions'!5:5,'General Assumptions'!14:14)) -> 44.22957389 | JI55: =IF($I$55,JH55,LOOKUP(YEAR(JI2),'General Assumptions'!5:5,'General Assumptions'!14:14)) -> 44.22957389 | JJ55: =IF($I$55,JI55,LOOKUP(YEAR(JJ2),'General Assumptions'!5:5,'General Assumptions'!14:14)) -> 44.22957389 | JK55: =IF($I$55,JJ55,LOOKUP(YEAR(JK2),'General Assumptions'!5:5,'General Assumptions'!14:14)) -> 44.22957389 | JL55: =IF($I$55,JK55,LOOKUP(YEAR(JL2),'General Assumptions'!5:5,'General Assumptions'!14:14)) -> 44.22957389 | JM55: =IF($I$55,JL55,LOOKUP(YEAR(JM2),'General Assumptions'!5:5,'General Assumptions'!14:14)) -> 44.22957389 | JN55: =IF($I$55,JM55,LOOKUP(YEAR(JN2),'General Assumptions'!5:5,'General Assumptions'!14:14)) -> 44.22957389 | JO55: =IF($I$55,JN55,LOOKUP(YEAR(JO2),'General Assumptions'!5:5,'General Assumptions'!14:14)) -> 46.63811504 | JP55: =IF($I$55,JO55,LOOKUP(YEAR(JP2),'General Assumptions'!5:5,'General Assumptions'!14:14)) -> 46.63811504 | JQ55: =IF($I$55,JP55,LOOKUP(YEAR(JQ2),'General Assumptions'!5:5,'General Assumptions'!14:14)) -> 46.63811504 | JR55: =IF($I$55,JQ55,LOOKUP(YEAR(JR2),'General Assumptions'!5:5,'General Assumptions'!14:14)) -> 46.63811504 | JS55: =IF($I$55,JR55,LOOKUP(YEAR(JS2),'General Assumptions'!5:5,'General Assumptions'!14:14)) -> 46.63811504 | JT55: =IF($I$55,JS55,LOOKUP(YEAR(JT2),'General Assumptions'!5:5,'General Assumptions'!14:14)) -> 46.63811504 | JU55: =IF($I$55,JT55,LOOKUP(YEAR(JU2),'General Assumptions'!5:5,'General Assumptions'!14:14)) -> 46.63811504 | JV55: =IF($I$55,JU55,LOOKUP(YEAR(JV2),'General Assumptions'!5:5,'General Assumptions'!14:14)) -> 46.63811504 | JW55: =IF($I$55,JV55,LOOKUP(YEAR(JW2),'General Assumptions'!5:5,'General Assumptions'!14:14)) -> 46.63811504 | JX55: =IF($I$55,JW55,LOOKUP(YEAR(JX2),'General Assumptions'!5:5,'General Assumptions'!14:14)) -> 46.63811504 | JY55: =IF($I$55,JX55,LOOKUP(YEAR(JY2),'General Assumptions'!5:5,'General Assumptions'!14:14)) -> 46.63811504 | JZ55: =IF($I$55,JY55,LOOKUP(YEAR(JZ2),'General Assumptions'!5:5,'General Assumptions'!14:14)) -> 46.63811504 | KA55: =IF($I$55,JZ55,LOOKUP(YEAR(KA2),'General Assumptions'!5:5,'General Assumptions'!14:14)) -> 49.17781437 | KB55: =IF($I$55,KA55,LOOKUP(YEAR(KB2),'General Assumptions'!5:5,'General Assumptions'!14:14)) -> 49.17781437 | KC55: =IF($I$55,KB55,LOOKUP(YEAR(KC2),'General Assumptions'!5:5,'General Assumptions'!14:14)) -> 49.17781437 | KD55: =IF($I$55,KC55,LOOKUP(YEAR(KD2),'General Assumptions'!5:5,'General Assumptions'!14:14)) -> 49.17781437 | KE55: =IF($I$55,KD55,LOOKUP(YEAR(KE2),'General Assumptions'!5:5,'General Assumptions'!14:14)) -> 49.17781437 | KF55: =IF($I$55,KE55,LOOKUP(YEAR(KF2),'General Assumptions'!5:5,'General Assumptions'!14:14)) -> 49.17781437 | KG55: =IF($I$55,KF55,LOOKUP(YEAR(KG2),'General Assumptions'!5:5,'General Assumptions'!14:14)) -> 49.17781437 | KH55: =IF($I$55,KG55,LOOKUP(YEAR(KH2),'General Assumptions'!5:5,'General Assumptions'!14:14)) -> 49.17781437 | KI55: =IF($I$55,KH55,LOOKUP(YEAR(KI2),'General Assumptions'!5:5,'General Assumptions'!14:14)) -> 49.17781437 | KJ55: =IF($I$55,KI55,LOOKUP(YEAR(KJ2),'General Assumptions'!5:5,'General Assumptions'!14:14)) -> 49.17781437 | KK55: =IF($I$55,KJ55,LOOKUP(YEAR(KK2),'General Assumptions'!5:5,'General Assumptions'!14:14)) -> 49.17781437 | KL55: =IF($I$55,KK55,LOOKUP(YEAR(KL2),'General Assumptions'!5:5,'General Assumptions'!14:14)) -> 49.17781437 | KM55: =IF($I$55,KL55,LOOKUP(YEAR(KM2),'General Assumptions'!5:5,'General Assumptions'!14:14)) -> 49.17781437 | KN55: =IF($I$55,KM55,LOOKUP(YEAR(KN2),'General Assumptions'!5:5,'General Assumptions'!14:14)) -> 49.17781437 | KO55: =IF($I$55,KN55,LOOKUP(YEAR(KO2),'General Assumptions'!5:5,'General Assumptions'!14:14)) -> 49.17781437 | KP55: =IF($I$55,KO55,LOOKUP(YEAR(KP2),'General Assumptions'!5:5,'General Assumptions'!14:14)) -> 49.17781437 | KQ55: =IF($I$55,KP55,LOOKUP(YEAR(KQ2),'General Assumptions'!5:5,'General Assumptions'!14:14)) -> 49.17781437 | KR55: =IF($I$55,KQ55,LOOKUP(YEAR(KR2),'General Assumptions'!5:5,'General Assumptions'!14:14)) -> 49.17781437 | KS55: =IF($I$55,KR55,LOOKUP(YEAR(KS2),'General Assumptions'!5:5,'General Assumptions'!14:14)) -> 49.17781437 | KT55: =IF($I$55,KS55,LOOKUP(YEAR(KT2),'General Assumptions'!5:5,'General Assumptions'!14:14)) -> 49.17781437 | KU55: =IF($I$55,KT55,LOOKUP(YEAR(KU2),'General Assumptions'!5:5,'General Assumptions'!14:14)) -> 49.17781437 | KV55: =IF($I$55,KU55,LOOKUP(YEAR(KV2),'General Assumptions'!5:5,'General Assumptions'!14:14)) -> 49.17781437 | KW55: =IF($I$55,KV55,LOOKUP(YEAR(KW2),'General Assumptions'!5:5,'General Assumptions'!14:14)) -> 49.17781437 | KX55: =IF($I$55,KW55,LOOKUP(YEAR(KX2),'General Assumptions'!5:5,'General Assumptions'!14:14)) -> 49.17781437 | KY55: =IF($I$55,KX55,LOOKUP(YEAR(KY2),'General Assumptions'!5:5,'General Assumptions'!14:14)) -> 49.17781437 | KZ55: =IF($I$55,KY55,LOOKUP(YEAR(KZ2),'General Assumptions'!5:5,'General Assumptions'!14:14)) -> 49.17781437 | LA55: =IF($I$55,KZ55,LOOKUP(YEAR(LA2),'General Assumptions'!5:5,'General Assumptions'!14:14)) -> 49.17781437 | LB55: =IF($I$55,LA55,LOOKUP(YEAR(LB2),'General Assumptions'!5:5,'General Assumptions'!14:14)) -> 49.17781437 | LC55: =IF($I$55,LB55,LOOKUP(YEAR(LC2),'General Assumptions'!5:5,'General Assumptions'!14:14)) -> 49.17781437 | LD55: =IF($I$55,LC55,LOOKUP(YEAR(LD2),'General Assumptions'!5:5,'General Assumptions'!14:14)) -> 49.17781437 | LE55: =IF($I$55,LD55,LOOKUP(YEAR(LE2),'General Assumptions'!5:5,'General Assumptions'!14:14)) -> 49.17781437 | LF55: =IF($I$55,LE55,LOOKUP(YEAR(LF2),'General Assumptions'!5:5,'General Assumptions'!14:14)) -> 49.17781437 | LG55: =IF($I$55,LF55,LOOKUP(YEAR(LG2),'General Assumptions'!5:5,'General Assumptions'!14:14)) -> 49.17781437 | LH55: =IF($I$55,LG55,LOOKUP(YEAR(LH2),'General Assumptions'!5:5,'General Assumptions'!14:14)) -> 49.17781437 | LI55: =IF($I$55,LH55,LOOKUP(YEAR(LI2),'General Assumptions'!5:5,'General Assumptions'!14:14)) -> 49.17781437 | LJ55: =IF($I$55,LI55,LOOKUP(YEAR(LJ2),'General Assumptions'!5:5,'General Assumptions'!14:14)) -> 49.17781437 | LK55: =IF($I$55,LJ55,LOOKUP(YEAR(LK2),'General Assumptions'!5:5,'General Assumptions'!14:14)) -> 49.17781437 | LL55: =IF($I$55,LK55,LOOKUP(YEAR(LL2),'General Assumptions'!5:5,'General Assumptions'!14:14)) -> 49.17781437 | LM55: =IF($I$55,LL55,LOOKUP(YEAR(LM2),'General Assumptions'!5:5,'General Assumptions'!14:14)) -> 49.17781437 | LN55: =IF($I$55,LM55,LOOKUP(YEAR(LN2),'General Assumptions'!5:5,'General Assumptions'!14:14)) -> 49.17781437 | LO55: =IF($I$55,LN55,LOOKUP(YEAR(LO2),'General Assumptions'!5:5,'General Assumptions'!14:14)) -> 49.17781437 | LP55: =IF($I$55,LO55,LOOKUP(YEAR(LP2),'General Assumptions'!5:5,'General Assumptions'!14:14)) -> 49.17781437 | LQ55: =IF($I$55,LP55,LOOKUP(YEAR(LQ2),'General Assumptions'!5:5,'General Assumptions'!14:14)) -> 49.17781437 | LR55: =IF($I$55,LQ55,LOOKUP(YEAR(LR2),'General Assumptions'!5:5,'General Assumptions'!14:14)) -> 49.17781437 | LS55: =IF($I$55,LR55,LOOKUP(YEAR(LS2),'General Assumptions'!5:5,'General Assumptions'!14:14)) -> 49.17781437 | LT55: =IF($I$55,LS55,LOOKUP(YEAR(LT2),'General Assumptions'!5:5,'General Assumptions'!14:14)) -> 49.17781437 | LU55: =IF($I$55,LT55,LOOKUP(YEAR(LU2),'General Assumptions'!5:5,'General Assumptions'!14:14)) -> 49.17781437 | LV55: =IF($I$55,LU55,LOOKUP(YEAR(LV2),'General Assumptions'!5:5,'General Assumptions'!14:14)) -> 49.17781437 | LW55: =IF($I$55,LV55,LOOKUP(YEAR(LW2),'General Assumptions'!5:5,'General Assumptions'!14:14)) -> 49.17781437 | LX55: =IF($I$55,LW55,LOOKUP(YEAR(LX2),'General Assumptions'!5:5,'General Assumptions'!14:14)) -> 49.17781437 | LY55: =IF($I$55,LX55,LOOKUP(YEAR(LY2),'General Assumptions'!5:5,'General Assumptions'!14:14)) -> 49.17781437 | LZ55: =IF($I$55,LY55,LOOKUP(YEAR(LZ2),'General Assumptions'!5:5,'General Assumptions'!14:14)) -> 49.17781437 | MA55: =IF($I$55,LZ55,LOOKUP(YEAR(MA2),'General Assumptions'!5:5,'General Assumptions'!14:14)) -> 49.17781437 | MB55: =IF($I$55,MA55,LOOKUP(YEAR(MB2),'General Assumptions'!5:5,'General Assumptions'!14:14)) -> 49.17781437 | MC55: =IF($I$55,MB55,LOOKUP(YEAR(MC2),'General Assumptions'!5:5,'General Assumptions'!14:14)) -> 49.17781437 | MD55: =IF($I$55,MC55,LOOKUP(YEAR(MD2),'General Assumptions'!5:5,'General Assumptions'!14:14)) -> 49.17781437 | ME55: =IF($I$55,MD55,LOOKUP(YEAR(ME2),'General Assumptions'!5:5,'General Assumptions'!14:14)) -> 49.17781437 | MF55: =IF($I$55,ME55,LOOKUP(YEAR(MF2),'General Assumptions'!5:5,'General Assumptions'!14:14)) -> 49.17781437 | MG55: =IF($I$55,MF55,LOOKUP(YEAR(MG2),'General Assumptions'!5:5,'General Assumptions'!14:14)) -> 49.17781437 | MH55: =IF($I$55,MG55,LOOKUP(YEAR(MH2),'General Assumptions'!5:5,'General Assumptions'!14:14)) -> 49.17781437 | MI55: =IF($I$55,MH55,LOOKUP(YEAR(MI2),'General Assumptions'!5:5,'General Assumptions'!14:14)) -> 49.17781437 | MJ55: =IF($I$55,MI55,LOOKUP(YEAR(MJ2),'General Assumptions'!5:5,'General Assumptions'!14:14)) -> 49.17781437 | MK55: =IF($I$55,MJ55,LOOKUP(YEAR(MK2),'General Assumptions'!5:5,'General Assumptions'!14:14)) -> 49.17781437 | ML55: =IF($I$55,MK55,LOOKUP(YEAR(ML2),'General Assumptions'!5:5,'General Assumptions'!14:14)) -> 49.17781437 | MM55: =IF($I$55,ML55,LOOKUP(YEAR(MM2),'General Assumptions'!5:5,'General Assumptions'!14:14)) -> 49.17781437 | MN55: =IF($I$55,MM55,LOOKUP(YEAR(MN2),'General Assumptions'!5:5,'General Assumptions'!14:14)) -> 49.17781437 | MO55: =IF($I$55,MN55,LOOKUP(YEAR(MO2),'General Assumptions'!5:5,'General Assumptions'!14:14)) -> 49.17781437 | MP55: =IF($I$55,MO55,LOOKUP(YEAR(MP2),'General Assumptions'!5:5,'General Assumptions'!14:14)) -> 49.17781437 | MQ55: =IF($I$55,MP55,LOOKUP(YEAR(MQ2),'General Assumptions'!5:5,'General Assumptions'!14:14)) -> 49.17781437 | MR55: =IF($I$55,MQ55,LOOKUP(YEAR(MR2),'General Assumptions'!5:5,'General Assumptions'!14:14)) -> 49.17781437 | MS55: =IF($I$55,MR55,LOOKUP(YEAR(MS2),'General Assumptions'!5:5,'General Assumptions'!14:14)) -> 49.17781437 | MT55: =IF($I$55,MS55,LOOKUP(YEAR(MT2),'General Assumptions'!5:5,'General Assumptions'!14:14)) -> 49.17781437 | MU55: =IF($I$55,MT55,LOOKUP(YEAR(MU2),'General Assumptions'!5:5,'General Assumptions'!14:14)) -> 49.17781437 | MV55: =IF($I$55,MU55,LOOKUP(YEAR(MV2),'General Assumptions'!5:5,'General Assumptions'!14:14)) -> 49.17781437 | MW55: =IF($I$55,MV55,LOOKUP(YEAR(MW2),'General Assumptions'!5:5,'General Assumptions'!14:14)) -> 49.17781437 | MX55: =IF($I$55,MW55,LOOKUP(YEAR(MX2),'General Assumptions'!5:5,'General Assumptions'!14:14)) -> 49.17781437 | MY55: =IF($I$55,MX55,LOOKUP(YEAR(MY2),'General Assumptions'!5:5,'General Assumptions'!14:14)) -> 49.17781437 | MZ55: =IF($I$55,MY55,LOOKUP(YEAR(MZ2),'General Assumptions'!5:5,'General Assumptions'!14:14)) -> 49.17781437 | NA55: =IF($I$55,MZ55,LOOKUP(YEAR(NA2),'General Assumptions'!5:5,'General Assumptions'!14:14)) -> 49.17781437 | NB55: =IF($I$55,NA55,LOOKUP(YEAR(NB2),'General Assumptions'!5:5,'General Assumptions'!14:14)) -> 49.17781437 | NC55: =IF($I$55,NB55,LOOKUP(YEAR(NC2),'General Assumptions'!5:5,'General Assumptions'!14:14)) -> 49.17781437 | ND55: =IF($I$55,NC55,LOOKUP(YEAR(ND2),'General Assumptions'!5:5,'General Assumptions'!14:14)) -> 49.17781437 | NE55: =IF($I$55,ND55,LOOKUP(YEAR(NE2),'General Assumptions'!5:5,'General Assumptions'!14:14)) -> 49.17781437 | NF55: =IF($I$55,NE55,LOOKUP(YEAR(NF2),'General Assumptions'!5:5,'General Assumptions'!14:14)) -> 49.17781437 | NG55: =IF($I$55,NF55,LOOKUP(YEAR(NG2),'General Assumptions'!5:5,'General Assumptions'!14:14)) -> 49.17781437 | NH55: =IF($I$55,NG55,LOOKUP(YEAR(NH2),'General Assumptions'!5:5,'General Assumptions'!14:14)) -> 49.17781437 | NI55: =IF($I$55,NH55,LOOKUP(YEAR(NI2),'General Assumptions'!5:5,'General Assumptions'!14:14)) -> 49.17781437 | NJ55: =IF($I$55,NI55,LOOKUP(YEAR(NJ2),'General Assumptions'!5:5,'General Assumptions'!14:14)) -> 49.17781437 | NK55: =IF($I$55,NJ55,LOOKUP(YEAR(NK2),'General Assumptions'!5:5,'General Assumptions'!14:14)) -> 49.17781437 | NL55: =IF($I$55,NK55,LOOKUP(YEAR(NL2),'General Assumptions'!5:5,'General Assumptions'!14:14)) -> 49.17781437 | NM55: =IF($I$55,NL55,LOOKUP(YEAR(NM2),'General Assumptions'!5:5,'General Assumptions'!14:14)) -> 49.17781437 | NN55: =IF($I$55,NM55,LOOKUP(YEAR(NN2),'General Assumptions'!5:5,'General Assumptions'!14:14)) -> 49.17781437 | NO55: =IF($I$55,NN55,LOOKUP(YEAR(NO2),'General Assumptions'!5:5,'General Assumptions'!14:14)) -> 49.17781437 | NP55: =IF($I$55,NO55,LOOKUP(YEAR(NP2),'General Assumptions'!5:5,'General Assumptions'!14:14)) -> 49.17781437 | NQ55: =IF($I$55,NP55,LOOKUP(YEAR(NQ2),'General Assumptions'!5:5,'General Assumptions'!14:14)) -> 49.17781437 | NR55: =IF($I$55,NQ55,LOOKUP(YEAR(NR2),'General Assumptions'!5:5,'General Assumptions'!14:14)) -> 49.17781437 | NS55: =IF($I$55,NR55,LOOKUP(YEAR(NS2),'General Assumptions'!5:5,'General Assumptions'!14:14)) -> 49.17781437 | NT55: =IF($I$55,NS55,LOOKUP(YEAR(NT2),'General Assumptions'!5:5,'General Assumptions'!14:14)) -> 49.17781437 | NU55: =IF($I$55,NT55,LOOKUP(YEAR(NU2),'General Assumptions'!5:5,'General Assumptions'!14:14)) -> 49.17781437 | NV55: =IF($I$55,NU55,LOOKUP(YEAR(NV2),'General Assumptions'!5:5,'General Assumptions'!14:14)) -> 49.17781437 | NW55: =IF($I$55,NV55,LOOKUP(YEAR(NW2),'General Assumptions'!5:5,'General Assumptions'!14:14)) -> 49.17781437 | NX55: =IF($I$55,NW55,LOOKUP(YEAR(NX2),'General Assumptions'!5:5,'General Assumptions'!14:14)) -> 49.17781437 | NY55: =IF($I$55,NX55,LOOKUP(YEAR(NY2),'General Assumptions'!5:5,'General Assumptions'!14:14)) -> 49.17781437 | NZ55: =IF($I$55,NY55,LOOKUP(YEAR(NZ2),'General Assumptions'!5:5,'General Assumptions'!14:14)) -> 49.17781437 | OA55: =IF($I$55,NZ55,LOOKUP(YEAR(OA2),'General Assumptions'!5:5,'General Assumptions'!14:14)) -> 49.17781437 | OB55: =IF($I$55,OA55,LOOKUP(YEAR(OB2),'General Assumptions'!5:5,'General Assumptions'!14:14)) -> 49.17781437 | OC55: =IF($I$55,OB55,LOOKUP(YEAR(OC2),'General Assumptions'!5:5,'General Assumptions'!14:14)) -> 49.17781437 | OD55: =IF($I$55,OC55,LOOKUP(YEAR(OD2),'General Assumptions'!5:5,'General Assumptions'!14:14)) -> 49.17781437 | OE55: =IF($I$55,OD55,LOOKUP(YEAR(OE2),'General Assumptions'!5:5,'General Assumptions'!14:14)) -> 49.17781437 | OF55: =IF($I$55,OE55,LOOKUP(YEAR(OF2),'General Assumptions'!5:5,'General Assumptions'!14:14)) -> 49.17781437 | OG55: =IF($I$55,OF55,LOOKUP(YEAR(OG2),'General Assumptions'!5:5,'General Assumptions'!14:14)) -> 49.17781437 | OH55: =IF($I$55,OG55,LOOKUP(YEAR(OH2),'General Assumptions'!5:5,'General Assumptions'!14:14)) -> 49.17781437 | OI55: =IF($I$55,OH55,LOOKUP(YEAR(OI2),'General Assumptions'!5:5,'General Assumptions'!14:14)) -> 49.17781437 | OJ55: =IF($I$55,OI55,LOOKUP(YEAR(OJ2),'General Assumptions'!5:5,'General Assumptions'!14:14)) -> 49.17781437 | OK55: =IF($I$55,OJ55,LOOKUP(YEAR(OK2),'General Assumptions'!5:5,'General Assumptions'!14:14)) -> 49.17781437 | OL55: =IF($I$55,OK55,LOOKUP(YEAR(OL2),'General Assumptions'!5:5,'General Assumptions'!14:14)) -> 49.17781437 | OM55: =IF($I$55,OL55,LOOKUP(YEAR(OM2),'General Assumptions'!5:5,'General Assumptions'!14:14)) -> 49.17781437 | ON55: =IF($I$55,OM55,LOOKUP(YEAR(ON2),'General Assumptions'!5:5,'General Assumptions'!14:14)) -> 49.17781437 | OO55: =IF($I$55,ON55,LOOKUP(YEAR(OO2),'General Assumptions'!5:5,'General Assumptions'!14:14)) -> 49.17781437 | OP55: =IF($I$55,OO55,LOOKUP(YEAR(OP2),'General Assumptions'!5:5,'General Assumptions'!14:14)) -> 49.17781437 | OQ55: =IF($I$55,OP55,LOOKUP(YEAR(OQ2),'General Assumptions'!5:5,'General Assumptions'!14:14)) -> 49.17781437 | OR55: =IF($I$55,OQ55,LOOKUP(YEAR(OR2),'General Assumptions'!5:5,'General Assumptions'!14:14)) -> 49.17781437 | OS55: =IF($I$55,OR55,LOOKUP(YEAR(OS2),'General Assumptions'!5:5,'General Assumptions'!14:14)) -> 49.17781437 | OT55: =IF($I$55,OS55,LOOKUP(YEAR(OT2),'General Assumptions'!5:5,'General Assumptions'!14:14)) -> 49.17781437
B57: Cost in EURO | G57: =F26 -> 800 | K57: =$G$57*K51 -> 800.6636305 | L57: =$G$57*L51 -> 801.3278115 | M57: 801.9925435 | N57: 802.6578268 | O57: 803.3236621 | P57: 803.9900497 | Q57: 804.6569901 | R57: 805.3244837 | S57: 805.9925311 | T57: 806.6611326 | U57: 807.3302888 | V57: 808 | W57: 808.6702668 | X57: 809.3410896 | Y57: 810.0124689 | Z57: 810.6844051 | AA57: 811.3568987 | AB57: 812.0299502 | AC57: 812.70356 | AD57: 813.3777286 | AE57: 814.0524564 | AF57: 814.7277439 | AG57: 815.4035916 | AH57: 816.08 | AI57: 816.7569695 | AJ57: 817.4345005 | AK57: 818.1125936 | AL57: 818.7912492 | AM57: 819.4704677 | AN57: 820.1502497 | AO57: 820.8305956 | AP57: 821.5115058 | AQ57: 822.1929809 | AR57: 822.8750214 | AS57: 823.5576276 | AT57: 824.2408 | AU57: 824.9245392 | AV57: 825.6088455 | AW57: 826.2937195 | AX57: 826.9791616 | AY57: 827.6651724 | AZ57: 828.3517522 | BA57: 829.0389015 | BB57: 829.7266209 | BC57: 830.4149108 | BD57: 831.1037716 | BE57: 831.7932038 | BF57: 832.483208 | BG57: 833.1737846 | BH57: 833.864934 | BI57: 834.5566567 | BJ57: 835.2489533 | BK57: 835.9418241 | BL57: 836.6352697 | BM57: 837.3292906 | BN57: 838.0238871 | BO57: 838.7190599 | BP57: 839.4148093 | BQ57: 840.1111359 | BR57: 840.8080401 | BS57: 841.5055224 | BT57: 842.2035833 | BU57: 842.9022233 | BV57: 843.6014428 | BW57: 844.3012423 | BX57: =$G$57*BX51 -> 845.0016224 | BY57: 845.7025835 | BZ57: 846.404126 | CA57: 847.1062505 | CB57: 847.8089574 | CC57: 848.5122472 | CD57: 849.2161205 | CE57: 849.9205776 | CF57: 850.6256191 | CG57: 851.3312455 | CH57: 852.0374572 | CI57: 852.7442548 | CJ57: 853.4516386 | CK57: 854.1596093 | CL57: 854.8681672 | CM57: 855.577313 | CN57: 856.287047 | CO57: 856.9973697 | CP57: 857.7082817 | CQ57: 858.4197834 | CR57: 859.1318753 | CS57: 859.844558 | CT57: 860.5578318 | CU57: 861.2716973 | CV57: 861.986155 | CW57: 862.7012054 | CX57: 863.4168489 | CY57: 864.1330861 | CZ57: 864.8499174 | DA57: 865.5673434 | DB57: 866.2853645 | DC57: 867.0039812 | DD57: 867.7231941 | DE57: 868.4430035 | DF57: 869.1634101 | DG57: 869.8844143 | DH57: 870.6060166 | DI57: 871.3282174 | DJ57: 872.0510174 | DK57: 872.774417 | DL57: 873.4984166 | DM57: 874.2230168 | DN57: 874.9482181 | DO57: 875.674021 | DP57: 876.400426 | DQ57: 877.1274336 | DR57: 877.8550442 | DS57: 878.5832584 | DT57: 879.3120767 | DU57: 880.0414996 | DV57: 880.7715276 | DW57: 881.5021611 | DX57: 882.2334008 | DY57: 882.965247 | DZ57: 883.6977003 | EA57: 884.4307613 | EB57: 885.1644303 | EC57: 885.8987079 | ED57: 886.6335947 | EE57: 887.369091 | EF57: 888.1051975 | EG57: 888.8419146 | EH57: 889.5792429 | EI57: 890.3171827 | EJ57: =$G$57*EJ51 -> 891.0557348 | EK57: 891.7948995 | EL57: 892.5346773 | EM57: 893.2750689 | EN57: 894.0160746 | EO57: 894.757695 | EP57: 895.4999306 | EQ57: 896.2427819 | ER57: 896.9862495 | ES57: 897.7303338 | ET57: 898.4750353 | EU57: 899.2203546 | EV57: 899.9662921 | EW57: 900.7128485 | EX57: 901.4600241 | EY57: 902.2078196 | EZ57: 902.9562353 | FA57: 903.7052719 | FB57: 904.4549299 | FC57: 905.2052097 | FD57: 905.956112 | FE57: 906.7076371 | FF57: 907.4597856 | FG57: 908.2125581 | FH57: 908.965955 | FI57: 909.719977 | FJ57: 910.4746243 | FK57: 911.2298977 | FL57: 911.9857977 | FM57: 912.7423247 | FN57: 913.4994792 | FO57: 914.2572618 | FP57: 915.0156731 | FQ57: 915.7747135 | FR57: 916.5343835 | FS57: 917.2946837 | FT57: 918.0556146 | FU57: 918.8171767 | FV57: 919.5793706 | FW57: 920.3421967 | FX57: 921.1056557 | FY57: 921.8697479 | FZ57: 922.634474 | GA57: 923.3998345 | GB57: 924.1658298 | GC57: 924.9324606 | GD57: 925.6997273 | GE57: 926.4676305 | GF57: 927.2361707 | GG57: 928.0053485 | GH57: 928.7751643 | GI57: 929.5456187 | GJ57: 930.3167122 | GK57: 931.0884454 | GL57: 931.8608187 | GM57: 932.6338328 | GN57: 933.4074881 | GO57: 934.1817852 | GP57: 934.9567246 | GQ57: 935.7323068 | GR57: 936.5085325 | GS57: 937.285402 | GT57: 938.0629159 | GU57: 938.8410749 | GV57: =$G$57*GV51 -> 939.6198793 | GW57: 940.3993298 | GX57: 941.1794269 | GY57: 941.9601711 | GZ57: 942.741563 | HA57: 943.5236031 | HB57: 944.3062918 | HC57: 945.0896299 | HD57: 945.8736178 | HE57: 946.658256 | HF57: 947.4435451 | HG57: 948.2294856 | HH57: 949.0160781 | HI57: 949.8033231 | HJ57: 950.5912212 | HK57: 951.3797728 | HL57: 952.1689786 | HM57: 952.9588391 | HN57: 953.7493548 | HO57: 954.5405262 | HP57: 955.332354 | HQ57: 956.1248386 | HR57: 956.9179805 | HS57: 957.7117805 | HT57: 958.5062389 | HU57: 959.3013564 | HV57: 960.0971334 | HW57: 960.8935706 | HX57: 961.6906684 | HY57: 962.4884275 | HZ57: 963.2868483 | IA57: 964.0859315 | IB57: 964.8856775 | IC57: 965.6860869 | ID57: 966.4871604 | IE57: 967.2888983 | IF57: 968.0913013 | IG57: 968.8943699 | IH57: 969.6981047 | II57: 970.5025063 | IJ57: 971.3075751 | IK57: 972.1133118 | IL57: 972.9197168 | IM57: 973.7267908 | IN57: 974.5345343 | IO57: 975.3429478 | IP57: 976.152032 | IQ57: 976.9617873 | IR57: 977.7722143 | IS57: 978.5833136 | IT57: 979.3950858 | IU57: 980.2075313 | IV57: 981.0206508 | IW57: 981.8344449 | IX57: 982.648914 | IY57: 983.4640587 | IZ57: 984.2798796 | JA57: 985.0963773 | JB57: 985.9135523 | JC57: 986.7314051 | JD57: 987.5499365 | JE57: 988.3691468 | JF57: 989.1890366 | JG57: 990.0096067 | JH57: =$G$57*JH51 -> 990.8308574 | JI57: 991.6527893 | JJ57: 992.4754031 | JK57: 993.2986993 | JL57: 994.1226784 | JM57: 994.9473411 | JN57: 995.7726878 | JO57: 996.5987192 | JP57: 997.4254358 | JQ57: 998.2528382 | JR57: 999.080927 | JS57: 999.9097027 | JT57: 1000.739166 | JU57: 1001.569317 | JV57: 1002.400157 | JW57: 1003.231686 | JX57: 1004.063905 | JY57: 1004.896814 | JZ57: 1005.730415 | KA57: 1006.564706 | KB57: 1007.39969 | KC57: 1008.235367 | KD57: 1009.071736 | KE57: 1009.9088 | KF57: 1010.746558 | KG57: 1011.58501 | KH57: 1012.424159 | KI57: 1013.264003 | KJ57: 1014.104544 | KK57: 1014.945783 | KL57: 1015.787719 | KM57: 1016.630353 | KN57: 1017.473687 | KO57: 1018.31772 | KP57: 1019.162454 | KQ57: 1020.007888 | KR57: 1020.854023 | KS57: 1021.70086 | KT57: 1022.5484 | KU57: 1023.396643 | KV57: 1024.24559 | KW57: 1025.09524 | KX57: 1025.945596 | KY57: 1026.796657 | KZ57: 1027.648424 | LA57: 1028.500897 | LB57: 1029.354078 | LC57: 1030.207967 | LD57: 1031.062563 | LE57: 1031.917869 | LF57: 1032.773884 | LG57: 1033.63061 | LH57: 1034.488046 | LI57: 1035.346193 | LJ57: 1036.205052 | LK57: 1037.064624 | LL57: 1037.924908 | LM57: 1038.785906 | LN57: 1039.647619 | LO57: 1040.510046 | LP57: 1041.373189 | LQ57: 1042.237048 | LR57: 1043.101623 | LS57: 1043.966916 | LT57: =$G$57*LT51 -> 1044.832926 | LU57: 1045.699655 | LV57: 1046.567102 | LW57: 1047.43527 | LX57: 1048.304157 | LY57: 1049.173766 | LZ57: 1050.044095 | MA57: 1050.915147 | MB57: 1051.786921 | MC57: 1052.659418 | MD57: 1053.532639 | ME57: 1054.406585 | MF57: 1055.281255 | MG57: 1056.156651 | MH57: 1057.032774 | MI57: 1057.909622 | MJ57: 1058.787199 | MK57: 1059.665503 | ML57: 1060.544536 | MM57: 1061.424298 | MN57: 1062.30479 | MO57: 1063.186012 | MP57: 1064.067966 | MQ57: 1064.950651 | MR57: 1065.834068 | MS57: 1066.718218 | MT57: 1067.603101 | MU57: 1068.488719 | MV57: 1069.375071 | MW57: 1070.262158 | MX57: 1071.149981 | MY57: 1072.038541 | MZ57: 1072.927838 | NA57: 1073.817873 | NB57: 1074.708645 | NC57: 1075.600157 | ND57: 1076.492409 | NE57: 1077.3854 | NF57: 1078.279132 | NG57: 1079.173606 | NH57: 1080.068822 | NI57: 1080.96478 | NJ57: 1081.861481 | NK57: 1082.758927 | NL57: 1083.657116 | NM57: 1084.556051 | NN57: 1085.455732 | NO57: 1086.356159 | NP57: 1087.257333 | NQ57: 1088.159254 | NR57: 1089.061924 | NS57: 1089.965342 | NT57: 1090.86951 | NU57: 1091.774428 | NV57: 1092.680096 | NW57: 1093.586516 | NX57: 1094.493688 | NY57: 1095.401612 | NZ57: 1096.310289 | OA57: 1097.21972 | OB57: 1098.129906 | OC57: 1099.040847 | OD57: 1099.952543 | OE57: 1100.864995 | OF57: =$G$57*OF51 -> 1101.778205 | OG57: 1102.692172 | OH57: 1103.606897 | OI57: 1104.522381 | OJ57: 1105.438624 | OK57: 1106.355628 | OL57: 1107.273392 | OM57: 1108.191918 | ON57: 1109.111205 | OO57: 1110.031255 | OP57: 1110.952068 | OQ57: 1111.873645 | OR57: 1112.795987 | OS57: 1113.719094 | OT57: 1114.642966
B58: Cost in EGP | K58: =K57*K55 -> 11629.73832 | L58: =L57*L55 -> 11639.38564 | M58: 11649.04095 | N58: 11658.70427 | O58: 11668.37561 | P58: 11678.05498 | Q58: 11687.74237 | R58: 11697.43779 | S58: 11707.14127 | T58: 11716.85279 | U58: 11726.57236 | V58: 11736.3 | W58: 12385.67132 | X58: 12395.9457 | Y58: 12406.22861 | Z58: 12416.52005 | AA58: 12426.82003 | AB58: 12437.12855 | AC58: 12447.44562 | AD58: 12457.77125 | AE58: 12468.10545 | AF58: 12478.44822 | AG58: 12488.79956 | AH58: 12499.1595 | AI58: 13190.73995 | AJ58: 13201.68217 | AK58: 13212.63347 | AL58: 13223.59385 | AM58: 13234.56333 | AN58: 13245.5419 | AO58: 13256.52959 | AP58: 13267.52638 | AQ58: 13278.5323 | AR58: 13289.54735 | AS58: 13300.57154 | AT58: 13311.60487 | AU58: 14048.13805 | AV58: 14059.79151 | AW58: 14071.45465 | AX58: 14083.12746 | AY58: 14094.80995 | AZ58: 14106.50213 | BA58: 14118.20401 | BB58: 14129.9156 | BC58: 14141.6369 | BD58: 14153.36793 | BE58: 14165.10869 | BF58: 14176.85918 | BG58: 14961.26702 | BH58: 14973.67796 | BI58: 14986.0992 | BJ58: 14998.53074 | BK58: 15010.97259 | BL58: 15023.42477 | BM58: 15035.88727 | BN58: 15048.36011 | BO58: 15060.8433 | BP58: 15073.33684 | BQ58: 15085.84075 | BR58: 15098.35503 | BS58: 15933.74938 | BT58: 15946.96703 | BU58: 15960.19565 | BV58: 15973.43524 | BW58: 15986.68581 | BX58: =BX57*BX55 -> 15999.94738 | BY58: 16013.21994 | BZ58: 16026.50352 | CA58: 16039.79811 | CB58: 16053.10374 | CC58: 16066.4204 | CD58: 16079.74811 | CE58: 16969.44309 | CF58: 16983.51989 | CG58: 16997.60836 | CH58: 17011.70853 | CI58: 17025.82039 | CJ58: 17039.94396 | CK58: 17054.07924 | CL58: 17068.22625 | CM58: 17082.38499 | CN58: 17096.55548 | CO58: 17110.73773 | CP58: 17124.93173 | CQ58: 18072.45689 | CR58: 18087.44868 | CS58: 18102.45291 | CT58: 18117.46958 | CU58: 18132.49871 | CV58: 18147.54031 | CW58: 18162.59439 | CX58: 18177.66095 | CY58: 18192.74002 | CZ58: 18207.83159 | DA58: 18222.93568 | DB58: 18238.0523 | DC58: 19247.16659 | DD58: 19263.13284 | DE58: 19279.11235 | DF58: 19295.10511 | DG58: 19311.11113 | DH58: 19327.13043 | DI58: 19343.16302 | DJ58: 19359.20892 | DK58: 19375.26812 | DL58: 19391.34064 | DM58: 19407.4265 | DN58: 19423.5257 | DO58: 20498.23241 | DP58: 20515.23648 | DQ58: 20532.25465 | DR58: 20549.28694 | DS58: 20566.33335 | DT58: 20583.39391 | DU58: 20600.46862 | DV58: 20617.5575 | DW58: 20634.66055 | DX58: 20651.77778 | DY58: 20668.90922 | DZ58: 20686.05487 | EA58: 21830.61752 | EB58: 21848.72685 | EC58: 21866.8512 | ED58: 21884.99059 | EE58: 21903.14502 | EF58: 21921.31452 | EG58: 21939.49908 | EH58: 21957.69873 | EI58: 21975.91348 | EJ58: =EJ57*EJ55 -> 21994.14334 | EK58: 22012.38832 | EL58: 22030.64843 | EM58: 23249.60766 | EN58: 23268.8941 | EO58: 23288.19653 | EP58: 23307.51498 | EQ58: 23326.84945 | ER58: 23346.19996 | ES58: 23365.56652 | ET58: 23384.94915 | EU58: 23404.34786 | EV58: 23423.76266 | EW58: 23443.19356 | EX58: 23462.64058 | EY58: 24760.83216 | EZ58: 24781.37221 | FA58: 24801.9293 | FB58: 24822.50345 | FC58: 24843.09466 | FD58: 24863.70296 | FE58: 24884.32835 | FF58: 24904.97084 | FG58: 24925.63047 | FH58: 24946.30723 | FI58: 24967.00114 | FJ58: 24987.71222 | FK58: 26370.28625 | FL58: 26392.16141 | FM58: 26414.05471 | FN58: 26435.96617 | FO58: 26457.89582 | FP58: 26479.84365 | FQ58: 26501.80969 | FR58: 26523.79395 | FS58: 26545.79645 | FT58: 26567.8172 | FU58: 26589.85621 | FV58: 26611.91351 | FW58: 28084.35485 | FX58: 28107.6519 | FY58: 28130.96827 | FZ58: 28154.30398 | GA58: 28177.65904 | GB58: 28201.03349 | GC58: 28224.42732 | GD58: 28247.84056 | GE58: 28271.27322 | GF58: 28294.72532 | GG58: 28318.19687 | GH58: 28341.68789 | GI58: 29909.83792 | GJ58: 29934.64927 | GK58: 29959.4812 | GL58: 29984.33373 | GM58: 30009.20688 | GN58: 30034.10066 | GO58: 30059.01509 | GP58: 30083.95019 | GQ58: 30108.90598 | GR58: 30133.88246 | GS58: 30158.87967 | GT58: 30183.89761 | GU58: 31853.97738 | GV58: =GV57*GV55 -> 31880.40147 | GW58: 31906.84748 | GX58: 31933.31543 | GY58: 31959.80533 | GZ58: 31986.31721 | HA58: 32012.85108 | HB58: 32039.40696 | HC58: 32065.98486 | HD58: 32092.58482 | HE58: 32119.20684 | HF58: 32145.85095 | HG58: 33924.48591 | HH58: 33952.62757 | HI58: 33980.79257 | HJ58: 34008.98093 | HK58: 34037.19268 | HL58: 34065.42782 | HM58: 34093.6864 | HN58: 34121.96841 | HO58: 34150.27388 | HP58: 34178.60283 | HQ58: 34206.95529 | HR58: 34235.33126 | HS58: 36129.5775 | HT58: 36159.54836 | HU58: 36189.54408 | HV58: 36219.56469 | HW58: 36249.6102 | HX58: 36279.68063 | HY58: 36309.77601 | HZ58: 36339.89635 | IA58: 36370.04168 | IB58: 36400.21202 | IC58: 36430.40738 | ID58: 36460.62779 | IE58: 38478.00004 | IF58: 38509.919 | IG58: 38541.86445 | IH58: 38573.8364 | II58: 38605.83486 | IJ58: 38637.85987 | IK58: 38669.91145 | IL58: 38701.98962 | IM58: 38734.09439 | IN58: 38766.2258 | IO58: 38798.38386 | IP58: 38830.5686 | IQ58: 40979.07004 | IR58: 41013.06374 | IS58: 41047.08564 | IT58: 41081.13576 | IU58: 41115.21413 | IV58: 41149.32077 | IW58: 41183.4557 | IX58: 41217.61894 | IY58: 41251.81053 | IZ58: 41286.03048 | JA58: 41320.27881 | JB58: 41354.55556 | JC58: 43642.70959 | JD58: 43678.91288 | JE58: 43715.14621 | JF58: 43751.40959 | JG58: 43787.70305 | JH58: =JH57*JH55 -> 43824.02662 | JI58: 43860.38032 | JJ58: 43896.76417 | JK58: 43933.17821 | JL58: 43969.62246 | JM58: 44006.09694 | JN58: 44042.60167 | JO58: 46479.48571 | JP58: 46518.04222 | JQ58: 46556.63071 | JR58: 46595.25121 | JS58: 46633.90374 | JT58: 46672.58835 | JU58: 46711.30504 | JV58: 46750.05384 | JW58: 46788.8348 | JX58: 46827.64792 | JY58: 46866.49324 | JZ58: 46905.37078 | KA58: 49500.65229 | KB58: 49541.71496 | KC58: 49582.8117 | KD58: 49623.94254 | KE58: 49665.10749 | KF58: 49706.30659 | KG58: 49747.53986 | KH58: 49788.80734 | KI58: 49830.10906 | KJ58: 49871.44503 | KK58: 49912.8153 | KL58: 49954.21988 | KM58: 49995.65881 | KN58: 50037.13211 | KO58: 50078.63982 | KP58: 50120.18196 | KQ58: 50161.75856 | KR58: 50203.36965 | KS58: 50245.01526 | KT58: 50286.69542 | KU58: 50328.41015 | KV58: 50370.15948 | KW58: 50411.94345 | KX58: 50453.76208 | KY58: 50495.6154 | KZ58: 50537.50343 | LA58: 50579.42622 | LB58: 50621.38378 | LC58: 50663.37615 | LD58: 50705.40335 | LE58: 50747.46542 | LF58: 50789.56237 | LG58: 50831.69425 | LH58: 50873.86108 | LI58: 50916.06288 | LJ58: 50958.2997 | LK58: 51000.57155 | LL58: 51042.87847 | LM58: 51085.22048 | LN58: 51127.59762 | LO58: 51170.00991 | LP58: 51212.45738 | LQ58: 51254.94007 | LR58: 51297.458 | LS58: 51340.01119 | LT58: =LT57*LT55 -> 51382.59969 | LU58: 51425.22351 | LV58: 51467.8827 | LW58: 51510.57727 | LX58: 51553.30725 | LY58: 51596.07269 | LZ58: 51638.8736 | MA58: 51681.71001 | MB58: 51724.58196 | MC58: 51767.48947 | MD58: 51810.43258 | ME58: 51853.4113 | MF58: 51896.42569 | MG58: 51939.47575 | MH58: 51982.56152 | MI58: 52025.68304 | MJ58: 52068.84033 | MK58: 52112.03341 | ML58: 52155.26233 | MM58: 52198.52711 | MN58: 52241.82778 | MO58: 52285.16436 | MP58: 52328.5369 | MQ58: 52371.94542 | MR58: 52415.38994 | MS58: 52458.87051 | MT58: 52502.38714 | MU58: 52545.93987 | MV58: 52589.52873 | MW58: 52633.15375 | MX58: 52676.81495 | MY58: 52720.51238 | MZ58: 52764.24606 | NA58: 52808.01601 | NB58: 52851.82227 | NC58: 52895.66487 | ND58: 52939.54384 | NE58: 52983.45921 | NF58: 53027.41101 | NG58: 53071.39927 | NH58: 53115.42402 | NI58: 53159.48529 | NJ58: 53203.5831 | NK58: 53247.7175 | NL58: 53291.88852 | NM58: 53336.09617 | NN58: 53380.34049 | NO58: 53424.62152 | NP58: 53468.93928 | NQ58: 53513.2938 | NR58: 53557.68512 | NS58: 53602.11326 | NT58: 53646.57826 | NU58: 53691.08014 | NV58: 53735.61894 | NW58: 53780.19468 | NX58: 53824.8074 | NY58: 53869.45713 | NZ58: 53914.1439 | OA58: 53958.86774 | OB58: 54003.62867 | OC58: 54048.42674 | OD58: 54093.26197 | OE58: 54138.13439 | OF58: =OF57*OF55 -> 54183.04404 | OG58: 54227.99094 | OH58: 54272.97512 | OI58: 54317.99663 | OJ58: 54363.05547 | OK58: 54408.1517 | OL58: 54453.28534 | OM58: 54498.45641 | ON58: 54543.66496 | OO58: 54588.91101 | OP58: 54634.19459 | OQ58: 54679.51574 | OR58: 54724.87448 | OS58: 54770.27085 | OT58: 54815.70488
B60: Cost Applied | G60: =INDEX(58:58,MATCH(H5,2:2)) -> 11716.85279
A62: Capital Expenditures
